Workbook

Sheet mapa_ref
A1: 1 | B1: 1 | C1: 1 | D1: 1 | E1: 1 | F1: 1 | G1: 1 | H1: 1 | I1: 1 | J1: 1 | K1: 1 | L1: 1 | M1: 1 | N1: 1 | O1: 1 | P1: 1 | Q1: 1 | R1: 1 | S1: 1 | T1: 1 | U1: 1 | V1: 1 | W1: 1 | X1: 1 | Y1: 1 | Z1: 1 | AA1: 1 | AB1: 1 | AC1: 1 | AD1: 1 | AE1: 1 | AF1: 1 | AG1: 1 | AH1: 1 | AI1: 1 | AJ1: 1 | AK1: 1 | AL1: 1 | AM1: 1 | AN1: 1 | AO1: 1 | AP1: 1 | AQ1: 1 | AR1: 1 | AS1: 1 | AT1: 1 | AU1: 1 | AV1: 1 | AW1: 1 | AX1: 1 | AY1: 1 | AZ1: 1 | BA1: 1 | BB1: 1 | BC1: 1 | BD1: 1 | BE1: 1 | BF1: 1 | BG1: 1 | BH1: 1 | BI1: 1 | BJ1: 2 | BK1: 2 | BL1: 2 | BM1: 2 | BN1: 1 | BO1: 1 | BP1: 1 | BQ1: 1 | BR1: 1 | BS1: 1 | BT1: 1 | BU1: 1 | BV1: 1 | BW1: 1 | BX1: 1 | BY1: 1 | BZ1: 1 | CA1: 1 | CB1: 1 | CC1: 1 | CD1: 1 | CE1: 1 | CF1: 2 | CG1: 2 | CH1: 2 | CI1: 2 | CJ1: 2 | CK1: 2 | CL1: 1 | CM1: 1 | CN1: 1 | CO1: 1 | CP1: 1 | CQ1: 1 | CR1: 1 | CS1: 1 | CT1: 1 | CU1: 1 | CV1: 1 | CW1: 1 | CX1: 1 | CY1: 1 | CZ1: 1 | DA1: 1 | DB1: 1 | DC1: 1 | DD1: 1 | DE1: 1 | DF1: 1 | DG1: 1 | DH1: 1 | DI1: 1 | DJ1: 1 | DK1: 1 | DL1: 1 | DM1: 1 | DN1: 1 | DO1: 1 | DP1: 1 | DQ1: 1 | DR1: 1 | DS1: 1 | DT1: 1 | DU1: 1 | DV1: 1 | DW1: 1 | DX1: 1 | DY1: 1 | DZ1: 1 | EA1: 1 | EB1: 1 | EC1: 1 | ED1: 1 | EE1: 1 | EF1: 1 | EG1: 1 | EH1: 1 | EI1: 1 | EJ1: 1 | EK1: 1 | EL1: 1 | EM1: 1 | EN1: 1 | EO1: 1 | EP1: 1 | EQ1: 1 | ER1: 1 | ES1: 1 | ET1: 1 | EU1: 1 | EV1: 1 | EW1: 1 | EX1: 1 | EY1: 1 | EZ1: 1 | FA1: 1 | FB1: 1 | FC1: 1 | FD1: 1 | FE1: 1 | FF1: 1 | FG1: 1 | FH1: 1 | FI1: 1 | FJ1: 1 | FK1: 1 | FL1: 1 | FM1: 1 | FN1: 1 | FO1: 1 | FP1: 1 | FQ1: 1 | FR1: 1 | FS1: 1 | FT1: 1 | FU1: 1 | FV1: 1 | FW1: 1 | FX1: 1 | FY1: 1 | FZ1: 1 | GA1: 1 | GB1: 1 | GC1: 1 | GD1: 2 | GE1: 2 | GF1: 1 | GG1: 1 | GH1: 1 | GI1: 1 | GJ1: 1 | GK1: 1 | GL1: 1 | GM1: 1 | GN1: 1 | GO1: 1 | GP1: 1 | GQ1: 1 | GR1: 1
A2: 1 | B2: 1 | C2: 1 | D2: 1 | E2: 1 | F2: 1 | G2: 1 | H2: 1 | I2: 1 | J2: 1 | K2: 1 | L2: 1 | M2: 1 | N2: 1 | O2: 1 | P2: 1 | Q2: 1 | R2: 1 | S2: 1 | T2: 1 | U2: 1 | V2: 1 | W2: 1 | X2: 1 | Y2: 1 | Z2: 1 | AA2: 1 | AB2: 1 | AC2: 1 | AD2: 1 | AE2: 1 | AF2: 1 | AG2: 1 | AH2: 1 | AI2: 1 | AJ2: 1 | AK2: 1 | AL2: 1 | AM2: 1 | AN2: 1 | AO2: 1 | AP2: 1 | AQ2: 1 | AR2: 1 | AS2: 1 | AT2: 1 | AU2: 1 | AV2: 1 | AW2: 1 | AX2: 1 | AY2: 1 | AZ2: 1 | BA2: 1 | BB2: 1 | BC2: 1 | BD2: 2 | BE2: 2 | BF2: 1 | BG2: 1 | BH2: 1 | BI2: 1 | BJ2: 2 | BK2: 2 | BL2: 1 | BM2: 1 | BN2: 1 | BO2: 1 | BP2: 1 | BQ2: 1 | BR2: 1 | BS2: 1 | BT2: 1 | BU2: 1 | BV2: 1 | BW2: 1 | BX2: 1 | BY2: 1 | BZ2: 1 | CA2: 1 | CB2: 1 | CC2: 1 | CD2: 1 | CE2: 2 | CF2: 2 | CG2: 2 | CH2: 2 | CI2: 2 | CJ2: 2 | CK2: 2 | CL2: 1 | CM2: 1 | CN2: 1 | CO2: 1 | CP2: 1 | CQ2: 1 | CR2: 1 | CS2: 1 | CT2: 1 | CU2: 1 | CV2: 1 | CW2: 1 | CX2: 1 | CY2: 1 | CZ2: 1 | DA2: 1 | DB2: 1 | DC2: 1 | DD2: 1 | DE2: 1 | DF2: 1 | DG2: 1 | DH2: 1 | DI2: 1 | DJ2: 1 | DK2: 1 | DL2: 1 | DM2: 1 | DN2: 1 | DO2: 1 | DP2: 1 | DQ2: 1 | DR2: 1 | DS2: 1 | DT2: 1 | DU2: 1 | DV2: 1 | DW2: 1 | DX2: 1 | DY2: 1 | DZ2: 1 | EA2: 1 | EB2: 1 | EC2: 1 | ED2: 1 | EE2: 1 | EF2: 1 | EG2: 1 | EH2: 1 | EI2: 1 | EJ2: 1 | EK2: 1 | EL2: 1 | EM2: 1 | EN2: 1 | EO2: 1 | EP2: 1 | EQ2: 1 | ER2: 1 | ES2: 1 | ET2: 1 | EU2: 1 | EV2: 1 | EW2: 1 | EX2: 1 | EY2: 1 | EZ2: 1 | FA2: 1 | FB2: 1 | FC2: 1 | FD2: 1 | FE2: 1 | FF2: 1 | FG2: 1 | FH2: 1 | FI2: 1 | FJ2: 1 | FK2: 1 | FL2: 1 | FM2: 1 | FN2: 1 | FO2: 1 | FP2: 1 | FQ2: 1 | FR2: 1 | FS2: 1 | FT2: 1 | FU2: 1 | FV2: 1 | FW2: 1 | FX2: 1 | FY2: 1 | FZ2: 1 | GA2: 1 | GB2: 1 | GC2: 1 | GD2: 1 | GE2: 2 | GF2: 1 | GG2: 1 | GH2: 1 | GI2: 1 | GJ2: 1 | GK2: 1 | GL2: 1 | GM2: 1 | GN2: 1 | GO2: 1 | GP2: 1 | GQ2: 1 | GR2: 1
A3: 1 | B3: 1 | C3: 1 | D3: 1 | E3: 1 | F3: 1 | G3: 1 | H3: 1 | I3: 1 | J3: 1 | K3: 1 | L3: 1 | M3: 1 | N3: 1 | O3: 1 | P3: 1 | Q3: 1 | R3: 1 | S3: 1 | T3: 1 | U3: 1 | V3: 1 | W3: 1 | X3: 1 | Y3: 1 | Z3: 1 | AA3: 1 | AB3: 1 | AC3: 1 | AD3: 1 | AE3: 1 | AF3: 1 | AG3: 1 | AH3: 1 | AI3: 1 | AJ3: 1 | AK3: 1 | AL3: 1 | AM3: 1 | AN3: 1 | AO3: 1 | AP3: 1 | AQ3: 1 | AR3: 1 | AS3: 1 | AT3: 1 | AU3: 1 | AV3: 1 | AW3: 2 | AX3: 2 | AY3: 2 | AZ3: 2 | BA3: 2 | BB3: 2 | BC3: 2 | BD3: 2 | BE3: 2 | BF3: 2 | BG3: 1 | BH3: 1 | BI3: 1 | BJ3: 2 | BK3: 2 | BL3: 1 | BM3: 1 | BN3: 1 | BO3: 1 | BP3: 1 | BQ3: 1 | BR3: 1 | BS3: 1 | BT3: 1 | BU3: 1 | BV3: 1 | BW3: 1 | BX3: 1 | BY3: 1 | BZ3: 1 | CA3: 1 | CB3: 1 | CC3: 1 | CD3: 2 | CE3: 2 | CF3: 2 | CG3: 2 | CH3: 2 | CI3: 2 | CJ3: 2 | CK3: 2 | CL3: 1 | CM3: 1 | CN3: 1 | CO3: 1 | CP3: 1 | CQ3: 1 | CR3: 1 | CS3: 1 | CT3: 1 | CU3: 1 | CV3: 1 | CW3: 1 | CX3: 1 | CY3: 1 | CZ3: 1 | DA3: 1 | DB3: 1 | DC3: 1 | DD3: 1 | DE3: 1 | DF3: 1 | DG3: 1 | DH3: 1 | DI3: 1 | DJ3: 1 | DK3: 1 | DL3: 1 | DM3: 1 | DN3: 1 | DO3: 1 | DP3: 1 | DQ3: 1 | DR3: 1 | DS3: 1 | DT3: 1 | DU3: 1 | DV3: 1 | DW3: 1 | DX3: 1 | DY3: 1 | DZ3: 1 | EA3: 1 | EB3: 1 | EC3: 1 | ED3: 1 | EE3: 1 | EF3: 1 | EG3: 1 | EH3: 1 | EI3: 1 | EJ3: 1 | EK3: 1 | EL3: 1 | EM3: 1 | EN3: 1 | EO3: 1 | EP3: 1 | EQ3: 1 | ER3: 1 | ES3: 1 | ET3: 1 | EU3: 1 | EV3: 1 | EW3: 1 | EX3: 1 | EY3: 1 | EZ3: 1 | FA3: 1 | FB3: 1 | FC3: 1 | FD3: 1 | FE3: 1 | FF3: 1 | FG3: 1 | FH3: 1 | FI3: 1 | FJ3: 1 | FK3: 1 | FL3: 1 | FM3: 1 | FN3: 1 | FO3: 1 | FP3: 1 | FQ3: 1 | FR3: 1 | FS3: 1 | FT3: 1 | FU3: 1 | FV3: 1 | FW3: 1 | FX3: 1 | FY3: 1 | FZ3: 1 | GA3: 1 | GB3: 1 | GC3: 1 | GD3: 1 | GE3: 1 | GF3: 1 | GG3: 2 | GH3: 1 | GI3: 1 | GJ3: 1 | GK3: 1 | GL3: 1 | GM3: 1 | GN3: 1 | GO3: 1 | GP3: 1 | GQ3: 1 | GR3: 1
A4: 1 | B4: 1 | C4: 1 | D4: 1 | E4: 1 | F4: 1 | G4: 1 | H4: 1 | I4: 1 | J4: 1 | K4: 1 | L4: 1 | M4: 1 | N4: 1 | O4: 1 | P4: 1 | Q4: 1 | R4: 1 | S4: 1 | T4: 1 | U4: 1 | V4: 1 | W4: 1 | X4: 1 | Y4: 1 | Z4: 1 | AA4: 1 | AB4: 1 | AC4: 1 | AD4: 1 | AE4: 1 | AF4: 1 | AG4: 1 | AH4: 1 | AI4: 1 | AJ4: 1 | AK4: 1 | AL4: 1 | AM4: 1 | AN4: 1 | AO4: 1 | AP4: 2 | AQ4: 2 | AR4: 1 | AS4: 1 | AT4: 1 | AU4: 1 | AV4: 1 | AW4: 2 | AX4: 2 | AY4: 2 | AZ4: 2 | BA4: 2 | BB4: 2 | BC4: 2 | BD4: 2 | BE4: 2 | BF4: 2 | BG4: 1 | BH4: 1 | BI4: 2 | BJ4: 2 | BK4: 2 | BL4: 2 | BM4: 2 | BN4: 1 | BO4: 1 | BP4: 1 | BQ4: 1 | BR4: 1 | BS4: 1 | BT4: 1 | BU4: 1 | BV4: 1 | BW4: 1 | BX4: 1 | BY4: 1 | BZ4: 1 | CA4: 1 | CB4: 1 | CC4: 1 | CD4: 2 | CE4: 2 | CF4: 2 | CG4: 2 | CH4: 2 | CI4: 2 | CJ4: 2 | CK4: 2 | CL4: 2 | CM4: 1 | CN4: 1 | CO4: 1 | CP4: 1 | CQ4: 1 | CR4: 1 | CS4: 1 | CT4: 1 | CU4: 1 | CV4: 1 | CW4: 1 | CX4: 1 | CY4: 1 | CZ4: 1 | DA4: 1 | DB4: 1 | DC4: 1 | DD4: 1 | DE4: 1 | DF4: 1 | DG4: 1 | DH4: 1 | DI4: 1 | DJ4: 1 | DK4: 1 | DL4: 1 | DM4: 1 | DN4: 1 | DO4: 1 | DP4: 1 | DQ4: 1 | DR4: 1 | DS4: 1 | DT4: 1 | DU4: 1 | DV4: 1 | DW4: 1 | DX4: 1 | DY4: 1 | DZ4: 1 | EA4: 1 | EB4: 1 | EC4: 1 | ED4: 1 | EE4: 1 | EF4: 1 | EG4: 1 | EH4: 1 | EI4: 1 | EJ4: 1 | EK4: 1 | EL4: 1 | EM4: 1 | EN4: 1 | EO4: 1 | EP4: 1 | EQ4: 1 | ER4: 1 | ES4: 1 | ET4: 1 | EU4: 1 | EV4: 1 | EW4: 1 | EX4: 1 | EY4: 1 | EZ4: 1 | FA4: 1 | FB4: 1 | FC4: 1 | FD4: 1 | FE4: 1 | FF4: 1 | FG4: 1 | FH4: 1 | FI4: 1 | FJ4: 1 | FK4: 1 | FL4: 1 | FM4: 1 | FN4: 1 | FO4: 1 | FP4: 1 | FQ4: 1 | FR4: 1 | FS4: 1 | FT4: 1 | FU4: 1 | FV4: 1 | FW4: 1 | FX4: 1 | FY4: 1 | FZ4: 1 | GA4: 1 | GB4: 1 | GC4: 1 | GD4: 1 | GE4: 1 | GF4: 2 | GG4: 2 | GH4: 1 | GI4: 1 | GJ4: 1 | GK4: 1 | GL4: 1 | GM4: 1 | GN4: 1 | GO4: 1 | GP4: 1 | GQ4: 1 | GR4: 1
A5: 1 | B5: 1 | C5: 1 | D5: 1 | E5: 1 | F5: 1 | G5: 1 | H5: 1 | I5: 1 | J5: 1 | K5: 1 | L5: 1 | M5: 1 | N5: 1 | O5: 1 | P5: 1 | Q5: 1 | R5: 1 | S5: 1 | T5: 1 | U5: 1 | V5: 1 | W5: 1 | X5: 1 | Y5: 1 | Z5: 1 | AA5: 1 | AB5: 1 | AC5: 1 | AD5: 1 | AE5: 1 | AF5: 1 | AG5: 1 | AH5: 1 | AI5: 1 | AJ5: 1 | AK5: 1 | AL5: 1 | AM5: 2 | AN5: 2 | AO5: 2 | AP5: 2 | AQ5: 2 | AR5: 1 | AS5: 1 | AT5: 1 | AU5: 1 | AV5: 2 | AW5: 2 | AX5: 2 | AY5: 2 | AZ5: 2 | BA5: 2 | BB5: 1 | BC5: 1 | BD5: 2 | BE5: 2 | BF5: 2 | BG5: 1 | BH5: 2 | BI5: 2 | BJ5: 2 | BK5: 2 | BL5: 2 | BM5: 2 | BN5: 1 | BO5: 1 | BP5: 1 | BQ5: 1 | BR5: 1 | BS5: 1 | BT5: 1 | BU5: 1 | BV5: 1 | BW5: 1 | BX5: 1 | BY5: 1 | BZ5: 1 | CA5: 1 | CB5: 1 | CC5: 1 | CD5: 1 | CE5: 1 | CF5: 2 | CG5: 2 | CH5: 2 | CI5: 2 | CJ5: 2 | CK5: 2 | CL5: 2 | CM5: 1 | CN5: 1 | CO5: 1 | CP5: 1 | CQ5: 1 | CR5: 1 | CS5: 1 | CT5: 1 | CU5: 1 | CV5: 1 | CW5: 1 | CX5: 1 | CY5: 1 | CZ5: 1 | DA5: 1 | DB5: 1 | DC5: 1 | DD5: 1 | DE5: 1 | DF5: 1 | DG5: 1 | DH5: 1 | DI5: 1 | DJ5: 1 | DK5: 1 | DL5: 1 | DM5: 1 | DN5: 1 | DO5: 1 | DP5: 1 | DQ5: 1 | DR5: 1 | DS5: 1 | DT5: 1 | DU5: 1 | DV5: 1 | DW5: 1 | DX5: 1 | DY5: 1 | DZ5: 1 | EA5: 1 | EB5: 1 | EC5: 1 | ED5: 1 | EE5: 1 | EF5: 1 | EG5: 1 | EH5: 1 | EI5: 1 | EJ5: 1 | EK5: 1 | EL5: 1 | EM5: 1 | EN5: 1 | EO5: 1 | EP5: 1 | EQ5: 1 | ER5: 1 | ES5: 1 | ET5: 1 | EU5: 1 | EV5: 1 | EW5: 1 | EX5: 1 | EY5: 1 | EZ5: 1 | FA5: 1 | FB5: 1 | FC5: 1 | FD5: 1 | FE5: 1 | FF5: 1 | FG5: 1 | FH5: 1 | FI5: 1 | FJ5: 1 | FK5: 1 | FL5: 1 | FM5: 1 | FN5: 1 | FO5: 1 | FP5: 1 | FQ5: 1 | FR5: 1 | FS5: 1 | FT5: 1 | FU5: 1 | FV5: 1 | FW5: 1 | FX5: 1 | FY5: 1 | FZ5: 1 | GA5: 1 | GB5: 1 | GC5: 1 | GD5: 1 | GE5: 1 | GF5: 2 | GG5: 2 | GH5: 2 | GI5: 1 | GJ5: 1 | GK5: 1 | GL5: 1 | GM5: 1 | GN5: 1 | GO5: 1 | GP5: 1 | GQ5: 1 | GR5: 1
A6: 1 | B6: 1 | C6: 1 | D6: 1 | E6: 1 | F6: 1 | G6: 1 | H6: 1 | I6: 1 | J6: 1 | K6: 1 | L6: 1 | M6: 1 | N6: 1 | O6: 1 | P6: 1 | Q6: 1 | R6: 1 | S6: 1 | T6: 1 | U6: 1 | V6: 1 | W6: 1 | X6: 1 | Y6: 1 | Z6: 1 | AA6: 1 | AB6: 1 | AC6: 1 | AD6: 1 | AE6: 1 | AF6: 1 | AG6: 1 | AH6: 1 | AI6: 1 | AJ6: 1 | AK6: 1 | AL6: 2 | AM6: 2 | AN6: 2 | AO6: 2 | AP6: 2 | AQ6: 2 | AR6: 2 | AS6: 1 | AT6: 1 | AU6: 1 | AV6: 2 | AW6: 2 | AX6: 2 | AY6: 2 | AZ6: 2 | BA6: 1 | BB6: 1 | BC6: 1 | BD6: 2 | BE6: 2 | BF6: 2 | BG6: 1 | BH6: 2 | BI6: 2 | BJ6: 2 | BK6: 2 | BL6: 2 | BM6: 2 | BN6: 1 | BO6: 1 | BP6: 1 | BQ6: 1 | BR6: 1 | BS6: 1 | BT6: 1 | BU6: 1 | BV6: 1 | BW6: 1 | BX6: 1 | BY6: 1 | BZ6: 1 | CA6: 1 | CB6: 1 | CC6: 1 | CD6: 1 | CE6: 1 | CF6: 1 | CG6: 1 | CH6: 1 | CI6: 1 | CJ6: 1 | CK6: 2 | CL6: 1 | CM6: 1 | CN6: 1 | CO6: 1 | CP6: 1 | CQ6: 1 | CR6: 1 | CS6: 1 | CT6: 1 | CU6: 1 | CV6: 1 | CW6: 1 | CX6: 1 | CY6: 1 | CZ6: 1 | DA6: 1 | DB6: 1 | DC6: 1 | DD6: 1 | DE6: 1 | DF6: 1 | DG6: 1 | DH6: 1 | DI6: 1 | DJ6: 1 | DK6: 1 | DL6: 1 | DM6: 1 | DN6: 1 | DO6: 1 | DP6: 1 | DQ6: 1 | DR6: 1 | DS6: 1 | DT6: 1 | DU6: 1 | DV6: 1 | DW6: 1 | DX6: 1 | DY6: 1 | DZ6: 1 | EA6: 1 | EB6: 1 | EC6: 1 | ED6: 1 | EE6: 1 | EF6: 1 | EG6: 1 | EH6: 1 | EI6: 1 | EJ6: 1 | EK6: 1 | EL6: 1 | EM6: 1 | EN6: 1 | EO6: 1 | EP6: 1 | EQ6: 1 | ER6: 1 | ES6: 1 | ET6: 1 | EU6: 1 | EV6: 1 | EW6: 1 | EX6: 1 | EY6: 1 | EZ6: 1 | FA6: 1 | FB6: 1 | FC6: 1 | FD6: 1 | FE6: 1 | FF6: 1 | FG6: 1 | FH6: 1 | FI6: 1 | FJ6: 1 | FK6: 1 | FL6: 1 | FM6: 1 | FN6: 1 | FO6: 1 | FP6: 1 | FQ6: 1 | FR6: 1 | FS6: 1 | FT6: 1 | FU6: 1 | FV6: 1 | FW6: 1 | FX6: 1 | FY6: 1 | FZ6: 1 | GA6: 1 | GB6: 1 | GC6: 1 | GD6: 1 | GE6: 1 | GF6: 1 | GG6: 2 | GH6: 2 | GI6: 2 | GJ6: 1 | GK6: 1 | GL6: 1 | GM6: 1 | GN6: 1 | GO6: 1 | GP6: 1 | GQ6: 1 | GR6: 1
A7: 1 | B7: 1 | C7: 1 | D7: 1 | E7: 1 | F7: 1 | G7: 1 | H7: 1 | I7: 1 | J7: 1 | K7: 1 | L7: 1 | M7: 1 | N7: 1 | O7: 1 | P7: 1 | Q7: 1 | R7: 1 | S7: 1 | T7: 1 | U7: 1 | V7: 1 | W7: 1 | X7: 1 | Y7: 1 | Z7: 1 | AA7: 1 | AB7: 1 | AC7: 1 | AD7: 1 | AE7: 1 | AF7: 1 | AG7: 1 | AH7: 1 | AI7: 1 | AJ7: 1 | AK7: 1 | AL7: 2 | AM7: 2 | AN7: 2 | AO7: 2 | AP7: 2 | AQ7: 2 | AR7: 2 | AS7: 2 | AT7: 1 | AU7: 2 | AV7: 2 | AW7: 2 | AX7: 2 | AY7: 2 | AZ7: 2 | BA7: 1 | BB7: 1 | BC7: 1 | BD7: 1 | BE7: 1 | BF7: 1 | BG7: 1 | BH7: 2 | BI7: 2 | BJ7: 2 | BK7: 2 | BL7: 2 | BM7: 2 | BN7: 1 | BO7: 1 | BP7: 1 | BQ7: 1 | BR7: 1 | BS7: 1 | BT7: 1 | BU7: 1 | BV7: 1 | BW7: 1 | BX7: 1 | BY7: 1 | BZ7: 1 | CA7: 1 | CB7: 1 | CC7: 1 | CD7: 1 | CE7: 1 | CF7: 1 | CG7: 1 | CH7: 1 | CI7: 1 | CJ7: 1 | CK7: 1 | CL7: 1 | CM7: 1 | CN7: 1 | CO7: 1 | CP7: 1 | CQ7: 1 | CR7: 1 | CS7: 1 | CT7: 1 | CU7: 1 | CV7: 1 | CW7: 1 | CX7: 1 | CY7: 1 | CZ7: 1 | DA7: 1 | DB7: 1 | DC7: 1 | DD7: 1 | DE7: 1 | DF7: 1 | DG7: 1 | DH7: 1 | DI7: 1 | DJ7: 1 | DK7: 1 | DL7: 1 | DM7: 1 | DN7: 1 | DO7: 1 | DP7: 1 | DQ7: 1 | DR7: 1 | DS7: 1 | DT7: 1 | DU7: 1 | DV7: 1 | DW7: 1 | DX7: 1 | DY7: 1 | DZ7: 1 | EA7: 1 | EB7: 1 | EC7: 1 | ED7: 1 | EE7: 1 | EF7: 1 | EG7: 1 | EH7: 1 | EI7: 1 | EJ7: 1 | EK7: 1 | EL7: 1 | EM7: 1 | EN7: 1 | EO7: 1 | EP7: 1 | EQ7: 1 | ER7: 1 | ES7: 1 | ET7: 1 | EU7: 1 | EV7: 1 | EW7: 1 | EX7: 1 | EY7: 1 | EZ7: 1 | FA7: 1 | FB7: 1 | FC7: 1 | FD7: 1 | FE7: 1 | FF7: 1 | FG7: 1 | FH7: 1 | FI7: 1 | FJ7: 1 | FK7: 1 | FL7: 1 | FM7: 1 | FN7: 1 | FO7: 1 | FP7: 1 | FQ7: 1 | FR7: 1 | FS7: 1 | FT7: 1 | FU7: 1 | FV7: 1 | FW7: 1 | FX7: 1 | FY7: 1 | FZ7: 1 | GA7: 1 | GB7: 1 | GC7: 1 | GD7: 1 | GE7: 1 | GF7: 1 | GG7: 1 | GH7: 2 | GI7: 2 | GJ7: 1 | GK7: 1 | GL7: 1 | GM7: 1 | GN7: 1 | GO7: 1 | GP7: 1 | GQ7: 1 | GR7: 1
A8: 1 | B8: 1 | C8: 1 | D8: 1 | E8: 1 | F8: 1 | G8: 1 | H8: 1 | I8: 1 | J8: 1 | K8: 1 | L8: 1 | M8: 1 | N8: 1 | O8: 1 | P8: 1 | Q8: 1 | R8: 1 | S8: 1 | T8: 1 | U8: 1 | V8: 1 | W8: 1 | X8: 1 | Y8: 1 | Z8: 1 | AA8: 1 | AB8: 1 | AC8: 1 | AD8: 1 | AE8: 1 | AF8: 1 | AG8: 1 | AH8: 1 | AI8: 1 | AJ8: 2 | AK8: 2 | AL8: 2 | AM8: 2 | AN8: 2 | AO8: 2 | AP8: 2 | AQ8: 2 | AR8: 2 | AS8: 2 | AT8: 2 | AU8: 2 | AV8: 2 | AW8: 2 | AX8: 2 | AY8: 1 | AZ8: 1 | BA8: 1 | BB8: 1 | BC8: 1 | BD8: 1 | BE8: 1 | BF8: 1 | BG8: 1 | BH8: 1 | BI8: 2 | BJ8: 2 | BK8: 2 | BL8: 1 | BM8: 1 | BN8: 1 | BO8: 1 | BP8: 1 | BQ8: 1 | BR8: 1 | BS8: 1 | BT8: 1 | BU8: 1 | BV8: 1 | BW8: 1 | BX8: 1 | BY8: 1 | BZ8: 1 | CA8: 1 | CB8: 1 | CC8: 1 | CD8: 1 | CE8: 1 | CF8: 1 | CG8: 1 | CH8: 1 | CI8: 1 | CJ8: 1 | CK8: 1 | CL8: 1 | CM8: 1 | CN8: 1 | CO8: 1 | CP8: 1 | CQ8: 1 | CR8: 1 | CS8: 1 | CT8: 1 | CU8: 1 | CV8: 1 | CW8: 1 | CX8: 1 | CY8: 1 | CZ8: 1 | DA8: 1 | DB8: 1 | DC8: 1 | DD8: 1 | DE8: 1 | DF8: 1 | DG8: 1 | DH8: 1 | DI8: 1 | DJ8: 1 | DK8: 1 | DL8: 1 | DM8: 1 | DN8: 1 | DO8: 1 | DP8: 1 | DQ8: 1 | DR8: 1 | DS8: 1 | DT8: 1 | DU8: 1 | DV8: 1 | DW8: 1 | DX8: 1 | DY8: 1 | DZ8: 1 | EA8: 1 | EB8: 1 | EC8: 1 | ED8: 1 | EE8: 1 | EF8: 1 | EG8: 1 | EH8: 1 | EI8: 1 | EJ8: 1 | EK8: 1 | EL8: 1 | EM8: 1 | EN8: 1 | EO8: 1 | EP8: 1 | EQ8: 1 | ER8: 1 | ES8: 1 | ET8: 1 | EU8: 1 | EV8: 1 | EW8: 1 | EX8: 1 | EY8: 1 | EZ8: 1 | FA8: 1 | FB8: 1 | FC8: 1 | FD8: 1 | FE8: 1 | FF8: 1 | FG8: 1 | FH8: 1 | FI8: 1 | FJ8: 1 | FK8: 1 | FL8: 1 | FM8: 1 | FN8: 1 | FO8: 1 | FP8: 1 | FQ8: 1 | FR8: 1 | FS8: 1 | FT8: 1 | FU8: 1 | FV8: 1 | FW8: 1 | FX8: 1 | FY8: 1 | FZ8: 1 | GA8: 1 | GB8: 1 | GC8: 1 | GD8: 1 | GE8: 1 | GF8: 1 | GG8: 1 | GH8: 1 | GI8: 2 | GJ8: 2 | GK8: 1 | GL8: 1 | GM8: 1 | GN8: 1 | GO8: 1 | GP8: 1 | GQ8: 1 | GR8: 1
A9: 1 | B9: 1 | C9: 1 | D9: 1 | E9: 1 | F9: 1 | G9: 1 | H9: 1 | I9: 1 | J9: 1 | K9: 1 | L9: 1 | M9: 1 | N9: 1 | O9: 1 | P9: 1 | Q9: 1 | R9: 1 | S9: 1 | T9: 1 | U9: 1 | V9: 1 | W9: 1 | X9: 1 | Y9: 1 | Z9: 1 | AA9: 1 | AB9: 1 | AC9: 1 | AD9: 1 | AE9: 1 | AF9: 1 | AG9: 1 | AH9: 1 | AI9: 1 | AJ9: 1 | AK9: 2 | AL9: 2 | AM9: 2 | AN9: 2 | AO9: 2 | AP9: 2 | AQ9: 2 | AR9: 2 | AS9: 2 | AT9: 2 | AU9: 2 | AV9: 2 | AW9: 2 | AX9: 2 | AY9: 1 | AZ9: 1 | BA9: 1 | BB9: 1 | BC9: 1 | BD9: 1 | BE9: 1 | BF9: 1 | BG9: 1 | BH9: 1 | BI9: 2 | BJ9: 2 | BK9: 1 | BL9: 1 | BM9: 1 | BN9: 1 | BO9: 1 | BP9: 1 | BQ9: 1 | BR9: 1 | BS9: 1 | BT9: 1 | BU9: 1 | BV9: 1 | BW9: 1 | BX9: 1 | BY9: 1 | BZ9: 1 | CA9: 1 | CB9: 1 | CC9: 1 | CD9: 1 | CE9: 1 | CF9: 1 | CG9: 1 | CH9: 1 | CI9: 1 | CJ9: 1 | CK9: 1 | CL9: 1 | CM9: 1 | CN9: 1 | CO9: 1 | CP9: 1 | CQ9: 1 | CR9: 1 | CS9: 1 | CT9: 1 | CU9: 1 | CV9: 1 | CW9: 1 | CX9: 1 | CY9: 1 | CZ9: 1 | DA9: 1 | DB9: 1 | DC9: 1 | DD9: 1 | DE9: 1 | DF9: 1 | DG9: 1 | DH9: 1 | DI9: 1 | DJ9: 1 | DK9: 1 | DL9: 1 | DM9: 1 | DN9: 1 | DO9: 1 | DP9: 1 | DQ9: 1 | DR9: 1 | DS9: 1 | DT9: 1 | DU9: 1 | DV9: 1 | DW9: 1 | DX9: 1 | DY9: 1 | DZ9: 1 | EA9: 1 | EB9: 1 | EC9: 1 | ED9: 1 | EE9: 1 | EF9: 1 | EG9: 1 | EH9: 1 | EI9: 1 | EJ9: 1 | EK9: 1 | EL9: 1 | EM9: 1 | EN9: 1 | EO9: 2 | EP9: 1 | EQ9: 1 | ER9: 1 | ES9: 1 | ET9: 1 | EU9: 1 | EV9: 1 | EW9: 1 | EX9: 1 | EY9: 1 | EZ9: 1 | FA9: 1 | FB9: 1 | FC9: 1 | FD9: 1 | FE9: 1 | FF9: 1 | FG9: 1 | FH9: 1 | FI9: 1 | FJ9: 1 | FK9: 1 | FL9: 1 | FM9: 1 | FN9: 1 | FO9: 1 | FP9: 1 | FQ9: 1 | FR9: 1 | FS9: 1 | FT9: 1 | FU9: 1 | FV9: 1 | FW9: 1 | FX9: 1 | FY9: 1 | FZ9: 1 | GA9: 1 | GB9: 1 | GC9: 1 | GD9: 1 | GE9: 1 | GF9: 1 | GG9: 1 | GH9: 1 | GI9: 2 | GJ9: 2 | GK9: 2 | GL9: 1 | GM9: 1 | GN9: 1 | GO9: 1 | GP9: 1 | GQ9: 1 | GR9: 1
A10: 1 | B10: 1 | C10: 1 | D10: 1 | E10: 1 | F10: 1 | G10: 1 | H10: 1 | I10: 1 | J10: 1 | K10: 1 | L10: 1 | M10: 1 | N10: 1 | O10: 1 | P10: 1 | Q10: 1 | R10: 1 | S10: 1 | T10: 1 | U10: 1 | V10: 1 | W10: 1 | X10: 1 | Y10: 1 | Z10: 1 | AA10: 1 | AB10: 1 | AC10: 1 | AD10: 1 | AE10: 1 | AF10: 1 | AG10: 1 | AH10: 1 | AI10: 1 | AJ10: 1 | AK10: 1 | AL10: 2 | AM10: 2 | AN10: 2 | AO10: 2 | AP10: 2 | AQ10: 2 | AR10: 2 | AS10: 2 | AT10: 2 | AU10: 2 | AV10: 2 | AW10: 2 | AX10: 1 | AY10: 1 | AZ10: 1 | BA10: 1 | BB10: 1 | BC10: 1 | BD10: 1 | BE10: 1 | BF10: 1 | BG10: 1 | BH10: 1 | BI10: 1 | BJ10: 1 | BK10: 1 | BL10: 1 | BM10: 1 | BN10: 1 | BO10: 1 | BP10: 1 | BQ10: 1 | BR10: 1 | BS10: 1 | BT10: 1 | BU10: 1 | BV10: 1 | BW10: 1 | BX10: 1 | BY10: 1 | BZ10: 1 | CA10: 1 | CB10: 1 | CC10: 1 | CD10: 1 | CE10: 1 | CF10: 1 | CG10: 1 | CH10: 1 | CI10: 1 | CJ10: 1 | CK10: 1 | CL10: 1 | CM10: 1 | CN10: 1 | CO10: 1 | CP10: 1 | CQ10: 1 | CR10: 1 | CS10: 1 | CT10: 1 | CU10: 1 | CV10: 1 | CW10: 1 | CX10: 1 | CY10: 1 | CZ10: 1 | DA10: 1 | DB10: 1 | DC10: 1 | DD10: 1 | DE10: 1 | DF10: 1 | DG10: 1 | DH10: 1 | DI10: 1 | DJ10: 1 | DK10: 1 | DL10: 1 | DM10: 1 | DN10: 1 | DO10: 1 | DP10: 1 | DQ10: 1 | DR10: 1 | DS10: 1 | DT10: 1 | DU10: 1 | DV10: 1 | DW10: 1 | DX10: 1 | DY10: 1 | DZ10: 1 | EA10: 1 | EB10: 1 | EC10: 1 | ED10: 1 | EE10: 1 | EF10: 1 | EG10: 1 | EH10: 1 | EI10: 1 | EJ10: 1 | EK10: 1 | EL10: 1 | EM10: 1 | EN10: 1 | EO10: 2 | EP10: 2 | EQ10: 1 | ER10: 1 | ES10: 1 | ET10: 1 | EU10: 1 | EV10: 1 | EW10: 1 | EX10: 1 | EY10: 1 | EZ10: 1 | FA10: 1 | FB10: 1 | FC10: 1 | FD10: 1 | FE10: 1 | FF10: 1 | FG10: 1 | FH10: 1 | FI10: 1 | FJ10: 1 | FK10: 1 | FL10: 1 | FM10: 1 | FN10: 1 | FO10: 1 | FP10: 1 | FQ10: 1 | FR10: 1 | FS10: 1 | FT10: 1 | FU10: 1 | FV10: 1 | FW10: 1 | FX10: 1 | FY10: 1 | FZ10: 1 | GA10: 1 | GB10: 1 | GC10: 1 | GD10: 1 | GE10: 1 | GF10: 1 | GG10: 1 | GH10: 1 | GI10: 1 | GJ10: 2 | GK10: 2 | GL10: 1 | GM10: 1 | GN10: 1 | GO10: 1 | GP10: 1 | GQ10: 1 | GR10: 1
A11: 1 | B11: 1 | C11: 1 | D11: 1 | E11: 1 | F11: 1 | G11: 1 | H11: 1 | I11: 1 | J11: 1 | K11: 1 | L11: 1 | M11: 1 | N11: 1 | O11: 1 | P11: 1 | Q11: 1 | R11: 1 | S11: 1 | T11: 1 | U11: 1 | V11: 1 | W11: 1 | X11: 1 | Y11: 1 | Z11: 1 | AA11: 1 | AB11: 1 | AC11: 1 | AD11: 1 | AE11: 1 | AF11: 1 | AG11: 1 | AH11: 1 | AI11: 1 | AJ11: 1 | AK11: 1 | AL11: 1 | AM11: 2 | AN11: 2 | AO11: 2 | AP11: 2 | AQ11: 2 | AR11: 2 | AS11: 2 | AT11: 2 | AU11: 2 | AV11: 2 | AW11: 1 | AX11: 1 | AY11: 1 | AZ11: 1 | BA11: 1 | BB11: 1 | BC11: 1 | BD11: 1 | BE11: 1 | BF11: 1 | BG11: 1 | BH11: 1 | BI11: 1 | BJ11: 1 | BK11: 1 | BL11: 1 | BM11: 1 | BN11: 1 | BO11: 1 | BP11: 1 | BQ11: 1 | BR11: 1 | BS11: 1 | BT11: 1 | BU11: 1 | BV11: 1 | BW11: 1 | BX11: 1 | BY11: 1 | BZ11: 1 | CA11: 1 | CB11: 1 | CC11: 1 | CD11: 1 | CE11: 1 | CF11: 1 | CG11: 1 | CH11: 1 | CI11: 1 | CJ11: 2 | CK11: 2 | CL11: 1 | CM11: 1 | CN11: 1 | CO11: 1 | CP11: 1 | CQ11: 1 | CR11: 1 | CS11: 1 | CT11: 1 | CU11: 1 | CV11: 1 | CW11: 1 | CX11: 1 | CY11: 1 | CZ11: 1 | DA11: 1 | DB11: 1 | DC11: 1 | DD11: 1 | DE11: 1 | DF11: 1 | DG11: 1 | DH11: 1 | DI11: 1 | DJ11: 1 | DK11: 1 | DL11: 1 | DM11: 1 | DN11: 1 | DO11: 1 | DP11: 1 | DQ11: 1 | DR11: 1 | DS11: 1 | DT11: 1 | DU11: 1 | DV11: 1 | DW11: 1 | DX11: 1 | DY11: 1 | DZ11: 1 | EA11: 1 | EB11: 1 | EC11: 1 | ED11: 1 | EE11: 1 | EF11: 1 | EG11: 1 | EH11: 1 | EI11: 1 | EJ11: 1 | EK11: 1 | EL11: 1 | EM11: 1 | EN11: 1 | EO11: 2 | EP11: 2 | EQ11: 2 | ER11: 1 | ES11: 1 | ET11: 1 | EU11: 1 | EV11: 1 | EW11: 1 | EX11: 1 | EY11: 1 | EZ11: 1 | FA11: 1 | FB11: 1 | FC11: 1 | FD11: 1 | FE11: 1 | FF11: 1 | FG11: 1 | FH11: 1 | FI11: 1 | FJ11: 1 | FK11: 1 | FL11: 1 | FM11: 1 | FN11: 1 | FO11: 1 | FP11: 1 | FQ11: 1 | FR11: 1 | FS11: 1 | FT11: 1 | FU11: 1 | FV11: 1 | FW11: 1 | FX11: 1 | FY11: 1 | FZ11: 1 | GA11: 1 | GB11: 1 | GC11: 1 | GD11: 1 | GE11: 1 | GF11: 1 | GG11: 1 | GH11: 1 | GI11: 1 | GJ11: 1 | GK11: 2 | GL11: 2 | GM11: 1 | GN11: 1 | GO11: 1 | GP11: 1 | GQ11: 1 | GR11: 1
A12: 1 | B12: 1 | C12: 1 | D12: 1 | E12: 1 | F12: 1 | G12: 1 | H12: 1 | I12: 1 | J12: 1 | K12: 1 | L12: 1 | M12: 1 | N12: 1 | O12: 1 | P12: 1 | Q12: 1 | R12: 1 | S12: 1 | T12: 1 | U12: 1 | V12: 1 | W12: 1 | X12: 1 | Y12: 1 | Z12: 1 | AA12: 1 | AB12: 1 | AC12: 1 | AD12: 1 | AE12: 1 | AF12: 1 | AG12: 1 | AH12: 1 | AI12: 1 | AJ12: 2 | AK12: 2 | AL12: 2 | AM12: 2 | AN12: 2 | AO12: 2 | AP12: 2 | AQ12: 2 | AR12: 2 | AS12: 2 | AT12: 2 | AU12: 1 | AV12: 1 | AW12: 1 | AX12: 1 | AY12: 1 | AZ12: 1 | BA12: 1 | BB12: 1 | BC12: 1 | BD12: 1 | BE12: 1 | BF12: 1 | BG12: 1 | BH12: 1 | BI12: 1 | BJ12: 1 | BK12: 1 | BL12: 1 | BM12: 1 | BN12: 1 | BO12: 1 | BP12: 1 | BQ12: 1 | BR12: 1 | BS12: 1 | BT12: 1 | BU12: 1 | BV12: 1 | BW12: 1 | BX12: 1 | BY12: 1 | BZ12: 1 | CA12: 1 | CB12: 1 | CC12: 1 | CD12: 1 | CE12: 1 | CF12: 1 | CG12: 1 | CH12: 1 | CI12: 2 | CJ12: 2 | CK12: 2 | CL12: 1 | CM12: 1 | CN12: 1 | CO12: 1 | CP12: 1 | CQ12: 1 | CR12: 1 | CS12: 1 | CT12: 1 | CU12: 1 | CV12: 1 | CW12: 1 | CX12: 1 | CY12: 1 | CZ12: 1 | DA12: 1 | DB12: 1 | DC12: 1 | DD12: 1 | DE12: 1 | DF12: 1 | DG12: 1 | DH12: 1 | DI12: 1 | DJ12: 1 | DK12: 1 | DL12: 1 | DM12: 1 | DN12: 1 | DO12: 1 | DP12: 1 | DQ12: 1 | DR12: 1 | DS12: 1 | DT12: 1 | DU12: 1 | DV12: 1 | DW12: 1 | DX12: 1 | DY12: 1 | DZ12: 1 | EA12: 1 | EB12: 1 | EC12: 1 | ED12: 1 | EE12: 1 | EF12: 1 | EG12: 1 | EH12: 1 | EI12: 1 | EJ12: 1 | EK12: 1 | EL12: 1 | EM12: 1 | EN12: 1 | EO12: 2 | EP12: 2 | EQ12: 2 | ER12: 1 | ES12: 1 | ET12: 1 | EU12: 1 | EV12: 1 | EW12: 1 | EX12: 1 | EY12: 1 | EZ12: 1 | FA12: 1 | FB12: 1 | FC12: 1 | FD12: 1 | FE12: 1 | FF12: 1 | FG12: 1 | FH12: 1 | FI12: 1 | FJ12: 1 | FK12: 1 | FL12: 1 | FM12: 1 | FN12: 1 | FO12: 1 | FP12: 1 | FQ12: 1 | FR12: 1 | FS12: 1 | FT12: 1 | FU12: 1 | FV12: 1 | FW12: 1 | FX12: 1 | FY12: 1 | FZ12: 1 | GA12: 1 | GB12: 1 | GC12: 1 | GD12: 1 | GE12: 1 | GF12: 1 | GG12: 1 | GH12: 1 | GI12: 1 | GJ12: 1 | GK12: 2 | GL12: 2 | GM12: 2 | GN12: 1 | GO12: 1 | GP12: 1 | GQ12: 1 | GR12: 1
A13: 1 | B13: 1 | C13: 1 | D13: 1 | E13: 1 | F13: 1 | G13: 1 | H13: 1 | I13: 1 | J13: 1 | K13: 1 | L13: 1 | M13: 1 | N13: 1 | O13: 1 | P13: 1 | Q13: 1 | R13: 1 | S13: 1 | T13: 1 | U13: 1 | V13: 1 | W13: 1 | X13: 1 | Y13: 1 | Z13: 1 | AA13: 1 | AB13: 1 | AC13: 1 | AD13: 1 | AE13: 1 | AF13: 1 | AG13: 1 | AH13: 1 | AI13: 1 | AJ13: 2 | AK13: 2 | AL13: 2 | AM13: 2 | AN13: 2 | AO13: 2 | AP13: 2 | AQ13: 2 | AR13: 2 | AS13: 2 | AT13: 2 | AU13: 1 | AV13: 1 | AW13: 1 | AX13: 1 | AY13: 1 | AZ13: 1 | BA13: 1 | BB13: 1 | BC13: 1 | BD13: 1 | BE13: 1 | BF13: 1 | BG13: 1 | BH13: 1 | BI13: 1 | BJ13: 1 | BK13: 1 | BL13: 1 | BM13: 1 | BN13: 1 | BO13: 1 | BP13: 1 | BQ13: 1 | BR13: 1 | BS13: 1 | BT13: 1 | BU13: 1 | BV13: 1 | BW13: 1 | BX13: 1 | BY13: 1 | BZ13: 1 | CA13: 1 | CB13: 1 | CC13: 1 | CD13: 1 | CE13: 1 | CF13: 1 | CG13: 1 | CH13: 1 | CI13: 2 | CJ13: 2 | CK13: 2 | CL13: 1 | CM13: 1 | CN13: 1 | CO13: 1 | CP13: 1 | CQ13: 1 | CR13: 1 | CS13: 1 | CT13: 1 | CU13: 1 | CV13: 1 | CW13: 1 | CX13: 1 | CY13: 1 | CZ13: 1 | DA13: 1 | DB13: 1 | DC13: 1 | DD13: 1 | DE13: 1 | DF13: 1 | DG13: 1 | DH13: 1 | DI13: 1 | DJ13: 1 | DK13: 1 | DL13: 1 | DM13: 1 | DN13: 1 | DO13: 1 | DP13: 1 | DQ13: 1 | DR13: 1 | DS13: 1 | DT13: 1 | DU13: 1 | DV13: 1 | DW13: 1 | DX13: 1 | DY13: 1 | DZ13: 1 | EA13: 1 | EB13: 1 | EC13: 1 | ED13: 1 | EE13: 1 | EF13: 1 | EG13: 1 | EH13: 1 | EI13: 1 | EJ13: 1 | EK13: 1 | EL13: 1 | EM13: 1 | EN13: 1 | EO13: 1 | EP13: 2 | EQ13: 2 | ER13: 1 | ES13: 1 | ET13: 1 | EU13: 1 | EV13: 1 | EW13: 1 | EX13: 1 | EY13: 1 | EZ13: 1 | FA13: 1 | FB13: 1 | FC13: 1 | FD13: 1 | FE13: 1 | FF13: 1 | FG13: 1 | FH13: 1 | FI13: 1 | FJ13: 1 | FK13: 1 | FL13: 1 | FM13: 1 | FN13: 1 | FO13: 1 | FP13: 1 | FQ13: 1 | FR13: 1 | FS13: 1 | FT13: 1 | FU13: 1 | FV13: 1 | FW13: 1 | FX13: 1 | FY13: 1 | FZ13: 1 | GA13: 1 | GB13: 1 | GC13: 1 | GD13: 1 | GE13: 1 | GF13: 1 | GG13: 1 | GH13: 1 | GI13: 1 | GJ13: 1 | GK13: 1 | GL13: 2 | GM13: 2 | GN13: 1 | GO13: 1 | GP13: 1 | GQ13: 1 | GR13: 1
A14: 1 | B14: 1 | C14: 1 | D14: 1 | E14: 1 | F14: 1 | G14: 1 | H14: 1 | I14: 1 | J14: 1 | K14: 1 | L14: 1 | M14: 1 | N14: 1 | O14: 1 | P14: 1 | Q14: 1 | R14: 1 | S14: 1 | T14: 1 | U14: 1 | V14: 1 | W14: 1 | X14: 1 | Y14: 1 | Z14: 1 | AA14: 1 | AB14: 1 | AC14: 1 | AD14: 1 | AE14: 1 | AF14: 1 | AG14: 1 | AH14: 2 | AI14: 2 | AJ14: 2 | AK14: 2 | AL14: 2 | AM14: 2 | AN14: 2 | AO14: 2 | AP14: 2 | AQ14: 2 | AR14: 2 | AS14: 2 | AT14: 1 | AU14: 1 | AV14: 1 | AW14: 1 | AX14: 1 | AY14: 1 | AZ14: 1 | BA14: 1 | BB14: 1 | BC14: 1 | BD14: 1 | BE14: 1 | BF14: 1 | BG14: 1 | BH14: 1 | BI14: 1 | BJ14: 1 | BK14: 1 | BL14: 1 | BM14: 1 | BN14: 1 | BO14: 1 | BP14: 1 | BQ14: 1 | BR14: 1 | BS14: 1 | BT14: 1 | BU14: 1 | BV14: 1 | BW14: 1 | BX14: 1 | BY14: 1 | BZ14: 1 | CA14: 1 | CB14: 1 | CC14: 1 | CD14: 1 | CE14: 1 | CF14: 1 | CG14: 1 | CH14: 1 | CI14: 1 | CJ14: 2 | CK14: 2 | CL14: 2 | CM14: 1 | CN14: 1 | CO14: 1 | CP14: 1 | CQ14: 1 | CR14: 1 | CS14: 1 | CT14: 1 | CU14: 1 | CV14: 1 | CW14: 1 | CX14: 1 | CY14: 1 | CZ14: 1 | DA14: 1 | DB14: 1 | DC14: 1 | DD14: 1 | DE14: 1 | DF14: 1 | DG14: 1 | DH14: 1 | DI14: 1 | DJ14: 1 | DK14: 1 | DL14: 1 | DM14: 1 | DN14: 1 | DO14: 1 | DP14: 1 | DQ14: 1 | DR14: 1 | DS14: 1 | DT14: 1 | DU14: 1 | DV14: 1 | DW14: 1 | DX14: 1 | DY14: 1 | DZ14: 1 | EA14: 1 | EB14: 1 | EC14: 1 | ED14: 1 | EE14: 1 | EF14: 1 | EG14: 1 | EH14: 1 | EI14: 1 | EJ14: 1 | EK14: 1 | EL14: 1 | EM14: 1 | EN14: 1 | EO14: 1 | EP14: 1 | EQ14: 1 | ER14: 1 | ES14: 1 | ET14: 1 | EU14: 1 | EV14: 1 | EW14: 1 | EX14: 1 | EY14: 1 | EZ14: 1 | FA14: 1 | FB14: 1 | FC14: 1 | FD14: 1 | FE14: 1 | FF14: 1 | FG14: 1 | FH14: 1 | FI14: 1 | FJ14: 1 | FK14: 1 | FL14: 1 | FM14: 1 | FN14: 1 | FO14: 1 | FP14: 1 | FQ14: 1 | FR14: 1 | FS14: 1 | FT14: 1 | FU14: 1 | FV14: 1 | FW14: 1 | FX14: 1 | FY14: 1 | FZ14: 1 | GA14: 1 | GB14: 1 | GC14: 1 | GD14: 1 | GE14: 1 | GF14: 1 | GG14: 1 | GH14: 1 | GI14: 1 | GJ14: 1 | GK14: 1 | GL14: 1 | GM14: 2 | GN14: 2 | GO14: 1 | GP14: 1 | GQ14: 1 | GR14: 1
A15: 1 | B15: 1 | C15: 1 | D15: 1 | E15: 1 | F15: 1 | G15: 1 | H15: 1 | I15: 1 | J15: 1 | K15: 1 | L15: 1 | M15: 1 | N15: 1 | O15: 1 | P15: 1 | Q15: 1 | R15: 1 | S15: 1 | T15: 1 | U15: 1 | V15: 1 | W15: 1 | X15: 1 | Y15: 1 | Z15: 1 | AA15: 1 | AB15: 1 | AC15: 1 | AD15: 1 | AE15: 1 | AF15: 1 | AG15: 2 | AH15: 2 | AI15: 2 | AJ15: 2 | AK15: 2 | AL15: 2 | AM15: 2 | AN15: 2 | AO15: 2 | AP15: 2 | AQ15: 2 | AR15: 1 | AS15: 1 | AT15: 1 | AU15: 1 | AV15: 1 | AW15: 1 | AX15: 1 | AY15: 1 | AZ15: 1 | BA15: 1 | BB15: 1 | BC15: 1 | BD15: 1 | BE15: 1 | BF15: 1 | BG15: 1 | BH15: 1 | BI15: 1 | BJ15: 1 | BK15: 1 | BL15: 1 | BM15: 1 | BN15: 1 | BO15: 1 | BP15: 1 | BQ15: 1 | BR15: 1 | BS15: 1 | BT15: 1 | BU15: 1 | BV15: 1 | BW15: 1 | BX15: 1 | BY15: 1 | BZ15: 1 | CA15: 1 | CB15: 1 | CC15: 1 | CD15: 1 | CE15: 1 | CF15: 1 | CG15: 1 | CH15: 1 | CI15: 1 | CJ15: 2 | CK15: 2 | CL15: 2 | CM15: 1 | CN15: 1 | CO15: 1 | CP15: 1 | CQ15: 1 | CR15: 1 | CS15: 1 | CT15: 1 | CU15: 1 | CV15: 1 | CW15: 1 | CX15: 1 | CY15: 1 | CZ15: 1 | DA15: 1 | DB15: 1 | DC15: 1 | DD15: 1 | DE15: 1 | DF15: 1 | DG15: 1 | DH15: 1 | DI15: 1 | DJ15: 1 | DK15: 1 | DL15: 1 | DM15: 1 | DN15: 1 | DO15: 1 | DP15: 1 | DQ15: 1 | DR15: 1 | DS15: 1 | DT15: 1 | DU15: 1 | DV15: 1 | DW15: 1 | DX15: 1 | DY15: 1 | DZ15: 1 | EA15: 1 | EB15: 1 | EC15: 1 | ED15: 1 | EE15: 1 | EF15: 1 | EG15: 1 | EH15: 1 | EI15: 1 | EJ15: 1 | EK15: 1 | EL15: 1 | EM15: 1 | EN15: 1 | EO15: 1 | EP15: 1 | EQ15: 1 | ER15: 1 | ES15: 1 | ET15: 1 | EU15: 1 | EV15: 1 | EW15: 1 | EX15: 1 | EY15: 1 | EZ15: 1 | FA15: 1 | FB15: 1 | FC15: 1 | FD15: 1 | FE15: 1 | FF15: 1 | FG15: 1 | FH15: 1 | FI15: 1 | FJ15: 1 | FK15: 1 | FL15: 1 | FM15: 1 | FN15: 1 | FO15: 1 | FP15: 1 | FQ15: 1 | FR15: 1 | FS15: 1 | FT15: 1 | FU15: 1 | FV15: 1 | FW15: 1 | FX15: 1 | FY15: 1 | FZ15: 1 | GA15: 1 | GB15: 1 | GC15: 1 | GD15: 1 | GE15: 1 | GF15: 1 | GG15: 1 | GH15: 1 | GI15: 1 | GJ15: 1 | GK15: 1 | GL15: 1 | GM15: 2 | GN15: 2 | GO15: 1 | GP15: 1 | GQ15: 1 | GR15: 1
A16: 1 | B16: 1 | C16: 1 | D16: 1 | E16: 1 | F16: 1 | G16: 1 | H16: 1 | I16: 1 | J16: 1 | K16: 1 | L16: 1 | M16: 1 | N16: 1 | O16: 1 | P16: 1 | Q16: 1 | R16: 1 | S16: 1 | T16: 1 | U16: 1 | V16: 1 | W16: 1 | X16: 1 | Y16: 1 | Z16: 1 | AA16: 1 | AB16: 1 | AC16: 1 | AD16: 1 | AE16: 2 | AF16: 2 | AG16: 2 | AH16: 2 | AI16: 2 | AJ16: 2 | AK16: 2 | AL16: 2 | AM16: 2 | AN16: 2 | AO16: 2 | AP16: 2 | AQ16: 1 | AR16: 1 | AS16: 1 | AT16: 1 | AU16: 1 | AV16: 1 | AW16: 1 | AX16: 1 | AY16: 1 | AZ16: 1 | BA16: 1 | BB16: 1 | BC16: 1 | BD16: 1 | BE16: 1 | BF16: 1 | BG16: 1 | BH16: 1 | BI16: 1 | BJ16: 1 | BK16: 1 | BL16: 1 | BM16: 1 | BN16: 1 | BO16: 1 | BP16: 1 | BQ16: 1 | BR16: 1 | BS16: 1 | BT16: 1 | BU16: 1 | BV16: 1 | BW16: 1 | BX16: 1 | BY16: 1 | BZ16: 1 | CA16: 1 | CB16: 1 | CC16: 1 | CD16: 1 | CE16: 1 | CF16: 1 | CG16: 1 | CH16: 1 | CI16: 1 | CJ16: 2 | CK16: 2 | CL16: 2 | CM16: 1 | CN16: 1 | CO16: 1 | CP16: 1 | CQ16: 1 | CR16: 1 | CS16: 1 | CT16: 1 | CU16: 1 | CV16: 1 | CW16: 1 | CX16: 1 | CY16: 1 | CZ16: 1 | DA16: 1 | DB16: 1 | DC16: 1 | DD16: 1 | DE16: 1 | DF16: 1 | DG16: 1 | DH16: 1 | DI16: 1 | DJ16: 1 | DK16: 1 | DL16: 1 | DM16: 1 | DN16: 1 | DO16: 1 | DP16: 1 | DQ16: 1 | DR16: 1 | DS16: 1 | DT16: 1 | DU16: 1 | DV16: 1 | DW16: 1 | DX16: 1 | DY16: 1 | DZ16: 1 | EA16: 1 | EB16: 1 | EC16: 1 | ED16: 1 | EE16: 1 | EF16: 1 | EG16: 1 | EH16: 1 | EI16: 1 | EJ16: 1 | EK16: 1 | EL16: 1 | EM16: 1 | EN16: 1 | EO16: 1 | EP16: 1 | EQ16: 1 | ER16: 1 | ES16: 1 | ET16: 1 | EU16: 1 | EV16: 1 | EW16: 1 | EX16: 1 | EY16: 1 | EZ16: 1 | FA16: 1 | FB16: 1 | FC16: 1 | FD16: 1 | FE16: 1 | FF16: 1 | FG16: 1 | FH16: 1 | FI16: 1 | FJ16: 1 | FK16: 1 | FL16: 1 | FM16: 1 | FN16: 1 | FO16: 1 | FP16: 1 | FQ16: 1 | FR16: 1 | FS16: 1 | FT16: 1 | FU16: 1 | FV16: 1 | FW16: 1 | FX16: 1 | FY16: 1 | FZ16: 1 | GA16: 1 | GB16: 1 | GC16: 1 | GD16: 1 | GE16: 1 | GF16: 1 | GG16: 1 | GH16: 1 | GI16: 1 | GJ16: 1 | GK16: 1 | GL16: 1 | GM16: 1 | GN16: 2 | GO16: 2 | GP16: 1 | GQ16: 1 | GR16: 1
A17: 1 | B17: 1 | C17: 1 | D17: 1 | E17: 1 | F17: 1 | G17: 1 | H17: 1 | I17: 1 | J17: 1 | K17: 1 | L17: 1 | M17: 1 | N17: 1 | O17: 1 | P17: 1 | Q17: 1 | R17: 1 | S17: 1 | T17: 1 | U17: 1 | V17: 1 | W17: 1 | X17: 1 | Y17: 1 | Z17: 1 | AA17: 1 | AB17: 1 | AC17: 1 | AD17: 1 | AE17: 1 | AF17: 2 | AG17: 2 | AH17: 2 | AI17: 2 | AJ17: 2 | AK17: 2 | AL17: 2 | AM17: 2 | AN17: 2 | AO17: 2 | AP17: 2 | AQ17: 2 | AR17: 1 | AS17: 1 | AT17: 1 | AU17: 1 | AV17: 1 | AW17: 1 | AX17: 1 | AY17: 1 | AZ17: 1 | BA17: 1 | BB17: 1 | BC17: 1 | BD17: 1 | BE17: 1 | BF17: 1 | BG17: 1 | BH17: 1 | BI17: 1 | BJ17: 1 | BK17: 1 | BL17: 1 | BM17: 1 | BN17: 1 | BO17: 1 | BP17: 1 | BQ17: 1 | BR17: 1 | BS17: 1 | BT17: 1 | BU17: 1 | BV17: 1 | BW17: 1 | BX17: 1 | BY17: 1 | BZ17: 1 | CA17: 1 | CB17: 1 | CC17: 1 | CD17: 1 | CE17: 1 | CF17: 1 | CG17: 1 | CH17: 1 | CI17: 1 | CJ17: 2 | CK17: 2 | CL17: 2 | CM17: 1 | CN17: 1 | CO17: 1 | CP17: 1 | CQ17: 1 | CR17: 1 | CS17: 1 | CT17: 1 | CU17: 1 | CV17: 1 | CW17: 1 | CX17: 1 | CY17: 1 | CZ17: 1 | DA17: 1 | DB17: 1 | DC17: 1 | DD17: 1 | DE17: 1 | DF17: 1 | DG17: 1 | DH17: 1 | DI17: 1 | DJ17: 1 | DK17: 1 | DL17: 1 | DM17: 1 | DN17: 1 | DO17: 1 | DP17: 1 | DQ17: 1 | DR17: 1 | DS17: 1 | DT17: 1 | DU17: 1 | DV17: 1 | DW17: 1 | DX17: 1 | DY17: 1 | DZ17: 1 | EA17: 1 | EB17: 1 | EC17: 1 | ED17: 1 | EE17: 1 | EF17: 1 | EG17: 1 | EH17: 1 | EI17: 1 | EJ17: 1 | EK17: 1 | EL17: 1 | EM17: 1 | EN17: 1 | EO17: 1 | EP17: 1 | EQ17: 1 | ER17: 1 | ES17: 1 | ET17: 1 | EU17: 1 | EV17: 1 | EW17: 1 | EX17: 1 | EY17: 1 | EZ17: 1 | FA17: 1 | FB17: 1 | FC17: 1 | FD17: 1 | FE17: 1 | FF17: 1 | FG17: 1 | FH17: 1 | FI17: 1 | FJ17: 1 | FK17: 1 | FL17: 1 | FM17: 1 | FN17: 1 | FO17: 1 | FP17: 1 | FQ17: 1 | FR17: 1 | FS17: 1 | FT17: 1 | FU17: 1 | FV17: 1 | FW17: 1 | FX17: 1 | FY17: 1 | FZ17: 1 | GA17: 1 | GB17: 1 | GC17: 1 | GD17: 1 | GE17: 1 | GF17: 1 | GG17: 1 | GH17: 1 | GI17: 1 | GJ17: 1 | GK17: 1 | GL17: 1 | GM17: 1 | GN17: 2 | GO17: 2 | GP17: 2 | GQ17: 1 | GR17: 1
A18: 1 | B18: 1 | C18: 1 | D18: 1 | E18: 1 | F18: 1 | G18: 1 | H18: 1 | I18: 1 | J18: 1 | K18: 1 | L18: 1 | M18: 1 | N18: 1 | O18: 1 | P18: 1 | Q18: 1 | R18: 1 | S18: 1 | T18: 1 | U18: 1 | V18: 1 | W18: 1 | X18: 1 | Y18: 1 | Z18: 1 | AA18: 1 | AB18: 1 | AC18: 1 | AD18: 1 | AE18: 1 | AF18: 2 | AG18: 2 | AH18: 2 | AI18: 2 | AJ18: 2 | AK18: 2 | AL18: 2 | AM18: 2 | AN18: 2 | AO18: 2 | AP18: 2 | AQ18: 2 | AR18: 1 | AS18: 1 | AT18: 1 | AU18: 1 | AV18: 1 | AW18: 1 | AX18: 1 | AY18: 1 | AZ18: 1 | BA18: 1 | BB18: 1 | BC18: 1 | BD18: 1 | BE18: 1 | BF18: 1 | BG18: 1 | BH18: 1 | BI18: 1 | BJ18: 1 | BK18: 1 | BL18: 1 | BM18: 1 | BN18: 1 | BO18: 1 | BP18: 1 | BQ18: 1 | BR18: 1 | BS18: 1 | BT18: 1 | BU18: 1 | BV18: 1 | BW18: 1 | BX18: 1 | BY18: 1 | BZ18: 1 | CA18: 1 | CB18: 1 | CC18: 1 | CD18: 1 | CE18: 1 | CF18: 1 | CG18: 1 | CH18: 1 | CI18: 2 | CJ18: 2 | CK18: 2 | CL18: 2 | CM18: 1 | CN18: 1 | CO18: 1 | CP18: 1 | CQ18: 1 | CR18: 1 | CS18: 1 | CT18: 1 | CU18: 1 | CV18: 1 | CW18: 1 | CX18: 1 | CY18: 1 | CZ18: 1 | DA18: 1 | DB18: 1 | DC18: 1 | DD18: 1 | DE18: 1 | DF18: 1 | DG18: 1 | DH18: 1 | DI18: 1 | DJ18: 1 | DK18: 1 | DL18: 1 | DM18: 1 | DN18: 1 | DO18: 1 | DP18: 1 | DQ18: 1 | DR18: 1 | DS18: 1 | DT18: 1 | DU18: 1 | DV18: 1 | DW18: 1 | DX18: 1 | DY18: 1 | DZ18: 1 | EA18: 1 | EB18: 1 | EC18: 1 | ED18: 1 | EE18: 1 | EF18: 1 | EG18: 1 | EH18: 1 | EI18: 1 | EJ18: 1 | EK18: 1 | EL18: 1 | EM18: 1 | EN18: 1 | EO18: 1 | EP18: 1 | EQ18: 2 | ER18: 2 | ES18: 2 | ET18: 1 | EU18: 1 | EV18: 1 | EW18: 1 | EX18: 1 | EY18: 1 | EZ18: 1 | FA18: 1 | FB18: 1 | FC18: 1 | FD18: 1 | FE18: 1 | FF18: 1 | FG18: 1 | FH18: 1 | FI18: 1 | FJ18: 1 | FK18: 1 | FL18: 1 | FM18: 1 | FN18: 1 | FO18: 1 | FP18: 1 | FQ18: 1 | FR18: 1 | FS18: 1 | FT18: 1 | FU18: 1 | FV18: 1 | FW18: 1 | FX18: 1 | FY18: 1 | FZ18: 1 | GA18: 1 | GB18: 1 | GC18: 1 | GD18: 1 | GE18: 1 | GF18: 1 | GG18: 1 | GH18: 1 | GI18: 1 | GJ18: 1 | GK18: 1 | GL18: 1 | GM18: 1 | GN18: 1 | GO18: 2 | GP18: 2 | GQ18: 1 | GR18: 1
A19: 1 | B19: 1 | C19: 1 | D19: 1 | E19: 1 | F19: 1 | G19: 1 | H19: 1 | I19: 1 | J19: 1 | K19: 1 | L19: 1 | M19: 1 | N19: 1 | O19: 1 | P19: 1 | Q19: 1 | R19: 1 | S19: 1 | T19: 1 | U19: 1 | V19: 1 | W19: 1 | X19: 1 | Y19: 1 | Z19: 1 | AA19: 1 | AB19: 1 | AC19: 1 | AD19: 1 | AE19: 1 | AF19: 2 | AG19: 2 | AH19: 2 | AI19: 2 | AJ19: 2 | AK19: 2 | AL19: 2 | AM19: 2 | AN19: 2 | AO19: 2 | AP19: 2 | AQ19: 1 | AR19: 1 | AS19: 1 | AT19: 1 | AU19: 1 | AV19: 1 | AW19: 1 | AX19: 1 | AY19: 1 | AZ19: 1 | BA19: 1 | BB19: 1 | BC19: 1 | BD19: 1 | BE19: 1 | BF19: 1 | BG19: 1 | BH19: 1 | BI19: 1 | BJ19: 1 | BK19: 1 | BL19: 1 | BM19: 1 | BN19: 1 | BO19: 1 | BP19: 1 | BQ19: 1 | BR19: 1 | BS19: 1 | BT19: 1 | BU19: 1 | BV19: 1 | BW19: 1 | BX19: 1 | BY19: 1 | BZ19: 1 | CA19: 1 | CB19: 1 | CC19: 1 | CD19: 1 | CE19: 1 | CF19: 1 | CG19: 1 | CH19: 1 | CI19: 2 | CJ19: 2 | CK19: 2 | CL19: 1 | CM19: 1 | CN19: 1 | CO19: 1 | CP19: 1 | CQ19: 1 | CR19: 1 | CS19: 1 | CT19: 1 | CU19: 1 | CV19: 1 | CW19: 1 | CX19: 1 | CY19: 1 | CZ19: 1 | DA19: 1 | DB19: 1 | DC19: 1 | DD19: 1 | DE19: 1 | DF19: 1 | DG19: 1 | DH19: 1 | DI19: 1 | DJ19: 1 | DK19: 1 | DL19: 1 | DM19: 1 | DN19: 1 | DO19: 1 | DP19: 1 | DQ19: 1 | DR19: 1 | DS19: 1 | DT19: 1 | DU19: 1 | DV19: 1 | DW19: 1 | DX19: 1 | DY19: 1 | DZ19: 1 | EA19: 1 | EB19: 1 | EC19: 1 | ED19: 1 | EE19: 1 | EF19: 1 | EG19: 1 | EH19: 1 | EI19: 1 | EJ19: 1 | EK19: 1 | EL19: 1 | EM19: 1 | EN19: 1 | EO19: 1 | EP19: 1 | EQ19: 2 | ER19: 2 | ES19: 2 | ET19: 1 | EU19: 1 | EV19: 1 | EW19: 1 | EX19: 1 | EY19: 1 | EZ19: 1 | FA19: 1 | FB19: 1 | FC19: 1 | FD19: 1 | FE19: 1 | FF19: 1 | FG19: 1 | FH19: 1 | FI19: 1 | FJ19: 1 | FK19: 1 | FL19: 1 | FM19: 1 | FN19: 1 | FO19: 1 | FP19: 1 | FQ19: 1 | FR19: 1 | FS19: 1 | FT19: 1 | FU19: 1 | FV19: 1 | FW19: 1 | FX19: 1 | FY19: 1 | FZ19: 1 | GA19: 1 | GB19: 1 | GC19: 1 | GD19: 1 | GE19: 1 | GF19: 1 | GG19: 1 | GH19: 1 | GI19: 1 | GJ19: 1 | GK19: 1 | GL19: 1 | GM19: 1 | GN19: 1 | GO19: 1 | GP19: 2 | GQ19: 2 | GR19: 1
A20: 1 | B20: 1 | C20: 1 | D20: 1 | E20: 1 | F20: 1 | G20: 1 | H20: 1 | I20: 1 | J20: 1 | K20: 1 | L20: 1 | M20: 1 | N20: 1 | O20: 1 | P20: 1 | Q20: 1 | R20: 1 | S20: 1 | T20: 1 | U20: 1 | V20: 1 | W20: 1 | X20: 1 | Y20: 1 | Z20: 1 | AA20: 1 | AB20: 1 | AC20: 1 | AD20: 1 | AE20: 2 | AF20: 2 | AG20: 2 | AH20: 2 | AI20: 2 | AJ20: 2 | AK20: 2 | AL20: 2 | AM20: 2 | AN20: 2 | AO20: 2 | AP20: 2 | AQ20: 1 | AR20: 1 | AS20: 1 | AT20: 1 | AU20: 1 | AV20: 1 | AW20: 1 | AX20: 1 | AY20: 1 | AZ20: 1 | BA20: 1 | BB20: 1 | BC20: 1 | BD20: 1 | BE20: 1 | BF20: 1 | BG20: 1 | BH20: 1 | BI20: 1 | BJ20: 1 | BK20: 1 | BL20: 1 | BM20: 1 | BN20: 1 | BO20: 1 | BP20: 1 | BQ20: 1 | BR20: 1 | BS20: 1 | BT20: 1 | BU20: 1 | BV20: 1 | BW20: 1 | BX20: 1 | BY20: 1 | BZ20: 1 | CA20: 1 | CB20: 1 | CC20: 1 | CD20: 1 | CE20: 1 | CF20: 1 | CG20: 1 | CH20: 1 | CI20: 1 | CJ20: 2 | CK20: 2 | CL20: 1 | CM20: 1 | CN20: 1 | CO20: 1 | CP20: 1 | CQ20: 1 | CR20: 1 | CS20: 1 | CT20: 1 | CU20: 1 | CV20: 1 | CW20: 1 | CX20: 1 | CY20: 1 | CZ20: 1 | DA20: 1 | DB20: 1 | DC20: 1 | DD20: 1 | DE20: 1 | DF20: 1 | DG20: 1 | DH20: 1 | DI20: 1 | DJ20: 1 | DK20: 1 | DL20: 1 | DM20: 1 | DN20: 1 | DO20: 1 | DP20: 1 | DQ20: 1 | DR20: 1 | DS20: 1 | DT20: 1 | DU20: 1 | DV20: 1 | DW20: 1 | DX20: 1 | DY20: 1 | DZ20: 1 | EA20: 1 | EB20: 1 | EC20: 1 | ED20: 1 | EE20: 1 | EF20: 1 | EG20: 1 | EH20: 1 | EI20: 1 | EJ20: 1 | EK20: 1 | EL20: 1 | EM20: 1 | EN20: 1 | EO20: 1 | EP20: 1 | EQ20: 1 | ER20: 2 | ES20: 2 | ET20: 2 | EU20: 1 | EV20: 1 | EW20: 1 | EX20: 1 | EY20: 1 | EZ20: 1 | FA20: 1 | FB20: 1 | FC20: 1 | FD20: 1 | FE20: 1 | FF20: 1 | FG20: 1 | FH20: 1 | FI20: 1 | FJ20: 1 | FK20: 1 | FL20: 1 | FM20: 1 | FN20: 1 | FO20: 1 | FP20: 1 | FQ20: 1 | FR20: 1 | FS20: 1 | FT20: 1 | FU20: 1 | FV20: 1 | FW20: 1 | FX20: 1 | FY20: 1 | FZ20: 1 | GA20: 1 | GB20: 1 | GC20: 1 | GD20: 1 | GE20: 1 | GF20: 1 | GG20: 1 | GH20: 1 | GI20: 1 | GJ20: 1 | GK20: 1 | GL20: 1 | GM20: 1 | GN20: 1 | GO20: 1 | GP20: 2 | GQ20: 2 | GR20: 1
A21: 1 | B21: 1 | C21: 1 | D21: 1 | E21: 1 | F21: 1 | G21: 1 | H21: 1 | I21: 1 | J21: 1 | K21: 1 | L21: 1 | M21: 1 | N21: 1 | O21: 1 | P21: 1 | Q21: 1 | R21: 1 | S21: 1 | T21: 1 | U21: 1 | V21: 1 | W21: 1 | X21: 1 | Y21: 1 | Z21: 1 | AA21: 1 | AB21: 1 | AC21: 1 | AD21: 1 | AE21: 1 | AF21: 1 | AG21: 1 | AH21: 1 | AI21: 1 | AJ21: 1 | AK21: 2 | AL21: 2 | AM21: 2 | AN21: 2 | AO21: 2 | AP21: 2 | AQ21: 1 | AR21: 1 | AS21: 1 | AT21: 1 | AU21: 1 | AV21: 1 | AW21: 1 | AX21: 1 | AY21: 1 | AZ21: 1 | BA21: 1 | BB21: 1 | BC21: 1 | BD21: 1 | BE21: 1 | BF21: 1 | BG21: 1 | BH21: 1 | BI21: 1 | BJ21: 1 | BK21: 1 | BL21: 1 | BM21: 1 | BN21: 1 | BO21: 1 | BP21: 1 | BQ21: 1 | BR21: 1 | BS21: 1 | BT21: 1 | BU21: 1 | BV21: 1 | BW21: 1 | BX21: 1 | BY21: 1 | BZ21: 1 | CA21: 1 | CB21: 1 | CC21: 1 | CD21: 1 | CE21: 1 | CF21: 1 | CG21: 1 | CH21: 1 | CI21: 1 | CJ21: 2 | CK21: 2 | CL21: 1 | CM21: 1 | CN21: 1 | CO21: 1 | CP21: 1 | CQ21: 1 | CR21: 1 | CS21: 1 | CT21: 1 | CU21: 1 | CV21: 1 | CW21: 1 | CX21: 1 | CY21: 1 | CZ21: 1 | DA21: 1 | DB21: 1 | DC21: 1 | DD21: 1 | DE21: 1 | DF21: 1 | DG21: 1 | DH21: 1 | DI21: 1 | DJ21: 1 | DK21: 1 | DL21: 1 | DM21: 1 | DN21: 1 | DO21: 1 | DP21: 1 | DQ21: 1 | DR21: 1 | DS21: 1 | DT21: 1 | DU21: 1 | DV21: 1 | DW21: 1 | DX21: 1 | DY21: 1 | DZ21: 1 | EA21: 1 | EB21: 1 | EC21: 1 | ED21: 1 | EE21: 1 | EF21: 1 | EG21: 1 | EH21: 1 | EI21: 1 | EJ21: 1 | EK21: 1 | EL21: 1 | EM21: 1 | EN21: 1 | EO21: 1 | EP21: 1 | EQ21: 1 | ER21: 2 | ES21: 2 | ET21: 2 | EU21: 1 | EV21: 1 | EW21: 1 | EX21: 1 | EY21: 1 | EZ21: 1 | FA21: 1 | FB21: 1 | FC21: 1 | FD21: 1 | FE21: 1 | FF21: 1 | FG21: 1 | FH21: 1 | FI21: 1 | FJ21: 1 | FK21: 1 | FL21: 1 | FM21: 1 | FN21: 1 | FO21: 1 | FP21: 1 | FQ21: 1 | FR21: 1 | FS21: 1 | FT21: 1 | FU21: 1 | FV21: 1 | FW21: 1 | FX21: 1 | FY21: 1 | FZ21: 1 | GA21: 1 | GB21: 1 | GC21: 1 | GD21: 1 | GE21: 1 | GF21: 1 | GG21: 1 | GH21: 1 | GI21: 1 | GJ21: 1 | GK21: 1 | GL21: 1 | GM21: 1 | GN21: 1 | GO21: 1 | GP21: 1 | GQ21: 2 | GR21: 2
A22: 1 | B22: 1 | C22: 1 | D22: 1 | E22: 1 | F22: 1 | G22: 1 | H22: 1 | I22: 1 | J22: 1 | K22: 1 | L22: 1 | M22: 1 | N22: 1 | O22: 1 | P22: 1 | Q22: 1 | R22: 1 | S22: 1 | T22: 1 | U22: 1 | V22: 1 | W22: 1 | X22: 1 | Y22: 1 | Z22: 1 | AA22: 1 | AB22: 1 | AC22: 1 | AD22: 1 | AE22: 1 | AF22: 1 | AG22: 1 | AH22: 1 | AI22: 1 | AJ22: 1 | AK22: 1 | AL22: 2 | AM22: 2 | AN22: 2 | AO22: 2 | AP22: 1 | AQ22: 1 | AR22: 1 | AS22: 1 | AT22: 1 | AU22: 1 | AV22: 1 | AW22: 1 | AX22: 1 | AY22: 1 | AZ22: 1 | BA22: 1 | BB22: 1 | BC22: 1 | BD22: 1 | BE22: 1 | BF22: 1 | BG22: 1 | BH22: 1 | BI22: 1 | BJ22: 1 | BK22: 1 | BL22: 1 | BM22: 1 | BN22: 1 | BO22: 1 | BP22: 1 | BQ22: 1 | BR22: 1 | BS22: 1 | BT22: 1 | BU22: 1 | BV22: 1 | BW22: 1 | BX22: 1 | BY22: 1 | BZ22: 1 | CA22: 1 | CB22: 1 | CC22: 1 | CD22: 1 | CE22: 1 | CF22: 1 | CG22: 1 | CH22: 1 | CI22: 1 | CJ22: 2 | CK22: 2 | CL22: 1 | CM22: 1 | CN22: 1 | CO22: 1 | CP22: 1 | CQ22: 1 | CR22: 1 | CS22: 1 | CT22: 1 | CU22: 1 | CV22: 1 | CW22: 1 | CX22: 1 | CY22: 1 | CZ22: 1 | DA22: 1 | DB22: 1 | DC22: 1 | DD22: 1 | DE22: 1 | DF22: 1 | DG22: 1 | DH22: 1 | DI22: 1 | DJ22: 1 | DK22: 1 | DL22: 1 | DM22: 1 | DN22: 1 | DO22: 1 | DP22: 1 | DQ22: 1 | DR22: 1 | DS22: 1 | DT22: 1 | DU22: 1 | DV22: 1 | DW22: 1 | DX22: 1 | DY22: 1 | DZ22: 1 | EA22: 1 | EB22: 1 | EC22: 1 | ED22: 1 | EE22: 1 | EF22: 1 | EG22: 1 | EH22: 1 | EI22: 1 | EJ22: 1 | EK22: 1 | EL22: 1 | EM22: 1 | EN22: 1 | EO22: 1 | EP22: 1 | EQ22: 1 | ER22: 2 | ES22: 2 | ET22: 2 | EU22: 1 | EV22: 1 | EW22: 1 | EX22: 1 | EY22: 1 | EZ22: 1 | FA22: 1 | FB22: 1 | FC22: 1 | FD22: 1 | FE22: 1 | FF22: 1 | FG22: 1 | FH22: 1 | FI22: 1 | FJ22: 1 | FK22: 1 | FL22: 1 | FM22: 1 | FN22: 1 | FO22: 1 | FP22: 1 | FQ22: 1 | FR22: 1 | FS22: 1 | FT22: 1 | FU22: 1 | FV22: 1 | FW22: 1 | FX22: 1 | FY22: 1 | FZ22: 1 | GA22: 1 | GB22: 1 | GC22: 1 | GD22: 1 | GE22: 1 | GF22: 1 | GG22: 1 | GH22: 1 | GI22: 1 | GJ22: 1 | GK22: 1 | GL22: 1 | GM22: 1 | GN22: 1 | GO22: 1 | GP22: 1 | GQ22: 2 | GR22: 2
A23: 1 | B23: 1 | C23: 1 | D23: 1 | E23: 1 | F23: 1 | G23: 1 | H23: 1 | I23: 1 | J23: 1 | K23: 1 | L23: 1 | M23: 1 | N23: 1 | O23: 1 | P23: 1 | Q23: 1 | R23: 1 | S23: 1 | T23: 1 | U23: 1 | V23: 1 | W23: 1 | X23: 1 | Y23: 1 | Z23: 1 | AA23: 1 | AB23: 1 | AC23: 1 | AD23: 1 | AE23: 1 | AF23: 1 | AG23: 1 | AH23: 1 | AI23: 1 | AJ23: 1 | AK23: 1 | AL23: 1 | AM23: 2 | AN23: 2 | AO23: 2 | AP23: 1 | AQ23: 1 | AR23: 1 | AS23: 1 | AT23: 1 | AU23: 1 | AV23: 1 | AW23: 1 | AX23: 1 | AY23: 1 | AZ23: 1 | BA23: 1 | BB23: 1 | BC23: 1 | BD23: 1 | BE23: 1 | BF23: 1 | BG23: 1 | BH23: 1 | BI23: 1 | BJ23: 1 | BK23: 1 | BL23: 1 | BM23: 1 | BN23: 1 | BO23: 1 | BP23: 1 | BQ23: 1 | BR23: 1 | BS23: 1 | BT23: 1 | BU23: 1 | BV23: 1 | BW23: 1 | BX23: 1 | BY23: 1 | BZ23: 1 | CA23: 1 | CB23: 1 | CC23: 1 | CD23: 1 | CE23: 1 | CF23: 1 | CG23: 1 | CH23: 1 | CI23: 2 | CJ23: 2 | CK23: 2 | CL23: 1 | CM23: 1 | CN23: 1 | CO23: 1 | CP23: 1 | CQ23: 1 | CR23: 1 | CS23: 1 | CT23: 1 | CU23: 1 | CV23: 1 | CW23: 1 | CX23: 1 | CY23: 1 | CZ23: 1 | DA23: 1 | DB23: 1 | DC23: 1 | DD23: 1 | DE23: 1 | DF23: 1 | DG23: 1 | DH23: 1 | DI23: 1 | DJ23: 1 | DK23: 1 | DL23: 1 | DM23: 1 | DN23: 1 | DO23: 1 | DP23: 1 | DQ23: 1 | DR23: 1 | DS23: 1 | DT23: 1 | DU23: 1 | DV23: 1 | DW23: 1 | DX23: 1 | DY23: 1 | DZ23: 1 | EA23: 1 | EB23: 1 | EC23: 1 | ED23: 1 | EE23: 1 | EF23: 1 | EG23: 1 | EH23: 1 | EI23: 1 | EJ23: 1 | EK23: 1 | EL23: 1 | EM23: 1 | EN23: 1 | EO23: 1 | EP23: 1 | EQ23: 1 | ER23: 1 | ES23: 2 | ET23: 2 | EU23: 2 | EV23: 1 | EW23: 1 | EX23: 1 | EY23: 1 | EZ23: 1 | FA23: 1 | FB23: 1 | FC23: 1 | FD23: 1 | FE23: 1 | FF23: 1 | FG23: 1 | FH23: 1 | FI23: 1 | FJ23: 1 | FK23: 1 | FL23: 1 | FM23: 1 | FN23: 1 | FO23: 1 | FP23: 1 | FQ23: 1 | FR23: 1 | FS23: 1 | FT23: 1 | FU23: 1 | FV23: 1 | FW23: 1 | FX23: 1 | FY23: 1 | FZ23: 1 | GA23: 1 | GB23: 1 | GC23: 1 | GD23: 1 | GE23: 1 | GF23: 1 | GG23: 1 | GH23: 1 | GI23: 1 | GJ23: 1 | GK23: 1 | GL23: 1 | GM23: 1 | GN23: 1 | GO23: 1 | GP23: 1 | GQ23: 1 | GR23: 2
A24: 1 | B24: 1 | C24: 1 | D24: 1 | E24: 1 | F24: 1 | G24: 1 | H24: 1 | I24: 1 | J24: 1 | K24: 1 | L24: 1 | M24: 1 | N24: 1 | O24: 1 | P24: 1 | Q24: 1 | R24: 1 | S24: 1 | T24: 1 | U24: 1 | V24: 1 | W24: 1 | X24: 1 | Y24: 1 | Z24: 1 | AA24: 1 | AB24: 1 | AC24: 1 | AD24: 1 | AE24: 1 | AF24: 1 | AG24: 1 | AH24: 1 | AI24: 1 | AJ24: 1 | AK24: 1 | AL24: 1 | AM24: 1 | AN24: 1 | AO24: 1 | AP24: 1 | AQ24: 1 | AR24: 1 | AS24: 1 | AT24: 1 | AU24: 1 | AV24: 1 | AW24: 1 | AX24: 1 | AY24: 1 | AZ24: 1 | BA24: 1 | BB24: 1 | BC24: 1 | BD24: 1 | BE24: 1 | BF24: 1 | BG24: 1 | BH24: 1 | BI24: 1 | BJ24: 1 | BK24: 1 | BL24: 1 | BM24: 1 | BN24: 1 | BO24: 1 | BP24: 1 | BQ24: 1 | BR24: 1 | BS24: 1 | BT24: 1 | BU24: 1 | BV24: 1 | BW24: 1 | BX24: 1 | BY24: 1 | BZ24: 1 | CA24: 1 | CB24: 1 | CC24: 1 | CD24: 1 | CE24: 1 | CF24: 1 | CG24: 1 | CH24: 1 | CI24: 1 | CJ24: 1 | CK24: 2 | CL24: 1 | CM24: 1 | CN24: 1 | CO24: 1 | CP24: 1 | CQ24: 1 | CR24: 1 | CS24: 1 | CT24: 1 | CU24: 1 | CV24: 1 | CW24: 1 | CX24: 1 | CY24: 1 | CZ24: 1 | DA24: 1 | DB24: 1 | DC24: 1 | DD24: 1 | DE24: 1 | DF24: 1 | DG24: 1 | DH24: 1 | DI24: 1 | DJ24: 1 | DK24: 1 | DL24: 1 | DM24: 1 | DN24: 1 | DO24: 1 | DP24: 1 | DQ24: 1 | DR24: 1 | DS24: 1 | DT24: 1 | DU24: 1 | DV24: 1 | DW24: 1 | DX24: 1 | DY24: 1 | DZ24: 1 | EA24: 1 | EB24: 1 | EC24: 1 | ED24: 1 | EE24: 1 | EF24: 1 | EG24: 1 | EH24: 1 | EI24: 1 | EJ24: 1 | EK24: 1 | EL24: 1 | EM24: 1 | EN24: 1 | EO24: 1 | EP24: 1 | EQ24: 1 | ER24: 1 | ES24: 2 | ET24: 2 | EU24: 1 | EV24: 1 | EW24: 1 | EX24: 1 | EY24: 1 | EZ24: 1 | FA24: 1 | FB24: 1 | FC24: 1 | FD24: 1 | FE24: 1 | FF24: 1 | FG24: 1 | FH24: 1 | FI24: 1 | FJ24: 1 | FK24: 1 | FL24: 1 | FM24: 1 | FN24: 1 | FO24: 1 | FP24: 1 | FQ24: 1 | FR24: 1 | FS24: 1 | FT24: 1 | FU24: 1 | FV24: 1 | FW24: 1 | FX24: 1 | FY24: 1 | FZ24: 1 | GA24: 1 | GB24: 1 | GC24: 1 | GD24: 1 | GE24: 1 | GF24: 1 | GG24: 1 | GH24: 1 | GI24: 1 | GJ24: 1 | GK24: 1 | GL24: 1 | GM24: 1 | GN24: 1 | GO24: 1 | GP24: 1 | GQ24: 1 | GR24: 1
A25: 1 | B25: 1 | C25: 1 | D25: 1 | E25: 1 | F25: 1 | G25: 1 | H25: 1 | I25: 1 | J25: 1 | K25: 1 | L25: 1 | M25: 1 | N25: 1 | O25: 1 | P25: 1 | Q25: 1 | R25: 1 | S25: 1 | T25: 1 | U25: 1 | V25: 1 | W25: 1 | X25: 1 | Y25: 1 | Z25: 1 | AA25: 1 | AB25: 1 | AC25: 1 | AD25: 1 | AE25: 1 | AF25: 1 | AG25: 1 | AH25: 1 | AI25: 1 | AJ25: 1 | AK25: 1 | AL25: 1 | AM25: 1 | AN25: 1 | AO25: 1 | AP25: 1 | AQ25: 1 | AR25: 1 | AS25: 1 | AT25: 1 | AU25: 1 | AV25: 1 | AW25: 1 | AX25: 1 | AY25: 1 | AZ25: 1 | BA25: 1 | BB25: 1 | BC25: 1 | BD25: 1 | BE25: 1 | BF25: 1 | BG25: 1 | BH25: 1 | BI25: 1 | BJ25: 1 | BK25: 1 | BL25: 1 | BM25: 1 | BN25: 1 | BO25: 1 | BP25: 1 | BQ25: 1 | BR25: 1 | BS25: 1 | BT25: 1 | BU25: 1 | BV25: 1 | BW25: 1 | BX25: 1 | BY25: 1 | BZ25: 1 | CA25: 1 | CB25: 1 | CC25: 1 | CD25: 1 | CE25: 1 | CF25: 1 | CG25: 1 | CH25: 1 | CI25: 1 | CJ25: 1 | CK25: 1 | CL25: 1 | CM25: 1 | CN25: 1 | CO25: 1 | CP25: 1 | CQ25: 1 | CR25: 1 | CS25: 1 | CT25: 1 | CU25: 1 | CV25: 1 | CW25: 1 | CX25: 1 | CY25: 1 | CZ25: 1 | DA25: 1 | DB25: 1 | DC25: 1 | DD25: 1 | DE25: 1 | DF25: 1 | DG25: 1 | DH25: 1 | DI25: 1 | DJ25: 1 | DK25: 1 | DL25: 1 | DM25: 1 | DN25: 1 | DO25: 1 | DP25: 1 | DQ25: 1 | DR25: 1 | DS25: 1 | DT25: 1 | DU25: 1 | DV25: 1 | DW25: 1 | DX25: 1 | DY25: 1 | DZ25: 1 | EA25: 1 | EB25: 1 | EC25: 1 | ED25: 1 | EE25: 1 | EF25: 1 | EG25: 1 | EH25: 1 | EI25: 1 | EJ25: 1 | EK25: 1 | EL25: 1 | EM25: 1 | EN25: 1 | EO25: 1 | EP25: 1 | EQ25: 1 | ER25: 1 | ES25: 1 | ET25: 1 | EU25: 1 | EV25: 1 | EW25: 1 | EX25: 1 | EY25: 1 | EZ25: 1 | FA25: 1 | FB25: 1 | FC25: 1 | FD25: 1 | FE25: 1 | FF25: 1 | FG25: 1 | FH25: 1 | FI25: 1 | FJ25: 1 | FK25: 1 | FL25: 1 | FM25: 1 | FN25: 1 | FO25: 1 | FP25: 1 | FQ25: 1 | FR25: 1 | FS25: 1 | FT25: 1 | FU25: 1 | FV25: 1 | FW25: 1 | FX25: 1 | FY25: 1 | FZ25: 1 | GA25: 1 | GB25: 1 | GC25: 1 | GD25: 1 | GE25: 1 | GF25: 1 | GG25: 1 | GH25: 1 | GI25: 1 | GJ25: 1 | GK25: 1 | GL25: 1 | GM25: 1 | GN25: 1 | GO25: 1 | GP25: 1 | GQ25: 1 | GR25: 1
A26: 1 | B26: 1 | C26: 1 | D26: 1 | E26: 1 | F26: 1 | G26: 1 | H26: 1 | I26: 1 | J26: 1 | K26: 1 | L26: 1 | M26: 1 | N26: 1 | O26: 1 | P26: 1 | Q26: 1 | R26: 1 | S26: 1 | T26: 1 | U26: 1 | V26: 1 | W26: 1 | X26: 1 | Y26: 1 | Z26: 1 | AA26: 1 | AB26: 1 | AC26: 1 | AD26: 1 | AE26: 1 | AF26: 1 | AG26: 1 | AH26: 1 | AI26: 1 | AJ26: 1 | AK26: 1 | AL26: 1 | AM26: 1 | AN26: 1 | AO26: 1 | AP26: 1 | AQ26: 1 | AR26: 1 | AS26: 1 | AT26: 1 | AU26: 1 | AV26: 1 | AW26: 1 | AX26: 1 | AY26: 1 | AZ26: 1 | BA26: 1 | BB26: 1 | BC26: 1 | BD26: 1 | BE26: 1 | BF26: 1 | BG26: 1 | BH26: 1 | BI26: 1 | BJ26: 1 | BK26: 1 | BL26: 1 | BM26: 1 | BN26: 1 | BO26: 1 | BP26: 1 | BQ26: 1 | BR26: 1 | BS26: 1 | BT26: 1 | BU26: 1 | BV26: 1 | BW26: 1 | BX26: 1 | BY26: 1 | BZ26: 1 | CA26: 1 | CB26: 1 | CC26: 1 | CD26: 1 | CE26: 1 | CF26: 1 | CG26: 1 | CH26: 1 | CI26: 1 | CJ26: 1 | CK26: 1 | CL26: 1 | CM26: 1 | CN26: 1 | CO26: 1 | CP26: 1 | CQ26: 1 | CR26: 1 | CS26: 1 | CT26: 1 | CU26: 1 | CV26: 1 | CW26: 1 | CX26: 1 | CY26: 1 | CZ26: 1 | DA26: 1 | DB26: 1 | DC26: 1 | DD26: 1 | DE26: 1 | DF26: 1 | DG26: 1 | DH26: 1 | DI26: 1 | DJ26: 1 | DK26: 1 | DL26: 1 | DM26: 1 | DN26: 1 | DO26: 1 | DP26: 1 | DQ26: 1 | DR26: 1 | DS26: 1 | DT26: 1 | DU26: 1 | DV26: 1 | DW26: 1 | DX26: 1 | DY26: 1 | DZ26: 1 | EA26: 1 | EB26: 1 | EC26: 1 | ED26: 1 | EE26: 1 | EF26: 1 | EG26: 1 | EH26: 1 | EI26: 1 | EJ26: 1 | EK26: 1 | EL26: 1 | EM26: 1 | EN26: 1 | EO26: 1 | EP26: 1 | EQ26: 1 | ER26: 1 | ES26: 1 | ET26: 1 | EU26: 1 | EV26: 1 | EW26: 1 | EX26: 1 | EY26: 1 | EZ26: 1 | FA26: 1 | FB26: 1 | FC26: 1 | FD26: 1 | FE26: 1 | FF26: 1 | FG26: 1 | FH26: 1 | FI26: 1 | FJ26: 1 | FK26: 1 | FL26: 1 | FM26: 1 | FN26: 1 | FO26: 1 | FP26: 1 | FQ26: 1 | FR26: 1 | FS26: 1 | FT26: 1 | FU26: 1 | FV26: 1 | FW26: 1 | FX26: 1 | FY26: 1 | FZ26: 1 | GA26: 1 | GB26: 1 | GC26: 1 | GD26: 1 | GE26: 1 | GF26: 1 | GG26: 1 | GH26: 1 | GI26: 1 | GJ26: 1 | GK26: 1 | GL26: 1 | GM26: 1 | GN26: 1 | GO26: 1 | GP26: 1 | GQ26: 1 | GR26: 1
A27: 1 | B27: 1 | C27: 1 | D27: 1 | E27: 1 | F27: 1 | G27: 1 | H27: 1 | I27: 1 | J27: 1 | K27: 1 | L27: 1 | M27: 1 | N27: 1 | O27: 1 | P27: 1 | Q27: 1 | R27: 1 | S27: 1 | T27: 1 | U27: 1 | V27: 1 | W27: 1 | X27: 1 | Y27: 1 | Z27: 1 | AA27: 1 | AB27: 1 | AC27: 1 | AD27: 1 | AE27: 1 | AF27: 1 | AG27: 1 | AH27: 1 | AI27: 1 | AJ27: 1 | AK27: 1 | AL27: 1 | AM27: 1 | AN27: 1 | AO27: 1 | AP27: 1 | AQ27: 1 | AR27: 1 | AS27: 1 | AT27: 1 | AU27: 1 | AV27: 1 | AW27: 1 | AX27: 1 | AY27: 1 | AZ27: 1 | BA27: 1 | BB27: 1 | BC27: 1 | BD27: 1 | BE27: 1 | BF27: 1 | BG27: 1 | BH27: 1 | BI27: 1 | BJ27: 1 | BK27: 1 | BL27: 1 | BM27: 1 | BN27: 1 | BO27: 1 | BP27: 1 | BQ27: 1 | BR27: 1 | BS27: 1 | BT27: 1 | BU27: 1 | BV27: 1 | BW27: 1 | BX27: 1 | BY27: 1 | BZ27: 1 | CA27: 1 | CB27: 1 | CC27: 1 | CD27: 1 | CE27: 1 | CF27: 1 | CG27: 1 | CH27: 1 | CI27: 1 | CJ27: 1 | CK27: 1 | CL27: 1 | CM27: 1 | CN27: 1 | CO27: 1 | CP27: 1 | CQ27: 1 | CR27: 1 | CS27: 1 | CT27: 1 | CU27: 1 | CV27: 1 | CW27: 1 | CX27: 1 | CY27: 1 | CZ27: 1 | DA27: 1 | DB27: 1 | DC27: 1 | DD27: 1 | DE27: 1 | DF27: 1 | DG27: 1 | DH27: 1 | DI27: 1 | DJ27: 1 | DK27: 1 | DL27: 1 | DM27: 1 | DN27: 1 | DO27: 1 | DP27: 1 | DQ27: 1 | DR27: 1 | DS27: 1 | DT27: 1 | DU27: 1 | DV27: 1 | DW27: 1 | DX27: 1 | DY27: 1 | DZ27: 1 | EA27: 1 | EB27: 1 | EC27: 1 | ED27: 1 | EE27: 1 | EF27: 1 | EG27: 1 | EH27: 1 | EI27: 1 | EJ27: 1 | EK27: 1 | EL27: 1 | EM27: 1 | EN27: 1 | EO27: 1 | EP27: 1 | EQ27: 1 | ER27: 1 | ES27: 1 | ET27: 1 | EU27: 1 | EV27: 1 | EW27: 1 | EX27: 1 | EY27: 1 | EZ27: 1 | FA27: 1 | FB27: 1 | FC27: 1 | FD27: 1 | FE27: 1 | FF27: 1 | FG27: 1 | FH27: 1 | FI27: 1 | FJ27: 1 | FK27: 1 | FL27: 1 | FM27: 1 | FN27: 1 | FO27: 1 | FP27: 1 | FQ27: 1 | FR27: 1 | FS27: 1 | FT27: 1 | FU27: 1 | FV27: 1 | FW27: 1 | FX27: 1 | FY27: 1 | FZ27: 1 | GA27: 1 | GB27: 1 | GC27: 1 | GD27: 1 | GE27: 1 | GF27: 1 | GG27: 1 | GH27: 1 | GI27: 1 | GJ27: 1 | GK27: 1 | GL27: 1 | GM27: 1 | GN27: 1 | GO27: 1 | GP27: 1 | GQ27: 1 | GR27: 1
A28: 1 | B28: 1 | C28: 1 | D28: 1 | E28: 1 | F28: 1 | G28: 1 | H28: 1 | I28: 1 | J28: 1 | K28: 1 | L28: 1 | M28: 1 | N28: 1 | O28: 1 | P28: 1 | Q28: 1 | R28: 1 | S28: 1 | T28: 1 | U28: 1 | V28: 1 | W28: 1 | X28: 1 | Y28: 1 | Z28: 1 | AA28: 1 | AB28: 1 | AC28: 1 | AD28: 1 | AE28: 1 | AF28: 1 | AG28: 1 | AH28: 1 | AI28: 1 | AJ28: 1 | AK28: 1 | AL28: 1 | AM28: 1 | AN28: 1 | AO28: 1 | AP28: 1 | AQ28: 1 | AR28: 1 | AS28: 1 | AT28: 1 | AU28: 1 | AV28: 1 | AW28: 1 | AX28: 1 | AY28: 1 | AZ28: 1 | BA28: 1 | BB28: 1 | BC28: 1 | BD28: 1 | BE28: 1 | BF28: 1 | BG28: 1 | BH28: 1 | BI28: 1 | BJ28: 1 | BK28: 1 | BL28: 1 | BM28: 1 | BN28: 1 | BO28: 1 | BP28: 1 | BQ28: 1 | BR28: 1 | BS28: 1 | BT28: 1 | BU28: 1 | BV28: 1 | BW28: 1 | BX28: 1 | BY28: 1 | BZ28: 1 | CA28: 1 | CB28: 1 | CC28: 1 | CD28: 1 | CE28: 1 | CF28: 1 | CG28: 1 | CH28: 1 | CI28: 1 | CJ28: 1 | CK28: 1 | CL28: 1 | CM28: 1 | CN28: 1 | CO28: 1 | CP28: 1 | CQ28: 1 | CR28: 1 | CS28: 1 | CT28: 1 | CU28: 1 | CV28: 1 | CW28: 1 | CX28: 1 | CY28: 1 | CZ28: 1 | DA28: 1 | DB28: 1 | DC28: 1 | DD28: 1 | DE28: 1 | DF28: 1 | DG28: 1 | DH28: 1 | DI28: 1 | DJ28: 1 | DK28: 1 | DL28: 1 | DM28: 1 | DN28: 1 | DO28: 1 | DP28: 1 | DQ28: 1 | DR28: 1 | DS28: 1 | DT28: 1 | DU28: 1 | DV28: 1 | DW28: 1 | DX28: 1 | DY28: 1 | DZ28: 1 | EA28: 1 | EB28: 1 | EC28: 1 | ED28: 1 | EE28: 1 | EF28: 1 | EG28: 1 | EH28: 1 | EI28: 1 | EJ28: 1 | EK28: 1 | EL28: 1 | EM28: 1 | EN28: 1 | EO28: 1 | EP28: 1 | EQ28: 1 | ER28: 1 | ES28: 1 | ET28: 1 | EU28: 1 | EV28: 1 | EW28: 1 | EX28: 1 | EY28: 1 | EZ28: 1 | FA28: 1 | FB28: 1 | FC28: 1 | FD28: 1 | FE28: 1 | FF28: 1 | FG28: 1 | FH28: 1 | FI28: 1 | FJ28: 1 | FK28: 1 | FL28: 1 | FM28: 1 | FN28: 1 | FO28: 1 | FP28: 1 | FQ28: 1 | FR28: 1 | FS28: 1 | FT28: 1 | FU28: 1 | FV28: 1 | FW28: 1 | FX28: 1 | FY28: 1 | FZ28: 1 | GA28: 1 | GB28: 1 | GC28: 1 | GD28: 1 | GE28: 1 | GF28: 1 | GG28: 1 | GH28: 1 | GI28: 1 | GJ28: 1 | GK28: 1 | GL28: 1 | GM28: 1 | GN28: 1 | GO28: 1 | GP28: 1 | GQ28: 1 | GR28: 1
A29: 1 | B29: 1 | C29: 1 | D29: 1 | E29: 1 | F29: 1 | G29: 1 | H29: 1 | I29: 1 | J29: 1 | K29: 1 | L29: 1 | M29: 1 | N29: 1 | O29: 1 | P29: 1 | Q29: 1 | R29: 1 | S29: 1 | T29: 1 | U29: 1 | V29: 1 | W29: 1 | X29: 1 | Y29: 1 | Z29: 1 | AA29: 1 | AB29: 1 | AC29: 1 | AD29: 1 | AE29: 1 | AF29: 1 | AG29: 1 | AH29: 1 | AI29: 1 | AJ29: 1 | AK29: 1 | AL29: 1 | AM29: 1 | AN29: 1 | AO29: 1 | AP29: 1 | AQ29: 1 | AR29: 1 | AS29: 1 | AT29: 1 | AU29: 1 | AV29: 1 | AW29: 1 | AX29: 1 | AY29: 1 | AZ29: 1 | BA29: 1 | BB29: 1 | BC29: 1 | BD29: 1 | BE29: 1 | BF29: 1 | BG29: 1 | BH29: 1 | BI29: 1 | BJ29: 1 | BK29: 1 | BL29: 1 | BM29: 1 | BN29: 1 | BO29: 1 | BP29: 1 | BQ29: 1 | BR29: 1 | BS29: 1 | BT29: 1 | BU29: 1 | BV29: 1 | BW29: 1 | BX29: 1 | BY29: 1 | BZ29: 1 | CA29: 1 | CB29: 1 | CC29: 1 | CD29: 1 | CE29: 1 | CF29: 1 | CG29: 1 | CH29: 1 | CI29: 1 | CJ29: 1 | CK29: 1 | CL29: 1 | CM29: 1 | CN29: 1 | CO29: 1 | CP29: 1 | CQ29: 1 | CR29: 1 | CS29: 1 | CT29: 1 | CU29: 1 | CV29: 1 | CW29: 1 | CX29: 1 | CY29: 1 | CZ29: 1 | DA29: 1 | DB29: 1 | DC29: 1 | DD29: 1 | DE29: 1 | DF29: 1 | DG29: 1 | DH29: 1 | DI29: 1 | DJ29: 1 | DK29: 1 | DL29: 1 | DM29: 1 | DN29: 1 | DO29: 1 | DP29: 1 | DQ29: 1 | DR29: 1 | DS29: 1 | DT29: 1 | DU29: 1 | DV29: 1 | DW29: 1 | DX29: 1 | DY29: 1 | DZ29: 1 | EA29: 1 | EB29: 1 | EC29: 1 | ED29: 1 | EE29: 1 | EF29: 1 | EG29: 1 | EH29: 1 | EI29: 1 | EJ29: 1 | EK29: 1 | EL29: 1 | EM29: 1 | EN29: 1 | EO29: 1 | EP29: 1 | EQ29: 1 | ER29: 1 | ES29: 1 | ET29: 1 | EU29: 2 | EV29: 2 | EW29: 1 | EX29: 1 | EY29: 1 | EZ29: 1 | FA29: 1 | FB29: 1 | FC29: 1 | FD29: 1 | FE29: 1 | FF29: 1 | FG29: 1 | FH29: 1 | FI29: 1 | FJ29: 1 | FK29: 1 | FL29: 1 | FM29: 1 | FN29: 1 | FO29: 1 | FP29: 1 | FQ29: 1 | FR29: 1 | FS29: 1 | FT29: 1 | FU29: 1 | FV29: 1 | FW29: 1 | FX29: 1 | FY29: 1 | FZ29: 1 | GA29: 1 | GB29: 1 | GC29: 1 | GD29: 1 | GE29: 1 | GF29: 1 | GG29: 1 | GH29: 1 | GI29: 1 | GJ29: 1 | GK29: 1 | GL29: 1 | GM29: 1 | GN29: 1 | GO29: 1 | GP29: 1 | GQ29: 1 | GR29: 2
A30: 1 | B30: 1 | C30: 1 | D30: 1 | E30: 1 | F30: 1 | G30: 1 | H30: 1 | I30: 1 | J30: 1 | K30: 1 | L30: 1 | M30: 1 | N30: 1 | O30: 1 | P30: 1 | Q30: 1 | R30: 1 | S30: 1 | T30: 1 | U30: 1 | V30: 1 | W30: 1 | X30: 1 | Y30: 1 | Z30: 1 | AA30: 1 | AB30: 1 | AC30: 1 | AD30: 1 | AE30: 1 | AF30: 1 | AG30: 1 | AH30: 1 | AI30: 1 | AJ30: 1 | AK30: 1 | AL30: 1 | AM30: 1 | AN30: 1 | AO30: 1 | AP30: 1 | AQ30: 1 | AR30: 1 | AS30: 1 | AT30: 1 | AU30: 1 | AV30: 1 | AW30: 1 | AX30: 1 | AY30: 1 | AZ30: 1 | BA30: 1 | BB30: 1 | BC30: 1 | BD30: 1 | BE30: 1 | BF30: 1 | BG30: 1 | BH30: 1 | BI30: 1 | BJ30: 1 | BK30: 1 | BL30: 1 | BM30: 1 | BN30: 1 | BO30: 1 | BP30: 1 | BQ30: 1 | BR30: 1 | BS30: 1 | BT30: 1 | BU30: 1 | BV30: 1 | BW30: 1 | BX30: 1 | BY30: 1 | BZ30: 1 | CA30: 1 | CB30: 1 | CC30: 1 | CD30: 1 | CE30: 1 | CF30: 1 | CG30: 1 | CH30: 1 | CI30: 1 | CJ30: 1 | CK30: 1 | CL30: 1 | CM30: 1 | CN30: 1 | CO30: 1 | CP30: 1 | CQ30: 1 | CR30: 1 | CS30: 1 | CT30: 1 | CU30: 1 | CV30: 1 | CW30: 1 | CX30: 1 | CY30: 1 | CZ30: 1 | DA30: 1 | DB30: 1 | DC30: 1 | DD30: 1 | DE30: 1 | DF30: 1 | DG30: 1 | DH30: 1 | DI30: 1 | DJ30: 1 | DK30: 1 | DL30: 1 | DM30: 1 | DN30: 1 | DO30: 1 | DP30: 1 | DQ30: 1 | DR30: 1 | DS30: 1 | DT30: 1 | DU30: 1 | DV30: 1 | DW30: 1 | DX30: 1 | DY30: 1 | DZ30: 1 | EA30: 1 | EB30: 1 | EC30: 1 | ED30: 1 | EE30: 1 | EF30: 1 | EG30: 1 | EH30: 1 | EI30: 1 | EJ30: 1 | EK30: 1 | EL30: 1 | EM30: 1 | EN30: 1 | EO30: 1 | EP30: 1 | EQ30: 1 | ER30: 1 | ES30: 1 | ET30: 1 | EU30: 2 | EV30: 2 | EW30: 2 | EX30: 1 | EY30: 1 | EZ30: 1 | FA30: 1 | FB30: 1 | FC30: 1 | FD30: 1 | FE30: 1 | FF30: 1 | FG30: 1 | FH30: 1 | FI30: 1 | FJ30: 1 | FK30: 1 | FL30: 1 | FM30: 1 | FN30: 1 | FO30: 1 | FP30: 1 | FQ30: 1 | FR30: 1 | FS30: 1 | FT30: 1 | FU30: 1 | FV30: 1 | FW30: 1 | FX30: 1 | FY30: 1 | FZ30: 1 | GA30: 1 | GB30: 1 | GC30: 1 | GD30: 1 | GE30: 1 | GF30: 1 | GG30: 1 | GH30: 1 | GI30: 1 | GJ30: 1 | GK30: 1 | GL30: 1 | GM30: 1 | GN30: 1 | GO30: 1 | GP30: 1 | GQ30: 1 | GR30: 2
A31: 1 | B31: 1 | C31: 1 | D31: 1 | E31: 1 | F31: 1 | G31: 1 | H31: 1 | I31: 1 | J31: 1 | K31: 1 | L31: 1 | M31: 1 | N31: 1 | O31: 1 | P31: 1 | Q31: 1 | R31: 1 | S31: 1 | T31: 1 | U31: 1 | V31: 1 | W31: 1 | X31: 1 | Y31: 1 | Z31: 1 | AA31: 1 | AB31: 1 | AC31: 1 | AD31: 1 | AE31: 1 | AF31: 1 | AG31: 1 | AH31: 1 | AI31: 1 | AJ31: 1 | AK31: 1 | AL31: 1 | AM31: 1 | AN31: 1 | AO31: 1 | AP31: 1 | AQ31: 1 | AR31: 1 | AS31: 1 | AT31: 1 | AU31: 1 | AV31: 1 | AW31: 1 | AX31: 1 | AY31: 1 | AZ31: 1 | BA31: 1 | BB31: 1 | BC31: 1 | BD31: 1 | BE31: 1 | BF31: 1 | BG31: 1 | BH31: 1 | BI31: 1 | BJ31: 1 | BK31: 1 | BL31: 1 | BM31: 1 | BN31: 1 | BO31: 1 | BP31: 1 | BQ31: 1 | BR31: 1 | BS31: 1 | BT31: 1 | BU31: 1 | BV31: 1 | BW31: 1 | BX31: 1 | BY31: 1 | BZ31: 1 | CA31: 1 | CB31: 1 | CC31: 1 | CD31: 1 | CE31: 1 | CF31: 1 | CG31: 1 | CH31: 1 | CI31: 1 | CJ31: 1 | CK31: 1 | CL31: 1 | CM31: 1 | CN31: 1 | CO31: 1 | CP31: 1 | CQ31: 1 | CR31: 1 | CS31: 1 | CT31: 1 | CU31: 1 | CV31: 1 | CW31: 1 | CX31: 1 | CY31: 1 | CZ31: 1 | DA31: 1 | DB31: 1 | DC31: 1 | DD31: 1 | DE31: 1 | DF31: 1 | DG31: 1 | DH31: 1 | DI31: 1 | DJ31: 1 | DK31: 1 | DL31: 1 | DM31: 1 | DN31: 1 | DO31: 1 | DP31: 1 | DQ31: 1 | DR31: 1 | DS31: 1 | DT31: 1 | DU31: 1 | DV31: 1 | DW31: 1 | DX31: 1 | DY31: 1 | DZ31: 1 | EA31: 1 | EB31: 1 | EC31: 1 | ED31: 1 | EE31: 1 | EF31: 1 | EG31: 1 | EH31: 1 | EI31: 1 | EJ31: 1 | EK31: 1 | EL31: 1 | EM31: 1 | EN31: 1 | EO31: 1 | EP31: 1 | EQ31: 1 | ER31: 1 | ES31: 1 | ET31: 1 | EU31: 2 | EV31: 2 | EW31: 2 | EX31: 1 | EY31: 1 | EZ31: 1 | FA31: 1 | FB31: 1 | FC31: 1 | FD31: 1 | FE31: 1 | FF31: 1 | FG31: 1 | FH31: 1 | FI31: 1 | FJ31: 1 | FK31: 1 | FL31: 1 | FM31: 1 | FN31: 1 | FO31: 1 | FP31: 1 | FQ31: 1 | FR31: 1 | FS31: 1 | FT31: 1 | FU31: 1 | FV31: 1 | FW31: 1 | FX31: 1 | FY31: 1 | FZ31: 1 | GA31: 1 | GB31: 1 | GC31: 1 | GD31: 1 | GE31: 1 | GF31: 1 | GG31: 1 | GH31: 1 | GI31: 1 | GJ31: 1 | GK31: 1 | GL31: 1 | GM31: 1 | GN31: 1 | GO31: 1 | GP31: 1 | GQ31: 1 | GR31: 2
A32: 1 | B32: 1 | C32: 1 | D32: 1 | E32: 1 | F32: 1 | G32: 1 | H32: 1 | I32: 1 | J32: 1 | K32: 1 | L32: 1 | M32: 1 | N32: 1 | O32: 1 | P32: 1 | Q32: 1 | R32: 1 | S32: 1 | T32: 1 | U32: 1 | V32: 1 | W32: 1 | X32: 1 | Y32: 1 | Z32: 1 | AA32: 1 | AB32: 1 | AC32: 1 | AD32: 1 | AE32: 1 | AF32: 1 | AG32: 1 | AH32: 1 | AI32: 1 | AJ32: 1 | AK32: 1 | AL32: 1 | AM32: 1 | AN32: 1 | AO32: 1 | AP32: 1 | AQ32: 1 | AR32: 1 | AS32: 1 | AT32: 1 | AU32: 1 | AV32: 1 | AW32: 1 | AX32: 1 | AY32: 1 | AZ32: 1 | BA32: 1 | BB32: 1 | BC32: 1 | BD32: 1 | BE32: 1 | BF32: 1 | BG32: 1 | BH32: 1 | BI32: 1 | BJ32: 1 | BK32: 1 | BL32: 1 | BM32: 1 | BN32: 1 | BO32: 1 | BP32: 1 | BQ32: 1 | BR32: 1 | BS32: 1 | BT32: 1 | BU32: 1 | BV32: 1 | BW32: 1 | BX32: 1 | BY32: 1 | BZ32: 1 | CA32: 1 | CB32: 1 | CC32: 1 | CD32: 1 | CE32: 1 | CF32: 1 | CG32: 1 | CH32: 1 | CI32: 1 | CJ32: 1 | CK32: 1 | CL32: 1 | CM32: 1 | CN32: 1 | CO32: 1 | CP32: 1 | CQ32: 1 | CR32: 1 | CS32: 1 | CT32: 1 | CU32: 1 | CV32: 1 | CW32: 1 | CX32: 1 | CY32: 1 | CZ32: 1 | DA32: 1 | DB32: 1 | DC32: 1 | DD32: 1 | DE32: 1 | DF32: 1 | DG32: 1 | DH32: 1 | DI32: 1 | DJ32: 1 | DK32: 1 | DL32: 1 | DM32: 1 | DN32: 1 | DO32: 1 | DP32: 1 | DQ32: 1 | DR32: 1 | DS32: 1 | DT32: 1 | DU32: 1 | DV32: 1 | DW32: 1 | DX32: 1 | DY32: 1 | DZ32: 1 | EA32: 1 | EB32: 1 | EC32: 1 | ED32: 1 | EE32: 1 | EF32: 1 | EG32: 1 | EH32: 1 | EI32: 1 | EJ32: 1 | EK32: 1 | EL32: 1 | EM32: 1 | EN32: 1 | EO32: 1 | EP32: 1 | EQ32: 1 | ER32: 1 | ES32: 1 | ET32: 1 | EU32: 1 | EV32: 2 | EW32: 2 | EX32: 1 | EY32: 1 | EZ32: 1 | FA32: 1 | FB32: 1 | FC32: 1 | FD32: 1 | FE32: 1 | FF32: 1 | FG32: 1 | FH32: 1 | FI32: 1 | FJ32: 1 | FK32: 1 | FL32: 1 | FM32: 1 | FN32: 1 | FO32: 1 | FP32: 1 | FQ32: 1 | FR32: 1 | FS32: 1 | FT32: 1 | FU32: 1 | FV32: 1 | FW32: 1 | FX32: 1 | FY32: 1 | FZ32: 1 | GA32: 1 | GB32: 1 | GC32: 1 | GD32: 1 | GE32: 1 | GF32: 1 | GG32: 1 | GH32: 1 | GI32: 1 | GJ32: 1 | GK32: 1 | GL32: 1 | GM32: 1 | GN32: 1 | GO32: 1 | GP32: 1 | GQ32: 1 | GR32: 1
A33: 1 | B33: 1 | C33: 1 | D33: 1 | E33: 1 | F33: 1 | G33: 1 | H33: 1 | I33: 1 | J33: 1 | K33: 1 | L33: 1 | M33: 1 | N33: 1 | O33: 1 | P33: 1 | Q33: 1 | R33: 1 | S33: 1 | T33: 1 | U33: 1 | V33: 1 | W33: 1 | X33: 1 | Y33: 1 | Z33: 1 | AA33: 1 | AB33: 1 | AC33: 1 | AD33: 1 | AE33: 1 | AF33: 1 | AG33: 1 | AH33: 1 | AI33: 1 | AJ33: 1 | AK33: 1 | AL33: 1 | AM33: 1 | AN33: 1 | AO33: 1 | AP33: 1 | AQ33: 1 | AR33: 1 | AS33: 1 | AT33: 1 | AU33: 1 | AV33: 1 | AW33: 1 | AX33: 1 | AY33: 1 | AZ33: 1 | BA33: 1 | BB33: 1 | BC33: 1 | BD33: 1 | BE33: 1 | BF33: 1 | BG33: 1 | BH33: 1 | BI33: 1 | BJ33: 1 | BK33: 1 | BL33: 1 | BM33: 1 | BN33: 1 | BO33: 1 | BP33: 1 | BQ33: 1 | BR33: 1 | BS33: 1 | BT33: 1 | BU33: 1 | BV33: 1 | BW33: 1 | BX33: 1 | BY33: 1 | BZ33: 1 | CA33: 1 | CB33: 1 | CC33: 1 | CD33: 1 | CE33: 1 | CF33: 1 | CG33: 1 | CH33: 1 | CI33: 1 | CJ33: 1 | CK33: 1 | CL33: 1 | CM33: 1 | CN33: 1 | CO33: 1 | CP33: 1 | CQ33: 1 | CR33: 1 | CS33: 1 | CT33: 1 | CU33: 1 | CV33: 1 | CW33: 1 | CX33: 1 | CY33: 1 | CZ33: 1 | DA33: 1 | DB33: 1 | DC33: 1 | DD33: 1 | DE33: 1 | DF33: 1 | DG33: 1 | DH33: 1 | DI33: 1 | DJ33: 1 | DK33: 1 | DL33: 1 | DM33: 1 | DN33: 1 | DO33: 1 | DP33: 1 | DQ33: 1 | DR33: 1 | DS33: 1 | DT33: 1 | DU33: 1 | DV33: 1 | DW33: 1 | DX33: 1 | DY33: 1 | DZ33: 1 | EA33: 1 | EB33: 1 | EC33: 1 | ED33: 1 | EE33: 1 | EF33: 1 | EG33: 1 | EH33: 1 | EI33: 1 | EJ33: 1 | EK33: 1 | EL33: 1 | EM33: 1 | EN33: 1 | EO33: 1 | EP33: 1 | EQ33: 1 | ER33: 1 | ES33: 1 | ET33: 1 | EU33: 1 | EV33: 1 | EW33: 1 | EX33: 1 | EY33: 1 | EZ33: 1 | FA33: 1 | FB33: 1 | FC33: 1 | FD33: 1 | FE33: 1 | FF33: 1 | FG33: 1 | FH33: 1 | FI33: 1 | FJ33: 1 | FK33: 1 | FL33: 1 | FM33: 1 | FN33: 1 | FO33: 1 | FP33: 1 | FQ33: 1 | FR33: 1 | FS33: 1 | FT33: 1 | FU33: 1 | FV33: 1 | FW33: 1 | FX33: 1 | FY33: 1 | FZ33: 1 | GA33: 1 | GB33: 1 | GC33: 1 | GD33: 1 | GE33: 1 | GF33: 1 | GG33: 1 | GH33: 1 | GI33: 1 | GJ33: 1 | GK33: 1 | GL33: 1 | GM33: 1 | GN33: 1 | GO33: 1 | GP33: 1 | GQ33: 2 | GR33: 2
A34: 1 | B34: 1 | C34: 1 | D34: 1 | E34: 1 | F34: 1 | G34: 1 | H34: 1 | I34: 1 | J34: 1 | K34: 1 | L34: 1 | M34: 1 | N34: 1 | O34: 1 | P34: 1 | Q34: 1 | R34: 1 | S34: 1 | T34: 1 | U34: 1 | V34: 1 | W34: 1 | X34: 1 | Y34: 1 | Z34: 1 | AA34: 1 | AB34: 1 | AC34: 1 | AD34: 1 | AE34: 1 | AF34: 1 | AG34: 1 | AH34: 1 | AI34: 1 | AJ34: 1 | AK34: 1 | AL34: 1 | AM34: 1 | AN34: 1 | AO34: 1 | AP34: 1 | AQ34: 1 | AR34: 1 | AS34: 1 | AT34: 1 | AU34: 1 | AV34: 1 | AW34: 1 | AX34: 1 | AY34: 1 | AZ34: 1 | BA34: 1 | BB34: 1 | BC34: 1 | BD34: 1 | BE34: 1 | BF34: 1 | BG34: 1 | BH34: 1 | BI34: 1 | BJ34: 1 | BK34: 1 | BL34: 1 | BM34: 1 | BN34: 1 | BO34: 1 | BP34: 1 | BQ34: 1 | BR34: 1 | BS34: 1 | BT34: 1 | BU34: 1 | BV34: 1 | BW34: 1 | BX34: 1 | BY34: 1 | BZ34: 1 | CA34: 1 | CB34: 1 | CC34: 1 | CD34: 1 | CE34: 1 | CF34: 1 | CG34: 1 | CH34: 1 | CI34: 1 | CJ34: 1 | CK34: 1 | CL34: 1 | CM34: 1 | CN34: 1 | CO34: 1 | CP34: 1 | CQ34: 1 | CR34: 1 | CS34: 1 | CT34: 1 | CU34: 1 | CV34: 1 | CW34: 1 | CX34: 1 | CY34: 1 | CZ34: 1 | DA34: 1 | DB34: 1 | DC34: 1 | DD34: 1 | DE34: 1 | DF34: 1 | DG34: 1 | DH34: 1 | DI34: 1 | DJ34: 1 | DK34: 1 | DL34: 1 | DM34: 1 | DN34: 1 | DO34: 1 | DP34: 1 | DQ34: 1 | DR34: 1 | DS34: 1 | DT34: 1 | DU34: 1 | DV34: 1 | DW34: 1 | DX34: 1 | DY34: 1 | DZ34: 1 | EA34: 1 | EB34: 1 | EC34: 1 | ED34: 1 | EE34: 1 | EF34: 1 | EG34: 1 | EH34: 1 | EI34: 1 | EJ34: 1 | EK34: 1 | EL34: 1 | EM34: 1 | EN34: 1 | EO34: 1 | EP34: 1 | EQ34: 1 | ER34: 1 | ES34: 1 | ET34: 1 | EU34: 1 | EV34: 1 | EW34: 1 | EX34: 1 | EY34: 1 | EZ34: 1 | FA34: 1 | FB34: 1 | FC34: 1 | FD34: 1 | FE34: 1 | FF34: 1 | FG34: 1 | FH34: 1 | FI34: 1 | FJ34: 1 | FK34: 1 | FL34: 1 | FM34: 1 | FN34: 1 | FO34: 1 | FP34: 1 | FQ34: 1 | FR34: 1 | FS34: 1 | FT34: 1 | FU34: 1 | FV34: 1 | FW34: 1 | FX34: 1 | FY34: 1 | FZ34: 1 | GA34: 1 | GB34: 1 | GC34: 1 | GD34: 1 | GE34: 1 | GF34: 1 | GG34: 1 | GH34: 1 | GI34: 1 | GJ34: 1 | GK34: 1 | GL34: 1 | GM34: 1 | GN34: 1 | GO34: 1 | GP34: 2 | GQ34: 2 | GR34: 2
A35: 1 | B35: 1 | C35: 1 | D35: 1 | E35: 1 | F35: 1 | G35: 1 | H35: 1 | I35: 1 | J35: 1 | K35: 1 | L35: 1 | M35: 1 | N35: 1 | O35: 1 | P35: 1 | Q35: 1 | R35: 1 | S35: 1 | T35: 1 | U35: 1 | V35: 1 | W35: 1 | X35: 1 | Y35: 1 | Z35: 1 | AA35: 1 | AB35: 1 | AC35: 1 | AD35: 1 | AE35: 1 | AF35: 1 | AG35: 1 | AH35: 1 | AI35: 1 | AJ35: 1 | AK35: 1 | AL35: 1 | AM35: 1 | AN35: 1 | AO35: 1 | AP35: 1 | AQ35: 1 | AR35: 1 | AS35: 1 | AT35: 1 | AU35: 1 | AV35: 1 | AW35: 1 | AX35: 1 | AY35: 1 | AZ35: 1 | BA35: 1 | BB35: 1 | BC35: 1 | BD35: 1 | BE35: 1 | BF35: 1 | BG35: 1 | BH35: 1 | BI35: 1 | BJ35: 1 | BK35: 1 | BL35: 1 | BM35: 1 | BN35: 1 | BO35: 1 | BP35: 1 | BQ35: 1 | BR35: 1 | BS35: 1 | BT35: 1 | BU35: 1 | BV35: 1 | BW35: 1 | BX35: 1 | BY35: 1 | BZ35: 1 | CA35: 1 | CB35: 1 | CC35: 1 | CD35: 1 | CE35: 1 | CF35: 1 | CG35: 1 | CH35: 1 | CI35: 1 | CJ35: 1 | CK35: 1 | CL35: 1 | CM35: 1 | CN35: 1 | CO35: 1 | CP35: 1 | CQ35: 1 | CR35: 1 | CS35: 1 | CT35: 1 | CU35: 1 | CV35: 1 | CW35: 1 | CX35: 1 | CY35: 1 | CZ35: 1 | DA35: 1 | DB35: 1 | DC35: 1 | DD35: 1 | DE35: 1 | DF35: 1 | DG35: 1 | DH35: 1 | DI35: 1 | DJ35: 1 | DK35: 1 | DL35: 1 | DM35: 1 | DN35: 1 | DO35: 1 | DP35: 1 | DQ35: 1 | DR35: 1 | DS35: 1 | DT35: 1 | DU35: 1 | DV35: 1 | DW35: 1 | DX35: 1 | DY35: 1 | DZ35: 1 | EA35: 1 | EB35: 1 | EC35: 1 | ED35: 1 | EE35: 1 | EF35: 1 | EG35: 1 | EH35: 1 | EI35: 1 | EJ35: 1 | EK35: 1 | EL35: 1 | EM35: 1 | EN35: 1 | EO35: 1 | EP35: 1 | EQ35: 1 | ER35: 1 | ES35: 1 | ET35: 1 | EU35: 1 | EV35: 1 | EW35: 1 | EX35: 1 | EY35: 1 | EZ35: 1 | FA35: 1 | FB35: 1 | FC35: 1 | FD35: 1 | FE35: 1 | FF35: 1 | FG35: 1 | FH35: 1 | FI35: 1 | FJ35: 1 | FK35: 1 | FL35: 1 | FM35: 1 | FN35: 1 | FO35: 1 | FP35: 1 | FQ35: 1 | FR35: 1 | FS35: 1 | FT35: 1 | FU35: 1 | FV35: 1 | FW35: 1 | FX35: 1 | FY35: 1 | FZ35: 1 | GA35: 1 | GB35: 1 | GC35: 1 | GD35: 1 | GE35: 1 | GF35: 1 | GG35: 1 | GH35: 1 | GI35: 1 | GJ35: 1 | GK35: 1 | GL35: 1 | GM35: 1 | GN35: 1 | GO35: 1 | GP35: 1 | GQ35: 1 | GR35: 1
A36: 1 | B36: 1 | C36: 1 | D36: 1 | E36: 1 | F36: 1 | G36: 1 | H36: 1 | I36: 1 | J36: 1 | K36: 1 | L36: 1 | M36: 1 | N36: 1 | O36: 1 | P36: 1 | Q36: 1 | R36: 1 | S36: 1 | T36: 1 | U36: 1 | V36: 1 | W36: 1 | X36: 1 | Y36: 1 | Z36: 1 | AA36: 1 | AB36: 1 | AC36: 1 | AD36: 1 | AE36: 1 | AF36: 1 | AG36: 1 | AH36: 1 | AI36: 1 | AJ36: 1 | AK36: 1 | AL36: 1 | AM36: 1 | AN36: 1 | AO36: 1 | AP36: 1 | AQ36: 1 | AR36: 1 | AS36: 1 | AT36: 1 | AU36: 1 | AV36: 1 | AW36: 1 | AX36: 1 | AY36: 1 | AZ36: 1 | BA36: 1 | BB36: 1 | BC36: 1 | BD36: 1 | BE36: 1 | BF36: 1 | BG36: 1 | BH36: 1 | BI36: 1 | BJ36: 1 | BK36: 1 | BL36: 1 | BM36: 1 | BN36: 1 | BO36: 1 | BP36: 1 | BQ36: 1 | BR36: 1 | BS36: 1 | BT36: 1 | BU36: 1 | BV36: 1 | BW36: 1 | BX36: 1 | BY36: 1 | BZ36: 1 | CA36: 1 | CB36: 1 | CC36: 1 | CD36: 1 | CE36: 1 | CF36: 1 | CG36: 1 | CH36: 1 | CI36: 1 | CJ36: 1 | CK36: 1 | CL36: 1 | CM36: 1 | CN36: 1 | CO36: 1 | CP36: 1 | CQ36: 1 | CR36: 1 | CS36: 1 | CT36: 1 | CU36: 1 | CV36: 1 | CW36: 1 | CX36: 1 | CY36: 1 | CZ36: 1 | DA36: 1 | DB36: 1 | DC36: 1 | DD36: 1 | DE36: 1 | DF36: 1 | DG36: 1 | DH36: 1 | DI36: 1 | DJ36: 1 | DK36: 1 | DL36: 1 | DM36: 1 | DN36: 1 | DO36: 1 | DP36: 1 | DQ36: 1 | DR36: 1 | DS36: 1 | DT36: 1 | DU36: 1 | DV36: 1 | DW36: 1 | DX36: 1 | DY36: 1 | DZ36: 1 | EA36: 1 | EB36: 1 | EC36: 1 | ED36: 1 | EE36: 1 | EF36: 1 | EG36: 1 | EH36: 1 | EI36: 1 | EJ36: 1 | EK36: 1 | EL36: 1 | EM36: 1 | EN36: 1 | EO36: 1 | EP36: 1 | EQ36: 1 | ER36: 1 | ES36: 1 | ET36: 1 | EU36: 1 | EV36: 1 | EW36: 1 | EX36: 1 | EY36: 1 | EZ36: 1 | FA36: 1 | FB36: 1 | FC36: 1 | FD36: 1 | FE36: 1 | FF36: 1 | FG36: 1 | FH36: 1 | FI36: 1 | FJ36: 1 | FK36: 1 | FL36: 1 | FM36: 1 | FN36: 1 | FO36: 1 | FP36: 1 | FQ36: 1 | FR36: 1 | FS36: 1 | FT36: 1 | FU36: 1 | FV36: 1 | FW36: 1 | FX36: 1 | FY36: 1 | FZ36: 1 | GA36: 1 | GB36: 1 | GC36: 1 | GD36: 1 | GE36: 1 | GF36: 1 | GG36: 1 | GH36: 1 | GI36: 1 | GJ36: 1 | GK36: 1 | GL36: 1 | GM36: 1 | GN36: 1 | GO36: 1 | GP36: 1 | GQ36: 1 | GR36: 1
A37: 1 | B37: 1 | C37: 1 | D37: 1 | E37: 1 | F37: 1 | G37: 1 | H37: 1 | I37: 1 | J37: 1 | K37: 1 | L37: 1 | M37: 1 | N37: 1 | O37: 1 | P37: 1 | Q37: 1 | R37: 1 | S37: 1 | T37: 1 | U37: 1 | V37: 1 | W37: 1 | X37: 1 | Y37: 1 | Z37: 1 | AA37: 1 | AB37: 1 | AC37: 1 | AD37: 1 | AE37: 1 | AF37: 1 | AG37: 1 | AH37: 1 | AI37: 1 | AJ37: 1 | AK37: 1 | AL37: 1 | AM37: 1 | AN37: 1 | AO37: 1 | AP37: 1 | AQ37: 1 | AR37: 1 | AS37: 1 | AT37: 1 | AU37: 1 | AV37: 1 | AW37: 1 | AX37: 1 | AY37: 1 | AZ37: 1 | BA37: 1 | BB37: 1 | BC37: 1 | BD37: 1 | BE37: 1 | BF37: 1 | BG37: 1 | BH37: 1 | BI37: 1 | BJ37: 1 | BK37: 1 | BL37: 1 | BM37: 1 | BN37: 1 | BO37: 1 | BP37: 1 | BQ37: 1 | BR37: 1 | BS37: 1 | BT37: 1 | BU37: 1 | BV37: 1 | BW37: 1 | BX37: 1 | BY37: 1 | BZ37: 1 | CA37: 1 | CB37: 1 | CC37: 1 | CD37: 1 | CE37: 1 | CF37: 1 | CG37: 1 | CH37: 1 | CI37: 1 | CJ37: 1 | CK37: 1 | CL37: 1 | CM37: 1 | CN37: 1 | CO37: 1 | CP37: 1 | CQ37: 1 | CR37: 1 | CS37: 1 | CT37: 1 | CU37: 1 | CV37: 1 | CW37: 1 | CX37: 1 | CY37: 1 | CZ37: 1 | DA37: 1 | DB37: 1 | DC37: 1 | DD37: 1 | DE37: 1 | DF37: 1 | DG37: 1 | DH37: 1 | DI37: 1 | DJ37: 1 | DK37: 1 | DL37: 1 | DM37: 1 | DN37: 1 | DO37: 1 | DP37: 1 | DQ37: 1 | DR37: 1 | DS37: 1 | DT37: 1 | DU37: 1 | DV37: 1 | DW37: 1 | DX37: 1 | DY37: 1 | DZ37: 1 | EA37: 1 | EB37: 1 | EC37: 1 | ED37: 1 | EE37: 1 | EF37: 1 | EG37: 1 | EH37: 1 | EI37: 1 | EJ37: 1 | EK37: 1 | EL37: 1 | EM37: 1 | EN37: 1 | EO37: 1 | EP37: 1 | EQ37: 1 | ER37: 1 | ES37: 1 | ET37: 1 | EU37: 1 | EV37: 1 | EW37: 1 | EX37: 1 | EY37: 1 | EZ37: 1 | FA37: 1 | FB37: 1 | FC37: 1 | FD37: 1 | FE37: 1 | FF37: 1 | FG37: 1 | FH37: 1 | FI37: 1 | FJ37: 1 | FK37: 1 | FL37: 1 | FM37: 1 | FN37: 1 | FO37: 1 | FP37: 1 | FQ37: 1 | FR37: 1 | FS37: 1 | FT37: 1 | FU37: 1 | FV37: 1 | FW37: 1 | FX37: 1 | FY37: 1 | FZ37: 1 | GA37: 1 | GB37: 1 | GC37: 1 | GD37: 1 | GE37: 1 | GF37: 1 | GG37: 1 | GH37: 1 | GI37: 1 | GJ37: 1 | GK37: 1 | GL37: 1 | GM37: 1 | GN37: 1 | GO37: 1 | GP37: 1 | GQ37: 1 | GR37: 1
A38: 1 | B38: 1 | C38: 1 | D38: 1 | E38: 1 | F38: 1 | G38: 1 | H38: 1 | I38: 1 | J38: 1 | K38: 1 | L38: 1 | M38: 1 | N38: 1 | O38: 1 | P38: 1 | Q38: 1 | R38: 1 | S38: 1 | T38: 1 | U38: 1 | V38: 1 | W38: 1 | X38: 1 | Y38: 1 | Z38: 1 | AA38: 1 | AB38: 1 | AC38: 1 | AD38: 1 | AE38: 1 | AF38: 1 | AG38: 1 | AH38: 1 | AI38: 1 | AJ38: 1 | AK38: 1 | AL38: 1 | AM38: 1 | AN38: 1 | AO38: 1 | AP38: 1 | AQ38: 1 | AR38: 1 | AS38: 1 | AT38: 1 | AU38: 1 | AV38: 1 | AW38: 1 | AX38: 1 | AY38: 1 | AZ38: 1 | BA38: 1 | BB38: 1 | BC38: 1 | BD38: 1 | BE38: 1 | BF38: 1 | BG38: 1 | BH38: 1 | BI38: 1 | BJ38: 1 | BK38: 1 | BL38: 1 | BM38: 1 | BN38: 1 | BO38: 1 | BP38: 1 | BQ38: 1 | BR38: 1 | BS38: 1 | BT38: 1 | BU38: 1 | BV38: 1 | BW38: 1 | BX38: 1 | BY38: 1 | BZ38: 1 | CA38: 1 | CB38: 1 | CC38: 1 | CD38: 1 | CE38: 1 | CF38: 1 | CG38: 1 | CH38: 1 | CI38: 1 | CJ38: 1 | CK38: 1 | CL38: 1 | CM38: 1 | CN38: 1 | CO38: 1 | CP38: 1 | CQ38: 1 | CR38: 1 | CS38: 1 | CT38: 1 | CU38: 1 | CV38: 1 | CW38: 1 | CX38: 1 | CY38: 1 | CZ38: 1 | DA38: 1 | DB38: 1 | DC38: 1 | DD38: 1 | DE38: 1 | DF38: 1 | DG38: 1 | DH38: 1 | DI38: 1 | DJ38: 1 | DK38: 1 | DL38: 1 | DM38: 1 | DN38: 1 | DO38: 1 | DP38: 1 | DQ38: 1 | DR38: 1 | DS38: 1 | DT38: 1 | DU38: 1 | DV38: 1 | DW38: 1 | DX38: 1 | DY38: 1 | DZ38: 1 | EA38: 1 | EB38: 1 | EC38: 1 | ED38: 1 | EE38: 1 | EF38: 1 | EG38: 1 | EH38: 1 | EI38: 1 | EJ38: 1 | EK38: 1 | EL38: 1 | EM38: 1 | EN38: 1 | EO38: 1 | EP38: 1 | EQ38: 1 | ER38: 1 | ES38: 1 | ET38: 1 | EU38: 1 | EV38: 1 | EW38: 1 | EX38: 1 | EY38: 1 | EZ38: 1 | FA38: 1 | FB38: 1 | FC38: 1 | FD38: 1 | FE38: 1 | FF38: 1 | FG38: 1 | FH38: 1 | FI38: 1 | FJ38: 1 | FK38: 1 | FL38: 1 | FM38: 1 | FN38: 1 | FO38: 1 | FP38: 1 | FQ38: 1 | FR38: 1 | FS38: 1 | FT38: 1 | FU38: 1 | FV38: 1 | FW38: 1 | FX38: 1 | FY38: 1 | FZ38: 1 | GA38: 1 | GB38: 1 | GC38: 1 | GD38: 1 | GE38: 1 | GF38: 1 | GG38: 1 | GH38: 1 | GI38: 1 | GJ38: 1 | GK38: 1 | GL38: 1 | GM38: 1 | GN38: 1 | GO38: 1 | GP38: 1 | GQ38: 1 | GR38: 1
A39: 1 | B39: 1 | C39: 1 | D39: 1 | E39: 1 | F39: 1 | G39: 1 | H39: 1 | I39: 1 | J39: 1 | K39: 1 | L39: 1 | M39: 1 | N39: 1 | O39: 1 | P39: 1 | Q39: 1 | R39: 1 | S39: 1 | T39: 1 | U39: 1 | V39: 1 | W39: 1 | X39: 1 | Y39: 1 | Z39: 1 | AA39: 1 | AB39: 1 | AC39: 1 | AD39: 1 | AE39: 1 | AF39: 1 | AG39: 1 | AH39: 1 | AI39: 1 | AJ39: 1 | AK39: 1 | AL39: 1 | AM39: 1 | AN39: 1 | AO39: 1 | AP39: 1 | AQ39: 1 | AR39: 1 | AS39: 1 | AT39: 1 | AU39: 1 | AV39: 1 | AW39: 1 | AX39: 1 | AY39: 1 | AZ39: 1 | BA39: 1 | BB39: 1 | BC39: 1 | BD39: 1 | BE39: 1 | BF39: 1 | BG39: 1 | BH39: 1 | BI39: 1 | BJ39: 1 | BK39: 1 | BL39: 1 | BM39: 1 | BN39: 1 | BO39: 1 | BP39: 1 | BQ39: 1 | BR39: 1 | BS39: 1 | BT39: 1 | BU39: 1 | BV39: 1 | BW39: 1 | BX39: 1 | BY39: 1 | BZ39: 1 | CA39: 1 | CB39: 1 | CC39: 1 | CD39: 1 | CE39: 1 | CF39: 1 | CG39: 1 | CH39: 1 | CI39: 1 | CJ39: 1 | CK39: 1 | CL39: 1 | CM39: 1 | CN39: 1 | CO39: 1 | CP39: 1 | CQ39: 1 | CR39: 1 | CS39: 1 | CT39: 1 | CU39: 1 | CV39: 1 | CW39: 1 | CX39: 1 | CY39: 1 | CZ39: 1 | DA39: 1 | DB39: 1 | DC39: 1 | DD39: 1 | DE39: 1 | DF39: 1 | DG39: 1 | DH39: 1 | DI39: 1 | DJ39: 1 | DK39: 1 | DL39: 1 | DM39: 1 | DN39: 1 | DO39: 1 | DP39: 1 | DQ39: 1 | DR39: 1 | DS39: 1 | DT39: 1 | DU39: 1 | DV39: 1 | DW39: 1 | DX39: 1 | DY39: 1 | DZ39: 1 | EA39: 1 | EB39: 1 | EC39: 1 | ED39: 1 | EE39: 1 | EF39: 1 | EG39: 1 | EH39: 1 | EI39: 1 | EJ39: 1 | EK39: 1 | EL39: 1 | EM39: 1 | EN39: 1 | EO39: 1 | EP39: 1 | EQ39: 1 | ER39: 1 | ES39: 1 | ET39: 1 | EU39: 1 | EV39: 1 | EW39: 1 | EX39: 1 | EY39: 1 | EZ39: 1 | FA39: 1 | FB39: 1 | FC39: 1 | FD39: 1 | FE39: 1 | FF39: 1 | FG39: 1 | FH39: 1 | FI39: 1 | FJ39: 1 | FK39: 1 | FL39: 1 | FM39: 1 | FN39: 1 | FO39: 1 | FP39: 1 | FQ39: 1 | FR39: 1 | FS39: 1 | FT39: 1 | FU39: 1 | FV39: 1 | FW39: 1 | FX39: 1 | FY39: 1 | FZ39: 1 | GA39: 1 | GB39: 1 | GC39: 1 | GD39: 1 | GE39: 1 | GF39: 1 | GG39: 1 | GH39: 1 | GI39: 1 | GJ39: 1 | GK39: 1 | GL39: 1 | GM39: 1 | GN39: 1 | GO39: 1 | GP39: 1 | GQ39: 1 | GR39: 1
A40: 1 | B40: 1 | C40: 1 | D40: 1 | E40: 1 | F40: 1 | G40: 1 | H40: 1 | I40: 1 | J40: 1 | K40: 1 | L40: 1 | M40: 1 | N40: 1 | O40: 1 | P40: 1 | Q40: 1 | R40: 1 | S40: 1 | T40: 1 | U40: 1 | V40: 1 | W40: 1 | X40: 1 | Y40: 1 | Z40: 1 | AA40: 1 | AB40: 1 | AC40: 1 | AD40: 1 | AE40: 1 | AF40: 1 | AG40: 1 | AH40: 1 | AI40: 1 | AJ40: 1 | AK40: 1 | AL40: 1 | AM40: 1 | AN40: 1 | AO40: 1 | AP40: 1 | AQ40: 1 | AR40: 1 | AS40: 1 | AT40: 1 | AU40: 1 | AV40: 1 | AW40: 1 | AX40: 1 | AY40: 1 | AZ40: 1 | BA40: 1 | BB40: 1 | BC40: 1 | BD40: 1 | BE40: 1 | BF40: 1 | BG40: 1 | BH40: 1 | BI40: 1 | BJ40: 1 | BK40: 1 | BL40: 1 | BM40: 1 | BN40: 1 | BO40: 1 | BP40: 1 | BQ40: 1 | BR40: 1 | BS40: 1 | BT40: 1 | BU40: 1 | BV40: 1 | BW40: 1 | BX40: 1 | BY40: 1 | BZ40: 1 | CA40: 1 | CB40: 1 | CC40: 1 | CD40: 1 | CE40: 1 | CF40: 1 | CG40: 1 | CH40: 1 | CI40: 1 | CJ40: 1 | CK40: 1 | CL40: 1 | CM40: 1 | CN40: 1 | CO40: 1 | CP40: 1 | CQ40: 1 | CR40: 1 | CS40: 1 | CT40: 1 | CU40: 1 | CV40: 1 | CW40: 1 | CX40: 1 | CY40: 1 | CZ40: 1 | DA40: 1 | DB40: 1 | DC40: 1 | DD40: 1 | DE40: 1 | DF40: 1 | DG40: 1 | DH40: 1 | DI40: 1 | DJ40: 1 | DK40: 1 | DL40: 1 | DM40: 1 | DN40: 1 | DO40: 1 | DP40: 1 | DQ40: 1 | DR40: 1 | DS40: 1 | DT40: 1 | DU40: 1 | DV40: 1 | DW40: 1 | DX40: 1 | DY40: 1 | DZ40: 1 | EA40: 1 | EB40: 1 | EC40: 1 | ED40: 1 | EE40: 1 | EF40: 1 | EG40: 1 | EH40: 1 | EI40: 1 | EJ40: 1 | EK40: 1 | EL40: 1 | EM40: 1 | EN40: 1 | EO40: 1 | EP40: 1 | EQ40: 1 | ER40: 1 | ES40: 1 | ET40: 1 | EU40: 1 | EV40: 1 | EW40: 1 | EX40: 1 | EY40: 1 | EZ40: 1 | FA40: 1 | FB40: 1 | FC40: 1 | FD40: 1 | FE40: 1 | FF40: 1 | FG40: 1 | FH40: 1 | FI40: 1 | FJ40: 1 | FK40: 1 | FL40: 1 | FM40: 1 | FN40: 1 | FO40: 1 | FP40: 1 | FQ40: 1 | FR40: 1 | FS40: 1 | FT40: 1 | FU40: 1 | FV40: 1 | FW40: 1 | FX40: 1 | FY40: 1 | FZ40: 1 | GA40: 1 | GB40: 1 | GC40: 1 | GD40: 1 | GE40: 1 | GF40: 1 | GG40: 1 | GH40: 1 | GI40: 1 | GJ40: 1 | GK40: 1 | GL40: 1 | GM40: 1 | GN40: 1 | GO40: 1 | GP40: 1 | GQ40: 1 | GR40: 1
A41: 1 | B41: 1 | C41: 1 | D41: 1 | E41: 1 | F41: 1 | G41: 1 | H41: 1 | I41: 1 | J41: 1 | K41: 1 | L41: 1 | M41: 1 | N41: 1 | O41: 1 | P41: 1 | Q41: 1 | R41: 1 | S41: 1 | T41: 1 | U41: 1 | V41: 1 | W41: 1 | X41: 1 | Y41: 1 | Z41: 1 | AA41: 1 | AB41: 1 | AC41: 1 | AD41: 1 | AE41: 1 | AF41: 1 | AG41: 1 | AH41: 1 | AI41: 1 | AJ41: 1 | AK41: 1 | AL41: 1 | AM41: 1 | AN41: 1 | AO41: 1 | AP41: 1 | AQ41: 1 | AR41: 1 | AS41: 1 | AT41: 1 | AU41: 1 | AV41: 1 | AW41: 1 | AX41: 1 | AY41: 1 | AZ41: 1 | BA41: 1 | BB41: 1 | BC41: 1 | BD41: 1 | BE41: 1 | BF41: 1 | BG41: 1 | BH41: 1 | BI41: 1 | BJ41: 1 | BK41: 1 | BL41: 1 | BM41: 1 | BN41: 1 | BO41: 1 | BP41: 1 | BQ41: 1 | BR41: 1 | BS41: 1 | BT41: 1 | BU41: 1 | BV41: 1 | BW41: 1 | BX41: 1 | BY41: 1 | BZ41: 1 | CA41: 1 | CB41: 1 | CC41: 1 | CD41: 1 | CE41: 1 | CF41: 1 | CG41: 1 | CH41: 1 | CI41: 1 | CJ41: 1 | CK41: 1 | CL41: 1 | CM41: 1 | CN41: 1 | CO41: 1 | CP41: 1 | CQ41: 1 | CR41: 1 | CS41: 1 | CT41: 1 | CU41: 1 | CV41: 1 | CW41: 1 | CX41: 1 | CY41: 1 | CZ41: 1 | DA41: 1 | DB41: 1 | DC41: 1 | DD41: 1 | DE41: 1 | DF41: 1 | DG41: 1 | DH41: 1 | DI41: 1 | DJ41: 1 | DK41: 1 | DL41: 1 | DM41: 1 | DN41: 1 | DO41: 1 | DP41: 1 | DQ41: 1 | DR41: 1 | DS41: 1 | DT41: 1 | DU41: 1 | DV41: 1 | DW41: 1 | DX41: 1 | DY41: 1 | DZ41: 1 | EA41: 1 | EB41: 1 | EC41: 1 | ED41: 1 | EE41: 1 | EF41: 1 | EG41: 1 | EH41: 1 | EI41: 1 | EJ41: 1 | EK41: 1 | EL41: 1 | EM41: 1 | EN41: 1 | EO41: 1 | EP41: 1 | EQ41: 1 | ER41: 1 | ES41: 1 | ET41: 1 | EU41: 1 | EV41: 1 | EW41: 1 | EX41: 1 | EY41: 2 | EZ41: 2 | FA41: 1 | FB41: 1 | FC41: 1 | FD41: 1 | FE41: 1 | FF41: 1 | FG41: 1 | FH41: 1 | FI41: 1 | FJ41: 1 | FK41: 1 | FL41: 1 | FM41: 1 | FN41: 1 | FO41: 1 | FP41: 1 | FQ41: 1 | FR41: 1 | FS41: 1 | FT41: 1 | FU41: 1 | FV41: 1 | FW41: 1 | FX41: 1 | FY41: 1 | FZ41: 1 | GA41: 1 | GB41: 1 | GC41: 1 | GD41: 1 | GE41: 1 | GF41: 1 | GG41: 1 | GH41: 1 | GI41: 1 | GJ41: 1 | GK41: 1 | GL41: 1 | GM41: 1 | GN41: 1 | GO41: 1 | GP41: 1 | GQ41: 1 | GR41: 1
A42: 1 | B42: 1 | C42: 1 | D42: 1 | E42: 1 | F42: 1 | G42: 1 | H42: 1 | I42: 1 | J42: 1 | K42: 1 | L42: 1 | M42: 1 | N42: 1 | O42: 1 | P42: 1 | Q42: 1 | R42: 1 | S42: 1 | T42: 1 | U42: 1 | V42: 1 | W42: 1 | X42: 1 | Y42: 1 | Z42: 1 | AA42: 1 | AB42: 1 | AC42: 1 | AD42: 1 | AE42: 1 | AF42: 1 | AG42: 1 | AH42: 1 | AI42: 1 | AJ42: 1 | AK42: 1 | AL42: 1 | AM42: 1 | AN42: 1 | AO42: 1 | AP42: 1 | AQ42: 1 | AR42: 1 | AS42: 1 | AT42: 1 | AU42: 1 | AV42: 1 | AW42: 1 | AX42: 1 | AY42: 1 | AZ42: 1 | BA42: 1 | BB42: 1 | BC42: 1 | BD42: 1 | BE42: 1 | BF42: 1 | BG42: 1 | BH42: 1 | BI42: 1 | BJ42: 1 | BK42: 1 | BL42: 1 | BM42: 1 | BN42: 1 | BO42: 1 | BP42: 1 | BQ42: 1 | BR42: 1 | BS42: 1 | BT42: 1 | BU42: 1 | BV42: 1 | BW42: 1 | BX42: 1 | BY42: 1 | BZ42: 1 | CA42: 1 | CB42: 1 | CC42: 1 | CD42: 1 | CE42: 1 | CF42: 1 | CG42: 1 | CH42: 1 | CI42: 1 | CJ42: 1 | CK42: 1 | CL42: 1 | CM42: 1 | CN42: 1 | CO42: 1 | CP42: 1 | CQ42: 1 | CR42: 1 | CS42: 1 | CT42: 1 | CU42: 1 | CV42: 1 | CW42: 1 | CX42: 1 | CY42: 1 | CZ42: 1 | DA42: 1 | DB42: 1 | DC42: 1 | DD42: 1 | DE42: 1 | DF42: 1 | DG42: 1 | DH42: 1 | DI42: 1 | DJ42: 1 | DK42: 1 | DL42: 1 | DM42: 1 | DN42: 1 | DO42: 1 | DP42: 1 | DQ42: 1 | DR42: 1 | DS42: 1 | DT42: 1 | DU42: 1 | DV42: 1 | DW42: 1 | DX42: 1 | DY42: 1 | DZ42: 1 | EA42: 1 | EB42: 1 | EC42: 1 | ED42: 1 | EE42: 1 | EF42: 1 | EG42: 1 | EH42: 1 | EI42: 1 | EJ42: 1 | EK42: 1 | EL42: 1 | EM42: 1 | EN42: 1 | EO42: 1 | EP42: 1 | EQ42: 1 | ER42: 1 | ES42: 1 | ET42: 1 | EU42: 1 | EV42: 1 | EW42: 1 | EX42: 1 | EY42: 2 | EZ42: 2 | FA42: 2 | FB42: 1 | FC42: 1 | FD42: 1 | FE42: 1 | FF42: 1 | FG42: 1 | FH42: 1 | FI42: 1 | FJ42: 1 | FK42: 1 | FL42: 1 | FM42: 1 | FN42: 1 | FO42: 1 | FP42: 1 | FQ42: 1 | FR42: 1 | FS42: 1 | FT42: 1 | FU42: 1 | FV42: 1 | FW42: 1 | FX42: 1 | FY42: 1 | FZ42: 1 | GA42: 1 | GB42: 1 | GC42: 1 | GD42: 1 | GE42: 1 | GF42: 1 | GG42: 1 | GH42: 1 | GI42: 1 | GJ42: 1 | GK42: 1 | GL42: 1 | GM42: 1 | GN42: 1 | GO42: 1 | GP42: 1 | GQ42: 1 | GR42: 1
A43: 1 | B43: 1 | C43: 1 | D43: 1 | E43: 1 | F43: 1 | G43: 1 | H43: 1 | I43: 1 | J43: 1 | K43: 1 | L43: 1 | M43: 1 | N43: 1 | O43: 1 | P43: 1 | Q43: 1 | R43: 1 | S43: 1 | T43: 1 | U43: 1 | V43: 1 | W43: 1 | X43: 1 | Y43: 1 | Z43: 1 | AA43: 1 | AB43: 1 | AC43: 1 | AD43: 1 | AE43: 1 | AF43: 1 | AG43: 1 | AH43: 1 | AI43: 1 | AJ43: 1 | AK43: 1 | AL43: 1 | AM43: 1 | AN43: 1 | AO43: 1 | AP43: 1 | AQ43: 1 | AR43: 1 | AS43: 1 | AT43: 1 | AU43: 1 | AV43: 1 | AW43: 1 | AX43: 1 | AY43: 1 | AZ43: 1 | BA43: 1 | BB43: 1 | BC43: 1 | BD43: 1 | BE43: 1 | BF43: 1 | BG43: 1 | BH43: 1 | BI43: 1 | BJ43: 1 | BK43: 1 | BL43: 1 | BM43: 1 | BN43: 1 | BO43: 1 | BP43: 1 | BQ43: 1 | BR43: 1 | BS43: 1 | BT43: 1 | BU43: 1 | BV43: 1 | BW43: 1 | BX43: 1 | BY43: 1 | BZ43: 1 | CA43: 1 | CB43: 1 | CC43: 1 | CD43: 1 | CE43: 1 | CF43: 1 | CG43: 1 | CH43: 1 | CI43: 1 | CJ43: 1 | CK43: 1 | CL43: 1 | CM43: 1 | CN43: 1 | CO43: 1 | CP43: 1 | CQ43: 1 | CR43: 1 | CS43: 1 | CT43: 1 | CU43: 1 | CV43: 1 | CW43: 1 | CX43: 1 | CY43: 1 | CZ43: 1 | DA43: 1 | DB43: 1 | DC43: 1 | DD43: 1 | DE43: 1 | DF43: 1 | DG43: 1 | DH43: 1 | DI43: 1 | DJ43: 1 | DK43: 1 | DL43: 1 | DM43: 1 | DN43: 1 | DO43: 1 | DP43: 1 | DQ43: 1 | DR43: 1 | DS43: 1 | DT43: 1 | DU43: 1 | DV43: 1 | DW43: 1 | DX43: 1 | DY43: 1 | DZ43: 1 | EA43: 1 | EB43: 1 | EC43: 1 | ED43: 1 | EE43: 1 | EF43: 1 | EG43: 1 | EH43: 1 | EI43: 1 | EJ43: 1 | EK43: 1 | EL43: 1 | EM43: 1 | EN43: 1 | EO43: 1 | EP43: 1 | EQ43: 1 | ER43: 1 | ES43: 1 | ET43: 1 | EU43: 1 | EV43: 1 | EW43: 1 | EX43: 2 | EY43: 2 | EZ43: 2 | FA43: 2 | FB43: 1 | FC43: 1 | FD43: 1 | FE43: 1 | FF43: 1 | FG43: 1 | FH43: 1 | FI43: 1 | FJ43: 1 | FK43: 1 | FL43: 1 | FM43: 1 | FN43: 1 | FO43: 1 | FP43: 1 | FQ43: 1 | FR43: 1 | FS43: 1 | FT43: 1 | FU43: 1 | FV43: 1 | FW43: 1 | FX43: 1 | FY43: 1 | FZ43: 1 | GA43: 1 | GB43: 1 | GC43: 1 | GD43: 1 | GE43: 1 | GF43: 1 | GG43: 1 | GH43: 1 | GI43: 1 | GJ43: 1 | GK43: 1 | GL43: 1 | GM43: 1 | GN43: 1 | GO43: 1 | GP43: 1 | GQ43: 1 | GR43: 1
A44: 1 | B44: 1 | C44: 1 | D44: 1 | E44: 1 | F44: 1 | G44: 1 | H44: 1 | I44: 1 | J44: 1 | K44: 1 | L44: 1 | M44: 1 | N44: 1 | O44: 1 | P44: 1 | Q44: 1 | R44: 1 | S44: 1 | T44: 1 | U44: 1 | V44: 1 | W44: 1 | X44: 1 | Y44: 1 | Z44: 1 | AA44: 1 | AB44: 1 | AC44: 1 | AD44: 1 | AE44: 1 | AF44: 1 | AG44: 1 | AH44: 1 | AI44: 1 | AJ44: 1 | AK44: 1 | AL44: 1 | AM44: 1 | AN44: 1 | AO44: 1 | AP44: 1 | AQ44: 1 | AR44: 1 | AS44: 1 | AT44: 1 | AU44: 1 | AV44: 1 | AW44: 1 | AX44: 1 | AY44: 1 | AZ44: 1 | BA44: 1 | BB44: 1 | BC44: 1 | BD44: 1 | BE44: 1 | BF44: 1 | BG44: 1 | BH44: 1 | BI44: 1 | BJ44: 1 | BK44: 1 | BL44: 1 | BM44: 1 | BN44: 1 | BO44: 1 | BP44: 1 | BQ44: 1 | BR44: 1 | BS44: 1 | BT44: 1 | BU44: 1 | BV44: 1 | BW44: 1 | BX44: 1 | BY44: 1 | BZ44: 1 | CA44: 1 | CB44: 1 | CC44: 1 | CD44: 1 | CE44: 1 | CF44: 1 | CG44: 1 | CH44: 1 | CI44: 1 | CJ44: 1 | CK44: 1 | CL44: 1 | CM44: 1 | CN44: 1 | CO44: 1 | CP44: 1 | CQ44: 1 | CR44: 1 | CS44: 1 | CT44: 1 | CU44: 1 | CV44: 1 | CW44: 1 | CX44: 1 | CY44: 1 | CZ44: 1 | DA44: 1 | DB44: 1 | DC44: 1 | DD44: 1 | DE44: 1 | DF44: 1 | DG44: 1 | DH44: 1 | DI44: 1 | DJ44: 1 | DK44: 1 | DL44: 1 | DM44: 1 | DN44: 1 | DO44: 1 | DP44: 1 | DQ44: 1 | DR44: 1 | DS44: 1 | DT44: 1 | DU44: 1 | DV44: 1 | DW44: 1 | DX44: 1 | DY44: 1 | DZ44: 1 | EA44: 1 | EB44: 1 | EC44: 1 | ED44: 1 | EE44: 1 | EF44: 1 | EG44: 1 | EH44: 1 | EI44: 1 | EJ44: 1 | EK44: 1 | EL44: 1 | EM44: 1 | EN44: 1 | EO44: 1 | EP44: 1 | EQ44: 1 | ER44: 1 | ES44: 1 | ET44: 1 | EU44: 1 | EV44: 1 | EW44: 1 | EX44: 2 | EY44: 2 | EZ44: 2 | FA44: 2 | FB44: 1 | FC44: 1 | FD44: 1 | FE44: 1 | FF44: 1 | FG44: 1 | FH44: 1 | FI44: 1 | FJ44: 1 | FK44: 1 | FL44: 1 | FM44: 1 | FN44: 1 | FO44: 1 | FP44: 1 | FQ44: 1 | FR44: 1 | FS44: 1 | FT44: 1 | FU44: 1 | FV44: 1 | FW44: 1 | FX44: 1 | FY44: 1 | FZ44: 1 | GA44: 1 | GB44: 1 | GC44: 1 | GD44: 1 | GE44: 1 | GF44: 1 | GG44: 1 | GH44: 1 | GI44: 1 | GJ44: 1 | GK44: 1 | GL44: 1 | GM44: 1 | GN44: 1 | GO44: 1 | GP44: 1 | GQ44: 1 | GR44: 1
A45: 1 | B45: 1 | C45: 1 | D45: 1 | E45: 1 | F45: 1 | G45: 1 | H45: 1 | I45: 1 | J45: 1 | K45: 1 | L45: 1 | M45: 1 | N45: 1 | O45: 1 | P45: 1 | Q45: 1 | R45: 1 | S45: 1 | T45: 1 | U45: 1 | V45: 1 | W45: 1 | X45: 1 | Y45: 1 | Z45: 1 | AA45: 1 | AB45: 1 | AC45: 1 | AD45: 1 | AE45: 1 | AF45: 1 | AG45: 1 | AH45: 1 | AI45: 1 | AJ45: 1 | AK45: 1 | AL45: 1 | AM45: 1 | AN45: 1 | AO45: 1 | AP45: 1 | AQ45: 1 | AR45: 1 | AS45: 1 | AT45: 1 | AU45: 1 | AV45: 1 | AW45: 1 | AX45: 1 | AY45: 1 | AZ45: 1 | BA45: 1 | BB45: 1 | BC45: 1 | BD45: 1 | BE45: 1 | BF45: 1 | BG45: 1 | BH45: 1 | BI45: 1 | BJ45: 1 | BK45: 1 | BL45: 1 | BM45: 1 | BN45: 1 | BO45: 1 | BP45: 1 | BQ45: 1 | BR45: 1 | BS45: 1 | BT45: 1 | BU45: 1 | BV45: 1 | BW45: 1 | BX45: 1 | BY45: 1 | BZ45: 1 | CA45: 1 | CB45: 1 | CC45: 1 | CD45: 1 | CE45: 1 | CF45: 1 | CG45: 1 | CH45: 1 | CI45: 1 | CJ45: 1 | CK45: 1 | CL45: 1 | CM45: 1 | CN45: 1 | CO45: 1 | CP45: 1 | CQ45: 1 | CR45: 1 | CS45: 1 | CT45: 1 | CU45: 1 | CV45: 1 | CW45: 1 | CX45: 1 | CY45: 1 | CZ45: 1 | DA45: 1 | DB45: 1 | DC45: 1 | DD45: 1 | DE45: 1 | DF45: 1 | DG45: 1 | DH45: 1 | DI45: 1 | DJ45: 1 | DK45: 1 | DL45: 1 | DM45: 1 | DN45: 1 | DO45: 1 | DP45: 1 | DQ45: 1 | DR45: 1 | DS45: 1 | DT45: 1 | DU45: 1 | DV45: 1 | DW45: 1 | DX45: 1 | DY45: 1 | DZ45: 1 | EA45: 1 | EB45: 1 | EC45: 1 | ED45: 1 | EE45: 1 | EF45: 1 | EG45: 1 | EH45: 1 | EI45: 1 | EJ45: 1 | EK45: 1 | EL45: 1 | EM45: 1 | EN45: 1 | EO45: 1 | EP45: 1 | EQ45: 1 | ER45: 1 | ES45: 1 | ET45: 1 | EU45: 1 | EV45: 1 | EW45: 1 | EX45: 1 | EY45: 2 | EZ45: 2 | FA45: 2 | FB45: 1 | FC45: 1 | FD45: 1 | FE45: 1 | FF45: 1 | FG45: 1 | FH45: 1 | FI45: 1 | FJ45: 1 | FK45: 1 | FL45: 1 | FM45: 1 | FN45: 1 | FO45: 1 | FP45: 1 | FQ45: 1 | FR45: 1 | FS45: 1 | FT45: 1 | FU45: 1 | FV45: 1 | FW45: 1 | FX45: 1 | FY45: 1 | FZ45: 1 | GA45: 1 | GB45: 1 | GC45: 1 | GD45: 1 | GE45: 1 | GF45: 1 | GG45: 1 | GH45: 1 | GI45: 1 | GJ45: 1 | GK45: 1 | GL45: 1 | GM45: 1 | GN45: 1 | GO45: 1 | GP45: 1 | GQ45: 1 | GR45: 1
A46: 1 | B46: 1 | C46: 1 | D46: 1 | E46: 1 | F46: 1 | G46: 1 | H46: 1 | I46: 1 | J46: 1 | K46: 1 | L46: 1 | M46: 1 | N46: 1 | O46: 1 | P46: 1 | Q46: 1 | R46: 1 | S46: 1 | T46: 1 | U46: 1 | V46: 1 | W46: 1 | X46: 1 | Y46: 1 | Z46: 1 | AA46: 1 | AB46: 1 | AC46: 1 | AD46: 1 | AE46: 1 | AF46: 1 | AG46: 1 | AH46: 1 | AI46: 1 | AJ46: 1 | AK46: 1 | AL46: 1 | AM46: 1 | AN46: 1 | AO46: 1 | AP46: 1 | AQ46: 1 | AR46: 1 | AS46: 1 | AT46: 1 | AU46: 1 | AV46: 1 | AW46: 1 | AX46: 1 | AY46: 1 | AZ46: 1 | BA46: 1 | BB46: 1 | BC46: 1 | BD46: 1 | BE46: 1 | BF46: 1 | BG46: 1 | BH46: 1 | BI46: 1 | BJ46: 1 | BK46: 1 | BL46: 1 | BM46: 1 | BN46: 1 | BO46: 1 | BP46: 1 | BQ46: 1 | BR46: 1 | BS46: 1 | BT46: 1 | BU46: 1 | BV46: 1 | BW46: 1 | BX46: 1 | BY46: 1 | BZ46: 1 | CA46: 1 | CB46: 1 | CC46: 1 | CD46: 1 | CE46: 1 | CF46: 1 | CG46: 1 | CH46: 1 | CI46: 1 | CJ46: 1 | CK46: 1 | CL46: 1 | CM46: 1 | CN46: 1 | CO46: 1 | CP46: 1 | CQ46: 1 | CR46: 1 | CS46: 1 | CT46: 1 | CU46: 1 | CV46: 1 | CW46: 1 | CX46: 1 | CY46: 1 | CZ46: 1 | DA46: 1 | DB46: 1 | DC46: 1 | DD46: 1 | DE46: 1 | DF46: 1 | DG46: 1 | DH46: 1 | DI46: 1 | DJ46: 1 | DK46: 1 | DL46: 1 | DM46: 1 | DN46: 1 | DO46: 1 | DP46: 1 | DQ46: 1 | DR46: 1 | DS46: 1 | DT46: 1 | DU46: 1 | DV46: 1 | DW46: 1 | DX46: 1 | DY46: 1 | DZ46: 1 | EA46: 1 | EB46: 1 | EC46: 1 | ED46: 1 | EE46: 1 | EF46: 1 | EG46: 1 | EH46: 1 | EI46: 1 | EJ46: 1 | EK46: 1 | EL46: 1 | EM46: 1 | EN46: 1 | EO46: 1 | EP46: 1 | EQ46: 1 | ER46: 1 | ES46: 1 | ET46: 1 | EU46: 1 | EV46: 1 | EW46: 1 | EX46: 1 | EY46: 2 | EZ46: 2 | FA46: 2 | FB46: 1 | FC46: 1 | FD46: 1 | FE46: 1 | FF46: 1 | FG46: 1 | FH46: 1 | FI46: 1 | FJ46: 1 | FK46: 1 | FL46: 1 | FM46: 1 | FN46: 1 | FO46: 1 | FP46: 1 | FQ46: 1 | FR46: 1 | FS46: 1 | FT46: 1 | FU46: 1 | FV46: 1 | FW46: 1 | FX46: 1 | FY46: 1 | FZ46: 1 | GA46: 1 | GB46: 1 | GC46: 1 | GD46: 1 | GE46: 1 | GF46: 1 | GG46: 1 | GH46: 1 | GI46: 1 | GJ46: 1 | GK46: 1 | GL46: 1 | GM46: 1 | GN46: 1 | GO46: 1 | GP46: 1 | GQ46: 1 | GR46: 1
A47: 1 | B47: 1 | C47: 1 | D47: 1 | E47: 1 | F47: 1 | G47: 1 | H47: 1 | I47: 1 | J47: 1 | K47: 1 | L47: 1 | M47: 1 | N47: 1 | O47: 1 | P47: 1 | Q47: 1 | R47: 1 | S47: 1 | T47: 1 | U47: 1 | V47: 1 | W47: 1 | X47: 1 | Y47: 1 | Z47: 1 | AA47: 1 | AB47: 1 | AC47: 1 | AD47: 1 | AE47: 1 | AF47: 1 | AG47: 1 | AH47: 1 | AI47: 1 | AJ47: 1 | AK47: 1 | AL47: 1 | AM47: 1 | AN47: 1 | AO47: 1 | AP47: 1 | AQ47: 1 | AR47: 1 | AS47: 1 | AT47: 1 | AU47: 1 | AV47: 1 | AW47: 1 | AX47: 1 | AY47: 1 | AZ47: 1 | BA47: 1 | BB47: 1 | BC47: 1 | BD47: 1 | BE47: 1 | BF47: 1 | BG47: 1 | BH47: 1 | BI47: 1 | BJ47: 1 | BK47: 1 | BL47: 1 | BM47: 1 | BN47: 1 | BO47: 1 | BP47: 1 | BQ47: 1 | BR47: 1 | BS47: 1 | BT47: 1 | BU47: 1 | BV47: 1 | BW47: 1 | BX47: 1 | BY47: 1 | BZ47: 1 | CA47: 1 | CB47: 1 | CC47: 1 | CD47: 1 | CE47: 1 | CF47: 1 | CG47: 1 | CH47: 1 | CI47: 1 | CJ47: 1 | CK47: 1 | CL47: 1 | CM47: 1 | CN47: 1 | CO47: 1 | CP47: 1 | CQ47: 1 | CR47: 1 | CS47: 1 | CT47: 1 | CU47: 1 | CV47: 1 | CW47: 1 | CX47: 1 | CY47: 1 | CZ47: 1 | DA47: 1 | DB47: 1 | DC47: 1 | DD47: 1 | DE47: 1 | DF47: 1 | DG47: 1 | DH47: 1 | DI47: 1 | DJ47: 1 | DK47: 1 | DL47: 1 | DM47: 1 | DN47: 1 | DO47: 1 | DP47: 1 | DQ47: 1 | DR47: 1 | DS47: 1 | DT47: 1 | DU47: 1 | DV47: 1 | DW47: 1 | DX47: 1 | DY47: 1 | DZ47: 1 | EA47: 1 | EB47: 1 | EC47: 1 | ED47: 1 | EE47: 1 | EF47: 1 | EG47: 1 | EH47: 1 | EI47: 1 | EJ47: 1 | EK47: 1 | EL47: 1 | EM47: 1 | EN47: 1 | EO47: 1 | EP47: 1 | EQ47: 1 | ER47: 1 | ES47: 1 | ET47: 1 | EU47: 1 | EV47: 1 | EW47: 1 | EX47: 1 | EY47: 1 | EZ47: 2 | FA47: 1 | FB47: 1 | FC47: 1 | FD47: 1 | FE47: 1 | FF47: 1 | FG47: 1 | FH47: 1 | FI47: 1 | FJ47: 1 | FK47: 1 | FL47: 1 | FM47: 1 | FN47: 1 | FO47: 1 | FP47: 1 | FQ47: 1 | FR47: 1 | FS47: 1 | FT47: 1 | FU47: 1 | FV47: 1 | FW47: 1 | FX47: 1 | FY47: 1 | FZ47: 1 | GA47: 1 | GB47: 1 | GC47: 1 | GD47: 1 | GE47: 1 | GF47: 1 | GG47: 1 | GH47: 1 | GI47: 1 | GJ47: 1 | GK47: 1 | GL47: 1 | GM47: 1 | GN47: 1 | GO47: 1 | GP47: 1 | GQ47: 1 | GR47: 2
A48: 1 | B48: 1 | C48: 1 | D48: 1 | E48: 1 | F48: 1 | G48: 1 | H48: 1 | I48: 1 | J48: 1 | K48: 1 | L48: 1 | M48: 1 | N48: 1 | O48: 1 | P48: 1 | Q48: 1 | R48: 1 | S48: 1 | T48: 1 | U48: 1 | V48: 1 | W48: 1 | X48: 1 | Y48: 1 | Z48: 1 | AA48: 1 | AB48: 1 | AC48: 1 | AD48: 1 | AE48: 1 | AF48: 1 | AG48: 1 | AH48: 1 | AI48: 1 | AJ48: 1 | AK48: 1 | AL48: 1 | AM48: 1 | AN48: 1 | AO48: 1 | AP48: 1 | AQ48: 1 | AR48: 1 | AS48: 1 | AT48: 1 | AU48: 1 | AV48: 1 | AW48: 1 | AX48: 1 | AY48: 1 | AZ48: 1 | BA48: 1 | BB48: 1 | BC48: 1 | BD48: 1 | BE48: 1 | BF48: 1 | BG48: 1 | BH48: 1 | BI48: 1 | BJ48: 1 | BK48: 1 | BL48: 1 | BM48: 1 | BN48: 1 | BO48: 1 | BP48: 1 | BQ48: 1 | BR48: 1 | BS48: 1 | BT48: 1 | BU48: 1 | BV48: 1 | BW48: 1 | BX48: 1 | BY48: 1 | BZ48: 1 | CA48: 1 | CB48: 1 | CC48: 1 | CD48: 1 | CE48: 1 | CF48: 1 | CG48: 1 | CH48: 1 | CI48: 1 | CJ48: 1 | CK48: 1 | CL48: 1 | CM48: 1 | CN48: 1 | CO48: 1 | CP48: 1 | CQ48: 1 | CR48: 1 | CS48: 1 | CT48: 1 | CU48: 1 | CV48: 1 | CW48: 1 | CX48: 1 | CY48: 1 | CZ48: 1 | DA48: 1 | DB48: 1 | DC48: 1 | DD48: 1 | DE48: 1 | DF48: 1 | DG48: 1 | DH48: 1 | DI48: 1 | DJ48: 1 | DK48: 1 | DL48: 1 | DM48: 1 | DN48: 1 | DO48: 1 | DP48: 1 | DQ48: 1 | DR48: 1 | DS48: 1 | DT48: 1 | DU48: 1 | DV48: 1 | DW48: 1 | DX48: 1 | DY48: 1 | DZ48: 1 | EA48: 1 | EB48: 1 | EC48: 1 | ED48: 1 | EE48: 1 | EF48: 1 | EG48: 1 | EH48: 1 | EI48: 1 | EJ48: 1 | EK48: 1 | EL48: 1 | EM48: 1 | EN48: 1 | EO48: 1 | EP48: 1 | EQ48: 1 | ER48: 1 | ES48: 1 | ET48: 1 | EU48: 1 | EV48: 1 | EW48: 1 | EX48: 1 | EY48: 1 | EZ48: 1 | FA48: 1 | FB48: 1 | FC48: 1 | FD48: 1 | FE48: 1 | FF48: 1 | FG48: 1 | FH48: 1 | FI48: 1 | FJ48: 1 | FK48: 1 | FL48: 1 | FM48: 1 | FN48: 1 | FO48: 1 | FP48: 1 | FQ48: 1 | FR48: 1 | FS48: 1 | FT48: 1 | FU48: 1 | FV48: 1 | FW48: 1 | FX48: 1 | FY48: 1 | FZ48: 1 | GA48: 1 | GB48: 1 | GC48: 1 | GD48: 1 | GE48: 1 | GF48: 1 | GG48: 1 | GH48: 1 | GI48: 1 | GJ48: 1 | GK48: 1 | GL48: 1 | GM48: 1 | GN48: 1 | GO48: 1 | GP48: 2 | GQ48: 2 | GR48: 2
A49: 1 | B49: 1 | C49: 1 | D49: 1 | E49: 1 | F49: 1 | G49: 1 | H49: 1 | I49: 1 | J49: 1 | K49: 1 | L49: 1 | M49: 1 | N49: 1 | O49: 1 | P49: 1 | Q49: 1 | R49: 1 | S49: 1 | T49: 1 | U49: 1 | V49: 1 | W49: 1 | X49: 1 | Y49: 1 | Z49: 1 | AA49: 1 | AB49: 1 | AC49: 1 | AD49: 1 | AE49: 1 | AF49: 1 | AG49: 1 | AH49: 1 | AI49: 1 | AJ49: 1 | AK49: 1 | AL49: 1 | AM49: 1 | AN49: 1 | AO49: 1 | AP49: 1 | AQ49: 1 | AR49: 1 | AS49: 1 | AT49: 1 | AU49: 1 | AV49: 1 | AW49: 1 | AX49: 1 | AY49: 1 | AZ49: 1 | BA49: 1 | BB49: 1 | BC49: 1 | BD49: 1 | BE49: 1 | BF49: 1 | BG49: 1 | BH49: 1 | BI49: 1 | BJ49: 1 | BK49: 1 | BL49: 1 | BM49: 1 | BN49: 1 | BO49: 1 | BP49: 1 | BQ49: 1 | BR49: 1 | BS49: 1 | BT49: 1 | BU49: 1 | BV49: 1 | BW49: 1 | BX49: 1 | BY49: 1 | BZ49: 1 | CA49: 1 | CB49: 1 | CC49: 1 | CD49: 1 | CE49: 1 | CF49: 1 | CG49: 1 | CH49: 1 | CI49: 1 | CJ49: 1 | CK49: 1 | CL49: 1 | CM49: 1 | CN49: 1 | CO49: 1 | CP49: 1 | CQ49: 1 | CR49: 1 | CS49: 1 | CT49: 1 | CU49: 1 | CV49: 1 | CW49: 1 | CX49: 1 | CY49: 1 | CZ49: 1 | DA49: 1 | DB49: 1 | DC49: 1 | DD49: 1 | DE49: 1 | DF49: 1 | DG49: 1 | DH49: 1 | DI49: 1 | DJ49: 1 | DK49: 1 | DL49: 1 | DM49: 1 | DN49: 1 | DO49: 1 | DP49: 1 | DQ49: 1 | DR49: 1 | DS49: 1 | DT49: 1 | DU49: 1 | DV49: 1 | DW49: 1 | DX49: 1 | DY49: 1 | DZ49: 1 | EA49: 1 | EB49: 1 | EC49: 1 | ED49: 1 | EE49: 1 | EF49: 1 | EG49: 1 | EH49: 1 | EI49: 1 | EJ49: 1 | EK49: 1 | EL49: 1 | EM49: 1 | EN49: 1 | EO49: 1 | EP49: 1 | EQ49: 1 | ER49: 1 | ES49: 1 | ET49: 1 | EU49: 1 | EV49: 1 | EW49: 1 | EX49: 1 | EY49: 1 | EZ49: 1 | FA49: 1 | FB49: 1 | FC49: 1 | FD49: 1 | FE49: 1 | FF49: 1 | FG49: 1 | FH49: 1 | FI49: 1 | FJ49: 1 | FK49: 1 | FL49: 1 | FM49: 1 | FN49: 1 | FO49: 1 | FP49: 1 | FQ49: 1 | FR49: 1 | FS49: 1 | FT49: 1 | FU49: 1 | FV49: 1 | FW49: 1 | FX49: 1 | FY49: 1 | FZ49: 1 | GA49: 1 | GB49: 1 | GC49: 1 | GD49: 1 | GE49: 1 | GF49: 1 | GG49: 1 | GH49: 1 | GI49: 1 | GJ49: 1 | GK49: 1 | GL49: 1 | GM49: 1 | GN49: 1 | GO49: 1 | GP49: 2 | GQ49: 2 | GR49: 2
A50: 1 | B50: 1 | C50: 1 | D50: 1 | E50: 1 | F50: 1 | G50: 1 | H50: 1 | I50: 1 | J50: 1 | K50: 1 | L50: 1 | M50: 1 | N50: 1 | O50: 1 | P50: 1 | Q50: 1 | R50: 1 | S50: 1 | T50: 1 | U50: 1 | V50: 1 | W50: 1 | X50: 1 | Y50: 1 | Z50: 1 | AA50: 1 | AB50: 1 | AC50: 1 | AD50: 1 | AE50: 1 | AF50: 1 | AG50: 1 | AH50: 1 | AI50: 1 | AJ50: 1 | AK50: 1 | AL50: 1 | AM50: 1 | AN50: 1 | AO50: 1 | AP50: 1 | AQ50: 1 | AR50: 1 | AS50: 1 | AT50: 1 | AU50: 1 | AV50: 1 | AW50: 1 | AX50: 1 | AY50: 1 | AZ50: 1 | BA50: 1 | BB50: 1 | BC50: 1 | BD50: 1 | BE50: 1 | BF50: 1 | BG50: 1 | BH50: 1 | BI50: 1 | BJ50: 1 | BK50: 1 | BL50: 1 | BM50: 1 | BN50: 1 | BO50: 1 | BP50: 1 | BQ50: 1 | BR50: 1 | BS50: 1 | BT50: 1 | BU50: 1 | BV50: 1 | BW50: 1 | BX50: 1 | BY50: 1 | BZ50: 1 | CA50: 1 | CB50: 1 | CC50: 1 | CD50: 1 | CE50: 1 | CF50: 1 | CG50: 1 | CH50: 1 | CI50: 1 | CJ50: 1 | CK50: 1 | CL50: 1 | CM50: 1 | CN50: 1 | CO50: 1 | CP50: 1 | CQ50: 1 | CR50: 1 | CS50: 1 | CT50: 1 | CU50: 1 | CV50: 1 | CW50: 1 | CX50: 1 | CY50: 1 | CZ50: 1 | DA50: 1 | DB50: 1 | DC50: 1 | DD50: 1 | DE50: 1 | DF50: 1 | DG50: 1 | DH50: 1 | DI50: 1 | DJ50: 1 | DK50: 1 | DL50: 1 | DM50: 1 | DN50: 1 | DO50: 1 | DP50: 1 | DQ50: 1 | DR50: 1 | DS50: 1 | DT50: 1 | DU50: 1 | DV50: 1 | DW50: 1 | DX50: 1 | DY50: 1 | DZ50: 1 | EA50: 1 | EB50: 1 | EC50: 1 | ED50: 1 | EE50: 1 | EF50: 1 | EG50: 1 | EH50: 1 | EI50: 1 | EJ50: 1 | EK50: 1 | EL50: 1 | EM50: 1 | EN50: 1 | EO50: 1 | EP50: 1 | EQ50: 1 | ER50: 1 | ES50: 1 | ET50: 1 | EU50: 1 | EV50: 1 | EW50: 1 | EX50: 1 | EY50: 1 | EZ50: 1 | FA50: 1 | FB50: 1 | FC50: 1 | FD50: 1 | FE50: 1 | FF50: 1 | FG50: 1 | FH50: 1 | FI50: 1 | FJ50: 1 | FK50: 1 | FL50: 1 | FM50: 1 | FN50: 1 | FO50: 1 | FP50: 1 | FQ50: 1 | FR50: 1 | FS50: 1 | FT50: 1 | FU50: 1 | FV50: 1 | FW50: 1 | FX50: 1 | FY50: 1 | FZ50: 1 | GA50: 1 | GB50: 1 | GC50: 1 | GD50: 1 | GE50: 1 | GF50: 1 | GG50: 1 | GH50: 1 | GI50: 1 | GJ50: 1 | GK50: 1 | GL50: 1 | GM50: 1 | GN50: 1 | GO50: 1 | GP50: 2 | GQ50: 2 | GR50: 1
A51: 1 | B51: 1 | C51: 1 | D51: 1 | E51: 1 | F51: 1 | G51: 1 | H51: 1 | I51: 1 | J51: 1 | K51: 1 | L51: 1 | M51: 1 | N51: 1 | O51: 1 | P51: 1 | Q51: 1 | R51: 1 | S51: 1 | T51: 1 | U51: 1 | V51: 1 | W51: 1 | X51: 1 | Y51: 1 | Z51: 1 | AA51: 1 | AB51: 1 | AC51: 1 | AD51: 1 | AE51: 1 | AF51: 1 | AG51: 1 | AH51: 1 | AI51: 1 | AJ51: 1 | AK51: 1 | AL51: 1 | AM51: 1 | AN51: 1 | AO51: 1 | AP51: 1 | AQ51: 1 | AR51: 1 | AS51: 1 | AT51: 1 | AU51: 1 | AV51: 1 | AW51: 1 | AX51: 1 | AY51: 1 | AZ51: 1 | BA51: 1 | BB51: 1 | BC51: 1 | BD51: 1 | BE51: 1 | BF51: 1 | BG51: 1 | BH51: 1 | BI51: 1 | BJ51: 1 | BK51: 1 | BL51: 1 | BM51: 1 | BN51: 1 | BO51: 1 | BP51: 1 | BQ51: 1 | BR51: 1 | BS51: 1 | BT51: 1 | BU51: 1 | BV51: 1 | BW51: 1 | BX51: 1 | BY51: 1 | BZ51: 1 | CA51: 1 | CB51: 1 | CC51: 1 | CD51: 1 | CE51: 1 | CF51: 1 | CG51: 1 | CH51: 1 | CI51: 1 | CJ51: 1 | CK51: 1 | CL51: 1 | CM51: 1 | CN51: 1 | CO51: 1 | CP51: 1 | CQ51: 1 | CR51: 1 | CS51: 1 | CT51: 1 | CU51: 1 | CV51: 1 | CW51: 1 | CX51: 1 | CY51: 1 | CZ51: 1 | DA51: 1 | DB51: 1 | DC51: 1 | DD51: 1 | DE51: 1 | DF51: 1 | DG51: 1 | DH51: 1 | DI51: 1 | DJ51: 1 | DK51: 1 | DL51: 1 | DM51: 1 | DN51: 1 | DO51: 1 | DP51: 1 | DQ51: 1 | DR51: 1 | DS51: 1 | DT51: 1 | DU51: 1 | DV51: 1 | DW51: 1 | DX51: 1 | DY51: 1 | DZ51: 1 | EA51: 1 | EB51: 1 | EC51: 1 | ED51: 1 | EE51: 1 | EF51: 1 | EG51: 1 | EH51: 1 | EI51: 1 | EJ51: 1 | EK51: 1 | EL51: 1 | EM51: 1 | EN51: 1 | EO51: 1 | EP51: 1 | EQ51: 1 | ER51: 1 | ES51: 1 | ET51: 1 | EU51: 1 | EV51: 1 | EW51: 1 | EX51: 1 | EY51: 1 | EZ51: 1 | FA51: 1 | FB51: 2 | FC51: 2 | FD51: 1 | FE51: 1 | FF51: 1 | FG51: 1 | FH51: 1 | FI51: 1 | FJ51: 1 | FK51: 1 | FL51: 1 | FM51: 1 | FN51: 1 | FO51: 1 | FP51: 1 | FQ51: 1 | FR51: 1 | FS51: 1 | FT51: 1 | FU51: 1 | FV51: 1 | FW51: 1 | FX51: 1 | FY51: 1 | FZ51: 1 | GA51: 1 | GB51: 1 | GC51: 1 | GD51: 1 | GE51: 1 | GF51: 1 | GG51: 1 | GH51: 1 | GI51: 1 | GJ51: 1 | GK51: 1 | GL51: 1 | GM51: 1 | GN51: 1 | GO51: 1 | GP51: 1 | GQ51: 1 | GR51: 2
A52: 1 | B52: 1 | C52: 1 | D52: 1 | E52: 1 | F52: 1 | G52: 1 | H52: 1 | I52: 1 | J52: 1 | K52: 1 | L52: 1 | M52: 1 | N52: 1 | O52: 1 | P52: 1 | Q52: 1 | R52: 1 | S52: 1 | T52: 1 | U52: 1 | V52: 1 | W52: 1 | X52: 1 | Y52: 1 | Z52: 1 | AA52: 1 | AB52: 1 | AC52: 1 | AD52: 1 | AE52: 1 | AF52: 1 | AG52: 1 | AH52: 1 | AI52: 1 | AJ52: 1 | AK52: 1 | AL52: 1 | AM52: 1 | AN52: 1 | AO52: 1 | AP52: 1 | AQ52: 1 | AR52: 1 | AS52: 1 | AT52: 1 | AU52: 1 | AV52: 1 | AW52: 1 | AX52: 1 | AY52: 1 | AZ52: 1 | BA52: 1 | BB52: 1 | BC52: 1 | BD52: 1 | BE52: 1 | BF52: 1 | BG52: 1 | BH52: 1 | BI52: 1 | BJ52: 1 | BK52: 1 | BL52: 1 | BM52: 1 | BN52: 1 | BO52: 1 | BP52: 1 | BQ52: 1 | BR52: 1 | BS52: 1 | BT52: 1 | BU52: 1 | BV52: 1 | BW52: 1 | BX52: 1 | BY52: 1 | BZ52: 1 | CA52: 1 | CB52: 1 | CC52: 1 | CD52: 1 | CE52: 1 | CF52: 1 | CG52: 1 | CH52: 1 | CI52: 1 | CJ52: 1 | CK52: 1 | CL52: 1 | CM52: 1 | CN52: 1 | CO52: 1 | CP52: 1 | CQ52: 1 | CR52: 1 | CS52: 1 | CT52: 1 | CU52: 1 | CV52: 1 | CW52: 1 | CX52: 1 | CY52: 1 | CZ52: 1 | DA52: 1 | DB52: 1 | DC52: 1 | DD52: 1 | DE52: 1 | DF52: 1 | DG52: 1 | DH52: 1 | DI52: 1 | DJ52: 1 | DK52: 1 | DL52: 1 | DM52: 1 | DN52: 1 | DO52: 1 | DP52: 1 | DQ52: 1 | DR52: 1 | DS52: 1 | DT52: 1 | DU52: 1 | DV52: 1 | DW52: 1 | DX52: 1 | DY52: 1 | DZ52: 1 | EA52: 1 | EB52: 1 | EC52: 1 | ED52: 1 | EE52: 1 | EF52: 1 | EG52: 1 | EH52: 1 | EI52: 1 | EJ52: 1 | EK52: 1 | EL52: 1 | EM52: 1 | EN52: 1 | EO52: 1 | EP52: 1 | EQ52: 1 | ER52: 1 | ES52: 1 | ET52: 1 | EU52: 1 | EV52: 1 | EW52: 1 | EX52: 1 | EY52: 1 | EZ52: 1 | FA52: 1 | FB52: 2 | FC52: 2 | FD52: 2 | FE52: 1 | FF52: 1 | FG52: 1 | FH52: 1 | FI52: 1 | FJ52: 1 | FK52: 1 | FL52: 1 | FM52: 1 | FN52: 1 | FO52: 1 | FP52: 1 | FQ52: 1 | FR52: 1 | FS52: 1 | FT52: 1 | FU52: 1 | FV52: 1 | FW52: 1 | FX52: 1 | FY52: 1 | FZ52: 1 | GA52: 1 | GB52: 1 | GC52: 1 | GD52: 1 | GE52: 1 | GF52: 1 | GG52: 1 | GH52: 1 | GI52: 1 | GJ52: 1 | GK52: 1 | GL52: 1 | GM52: 1 | GN52: 1 | GO52: 1 | GP52: 1 | GQ52: 1 | GR52: 2
A53: 1 | B53: 1 | C53: 1 | D53: 1 | E53: 1 | F53: 1 | G53: 1 | H53: 1 | I53: 1 | J53: 1 | K53: 1 | L53: 1 | M53: 1 | N53: 1 | O53: 1 | P53: 1 | Q53: 1 | R53: 1 | S53: 1 | T53: 1 | U53: 1 | V53: 1 | W53: 1 | X53: 1 | Y53: 1 | Z53: 1 | AA53: 1 | AB53: 1 | AC53: 1 | AD53: 1 | AE53: 1 | AF53: 1 | AG53: 1 | AH53: 1 | AI53: 1 | AJ53: 1 | AK53: 1 | AL53: 1 | AM53: 1 | AN53: 1 | AO53: 1 | AP53: 1 | AQ53: 1 | AR53: 1 | AS53: 1 | AT53: 1 | AU53: 1 | AV53: 1 | AW53: 1 | AX53: 1 | AY53: 1 | AZ53: 1 | BA53: 1 | BB53: 1 | BC53: 1 | BD53: 1 | BE53: 1 | BF53: 1 | BG53: 1 | BH53: 1 | BI53: 1 | BJ53: 1 | BK53: 1 | BL53: 1 | BM53: 1 | BN53: 1 | BO53: 1 | BP53: 1 | BQ53: 1 | BR53: 1 | BS53: 1 | BT53: 1 | BU53: 1 | BV53: 1 | BW53: 1 | BX53: 1 | BY53: 1 | BZ53: 1 | CA53: 1 | CB53: 1 | CC53: 1 | CD53: 1 | CE53: 1 | CF53: 1 | CG53: 1 | CH53: 1 | CI53: 1 | CJ53: 1 | CK53: 1 | CL53: 1 | CM53: 1 | CN53: 1 | CO53: 1 | CP53: 1 | CQ53: 1 | CR53: 1 | CS53: 1 | CT53: 1 | CU53: 1 | CV53: 1 | CW53: 1 | CX53: 1 | CY53: 1 | CZ53: 1 | DA53: 1 | DB53: 1 | DC53: 1 | DD53: 1 | DE53: 1 | DF53: 1 | DG53: 1 | DH53: 1 | DI53: 1 | DJ53: 1 | DK53: 1 | DL53: 1 | DM53: 1 | DN53: 1 | DO53: 1 | DP53: 1 | DQ53: 1 | DR53: 1 | DS53: 1 | DT53: 1 | DU53: 1 | DV53: 1 | DW53: 1 | DX53: 1 | DY53: 1 | DZ53: 1 | EA53: 1 | EB53: 1 | EC53: 1 | ED53: 1 | EE53: 1 | EF53: 1 | EG53: 1 | EH53: 1 | EI53: 1 | EJ53: 1 | EK53: 1 | EL53: 1 | EM53: 1 | EN53: 1 | EO53: 1 | EP53: 1 | EQ53: 1 | ER53: 1 | ES53: 1 | ET53: 1 | EU53: 1 | EV53: 1 | EW53: 1 | EX53: 1 | EY53: 1 | EZ53: 1 | FA53: 1 | FB53: 1 | FC53: 2 | FD53: 2 | FE53: 1 | FF53: 1 | FG53: 1 | FH53: 1 | FI53: 1 | FJ53: 1 | FK53: 1 | FL53: 1 | FM53: 1 | FN53: 1 | FO53: 1 | FP53: 1 | FQ53: 1 | FR53: 1 | FS53: 1 | FT53: 1 | FU53: 1 | FV53: 1 | FW53: 1 | FX53: 1 | FY53: 1 | FZ53: 1 | GA53: 1 | GB53: 1 | GC53: 1 | GD53: 1 | GE53: 1 | GF53: 1 | GG53: 1 | GH53: 1 | GI53: 1 | GJ53: 1 | GK53: 1 | GL53: 1 | GM53: 1 | GN53: 1 | GO53: 1 | GP53: 1 | GQ53: 1 | GR53: 2
A54: 1 | B54: 1 | C54: 1 | D54: 1 | E54: 1 | F54: 1 | G54: 1 | H54: 1 | I54: 1 | J54: 1 | K54: 1 | L54: 1 | M54: 1 | N54: 1 | O54: 1 | P54: 1 | Q54: 1 | R54: 1 | S54: 1 | T54: 1 | U54: 1 | V54: 1 | W54: 1 | X54: 1 | Y54: 1 | Z54: 1 | AA54: 1 | AB54: 1 | AC54: 1 | AD54: 1 | AE54: 1 | AF54: 1 | AG54: 1 | AH54: 1 | AI54: 1 | AJ54: 1 | AK54: 1 | AL54: 1 | AM54: 1 | AN54: 1 | AO54: 1 | AP54: 1 | AQ54: 1 | AR54: 1 | AS54: 1 | AT54: 1 | AU54: 1 | AV54: 1 | AW54: 1 | AX54: 1 | AY54: 1 | AZ54: 1 | BA54: 1 | BB54: 1 | BC54: 1 | BD54: 1 | BE54: 1 | BF54: 1 | BG54: 1 | BH54: 1 | BI54: 1 | BJ54: 1 | BK54: 1 | BL54: 1 | BM54: 1 | BN54: 1 | BO54: 1 | BP54: 1 | BQ54: 1 | BR54: 1 | BS54: 1 | BT54: 1 | BU54: 1 | BV54: 1 | BW54: 1 | BX54: 1 | BY54: 1 | BZ54: 1 | CA54: 1 | CB54: 1 | CC54: 1 | CD54: 1 | CE54: 1 | CF54: 1 | CG54: 1 | CH54: 1 | CI54: 1 | CJ54: 1 | CK54: 1 | CL54: 1 | CM54: 1 | CN54: 1 | CO54: 1 | CP54: 1 | CQ54: 1 | CR54: 1 | CS54: 1 | CT54: 1 | CU54: 1 | CV54: 1 | CW54: 1 | CX54: 1 | CY54: 1 | CZ54: 1 | DA54: 1 | DB54: 1 | DC54: 1 | DD54: 1 | DE54: 1 | DF54: 1 | DG54: 1 | DH54: 1 | DI54: 1 | DJ54: 1 | DK54: 1 | DL54: 1 | DM54: 1 | DN54: 1 | DO54: 1 | DP54: 1 | DQ54: 1 | DR54: 1 | DS54: 1 | DT54: 1 | DU54: 1 | DV54: 1 | DW54: 1 | DX54: 1 | DY54: 1 | DZ54: 1 | EA54: 1 | EB54: 1 | EC54: 1 | ED54: 1 | EE54: 1 | EF54: 1 | EG54: 1 | EH54: 1 | EI54: 1 | EJ54: 1 | EK54: 1 | EL54: 1 | EM54: 1 | EN54: 1 | EO54: 1 | EP54: 1 | EQ54: 1 | ER54: 1 | ES54: 1 | ET54: 1 | EU54: 1 | EV54: 1 | EW54: 1 | EX54: 1 | EY54: 1 | EZ54: 1 | FA54: 1 | FB54: 1 | FC54: 2 | FD54: 2 | FE54: 1 | FF54: 1 | FG54: 1 | FH54: 1 | FI54: 1 | FJ54: 1 | FK54: 1 | FL54: 1 | FM54: 1 | FN54: 1 | FO54: 1 | FP54: 1 | FQ54: 1 | FR54: 1 | FS54: 1 | FT54: 1 | FU54: 1 | FV54: 1 | FW54: 1 | FX54: 1 | FY54: 1 | FZ54: 1 | GA54: 1 | GB54: 1 | GC54: 1 | GD54: 1 | GE54: 1 | GF54: 1 | GG54: 1 | GH54: 1 | GI54: 1 | GJ54: 1 | GK54: 1 | GL54: 1 | GM54: 1 | GN54: 1 | GO54: 1 | GP54: 1 | GQ54: 1 | GR54: 2
A55: 1 | B55: 1 | C55: 1 | D55: 1 | E55: 1 | F55: 1 | G55: 1 | H55: 1 | I55: 1 | J55: 1 | K55: 1 | L55: 1 | M55: 1 | N55: 1 | O55: 1 | P55: 1 | Q55: 1 | R55: 1 | S55: 1 | T55: 1 | U55: 1 | V55: 1 | W55: 1 | X55: 1 | Y55: 1 | Z55: 1 | AA55: 1 | AB55: 1 | AC55: 1 | AD55: 1 | AE55: 1 | AF55: 1 | AG55: 1 | AH55: 1 | AI55: 1 | AJ55: 1 | AK55: 1 | AL55: 1 | AM55: 1 | AN55: 1 | AO55: 1 | AP55: 1 | AQ55: 1 | AR55: 1 | AS55: 1 | AT55: 1 | AU55: 1 | AV55: 1 | AW55: 1 | AX55: 1 | AY55: 1 | AZ55: 1 | BA55: 1 | BB55: 1 | BC55: 1 | BD55: 1 | BE55: 1 | BF55: 1 | BG55: 1 | BH55: 1 | BI55: 1 | BJ55: 1 | BK55: 1 | BL55: 1 | BM55: 1 | BN55: 1 | BO55: 1 | BP55: 1 | BQ55: 1 | BR55: 1 | BS55: 1 | BT55: 1 | BU55: 1 | BV55: 1 | BW55: 1 | BX55: 1 | BY55: 1 | BZ55: 1 | CA55: 1 | CB55: 1 | CC55: 1 | CD55: 1 | CE55: 1 | CF55: 1 | CG55: 1 | CH55: 1 | CI55: 1 | CJ55: 1 | CK55: 1 | CL55: 1 | CM55: 1 | CN55: 1 | CO55: 1 | CP55: 1 | CQ55: 1 | CR55: 1 | CS55: 1 | CT55: 1 | CU55: 1 | CV55: 1 | CW55: 1 | CX55: 1 | CY55: 1 | CZ55: 1 | DA55: 1 | DB55: 1 | DC55: 1 | DD55: 1 | DE55: 1 | DF55: 1 | DG55: 1 | DH55: 1 | DI55: 1 | DJ55: 1 | DK55: 1 | DL55: 1 | DM55: 1 | DN55: 1 | DO55: 1 | DP55: 1 | DQ55: 1 | DR55: 1 | DS55: 1 | DT55: 1 | DU55: 1 | DV55: 1 | DW55: 1 | DX55: 1 | DY55: 1 | DZ55: 1 | EA55: 1 | EB55: 1 | EC55: 1 | ED55: 1 | EE55: 1 | EF55: 1 | EG55: 1 | EH55: 1 | EI55: 1 | EJ55: 1 | EK55: 1 | EL55: 1 | EM55: 1 | EN55: 1 | EO55: 1 | EP55: 1 | EQ55: 1 | ER55: 1 | ES55: 1 | ET55: 1 | EU55: 1 | EV55: 1 | EW55: 1 | EX55: 1 | EY55: 1 | EZ55: 1 | FA55: 1 | FB55: 1 | FC55: 1 | FD55: 1 | FE55: 1 | FF55: 1 | FG55: 1 | FH55: 1 | FI55: 1 | FJ55: 1 | FK55: 1 | FL55: 1 | FM55: 1 | FN55: 1 | FO55: 1 | FP55: 1 | FQ55: 1 | FR55: 1 | FS55: 1 | FT55: 1 | FU55: 1 | FV55: 1 | FW55: 1 | FX55: 1 | FY55: 1 | FZ55: 1 | GA55: 1 | GB55: 1 | GC55: 1 | GD55: 1 | GE55: 1 | GF55: 1 | GG55: 1 | GH55: 1 | GI55: 1 | GJ55: 1 | GK55: 1 | GL55: 1 | GM55: 1 | GN55: 1 | GO55: 1 | GP55: 1 | GQ55: 1 | GR55: 1
A56: 1 | B56: 1 | C56: 1 | D56: 1 | E56: 1 | F56: 1 | G56: 1 | H56: 1 | I56: 1 | J56: 1 | K56: 1 | L56: 1 | M56: 1 | N56: 1 | O56: 1 | P56: 1 | Q56: 1 | R56: 1 | S56: 1 | T56: 1 | U56: 1 | V56: 1 | W56: 1 | X56: 1 | Y56: 1 | Z56: 1 | AA56: 1 | AB56: 1 | AC56: 1 | AD56: 1 | AE56: 1 | AF56: 1 | AG56: 1 | AH56: 1 | AI56: 1 | AJ56: 1 | AK56: 1 | AL56: 1 | AM56: 1 | AN56: 1 | AO56: 1 | AP56: 1 | AQ56: 1 | AR56: 1 | AS56: 1 | AT56: 1 | AU56: 1 | AV56: 1 | AW56: 1 | AX56: 1 | AY56: 1 | AZ56: 1 | BA56: 1 | BB56: 1 | BC56: 1 | BD56: 1 | BE56: 1 | BF56: 1 | BG56: 1 | BH56: 1 | BI56: 1 | BJ56: 1 | BK56: 1 | BL56: 1 | BM56: 1 | BN56: 1 | BO56: 1 | BP56: 1 | BQ56: 1 | BR56: 1 | BS56: 1 | BT56: 1 | BU56: 1 | BV56: 2 | BW56: 2 | BX56: 2 | BY56: 2 | BZ56: 1 | CA56: 1 | CB56: 1 | CC56: 2 | CD56: 2 | CE56: 1 | CF56: 1 | CG56: 1 | CH56: 1 | CI56: 1 | CJ56: 1 | CK56: 1 | CL56: 1 | CM56: 1 | CN56: 1 | CO56: 1 | CP56: 1 | CQ56: 1 | CR56: 1 | CS56: 1 | CT56: 1 | CU56: 1 | CV56: 1 | CW56: 1 | CX56: 1 | CY56: 1 | CZ56: 1 | DA56: 1 | DB56: 1 | DC56: 1 | DD56: 1 | DE56: 1 | DF56: 1 | DG56: 1 | DH56: 1 | DI56: 1 | DJ56: 1 | DK56: 1 | DL56: 1 | DM56: 1 | DN56: 1 | DO56: 1 | DP56: 1 | DQ56: 1 | DR56: 1 | DS56: 1 | DT56: 1 | DU56: 1 | DV56: 1 | DW56: 1 | DX56: 1 | DY56: 1 | DZ56: 1 | EA56: 1 | EB56: 1 | EC56: 1 | ED56: 1 | EE56: 1 | EF56: 1 | EG56: 1 | EH56: 1 | EI56: 1 | EJ56: 1 | EK56: 1 | EL56: 1 | EM56: 1 | EN56: 1 | EO56: 1 | EP56: 1 | EQ56: 1 | ER56: 1 | ES56: 1 | ET56: 1 | EU56: 1 | EV56: 1 | EW56: 1 | EX56: 1 | EY56: 1 | EZ56: 1 | FA56: 1 | FB56: 1 | FC56: 1 | FD56: 1 | FE56: 1 | FF56: 1 | FG56: 1 | FH56: 1 | FI56: 1 | FJ56: 1 | FK56: 1 | FL56: 1 | FM56: 1 | FN56: 1 | FO56: 1 | FP56: 1 | FQ56: 1 | FR56: 1 | FS56: 1 | FT56: 1 | FU56: 1 | FV56: 1 | FW56: 1 | FX56: 1 | FY56: 1 | FZ56: 1 | GA56: 1 | GB56: 1 | GC56: 1 | GD56: 1 | GE56: 1 | GF56: 1 | GG56: 1 | GH56: 1 | GI56: 1 | GJ56: 1 | GK56: 1 | GL56: 1 | GM56: 1 | GN56: 1 | GO56: 1 | GP56: 1 | GQ56: 1 | GR56: 1
A57: 1 | B57: 1 | C57: 1 | D57: 1 | E57: 1 | F57: 1 | G57: 1 | H57: 1 | I57: 1 | J57: 1 | K57: 1 | L57: 1 | M57: 1 | N57: 1 | O57: 1 | P57: 1 | Q57: 1 | R57: 1 | S57: 1 | T57: 1 | U57: 1 | V57: 1 | W57: 1 | X57: 1 | Y57: 1 | Z57: 1 | AA57: 1 | AB57: 1 | AC57: 1 | AD57: 1 | AE57: 1 | AF57: 1 | AG57: 1 | AH57: 1 | AI57: 1 | AJ57: 1 | AK57: 1 | AL57: 1 | AM57: 1 | AN57: 1 | AO57: 1 | AP57: 1 | AQ57: 1 | AR57: 1 | AS57: 1 | AT57: 1 | AU57: 1 | AV57: 1 | AW57: 1 | AX57: 1 | AY57: 1 | AZ57: 1 | BA57: 1 | BB57: 1 | BC57: 1 | BD57: 1 | BE57: 1 | BF57: 1 | BG57: 1 | BH57: 1 | BI57: 1 | BJ57: 1 | BK57: 1 | BL57: 1 | BM57: 1 | BN57: 1 | BO57: 1 | BP57: 1 | BQ57: 1 | BR57: 1 | BS57: 1 | BT57: 1 | BU57: 1 | BV57: 2 | BW57: 2 | BX57: 2 | BY57: 2 | BZ57: 1 | CA57: 1 | CB57: 2 | CC57: 2 | CD57: 2 | CE57: 2 | CF57: 1 | CG57: 1 | CH57: 1 | CI57: 1 | CJ57: 1 | CK57: 1 | CL57: 1 | CM57: 1 | CN57: 1 | CO57: 1 | CP57: 1 | CQ57: 1 | CR57: 1 | CS57: 1 | CT57: 1 | CU57: 1 | CV57: 1 | CW57: 1 | CX57: 1 | CY57: 1 | CZ57: 1 | DA57: 1 | DB57: 1 | DC57: 1 | DD57: 1 | DE57: 1 | DF57: 1 | DG57: 1 | DH57: 1 | DI57: 1 | DJ57: 1 | DK57: 1 | DL57: 1 | DM57: 1 | DN57: 1 | DO57: 1 | DP57: 1 | DQ57: 1 | DR57: 1 | DS57: 1 | DT57: 1 | DU57: 1 | DV57: 1 | DW57: 1 | DX57: 1 | DY57: 1 | DZ57: 1 | EA57: 1 | EB57: 1 | EC57: 1 | ED57: 1 | EE57: 1 | EF57: 1 | EG57: 1 | EH57: 1 | EI57: 1 | EJ57: 1 | EK57: 1 | EL57: 1 | EM57: 1 | EN57: 1 | EO57: 1 | EP57: 1 | EQ57: 1 | ER57: 1 | ES57: 1 | ET57: 1 | EU57: 1 | EV57: 1 | EW57: 1 | EX57: 1 | EY57: 1 | EZ57: 1 | FA57: 1 | FB57: 1 | FC57: 1 | FD57: 1 | FE57: 1 | FF57: 1 | FG57: 1 | FH57: 1 | FI57: 1 | FJ57: 1 | FK57: 1 | FL57: 1 | FM57: 1 | FN57: 1 | FO57: 1 | FP57: 1 | FQ57: 1 | FR57: 1 | FS57: 1 | FT57: 1 | FU57: 1 | FV57: 1 | FW57: 1 | FX57: 1 | FY57: 1 | FZ57: 1 | GA57: 1 | GB57: 1 | GC57: 1 | GD57: 1 | GE57: 1 | GF57: 1 | GG57: 1 | GH57: 1 | GI57: 1 | GJ57: 1 | GK57: 1 | GL57: 1 | GM57: 1 | GN57: 1 | GO57: 1 | GP57: 1 | GQ57: 1 | GR57: 2
A58: 1 | B58: 1 | C58: 1 | D58: 1 | E58: 1 | F58: 1 | G58: 1 | H58: 1 | I58: 1 | J58: 1 | K58: 1 | L58: 1 | M58: 1 | N58: 1 | O58: 1 | P58: 1 | Q58: 1 | R58: 1 | S58: 1 | T58: 1 | U58: 1 | V58: 1 | W58: 1 | X58: 1 | Y58: 1 | Z58: 1 | AA58: 1 | AB58: 1 | AC58: 1 | AD58: 1 | AE58: 1 | AF58: 1 | AG58: 1 | AH58: 1 | AI58: 1 | AJ58: 1 | AK58: 1 | AL58: 1 | AM58: 1 | AN58: 1 | AO58: 1 | AP58: 1 | AQ58: 1 | AR58: 1 | AS58: 1 | AT58: 1 | AU58: 1 | AV58: 1 | AW58: 1 | AX58: 1 | AY58: 1 | AZ58: 1 | BA58: 1 | BB58: 1 | BC58: 1 | BD58: 1 | BE58: 1 | BF58: 1 | BG58: 1 | BH58: 1 | BI58: 1 | BJ58: 1 | BK58: 1 | BL58: 1 | BM58: 1 | BN58: 1 | BO58: 1 | BP58: 1 | BQ58: 1 | BR58: 1 | BS58: 2 | BT58: 2 | BU58: 2 | BV58: 2 | BW58: 2 | BX58: 2 | BY58: 2 | BZ58: 1 | CA58: 2 | CB58: 2 | CC58: 2 | CD58: 2 | CE58: 2 | CF58: 1 | CG58: 1 | CH58: 1 | CI58: 1 | CJ58: 1 | CK58: 1 | CL58: 1 | CM58: 1 | CN58: 1 | CO58: 1 | CP58: 1 | CQ58: 1 | CR58: 1 | CS58: 1 | CT58: 1 | CU58: 1 | CV58: 1 | CW58: 1 | CX58: 1 | CY58: 1 | CZ58: 1 | DA58: 1 | DB58: 1 | DC58: 1 | DD58: 1 | DE58: 1 | DF58: 1 | DG58: 1 | DH58: 1 | DI58: 1 | DJ58: 1 | DK58: 1 | DL58: 1 | DM58: 1 | DN58: 1 | DO58: 1 | DP58: 1 | DQ58: 1 | DR58: 1 | DS58: 1 | DT58: 1 | DU58: 1 | DV58: 1 | DW58: 1 | DX58: 1 | DY58: 1 | DZ58: 1 | EA58: 1 | EB58: 1 | EC58: 1 | ED58: 1 | EE58: 1 | EF58: 1 | EG58: 1 | EH58: 1 | EI58: 1 | EJ58: 1 | EK58: 1 | EL58: 1 | EM58: 1 | EN58: 1 | EO58: 1 | EP58: 1 | EQ58: 1 | ER58: 1 | ES58: 1 | ET58: 1 | EU58: 1 | EV58: 1 | EW58: 1 | EX58: 1 | EY58: 1 | EZ58: 1 | FA58: 1 | FB58: 1 | FC58: 1 | FD58: 1 | FE58: 1 | FF58: 1 | FG58: 1 | FH58: 1 | FI58: 1 | FJ58: 1 | FK58: 1 | FL58: 1 | FM58: 1 | FN58: 1 | FO58: 1 | FP58: 1 | FQ58: 1 | FR58: 1 | FS58: 1 | FT58: 1 | FU58: 1 | FV58: 1 | FW58: 1 | FX58: 1 | FY58: 1 | FZ58: 1 | GA58: 1 | GB58: 1 | GC58: 1 | GD58: 1 | GE58: 1 | GF58: 1 | GG58: 1 | GH58: 1 | GI58: 1 | GJ58: 1 | GK58: 1 | GL58: 1 | GM58: 1 | GN58: 1 | GO58: 1 | GP58: 2 | GQ58: 2 | GR58: 2
A59: 1 | B59: 1 | C59: 1 | D59: 1 | E59: 1 | F59: 1 | G59: 1 | H59: 1 | I59: 1 | J59: 1 | K59: 1 | L59: 1 | M59: 1 | N59: 1 | O59: 1 | P59: 1 | Q59: 1 | R59: 1 | S59: 1 | T59: 1 | U59: 1 | V59: 1 | W59: 1 | X59: 1 | Y59: 1 | Z59: 1 | AA59: 1 | AB59: 1 | AC59: 1 | AD59: 1 | AE59: 1 | AF59: 1 | AG59: 1 | AH59: 1 | AI59: 1 | AJ59: 1 | AK59: 1 | AL59: 1 | AM59: 1 | AN59: 1 | AO59: 1 | AP59: 1 | AQ59: 1 | AR59: 1 | AS59: 1 | AT59: 1 | AU59: 1 | AV59: 1 | AW59: 1 | AX59: 1 | AY59: 1 | AZ59: 1 | BA59: 1 | BB59: 1 | BC59: 1 | BD59: 1 | BE59: 1 | BF59: 1 | BG59: 1 | BH59: 1 | BI59: 1 | BJ59: 1 | BK59: 1 | BL59: 1 | BM59: 1 | BN59: 1 | BO59: 1 | BP59: 1 | BQ59: 1 | BR59: 1 | BS59: 2 | BT59: 2 | BU59: 2 | BV59: 2 | BW59: 2 | BX59: 2 | BY59: 1 | BZ59: 2 | CA59: 2 | CB59: 2 | CC59: 2 | CD59: 2 | CE59: 2 | CF59: 1 | CG59: 1 | CH59: 1 | CI59: 1 | CJ59: 1 | CK59: 1 | CL59: 1 | CM59: 1 | CN59: 1 | CO59: 1 | CP59: 1 | CQ59: 1 | CR59: 1 | CS59: 1 | CT59: 1 | CU59: 1 | CV59: 1 | CW59: 1 | CX59: 1 | CY59: 1 | CZ59: 1 | DA59: 1 | DB59: 1 | DC59: 1 | DD59: 1 | DE59: 1 | DF59: 1 | DG59: 1 | DH59: 1 | DI59: 1 | DJ59: 1 | DK59: 1 | DL59: 1 | DM59: 1 | DN59: 1 | DO59: 1 | DP59: 1 | DQ59: 1 | DR59: 1 | DS59: 1 | DT59: 1 | DU59: 1 | DV59: 1 | DW59: 1 | DX59: 1 | DY59: 1 | DZ59: 1 | EA59: 1 | EB59: 1 | EC59: 1 | ED59: 1 | EE59: 1 | EF59: 1 | EG59: 1 | EH59: 1 | EI59: 1 | EJ59: 1 | EK59: 1 | EL59: 1 | EM59: 1 | EN59: 1 | EO59: 1 | EP59: 1 | EQ59: 1 | ER59: 1 | ES59: 1 | ET59: 1 | EU59: 1 | EV59: 1 | EW59: 1 | EX59: 1 | EY59: 1 | EZ59: 1 | FA59: 1 | FB59: 1 | FC59: 1 | FD59: 1 | FE59: 1 | FF59: 1 | FG59: 1 | FH59: 1 | FI59: 1 | FJ59: 1 | FK59: 1 | FL59: 1 | FM59: 1 | FN59: 1 | FO59: 1 | FP59: 1 | FQ59: 1 | FR59: 1 | FS59: 1 | FT59: 1 | FU59: 1 | FV59: 1 | FW59: 1 | FX59: 1 | FY59: 1 | FZ59: 1 | GA59: 1 | GB59: 1 | GC59: 1 | GD59: 1 | GE59: 1 | GF59: 1 | GG59: 1 | GH59: 1 | GI59: 1 | GJ59: 1 | GK59: 1 | GL59: 1 | GM59: 1 | GN59: 1 | GO59: 2 | GP59: 2 | GQ59: 2 | GR59: 2
A60: 1 | B60: 1 | C60: 1 | D60: 1 | E60: 1 | F60: 1 | G60: 1 | H60: 1 | I60: 1 | J60: 1 | K60: 1 | L60: 1 | M60: 1 | N60: 1 | O60: 1 | P60: 1 | Q60: 1 | R60: 1 | S60: 1 | T60: 1 | U60: 1 | V60: 1 | W60: 1 | X60: 1 | Y60: 1 | Z60: 1 | AA60: 1 | AB60: 1 | AC60: 1 | AD60: 1 | AE60: 1 | AF60: 1 | AG60: 1 | AH60: 1 | AI60: 1 | AJ60: 1 | AK60: 1 | AL60: 1 | AM60: 1 | AN60: 1 | AO60: 1 | AP60: 1 | AQ60: 1 | AR60: 1 | AS60: 1 | AT60: 1 | AU60: 1 | AV60: 1 | AW60: 1 | AX60: 1 | AY60: 1 | AZ60: 1 | BA60: 1 | BB60: 1 | BC60: 1 | BD60: 1 | BE60: 1 | BF60: 1 | BG60: 1 | BH60: 1 | BI60: 1 | BJ60: 1 | BK60: 1 | BL60: 1 | BM60: 1 | BN60: 1 | BO60: 1 | BP60: 1 | BQ60: 1 | BR60: 2 | BS60: 2 | BT60: 2 | BU60: 2 | BV60: 2 | BW60: 2 | BX60: 2 | BY60: 1 | BZ60: 2 | CA60: 2 | CB60: 2 | CC60: 2 | CD60: 2 | CE60: 1 | CF60: 1 | CG60: 1 | CH60: 1 | CI60: 1 | CJ60: 1 | CK60: 1 | CL60: 1 | CM60: 1 | CN60: 1 | CO60: 1 | CP60: 1 | CQ60: 1 | CR60: 1 | CS60: 1 | CT60: 1 | CU60: 1 | CV60: 1 | CW60: 1 | CX60: 1 | CY60: 1 | CZ60: 1 | DA60: 1 | DB60: 1 | DC60: 1 | DD60: 1 | DE60: 1 | DF60: 1 | DG60: 1 | DH60: 1 | DI60: 1 | DJ60: 1 | DK60: 1 | DL60: 1 | DM60: 1 | DN60: 1 | DO60: 1 | DP60: 1 | DQ60: 1 | DR60: 1 | DS60: 1 | DT60: 1 | DU60: 1 | DV60: 1 | DW60: 1 | DX60: 1 | DY60: 1 | DZ60: 1 | EA60: 1 | EB60: 1 | EC60: 1 | ED60: 1 | EE60: 1 | EF60: 1 | EG60: 1 | EH60: 1 | EI60: 1 | EJ60: 1 | EK60: 1 | EL60: 1 | EM60: 1 | EN60: 1 | EO60: 1 | EP60: 1 | EQ60: 1 | ER60: 1 | ES60: 1 | ET60: 1 | EU60: 1 | EV60: 1 | EW60: 1 | EX60: 1 | EY60: 1 | EZ60: 1 | FA60: 1 | FB60: 1 | FC60: 1 | FD60: 1 | FE60: 1 | FF60: 1 | FG60: 1 | FH60: 1 | FI60: 1 | FJ60: 1 | FK60: 1 | FL60: 1 | FM60: 1 | FN60: 1 | FO60: 1 | FP60: 1 | FQ60: 1 | FR60: 1 | FS60: 1 | FT60: 1 | FU60: 1 | FV60: 1 | FW60: 1 | FX60: 1 | FY60: 1 | FZ60: 1 | GA60: 1 | GB60: 1 | GC60: 1 | GD60: 1 | GE60: 1 | GF60: 1 | GG60: 1 | GH60: 1 | GI60: 1 | GJ60: 1 | GK60: 1 | GL60: 1 | GM60: 2 | GN60: 2 | GO60: 2 | GP60: 2 | GQ60: 2 | GR60: 2
A61: 1 | B61: 1 | C61: 1 | D61: 1 | E61: 1 | F61: 1 | G61: 1 | H61: 1 | I61: 1 | J61: 1 | K61: 1 | L61: 1 | M61: 1 | N61: 1 | O61: 1 | P61: 1 | Q61: 1 | R61: 1 | S61: 1 | T61: 1 | U61: 1 | V61: 1 | W61: 1 | X61: 1 | Y61: 1 | Z61: 1 | AA61: 1 | AB61: 1 | AC61: 1 | AD61: 1 | AE61: 1 | AF61: 1 | AG61: 1 | AH61: 1 | AI61: 1 | AJ61: 1 | AK61: 1 | AL61: 1 | AM61: 1 | AN61: 1 | AO61: 1 | AP61: 1 | AQ61: 1 | AR61: 1 | AS61: 1 | AT61: 1 | AU61: 1 | AV61: 1 | AW61: 1 | AX61: 1 | AY61: 1 | AZ61: 1 | BA61: 1 | BB61: 1 | BC61: 1 | BD61: 1 | BE61: 1 | BF61: 1 | BG61: 1 | BH61: 1 | BI61: 1 | BJ61: 1 | BK61: 1 | BL61: 1 | BM61: 1 | BN61: 1 | BO61: 1 | BP61: 1 | BQ61: 1 | BR61: 2 | BS61: 2 | BT61: 2 | BU61: 2 | BV61: 2 | BW61: 2 | BX61: 2 | BY61: 1 | BZ61: 1 | CA61: 2 | CB61: 2 | CC61: 2 | CD61: 2 | CE61: 2 | CF61: 2 | CG61: 2 | CH61: 1 | CI61: 1 | CJ61: 1 | CK61: 1 | CL61: 1 | CM61: 1 | CN61: 1 | CO61: 1 | CP61: 1 | CQ61: 1 | CR61: 1 | CS61: 1 | CT61: 1 | CU61: 1 | CV61: 1 | CW61: 1 | CX61: 1 | CY61: 1 | CZ61: 1 | DA61: 1 | DB61: 1 | DC61: 1 | DD61: 1 | DE61: 1 | DF61: 1 | DG61: 1 | DH61: 1 | DI61: 1 | DJ61: 1 | DK61: 1 | DL61: 1 | DM61: 1 | DN61: 1 | DO61: 1 | DP61: 1 | DQ61: 1 | DR61: 1 | DS61: 1 | DT61: 1 | DU61: 1 | DV61: 1 | DW61: 1 | DX61: 1 | DY61: 1 | DZ61: 1 | EA61: 1 | EB61: 1 | EC61: 1 | ED61: 1 | EE61: 1 | EF61: 1 | EG61: 1 | EH61: 1 | EI61: 1 | EJ61: 1 | EK61: 1 | EL61: 1 | EM61: 1 | EN61: 1 | EO61: 1 | EP61: 1 | EQ61: 1 | ER61: 1 | ES61: 1 | ET61: 1 | EU61: 1 | EV61: 1 | EW61: 1 | EX61: 1 | EY61: 1 | EZ61: 1 | FA61: 1 | FB61: 1 | FC61: 1 | FD61: 1 | FE61: 1 | FF61: 1 | FG61: 1 | FH61: 1 | FI61: 1 | FJ61: 1 | FK61: 1 | FL61: 1 | FM61: 1 | FN61: 1 | FO61: 1 | FP61: 1 | FQ61: 1 | FR61: 1 | FS61: 1 | FT61: 1 | FU61: 1 | FV61: 1 | FW61: 1 | FX61: 1 | FY61: 1 | FZ61: 1 | GA61: 1 | GB61: 1 | GC61: 1 | GD61: 1 | GE61: 1 | GF61: 1 | GG61: 1 | GH61: 1 | GI61: 1 | GJ61: 1 | GK61: 1 | GL61: 1 | GM61: 1 | GN61: 2 | GO61: 2 | GP61: 2 | GQ61: 2 | GR61: 2
A62: 1 | B62: 1 | C62: 1 | D62: 1 | E62: 1 | F62: 1 | G62: 1 | H62: 1 | I62: 1 | J62: 1 | K62: 1 | L62: 1 | M62: 1 | N62: 1 | O62: 1 | P62: 1 | Q62: 1 | R62: 1 | S62: 1 | T62: 1 | U62: 1 | V62: 1 | W62: 1 | X62: 1 | Y62: 1 | Z62: 1 | AA62: 1 | AB62: 1 | AC62: 1 | AD62: 1 | AE62: 1 | AF62: 1 | AG62: 1 | AH62: 1 | AI62: 1 | AJ62: 1 | AK62: 1 | AL62: 1 | AM62: 1 | AN62: 1 | AO62: 1 | AP62: 1 | AQ62: 1 | AR62: 1 | AS62: 1 | AT62: 1 | AU62: 1 | AV62: 1 | AW62: 1 | AX62: 1 | AY62: 1 | AZ62: 1 | BA62: 1 | BB62: 1 | BC62: 1 | BD62: 1 | BE62: 1 | BF62: 1 | BG62: 1 | BH62: 1 | BI62: 1 | BJ62: 1 | BK62: 1 | BL62: 1 | BM62: 1 | BN62: 1 | BO62: 1 | BP62: 1 | BQ62: 1 | BR62: 2 | BS62: 2 | BT62: 2 | BU62: 2 | BV62: 2 | BW62: 2 | BX62: 1 | BY62: 1 | BZ62: 2 | CA62: 2 | CB62: 2 | CC62: 2 | CD62: 2 | CE62: 2 | CF62: 2 | CG62: 2 | CH62: 1 | CI62: 1 | CJ62: 1 | CK62: 1 | CL62: 1 | CM62: 1 | CN62: 1 | CO62: 1 | CP62: 1 | CQ62: 1 | CR62: 1 | CS62: 1 | CT62: 1 | CU62: 1 | CV62: 1 | CW62: 1 | CX62: 1 | CY62: 1 | CZ62: 1 | DA62: 1 | DB62: 1 | DC62: 1 | DD62: 1 | DE62: 1 | DF62: 1 | DG62: 1 | DH62: 1 | DI62: 1 | DJ62: 1 | DK62: 1 | DL62: 1 | DM62: 1 | DN62: 1 | DO62: 1 | DP62: 1 | DQ62: 1 | DR62: 1 | DS62: 1 | DT62: 1 | DU62: 1 | DV62: 1 | DW62: 1 | DX62: 1 | DY62: 1 | DZ62: 1 | EA62: 1 | EB62: 1 | EC62: 1 | ED62: 1 | EE62: 1 | EF62: 1 | EG62: 1 | EH62: 1 | EI62: 1 | EJ62: 1 | EK62: 1 | EL62: 1 | EM62: 1 | EN62: 1 | EO62: 1 | EP62: 1 | EQ62: 1 | ER62: 1 | ES62: 1 | ET62: 1 | EU62: 1 | EV62: 1 | EW62: 1 | EX62: 1 | EY62: 1 | EZ62: 1 | FA62: 1 | FB62: 1 | FC62: 1 | FD62: 1 | FE62: 1 | FF62: 1 | FG62: 1 | FH62: 1 | FI62: 1 | FJ62: 1 | FK62: 1 | FL62: 1 | FM62: 1 | FN62: 1 | FO62: 1 | FP62: 1 | FQ62: 1 | FR62: 1 | FS62: 1 | FT62: 1 | FU62: 1 | FV62: 1 | FW62: 1 | FX62: 1 | FY62: 1 | FZ62: 1 | GA62: 1 | GB62: 1 | GC62: 1 | GD62: 1 | GE62: 1 | GF62: 1 | GG62: 1 | GH62: 1 | GI62: 1 | GJ62: 1 | GK62: 1 | GL62: 1 | GM62: 1 | GN62: 2 | GO62: 2 | GP62: 2 | GQ62: 2 | GR62: 2
A63: 1 | B63: 1 | C63: 1 | D63: 1 | E63: 1 | F63: 1 | G63: 1 | H63: 1 | I63: 1 | J63: 1 | K63: 1 | L63: 1 | M63: 1 | N63: 1 | O63: 1 | P63: 1 | Q63: 1 | R63: 1 | S63: 1 | T63: 1 | U63: 1 | V63: 1 | W63: 1 | X63: 1 | Y63: 1 | Z63: 1 | AA63: 1 | AB63: 1 | AC63: 1 | AD63: 1 | AE63: 1 | AF63: 1 | AG63: 1 | AH63: 1 | AI63: 1 | AJ63: 1 | AK63: 1 | AL63: 1 | AM63: 1 | AN63: 1 | AO63: 1 | AP63: 1 | AQ63: 1 | AR63: 1 | AS63: 1 | AT63: 1 | AU63: 1 | AV63: 1 | AW63: 1 | AX63: 1 | AY63: 1 | AZ63: 1 | BA63: 1 | BB63: 1 | BC63: 1 | BD63: 1 | BE63: 1 | BF63: 1 | BG63: 1 | BH63: 1 | BI63: 1 | BJ63: 1 | BK63: 1 | BL63: 1 | BM63: 1 | BN63: 1 | BO63: 1 | BP63: 1 | BQ63: 1 | BR63: 1 | BS63: 2 | BT63: 2 | BU63: 2 | BV63: 2 | BW63: 2 | BX63: 1 | BY63: 1 | BZ63: 2 | CA63: 2 | CB63: 2 | CC63: 2 | CD63: 2 | CE63: 2 | CF63: 2 | CG63: 2 | CH63: 1 | CI63: 1 | CJ63: 1 | CK63: 1 | CL63: 1 | CM63: 1 | CN63: 1 | CO63: 1 | CP63: 1 | CQ63: 1 | CR63: 1 | CS63: 1 | CT63: 1 | CU63: 1 | CV63: 1 | CW63: 1 | CX63: 1 | CY63: 1 | CZ63: 1 | DA63: 1 | DB63: 1 | DC63: 1 | DD63: 1 | DE63: 1 | DF63: 1 | DG63: 1 | DH63: 1 | DI63: 1 | DJ63: 1 | DK63: 1 | DL63: 1 | DM63: 1 | DN63: 1 | DO63: 1 | DP63: 1 | DQ63: 1 | DR63: 1 | DS63: 1 | DT63: 1 | DU63: 1 | DV63: 1 | DW63: 1 | DX63: 1 | DY63: 1 | DZ63: 1 | EA63: 1 | EB63: 1 | EC63: 1 | ED63: 1 | EE63: 1 | EF63: 1 | EG63: 1 | EH63: 1 | EI63: 1 | EJ63: 1 | EK63: 1 | EL63: 1 | EM63: 1 | EN63: 1 | EO63: 1 | EP63: 1 | EQ63: 1 | ER63: 1 | ES63: 1 | ET63: 1 | EU63: 1 | EV63: 1 | EW63: 1 | EX63: 1 | EY63: 1 | EZ63: 1 | FA63: 1 | FB63: 1 | FC63: 1 | FD63: 1 | FE63: 1 | FF63: 2 | FG63: 2 | FH63: 1 | FI63: 1 | FJ63: 1 | FK63: 1 | FL63: 1 | FM63: 1 | FN63: 1 | FO63: 1 | FP63: 1 | FQ63: 1 | FR63: 1 | FS63: 1 | FT63: 1 | FU63: 1 | FV63: 1 | FW63: 1 | FX63: 1 | FY63: 1 | FZ63: 1 | GA63: 1 | GB63: 1 | GC63: 1 | GD63: 1 | GE63: 1 | GF63: 1 | GG63: 1 | GH63: 1 | GI63: 1 | GJ63: 1 | GK63: 1 | GL63: 1 | GM63: 2 | GN63: 2 | GO63: 2 | GP63: 2 | GQ63: 2 | GR63: 2
A64: 1 | B64: 1 | C64: 1 | D64: 1 | E64: 1 | F64: 1 | G64: 1 | H64: 1 | I64: 1 | J64: 1 | K64: 1 | L64: 1 | M64: 1 | N64: 1 | O64: 1 | P64: 1 | Q64: 1 | R64: 1 | S64: 1 | T64: 1 | U64: 1 | V64: 1 | W64: 1 | X64: 1 | Y64: 1 | Z64: 1 | AA64: 1 | AB64: 1 | AC64: 1 | AD64: 1 | AE64: 1 | AF64: 1 | AG64: 1 | AH64: 1 | AI64: 1 | AJ64: 1 | AK64: 1 | AL64: 1 | AM64: 1 | AN64: 1 | AO64: 1 | AP64: 1 | AQ64: 1 | AR64: 1 | AS64: 1 | AT64: 1 | AU64: 1 | AV64: 1 | AW64: 1 | AX64: 1 | AY64: 1 | AZ64: 1 | BA64: 1 | BB64: 1 | BC64: 1 | BD64: 1 | BE64: 1 | BF64: 1 | BG64: 1 | BH64: 1 | BI64: 1 | BJ64: 1 | BK64: 1 | BL64: 1 | BM64: 1 | BN64: 1 | BO64: 1 | BP64: 1 | BQ64: 1 | BR64: 1 | BS64: 1 | BT64: 2 | BU64: 2 | BV64: 2 | BW64: 1 | BX64: 1 | BY64: 1 | BZ64: 2 | CA64: 2 | CB64: 2 | CC64: 2 | CD64: 2 | CE64: 2 | CF64: 2 | CG64: 1 | CH64: 1 | CI64: 1 | CJ64: 1 | CK64: 1 | CL64: 1 | CM64: 1 | CN64: 1 | CO64: 1 | CP64: 1 | CQ64: 1 | CR64: 1 | CS64: 1 | CT64: 1 | CU64: 1 | CV64: 1 | CW64: 1 | CX64: 1 | CY64: 1 | CZ64: 1 | DA64: 1 | DB64: 1 | DC64: 1 | DD64: 1 | DE64: 1 | DF64: 1 | DG64: 1 | DH64: 1 | DI64: 1 | DJ64: 1 | DK64: 1 | DL64: 1 | DM64: 1 | DN64: 1 | DO64: 1 | DP64: 1 | DQ64: 1 | DR64: 1 | DS64: 1 | DT64: 1 | DU64: 1 | DV64: 1 | DW64: 1 | DX64: 1 | DY64: 1 | DZ64: 1 | EA64: 1 | EB64: 1 | EC64: 1 | ED64: 1 | EE64: 1 | EF64: 1 | EG64: 1 | EH64: 1 | EI64: 1 | EJ64: 1 | EK64: 1 | EL64: 1 | EM64: 1 | EN64: 1 | EO64: 1 | EP64: 1 | EQ64: 1 | ER64: 1 | ES64: 1 | ET64: 1 | EU64: 1 | EV64: 1 | EW64: 1 | EX64: 1 | EY64: 1 | EZ64: 1 | FA64: 1 | FB64: 1 | FC64: 1 | FD64: 1 | FE64: 1 | FF64: 2 | FG64: 2 | FH64: 2 | FI64: 1 | FJ64: 1 | FK64: 1 | FL64: 1 | FM64: 1 | FN64: 1 | FO64: 1 | FP64: 1 | FQ64: 1 | FR64: 1 | FS64: 1 | FT64: 1 | FU64: 1 | FV64: 1 | FW64: 1 | FX64: 1 | FY64: 1 | FZ64: 1 | GA64: 1 | GB64: 1 | GC64: 1 | GD64: 1 | GE64: 1 | GF64: 1 | GG64: 1 | GH64: 1 | GI64: 1 | GJ64: 1 | GK64: 1 | GL64: 1 | GM64: 2 | GN64: 2 | GO64: 2 | GP64: 2 | GQ64: 2 | GR64: 2
A65: 1 | B65: 1 | C65: 1 | D65: 1 | E65: 1 | F65: 1 | G65: 1 | H65: 1 | I65: 1 | J65: 1 | K65: 1 | L65: 1 | M65: 1 | N65: 1 | O65: 1 | P65: 1 | Q65: 1 | R65: 1 | S65: 1 | T65: 1 | U65: 1 | V65: 1 | W65: 1 | X65: 1 | Y65: 1 | Z65: 1 | AA65: 1 | AB65: 1 | AC65: 1 | AD65: 1 | AE65: 1 | AF65: 1 | AG65: 1 | AH65: 1 | AI65: 1 | AJ65: 1 | AK65: 1 | AL65: 1 | AM65: 1 | AN65: 1 | AO65: 1 | AP65: 1 | AQ65: 1 | AR65: 1 | AS65: 1 | AT65: 1 | AU65: 1 | AV65: 1 | AW65: 1 | AX65: 1 | AY65: 1 | AZ65: 1 | BA65: 1 | BB65: 1 | BC65: 1 | BD65: 1 | BE65: 1 | BF65: 1 | BG65: 1 | BH65: 1 | BI65: 1 | BJ65: 1 | BK65: 1 | BL65: 1 | BM65: 1 | BN65: 1 | BO65: 1 | BP65: 1 | BQ65: 1 | BR65: 1 | BS65: 1 | BT65: 1 | BU65: 1 | BV65: 1 | BW65: 1 | BX65: 1 | BY65: 2 | BZ65: 2 | CA65: 2 | CB65: 2 | CC65: 2 | CD65: 2 | CE65: 2 | CF65: 2 | CG65: 2 | CH65: 2 | CI65: 2 | CJ65: 1 | CK65: 1 | CL65: 1 | CM65: 1 | CN65: 1 | CO65: 1 | CP65: 1 | CQ65: 1 | CR65: 1 | CS65: 1 | CT65: 1 | CU65: 1 | CV65: 1 | CW65: 1 | CX65: 1 | CY65: 1 | CZ65: 1 | DA65: 1 | DB65: 1 | DC65: 1 | DD65: 1 | DE65: 1 | DF65: 1 | DG65: 1 | DH65: 1 | DI65: 1 | DJ65: 1 | DK65: 1 | DL65: 1 | DM65: 1 | DN65: 1 | DO65: 1 | DP65: 1 | DQ65: 1 | DR65: 1 | DS65: 1 | DT65: 1 | DU65: 1 | DV65: 1 | DW65: 1 | DX65: 1 | DY65: 1 | DZ65: 1 | EA65: 1 | EB65: 1 | EC65: 1 | ED65: 1 | EE65: 1 | EF65: 1 | EG65: 1 | EH65: 1 | EI65: 1 | EJ65: 1 | EK65: 1 | EL65: 1 | EM65: 1 | EN65: 1 | EO65: 1 | EP65: 1 | EQ65: 1 | ER65: 1 | ES65: 1 | ET65: 1 | EU65: 1 | EV65: 1 | EW65: 1 | EX65: 1 | EY65: 1 | EZ65: 1 | FA65: 1 | FB65: 1 | FC65: 1 | FD65: 1 | FE65: 1 | FF65: 1 | FG65: 2 | FH65: 2 | FI65: 1 | FJ65: 1 | FK65: 1 | FL65: 1 | FM65: 1 | FN65: 1 | FO65: 1 | FP65: 1 | FQ65: 1 | FR65: 1 | FS65: 1 | FT65: 1 | FU65: 1 | FV65: 1 | FW65: 1 | FX65: 1 | FY65: 1 | FZ65: 1 | GA65: 1 | GB65: 1 | GC65: 1 | GD65: 1 | GE65: 1 | GF65: 1 | GG65: 1 | GH65: 1 | GI65: 1 | GJ65: 1 | GK65: 1 | GL65: 2 | GM65: 2 | GN65: 2 | GO65: 2 | GP65: 2 | GQ65: 2 | GR65: 2
A66: 1 | B66: 1 | C66: 1 | D66: 1 | E66: 1 | F66: 1 | G66: 1 | H66: 1 | I66: 1 | J66: 1 | K66: 1 | L66: 1 | M66: 1 | N66: 1 | O66: 1 | P66: 1 | Q66: 1 | R66: 1 | S66: 1 | T66: 1 | U66: 1 | V66: 1 | W66: 1 | X66: 1 | Y66: 1 | Z66: 1 | AA66: 1 | AB66: 1 | AC66: 1 | AD66: 1 | AE66: 1 | AF66: 1 | AG66: 1 | AH66: 1 | AI66: 1 | AJ66: 1 | AK66: 1 | AL66: 1 | AM66: 1 | AN66: 1 | AO66: 1 | AP66: 1 | AQ66: 1 | AR66: 1 | AS66: 1 | AT66: 1 | AU66: 1 | AV66: 1 | AW66: 1 | AX66: 1 | AY66: 1 | AZ66: 1 | BA66: 1 | BB66: 1 | BC66: 1 | BD66: 1 | BE66: 1 | BF66: 1 | BG66: 1 | BH66: 1 | BI66: 1 | BJ66: 1 | BK66: 2 | BL66: 1 | BM66: 1 | BN66: 1 | BO66: 1 | BP66: 1 | BQ66: 1 | BR66: 1 | BS66: 1 | BT66: 1 | BU66: 1 | BV66: 1 | BW66: 1 | BX66: 2 | BY66: 2 | BZ66: 2 | CA66: 2 | CB66: 2 | CC66: 2 | CD66: 2 | CE66: 2 | CF66: 2 | CG66: 2 | CH66: 2 | CI66: 2 | CJ66: 2 | CK66: 2 | CL66: 1 | CM66: 1 | CN66: 1 | CO66: 1 | CP66: 1 | CQ66: 1 | CR66: 1 | CS66: 1 | CT66: 1 | CU66: 1 | CV66: 1 | CW66: 1 | CX66: 1 | CY66: 1 | CZ66: 1 | DA66: 1 | DB66: 1 | DC66: 1 | DD66: 1 | DE66: 1 | DF66: 1 | DG66: 1 | DH66: 1 | DI66: 1 | DJ66: 1 | DK66: 1 | DL66: 1 | DM66: 1 | DN66: 1 | DO66: 1 | DP66: 1 | DQ66: 1 | DR66: 1 | DS66: 1 | DT66: 1 | DU66: 1 | DV66: 1 | DW66: 1 | DX66: 1 | DY66: 1 | DZ66: 1 | EA66: 1 | EB66: 1 | EC66: 1 | ED66: 1 | EE66: 1 | EF66: 1 | EG66: 1 | EH66: 1 | EI66: 1 | EJ66: 1 | EK66: 1 | EL66: 1 | EM66: 1 | EN66: 1 | EO66: 1 | EP66: 1 | EQ66: 1 | ER66: 1 | ES66: 1 | ET66: 1 | EU66: 1 | EV66: 1 | EW66: 1 | EX66: 1 | EY66: 1 | EZ66: 1 | FA66: 1 | FB66: 1 | FC66: 1 | FD66: 1 | FE66: 1 | FF66: 1 | FG66: 2 | FH66: 2 | FI66: 1 | FJ66: 1 | FK66: 1 | FL66: 1 | FM66: 1 | FN66: 1 | FO66: 1 | FP66: 1 | FQ66: 1 | FR66: 1 | FS66: 1 | FT66: 1 | FU66: 1 | FV66: 1 | FW66: 1 | FX66: 1 | FY66: 1 | FZ66: 1 | GA66: 1 | GB66: 1 | GC66: 1 | GD66: 1 | GE66: 1 | GF66: 1 | GG66: 1 | GH66: 1 | GI66: 1 | GJ66: 1 | GK66: 1 | GL66: 2 | GM66: 2 | GN66: 2 | GO66: 2 | GP66: 2 | GQ66: 2 | GR66: 2
A67: 1 | B67: 1 | C67: 1 | D67: 1 | E67: 1 | F67: 1 | G67: 1 | H67: 1 | I67: 1 | J67: 1 | K67: 1 | L67: 1 | M67: 1 | N67: 1 | O67: 1 | P67: 1 | Q67: 1 | R67: 1 | S67: 1 | T67: 1 | U67: 1 | V67: 1 | W67: 1 | X67: 1 | Y67: 1 | Z67: 1 | AA67: 1 | AB67: 1 | AC67: 1 | AD67: 1 | AE67: 1 | AF67: 1 | AG67: 1 | AH67: 1 | AI67: 1 | AJ67: 1 | AK67: 1 | AL67: 1 | AM67: 1 | AN67: 1 | AO67: 1 | AP67: 1 | AQ67: 1 | AR67: 1 | AS67: 1 | AT67: 1 | AU67: 1 | AV67: 1 | AW67: 1 | AX67: 1 | AY67: 1 | AZ67: 1 | BA67: 1 | BB67: 1 | BC67: 1 | BD67: 1 | BE67: 1 | BF67: 1 | BG67: 1 | BH67: 1 | BI67: 1 | BJ67: 2 | BK67: 2 | BL67: 2 | BM67: 1 | BN67: 1 | BO67: 1 | BP67: 1 | BQ67: 1 | BR67: 1 | BS67: 1 | BT67: 1 | BU67: 1 | BV67: 1 | BW67: 2 | BX67: 2 | BY67: 2 | BZ67: 2 | CA67: 2 | CB67: 2 | CC67: 2 | CD67: 2 | CE67: 2 | CF67: 2 | CG67: 2 | CH67: 2 | CI67: 1 | CJ67: 2 | CK67: 2 | CL67: 2 | CM67: 1 | CN67: 1 | CO67: 1 | CP67: 1 | CQ67: 1 | CR67: 1 | CS67: 1 | CT67: 1 | CU67: 1 | CV67: 1 | CW67: 1 | CX67: 1 | CY67: 1 | CZ67: 1 | DA67: 1 | DB67: 1 | DC67: 1 | DD67: 1 | DE67: 1 | DF67: 1 | DG67: 1 | DH67: 1 | DI67: 1 | DJ67: 1 | DK67: 1 | DL67: 1 | DM67: 1 | DN67: 1 | DO67: 1 | DP67: 1 | DQ67: 1 | DR67: 1 | DS67: 1 | DT67: 1 | DU67: 1 | DV67: 1 | DW67: 1 | DX67: 1 | DY67: 1 | DZ67: 1 | EA67: 1 | EB67: 1 | EC67: 1 | ED67: 1 | EE67: 1 | EF67: 1 | EG67: 1 | EH67: 1 | EI67: 1 | EJ67: 1 | EK67: 1 | EL67: 1 | EM67: 1 | EN67: 1 | EO67: 1 | EP67: 1 | EQ67: 1 | ER67: 1 | ES67: 1 | ET67: 1 | EU67: 1 | EV67: 1 | EW67: 1 | EX67: 1 | EY67: 1 | EZ67: 1 | FA67: 1 | FB67: 1 | FC67: 1 | FD67: 1 | FE67: 1 | FF67: 2 | FG67: 2 | FH67: 2 | FI67: 2 | FJ67: 1 | FK67: 1 | FL67: 1 | FM67: 1 | FN67: 1 | FO67: 1 | FP67: 1 | FQ67: 1 | FR67: 1 | FS67: 1 | FT67: 1 | FU67: 1 | FV67: 1 | FW67: 1 | FX67: 1 | FY67: 1 | FZ67: 1 | GA67: 1 | GB67: 1 | GC67: 1 | GD67: 1 | GE67: 1 | GF67: 1 | GG67: 1 | GH67: 1 | GI67: 1 | GJ67: 1 | GK67: 1 | GL67: 2 | GM67: 2 | GN67: 2 | GO67: 2 | GP67: 2 | GQ67: 2 | GR67: 2
A68: 1 | B68: 1 | C68: 1 | D68: 1 | E68: 1 | F68: 1 | G68: 1 | H68: 1 | I68: 1 | J68: 1 | K68: 1 | L68: 1 | M68: 1 | N68: 1 | O68: 1 | P68: 1 | Q68: 1 | R68: 1 | S68: 1 | T68: 1 | U68: 1 | V68: 1 | W68: 1 | X68: 1 | Y68: 1 | Z68: 1 | AA68: 1 | AB68: 1 | AC68: 1 | AD68: 1 | AE68: 1 | AF68: 1 | AG68: 1 | AH68: 1 | AI68: 1 | AJ68: 1 | AK68: 1 | AL68: 1 | AM68: 1 | AN68: 1 | AO68: 1 | AP68: 1 | AQ68: 1 | AR68: 1 | AS68: 1 | AT68: 1 | AU68: 1 | AV68: 1 | AW68: 1 | AX68: 1 | AY68: 1 | AZ68: 1 | BA68: 1 | BB68: 1 | BC68: 1 | BD68: 1 | BE68: 1 | BF68: 1 | BG68: 1 | BH68: 1 | BI68: 1 | BJ68: 2 | BK68: 2 | BL68: 2 | BM68: 2 | BN68: 1 | BO68: 1 | BP68: 1 | BQ68: 1 | BR68: 2 | BS68: 1 | BT68: 1 | BU68: 2 | BV68: 2 | BW68: 2 | BX68: 2 | BY68: 2 | BZ68: 2 | CA68: 2 | CB68: 2 | CC68: 2 | CD68: 2 | CE68: 2 | CF68: 2 | CG68: 2 | CH68: 2 | CI68: 1 | CJ68: 2 | CK68: 2 | CL68: 2 | CM68: 2 | CN68: 1 | CO68: 1 | CP68: 1 | CQ68: 1 | CR68: 1 | CS68: 1 | CT68: 1 | CU68: 1 | CV68: 1 | CW68: 1 | CX68: 1 | CY68: 1 | CZ68: 1 | DA68: 1 | DB68: 1 | DC68: 1 | DD68: 1 | DE68: 1 | DF68: 1 | DG68: 1 | DH68: 1 | DI68: 1 | DJ68: 1 | DK68: 1 | DL68: 1 | DM68: 1 | DN68: 1 | DO68: 1 | DP68: 1 | DQ68: 1 | DR68: 1 | DS68: 1 | DT68: 1 | DU68: 1 | DV68: 1 | DW68: 1 | DX68: 1 | DY68: 1 | DZ68: 1 | EA68: 1 | EB68: 1 | EC68: 1 | ED68: 1 | EE68: 1 | EF68: 1 | EG68: 1 | EH68: 1 | EI68: 1 | EJ68: 1 | EK68: 1 | EL68: 1 | EM68: 1 | EN68: 1 | EO68: 1 | EP68: 1 | EQ68: 1 | ER68: 1 | ES68: 1 | ET68: 1 | EU68: 1 | EV68: 1 | EW68: 1 | EX68: 1 | EY68: 1 | EZ68: 1 | FA68: 1 | FB68: 1 | FC68: 1 | FD68: 1 | FE68: 1 | FF68: 2 | FG68: 2 | FH68: 2 | FI68: 2 | FJ68: 1 | FK68: 1 | FL68: 1 | FM68: 1 | FN68: 1 | FO68: 1 | FP68: 1 | FQ68: 1 | FR68: 1 | FS68: 1 | FT68: 1 | FU68: 1 | FV68: 1 | FW68: 1 | FX68: 1 | FY68: 1 | FZ68: 1 | GA68: 1 | GB68: 1 | GC68: 1 | GD68: 1 | GE68: 1 | GF68: 1 | GG68: 1 | GH68: 1 | GI68: 1 | GJ68: 1 | GK68: 1 | GL68: 1 | GM68: 2 | GN68: 2 | GO68: 2 | GP68: 2 | GQ68: 2 | GR68: 2
A69: 1 | B69: 1 | C69: 1 | D69: 1 | E69: 1 | F69: 1 | G69: 1 | H69: 1 | I69: 1 | J69: 1 | K69: 1 | L69: 1 | M69: 1 | N69: 1 | O69: 1 | P69: 1 | Q69: 1 | R69: 1 | S69: 1 | T69: 1 | U69: 1 | V69: 1 | W69: 1 | X69: 1 | Y69: 1 | Z69: 1 | AA69: 1 | AB69: 1 | AC69: 1 | AD69: 1 | AE69: 1 | AF69: 1 | AG69: 1 | AH69: 1 | AI69: 1 | AJ69: 1 | AK69: 1 | AL69: 1 | AM69: 1 | AN69: 1 | AO69: 1 | AP69: 1 | AQ69: 1 | AR69: 1 | AS69: 1 | AT69: 1 | AU69: 1 | AV69: 1 | AW69: 1 | AX69: 1 | AY69: 1 | AZ69: 1 | BA69: 1 | BB69: 2 | BC69: 2 | BD69: 2 | BE69: 2 | BF69: 2 | BG69: 2 | BH69: 2 | BI69: 2 | BJ69: 2 | BK69: 2 | BL69: 2 | BM69: 1 | BN69: 1 | BO69: 1 | BP69: 1 | BQ69: 2 | BR69: 2 | BS69: 2 | BT69: 2 | BU69: 2 | BV69: 2 | BW69: 2 | BX69: 2 | BY69: 2 | BZ69: 2 | CA69: 2 | CB69: 2 | CC69: 2 | CD69: 2 | CE69: 2 | CF69: 2 | CG69: 2 | CH69: 2 | CI69: 2 | CJ69: 1 | CK69: 2 | CL69: 2 | CM69: 1 | CN69: 1 | CO69: 1 | CP69: 1 | CQ69: 1 | CR69: 1 | CS69: 1 | CT69: 1 | CU69: 1 | CV69: 1 | CW69: 1 | CX69: 1 | CY69: 1 | CZ69: 1 | DA69: 1 | DB69: 1 | DC69: 1 | DD69: 1 | DE69: 1 | DF69: 1 | DG69: 1 | DH69: 1 | DI69: 1 | DJ69: 1 | DK69: 1 | DL69: 1 | DM69: 1 | DN69: 1 | DO69: 1 | DP69: 1 | DQ69: 1 | DR69: 1 | DS69: 1 | DT69: 1 | DU69: 1 | DV69: 1 | DW69: 1 | DX69: 1 | DY69: 1 | DZ69: 1 | EA69: 1 | EB69: 1 | EC69: 1 | ED69: 1 | EE69: 1 | EF69: 1 | EG69: 1 | EH69: 1 | EI69: 1 | EJ69: 1 | EK69: 1 | EL69: 1 | EM69: 1 | EN69: 1 | EO69: 1 | EP69: 1 | EQ69: 1 | ER69: 1 | ES69: 1 | ET69: 1 | EU69: 1 | EV69: 1 | EW69: 1 | EX69: 1 | EY69: 1 | EZ69: 1 | FA69: 1 | FB69: 1 | FC69: 1 | FD69: 1 | FE69: 1 | FF69: 2 | FG69: 2 | FH69: 2 | FI69: 2 | FJ69: 1 | FK69: 1 | FL69: 1 | FM69: 1 | FN69: 1 | FO69: 1 | FP69: 1 | FQ69: 1 | FR69: 1 | FS69: 1 | FT69: 1 | FU69: 1 | FV69: 1 | FW69: 1 | FX69: 1 | FY69: 1 | FZ69: 1 | GA69: 1 | GB69: 1 | GC69: 1 | GD69: 1 | GE69: 1 | GF69: 1 | GG69: 1 | GH69: 1 | GI69: 1 | GJ69: 1 | GK69: 1 | GL69: 1 | GM69: 1 | GN69: 1 | GO69: 2 | GP69: 2 | GQ69: 2 | GR69: 2
A70: 1 | B70: 1 | C70: 1 | D70: 1 | E70: 1 | F70: 1 | G70: 1 | H70: 1 | I70: 1 | J70: 1 | K70: 1 | L70: 1 | M70: 1 | N70: 1 | O70: 1 | P70: 1 | Q70: 1 | R70: 1 | S70: 1 | T70: 1 | U70: 1 | V70: 1 | W70: 1 | X70: 1 | Y70: 1 | Z70: 1 | AA70: 1 | AB70: 1 | AC70: 1 | AD70: 1 | AE70: 1 | AF70: 1 | AG70: 1 | AH70: 1 | AI70: 1 | AJ70: 1 | AK70: 1 | AL70: 1 | AM70: 1 | AN70: 1 | AO70: 1 | AP70: 1 | AQ70: 1 | AR70: 1 | AS70: 1 | AT70: 1 | AU70: 1 | AV70: 1 | AW70: 1 | AX70: 1 | AY70: 1 | AZ70: 1 | BA70: 1 | BB70: 2 | BC70: 2 | BD70: 2 | BE70: 2 | BF70: 2 | BG70: 2 | BH70: 2 | BI70: 2 | BJ70: 1 | BK70: 2 | BL70: 2 | BM70: 1 | BN70: 1 | BO70: 2 | BP70: 2 | BQ70: 2 | BR70: 2 | BS70: 2 | BT70: 2 | BU70: 2 | BV70: 2 | BW70: 2 | BX70: 2 | BY70: 2 | BZ70: 2 | CA70: 2 | CB70: 2 | CC70: 2 | CD70: 2 | CE70: 2 | CF70: 2 | CG70: 2 | CH70: 2 | CI70: 2 | CJ70: 2 | CK70: 1 | CL70: 1 | CM70: 1 | CN70: 1 | CO70: 1 | CP70: 1 | CQ70: 1 | CR70: 1 | CS70: 1 | CT70: 1 | CU70: 1 | CV70: 1 | CW70: 1 | CX70: 1 | CY70: 1 | CZ70: 1 | DA70: 1 | DB70: 1 | DC70: 1 | DD70: 1 | DE70: 1 | DF70: 1 | DG70: 1 | DH70: 1 | DI70: 1 | DJ70: 1 | DK70: 1 | DL70: 1 | DM70: 1 | DN70: 1 | DO70: 1 | DP70: 1 | DQ70: 1 | DR70: 1 | DS70: 1 | DT70: 1 | DU70: 1 | DV70: 1 | DW70: 1 | DX70: 1 | DY70: 1 | DZ70: 1 | EA70: 1 | EB70: 1 | EC70: 1 | ED70: 1 | EE70: 1 | EF70: 1 | EG70: 1 | EH70: 1 | EI70: 1 | EJ70: 1 | EK70: 1 | EL70: 1 | EM70: 1 | EN70: 1 | EO70: 1 | EP70: 1 | EQ70: 1 | ER70: 1 | ES70: 1 | ET70: 1 | EU70: 1 | EV70: 1 | EW70: 1 | EX70: 1 | EY70: 1 | EZ70: 1 | FA70: 1 | FB70: 1 | FC70: 1 | FD70: 1 | FE70: 1 | FF70: 1 | FG70: 1 | FH70: 1 | FI70: 1 | FJ70: 1 | FK70: 1 | FL70: 1 | FM70: 1 | FN70: 1 | FO70: 1 | FP70: 1 | FQ70: 1 | FR70: 1 | FS70: 1 | FT70: 1 | FU70: 1 | FV70: 1 | FW70: 1 | FX70: 1 | FY70: 1 | FZ70: 1 | GA70: 1 | GB70: 1 | GC70: 1 | GD70: 1 | GE70: 1 | GF70: 1 | GG70: 1 | GH70: 1 | GI70: 1 | GJ70: 1 | GK70: 1 | GL70: 1 | GM70: 1 | GN70: 1 | GO70: 1 | GP70: 2 | GQ70: 2 | GR70: 2
A71: 1 | B71: 1 | C71: 1 | D71: 1 | E71: 1 | F71: 1 | G71: 1 | H71: 1 | I71: 1 | J71: 1 | K71: 1 | L71: 1 | M71: 1 | N71: 1 | O71: 1 | P71: 1 | Q71: 1 | R71: 1 | S71: 1 | T71: 1 | U71: 1 | V71: 1 | W71: 1 | X71: 1 | Y71: 1 | Z71: 1 | AA71: 1 | AB71: 1 | AC71: 1 | AD71: 1 | AE71: 1 | AF71: 1 | AG71: 1 | AH71: 1 | AI71: 1 | AJ71: 1 | AK71: 1 | AL71: 1 | AM71: 1 | AN71: 1 | AO71: 1 | AP71: 1 | AQ71: 1 | AR71: 1 | AS71: 1 | AT71: 1 | AU71: 1 | AV71: 1 | AW71: 1 | AX71: 1 | AY71: 1 | AZ71: 2 | BA71: 2 | BB71: 2 | BC71: 2 | BD71: 2 | BE71: 2 | BF71: 2 | BG71: 2 | BH71: 2 | BI71: 2 | BJ71: 1 | BK71: 1 | BL71: 1 | BM71: 1 | BN71: 2 | BO71: 2 | BP71: 2 | BQ71: 2 | BR71: 2 | BS71: 2 | BT71: 2 | BU71: 2 | BV71: 2 | BW71: 2 | BX71: 1 | BY71: 2 | BZ71: 2 | CA71: 2 | CB71: 2 | CC71: 2 | CD71: 2 | CE71: 2 | CF71: 2 | CG71: 2 | CH71: 2 | CI71: 2 | CJ71: 2 | CK71: 1 | CL71: 1 | CM71: 1 | CN71: 1 | CO71: 1 | CP71: 1 | CQ71: 1 | CR71: 1 | CS71: 1 | CT71: 1 | CU71: 1 | CV71: 1 | CW71: 1 | CX71: 1 | CY71: 1 | CZ71: 1 | DA71: 1 | DB71: 1 | DC71: 1 | DD71: 1 | DE71: 1 | DF71: 1 | DG71: 1 | DH71: 1 | DI71: 1 | DJ71: 1 | DK71: 1 | DL71: 1 | DM71: 1 | DN71: 1 | DO71: 1 | DP71: 1 | DQ71: 1 | DR71: 1 | DS71: 1 | DT71: 1 | DU71: 1 | DV71: 1 | DW71: 1 | DX71: 1 | DY71: 1 | DZ71: 1 | EA71: 1 | EB71: 1 | EC71: 1 | ED71: 1 | EE71: 1 | EF71: 1 | EG71: 1 | EH71: 1 | EI71: 1 | EJ71: 1 | EK71: 1 | EL71: 1 | EM71: 1 | EN71: 1 | EO71: 1 | EP71: 1 | EQ71: 1 | ER71: 1 | ES71: 1 | ET71: 1 | EU71: 1 | EV71: 1 | EW71: 1 | EX71: 1 | EY71: 1 | EZ71: 1 | FA71: 1 | FB71: 1 | FC71: 1 | FD71: 1 | FE71: 1 | FF71: 1 | FG71: 1 | FH71: 1 | FI71: 1 | FJ71: 1 | FK71: 1 | FL71: 1 | FM71: 1 | FN71: 1 | FO71: 1 | FP71: 1 | FQ71: 1 | FR71: 1 | FS71: 1 | FT71: 1 | FU71: 1 | FV71: 1 | FW71: 1 | FX71: 1 | FY71: 1 | FZ71: 1 | GA71: 1 | GB71: 1 | GC71: 1 | GD71: 1 | GE71: 1 | GF71: 1 | GG71: 1 | GH71: 1 | GI71: 1 | GJ71: 1 | GK71: 1 | GL71: 1 | GM71: 1 | GN71: 1 | GO71: 1 | GP71: 2 | GQ71: 2 | GR71: 2
A72: 1 | B72: 1 | C72: 1 | D72: 1 | E72: 1 | F72: 1 | G72: 1 | H72: 1 | I72: 1 | J72: 1 | K72: 1 | L72: 1 | M72: 1 | N72: 1 | O72: 1 | P72: 1 | Q72: 1 | R72: 1 | S72: 1 | T72: 1 | U72: 1 | V72: 1 | W72: 1 | X72: 1 | Y72: 1 | Z72: 1 | AA72: 1 | AB72: 1 | AC72: 1 | AD72: 1 | AE72: 1 | AF72: 1 | AG72: 1 | AH72: 1 | AI72: 1 | AJ72: 1 | AK72: 1 | AL72: 1 | AM72: 1 | AN72: 1 | AO72: 1 | AP72: 1 | AQ72: 1 | AR72: 1 | AS72: 1 | AT72: 1 | AU72: 1 | AV72: 1 | AW72: 1 | AX72: 1 | AY72: 1 | AZ72: 2 | BA72: 2 | BB72: 2 | BC72: 2 | BD72: 2 | BE72: 2 | BF72: 2 | BG72: 2 | BH72: 2 | BI72: 2 | BJ72: 1 | BK72: 1 | BL72: 1 | BM72: 1 | BN72: 2 | BO72: 2 | BP72: 2 | BQ72: 2 | BR72: 2 | BS72: 2 | BT72: 2 | BU72: 2 | BV72: 1 | BW72: 1 | BX72: 1 | BY72: 1 | BZ72: 2 | CA72: 2 | CB72: 2 | CC72: 2 | CD72: 2 | CE72: 2 | CF72: 2 | CG72: 1 | CH72: 1 | CI72: 1 | CJ72: 1 | CK72: 1 | CL72: 1 | CM72: 1 | CN72: 1 | CO72: 1 | CP72: 1 | CQ72: 1 | CR72: 1 | CS72: 1 | CT72: 1 | CU72: 1 | CV72: 1 | CW72: 1 | CX72: 1 | CY72: 1 | CZ72: 1 | DA72: 1 | DB72: 1 | DC72: 1 | DD72: 1 | DE72: 1 | DF72: 1 | DG72: 1 | DH72: 1 | DI72: 1 | DJ72: 1 | DK72: 1 | DL72: 1 | DM72: 1 | DN72: 1 | DO72: 1 | DP72: 1 | DQ72: 1 | DR72: 1 | DS72: 1 | DT72: 1 | DU72: 1 | DV72: 1 | DW72: 1 | DX72: 1 | DY72: 1 | DZ72: 1 | EA72: 1 | EB72: 1 | EC72: 1 | ED72: 1 | EE72: 1 | EF72: 1 | EG72: 1 | EH72: 1 | EI72: 1 | EJ72: 1 | EK72: 1 | EL72: 1 | EM72: 1 | EN72: 1 | EO72: 1 | EP72: 1 | EQ72: 1 | ER72: 1 | ES72: 1 | ET72: 1 | EU72: 1 | EV72: 1 | EW72: 1 | EX72: 1 | EY72: 1 | EZ72: 1 | FA72: 1 | FB72: 1 | FC72: 1 | FD72: 1 | FE72: 1 | FF72: 1 | FG72: 1 | FH72: 1 | FI72: 1 | FJ72: 1 | FK72: 1 | FL72: 1 | FM72: 1 | FN72: 1 | FO72: 1 | FP72: 1 | FQ72: 1 | FR72: 1 | FS72: 1 | FT72: 1 | FU72: 1 | FV72: 1 | FW72: 1 | FX72: 1 | FY72: 1 | FZ72: 1 | GA72: 1 | GB72: 1 | GC72: 1 | GD72: 1 | GE72: 1 | GF72: 1 | GG72: 1 | GH72: 1 | GI72: 1 | GJ72: 1 | GK72: 1 | GL72: 1 | GM72: 1 | GN72: 1 | GO72: 2 | GP72: 2 | GQ72: 2 | GR72: 2
A73: 1 | B73: 1 | C73: 1 | D73: 1 | E73: 1 | F73: 1 | G73: 1 | H73: 1 | I73: 1 | J73: 1 | K73: 1 | L73: 1 | M73: 1 | N73: 1 | O73: 1 | P73: 1 | Q73: 1 | R73: 1 | S73: 1 | T73: 1 | U73: 1 | V73: 1 | W73: 1 | X73: 1 | Y73: 1 | Z73: 1 | AA73: 1 | AB73: 1 | AC73: 1 | AD73: 1 | AE73: 1 | AF73: 1 | AG73: 1 | AH73: 1 | AI73: 1 | AJ73: 1 | AK73: 1 | AL73: 1 | AM73: 1 | AN73: 1 | AO73: 1 | AP73: 1 | AQ73: 1 | AR73: 1 | AS73: 1 | AT73: 1 | AU73: 1 | AV73: 1 | AW73: 1 | AX73: 1 | AY73: 1 | AZ73: 2 | BA73: 2 | BB73: 2 | BC73: 2 | BD73: 2 | BE73: 2 | BF73: 2 | BG73: 1 | BH73: 1 | BI73: 1 | BJ73: 1 | BK73: 1 | BL73: 1 | BM73: 2 | BN73: 2 | BO73: 2 | BP73: 2 | BQ73: 2 | BR73: 2 | BS73: 2 | BT73: 1 | BU73: 1 | BV73: 1 | BW73: 1 | BX73: 1 | BY73: 1 | BZ73: 1 | CA73: 1 | CB73: 2 | CC73: 2 | CD73: 2 | CE73: 1 | CF73: 1 | CG73: 1 | CH73: 1 | CI73: 1 | CJ73: 1 | CK73: 1 | CL73: 1 | CM73: 1 | CN73: 1 | CO73: 1 | CP73: 1 | CQ73: 1 | CR73: 1 | CS73: 1 | CT73: 1 | CU73: 1 | CV73: 1 | CW73: 1 | CX73: 1 | CY73: 1 | CZ73: 1 | DA73: 1 | DB73: 1 | DC73: 1 | DD73: 1 | DE73: 1 | DF73: 1 | DG73: 1 | DH73: 1 | DI73: 1 | DJ73: 1 | DK73: 1 | DL73: 1 | DM73: 1 | DN73: 1 | DO73: 1 | DP73: 1 | DQ73: 1 | DR73: 1 | DS73: 1 | DT73: 1 | DU73: 1 | DV73: 1 | DW73: 1 | DX73: 1 | DY73: 1 | DZ73: 1 | EA73: 1 | EB73: 1 | EC73: 1 | ED73: 1 | EE73: 1 | EF73: 1 | EG73: 1 | EH73: 1 | EI73: 1 | EJ73: 1 | EK73: 1 | EL73: 1 | EM73: 1 | EN73: 1 | EO73: 1 | EP73: 1 | EQ73: 1 | ER73: 1 | ES73: 1 | ET73: 1 | EU73: 1 | EV73: 1 | EW73: 1 | EX73: 1 | EY73: 1 | EZ73: 1 | FA73: 1 | FB73: 1 | FC73: 1 | FD73: 1 | FE73: 1 | FF73: 1 | FG73: 1 | FH73: 1 | FI73: 1 | FJ73: 1 | FK73: 1 | FL73: 1 | FM73: 1 | FN73: 1 | FO73: 1 | FP73: 1 | FQ73: 1 | FR73: 1 | FS73: 1 | FT73: 1 | FU73: 1 | FV73: 1 | FW73: 1 | FX73: 1 | FY73: 1 | FZ73: 1 | GA73: 1 | GB73: 1 | GC73: 1 | GD73: 1 | GE73: 1 | GF73: 1 | GG73: 1 | GH73: 1 | GI73: 1 | GJ73: 1 | GK73: 1 | GL73: 1 | GM73: 1 | GN73: 1 | GO73: 1 | GP73: 2 | GQ73: 2 | GR73: 1
A74: 1 | B74: 1 | C74: 1 | D74: 1 | E74: 1 | F74: 1 | G74: 1 | H74: 1 | I74: 1 | J74: 1 | K74: 1 | L74: 1 | M74: 1 | N74: 1 | O74: 1 | P74: 1 | Q74: 1 | R74: 1 | S74: 1 | T74: 1 | U74: 1 | V74: 1 | W74: 1 | X74: 1 | Y74: 1 | Z74: 1 | AA74: 1 | AB74: 1 | AC74: 1 | AD74: 1 | AE74: 1 | AF74: 1 | AG74: 1 | AH74: 1 | AI74: 1 | AJ74: 1 | AK74: 1 | AL74: 1 | AM74: 1 | AN74: 1 | AO74: 1 | AP74: 1 | AQ74: 1 | AR74: 1 | AS74: 1 | AT74: 1 | AU74: 1 | AV74: 1 | AW74: 2 | AX74: 2 | AY74: 1 | AZ74: 1 | BA74: 2 | BB74: 2 | BC74: 2 | BD74: 2 | BE74: 1 | BF74: 1 | BG74: 1 | BH74: 1 | BI74: 1 | BJ74: 1 | BK74: 2 | BL74: 2 | BM74: 2 | BN74: 2 | BO74: 2 | BP74: 2 | BQ74: 2 | BR74: 2 | BS74: 2 | BT74: 1 | BU74: 1 | BV74: 1 | BW74: 1 | BX74: 1 | BY74: 1 | BZ74: 1 | CA74: 1 | CB74: 1 | CC74: 1 | CD74: 1 | CE74: 1 | CF74: 1 | CG74: 1 | CH74: 1 | CI74: 1 | CJ74: 1 | CK74: 1 | CL74: 1 | CM74: 1 | CN74: 1 | CO74: 1 | CP74: 1 | CQ74: 1 | CR74: 1 | CS74: 1 | CT74: 1 | CU74: 1 | CV74: 1 | CW74: 1 | CX74: 1 | CY74: 1 | CZ74: 1 | DA74: 1 | DB74: 1 | DC74: 1 | DD74: 1 | DE74: 1 | DF74: 1 | DG74: 1 | DH74: 1 | DI74: 1 | DJ74: 1 | DK74: 1 | DL74: 1 | DM74: 1 | DN74: 1 | DO74: 1 | DP74: 1 | DQ74: 1 | DR74: 1 | DS74: 1 | DT74: 1 | DU74: 1 | DV74: 1 | DW74: 1 | DX74: 1 | DY74: 1 | DZ74: 1 | EA74: 1 | EB74: 1 | EC74: 1 | ED74: 1 | EE74: 1 | EF74: 1 | EG74: 1 | EH74: 1 | EI74: 1 | EJ74: 1 | EK74: 1 | EL74: 1 | EM74: 1 | EN74: 1 | EO74: 1 | EP74: 1 | EQ74: 1 | ER74: 1 | ES74: 1 | ET74: 1 | EU74: 1 | EV74: 1 | EW74: 1 | EX74: 1 | EY74: 1 | EZ74: 1 | FA74: 1 | FB74: 1 | FC74: 1 | FD74: 1 | FE74: 1 | FF74: 1 | FG74: 1 | FH74: 1 | FI74: 1 | FJ74: 1 | FK74: 1 | FL74: 1 | FM74: 1 | FN74: 1 | FO74: 1 | FP74: 1 | FQ74: 1 | FR74: 1 | FS74: 1 | FT74: 1 | FU74: 1 | FV74: 1 | FW74: 1 | FX74: 1 | FY74: 1 | FZ74: 1 | GA74: 1 | GB74: 1 | GC74: 1 | GD74: 1 | GE74: 1 | GF74: 1 | GG74: 1 | GH74: 1 | GI74: 1 | GJ74: 1 | GK74: 1 | GL74: 1 | GM74: 1 | GN74: 1 | GO74: 2 | GP74: 2 | GQ74: 2 | GR74: 1
A75: 1 | B75: 1 | C75: 1 | D75: 1 | E75: 1 | F75: 1 | G75: 1 | H75: 1 | I75: 1 | J75: 1 | K75: 1 | L75: 1 | M75: 1 | N75: 1 | O75: 1 | P75: 1 | Q75: 1 | R75: 1 | S75: 1 | T75: 1 | U75: 1 | V75: 1 | W75: 1 | X75: 1 | Y75: 1 | Z75: 1 | AA75: 1 | AB75: 1 | AC75: 1 | AD75: 1 | AE75: 1 | AF75: 1 | AG75: 1 | AH75: 1 | AI75: 1 | AJ75: 1 | AK75: 1 | AL75: 1 | AM75: 1 | AN75: 1 | AO75: 1 | AP75: 1 | AQ75: 1 | AR75: 1 | AS75: 1 | AT75: 1 | AU75: 1 | AV75: 2 | AW75: 2 | AX75: 2 | AY75: 2 | AZ75: 2 | BA75: 2 | BB75: 2 | BC75: 2 | BD75: 1 | BE75: 1 | BF75: 1 | BG75: 1 | BH75: 2 | BI75: 2 | BJ75: 2 | BK75: 2 | BL75: 2 | BM75: 2 | BN75: 2 | BO75: 2 | BP75: 2 | BQ75: 2 | BR75: 2 | BS75: 2 | BT75: 2 | BU75: 1 | BV75: 1 | BW75: 1 | BX75: 1 | BY75: 1 | BZ75: 1 | CA75: 1 | CB75: 1 | CC75: 1 | CD75: 1 | CE75: 1 | CF75: 1 | CG75: 1 | CH75: 1 | CI75: 1 | CJ75: 1 | CK75: 1 | CL75: 1 | CM75: 1 | CN75: 1 | CO75: 1 | CP75: 1 | CQ75: 1 | CR75: 1 | CS75: 1 | CT75: 1 | CU75: 1 | CV75: 1 | CW75: 1 | CX75: 1 | CY75: 1 | CZ75: 1 | DA75: 1 | DB75: 1 | DC75: 1 | DD75: 1 | DE75: 1 | DF75: 1 | DG75: 1 | DH75: 1 | DI75: 1 | DJ75: 1 | DK75: 1 | DL75: 1 | DM75: 1 | DN75: 1 | DO75: 1 | DP75: 1 | DQ75: 1 | DR75: 1 | DS75: 1 | DT75: 1 | DU75: 1 | DV75: 1 | DW75: 1 | DX75: 1 | DY75: 1 | DZ75: 1 | EA75: 1 | EB75: 1 | EC75: 1 | ED75: 1 | EE75: 1 | EF75: 1 | EG75: 1 | EH75: 1 | EI75: 1 | EJ75: 1 | EK75: 1 | EL75: 1 | EM75: 1 | EN75: 1 | EO75: 1 | EP75: 1 | EQ75: 1 | ER75: 1 | ES75: 1 | ET75: 1 | EU75: 1 | EV75: 1 | EW75: 1 | EX75: 1 | EY75: 1 | EZ75: 1 | FA75: 1 | FB75: 1 | FC75: 1 | FD75: 1 | FE75: 1 | FF75: 1 | FG75: 1 | FH75: 1 | FI75: 1 | FJ75: 1 | FK75: 1 | FL75: 1 | FM75: 1 | FN75: 1 | FO75: 1 | FP75: 1 | FQ75: 1 | FR75: 1 | FS75: 1 | FT75: 1 | FU75: 1 | FV75: 1 | FW75: 1 | FX75: 1 | FY75: 1 | FZ75: 1 | GA75: 1 | GB75: 1 | GC75: 1 | GD75: 1 | GE75: 1 | GF75: 1 | GG75: 1 | GH75: 1 | GI75: 1 | GJ75: 1 | GK75: 1 | GL75: 1 | GM75: 1 | GN75: 1 | GO75: 2 | GP75: 2 | GQ75: 2 | GR75: 2
A76: 1 | B76: 1 | C76: 1 | D76: 1 | E76: 1 | F76: 1 | G76: 1 | H76: 1 | I76: 1 | J76: 1 | K76: 1 | L76: 1 | M76: 1 | N76: 1 | O76: 1 | P76: 1 | Q76: 1 | R76: 1 | S76: 1 | T76: 1 | U76: 1 | V76: 1 | W76: 1 | X76: 1 | Y76: 1 | Z76: 1 | AA76: 1 | AB76: 1 | AC76: 1 | AD76: 1 | AE76: 1 | AF76: 1 | AG76: 1 | AH76: 1 | AI76: 1 | AJ76: 1 | AK76: 1 | AL76: 1 | AM76: 1 | AN76: 1 | AO76: 1 | AP76: 1 | AQ76: 1 | AR76: 1 | AS76: 1 | AT76: 1 | AU76: 1 | AV76: 2 | AW76: 2 | AX76: 2 | AY76: 2 | AZ76: 2 | BA76: 2 | BB76: 2 | BC76: 1 | BD76: 1 | BE76: 1 | BF76: 2 | BG76: 2 | BH76: 2 | BI76: 2 | BJ76: 2 | BK76: 2 | BL76: 2 | BM76: 2 | BN76: 2 | BO76: 2 | BP76: 2 | BQ76: 2 | BR76: 2 | BS76: 2 | BT76: 1 | BU76: 1 | BV76: 1 | BW76: 1 | BX76: 1 | BY76: 1 | BZ76: 1 | CA76: 1 | CB76: 1 | CC76: 1 | CD76: 1 | CE76: 1 | CF76: 1 | CG76: 1 | CH76: 1 | CI76: 1 | CJ76: 1 | CK76: 1 | CL76: 1 | CM76: 1 | CN76: 1 | CO76: 1 | CP76: 1 | CQ76: 1 | CR76: 1 | CS76: 1 | CT76: 1 | CU76: 1 | CV76: 1 | CW76: 1 | CX76: 1 | CY76: 1 | CZ76: 1 | DA76: 1 | DB76: 1 | DC76: 1 | DD76: 1 | DE76: 1 | DF76: 1 | DG76: 1 | DH76: 1 | DI76: 1 | DJ76: 1 | DK76: 1 | DL76: 1 | DM76: 1 | DN76: 1 | DO76: 1 | DP76: 1 | DQ76: 1 | DR76: 1 | DS76: 1 | DT76: 1 | DU76: 1 | DV76: 1 | DW76: 1 | DX76: 1 | DY76: 1 | DZ76: 1 | EA76: 1 | EB76: 1 | EC76: 1 | ED76: 1 | EE76: 1 | EF76: 1 | EG76: 1 | EH76: 1 | EI76: 1 | EJ76: 1 | EK76: 1 | EL76: 1 | EM76: 1 | EN76: 1 | EO76: 1 | EP76: 1 | EQ76: 1 | ER76: 1 | ES76: 1 | ET76: 1 | EU76: 1 | EV76: 1 | EW76: 1 | EX76: 1 | EY76: 1 | EZ76: 1 | FA76: 1 | FB76: 1 | FC76: 1 | FD76: 1 | FE76: 1 | FF76: 1 | FG76: 1 | FH76: 1 | FI76: 1 | FJ76: 1 | FK76: 1 | FL76: 1 | FM76: 1 | FN76: 1 | FO76: 1 | FP76: 1 | FQ76: 1 | FR76: 1 | FS76: 1 | FT76: 1 | FU76: 1 | FV76: 1 | FW76: 1 | FX76: 1 | FY76: 1 | FZ76: 1 | GA76: 1 | GB76: 1 | GC76: 1 | GD76: 1 | GE76: 1 | GF76: 1 | GG76: 1 | GH76: 1 | GI76: 1 | GJ76: 1 | GK76: 1 | GL76: 1 | GM76: 1 | GN76: 1 | GO76: 1 | GP76: 2 | GQ76: 2 | GR76: 2
A77: 1 | B77: 1 | C77: 1 | D77: 1 | E77: 1 | F77: 1 | G77: 1 | H77: 1 | I77: 1 | J77: 1 | K77: 1 | L77: 1 | M77: 1 | N77: 1 | O77: 1 | P77: 1 | Q77: 1 | R77: 1 | S77: 1 | T77: 1 | U77: 1 | V77: 1 | W77: 1 | X77: 1 | Y77: 1 | Z77: 1 | AA77: 1 | AB77: 1 | AC77: 1 | AD77: 1 | AE77: 1 | AF77: 1 | AG77: 1 | AH77: 1 | AI77: 1 | AJ77: 1 | AK77: 1 | AL77: 1 | AM77: 1 | AN77: 2 | AO77: 2 | AP77: 2 | AQ77: 1 | AR77: 1 | AS77: 2 | AT77: 2 | AU77: 2 | AV77: 2 | AW77: 2 | AX77: 2 | AY77: 2 | AZ77: 2 | BA77: 2 | BB77: 1 | BC77: 1 | BD77: 1 | BE77: 2 | BF77: 2 | BG77: 2 | BH77: 2 | BI77: 2 | BJ77: 2 | BK77: 2 | BL77: 2 | BM77: 2 | BN77: 2 | BO77: 2 | BP77: 2 | BQ77: 2 | BR77: 2 | BS77: 2 | BT77: 1 | BU77: 1 | BV77: 1 | BW77: 1 | BX77: 1 | BY77: 1 | BZ77: 1 | CA77: 1 | CB77: 1 | CC77: 1 | CD77: 1 | CE77: 1 | CF77: 1 | CG77: 1 | CH77: 1 | CI77: 1 | CJ77: 1 | CK77: 1 | CL77: 1 | CM77: 1 | CN77: 1 | CO77: 1 | CP77: 1 | CQ77: 1 | CR77: 1 | CS77: 1 | CT77: 1 | CU77: 1 | CV77: 1 | CW77: 1 | CX77: 1 | CY77: 1 | CZ77: 1 | DA77: 1 | DB77: 1 | DC77: 1 | DD77: 1 | DE77: 1 | DF77: 1 | DG77: 1 | DH77: 1 | DI77: 1 | DJ77: 1 | DK77: 1 | DL77: 1 | DM77: 1 | DN77: 1 | DO77: 1 | DP77: 1 | DQ77: 1 | DR77: 1 | DS77: 1 | DT77: 1 | DU77: 1 | DV77: 1 | DW77: 1 | DX77: 1 | DY77: 1 | DZ77: 1 | EA77: 1 | EB77: 1 | EC77: 1 | ED77: 1 | EE77: 1 | EF77: 1 | EG77: 1 | EH77: 1 | EI77: 1 | EJ77: 1 | EK77: 1 | EL77: 1 | EM77: 1 | EN77: 1 | EO77: 1 | EP77: 1 | EQ77: 1 | ER77: 1 | ES77: 1 | ET77: 1 | EU77: 1 | EV77: 1 | EW77: 1 | EX77: 1 | EY77: 1 | EZ77: 1 | FA77: 1 | FB77: 1 | FC77: 1 | FD77: 1 | FE77: 1 | FF77: 1 | FG77: 1 | FH77: 1 | FI77: 1 | FJ77: 1 | FK77: 1 | FL77: 1 | FM77: 1 | FN77: 1 | FO77: 1 | FP77: 1 | FQ77: 1 | FR77: 1 | FS77: 1 | FT77: 1 | FU77: 1 | FV77: 1 | FW77: 1 | FX77: 1 | FY77: 1 | FZ77: 1 | GA77: 1 | GB77: 1 | GC77: 1 | GD77: 1 | GE77: 1 | GF77: 1 | GG77: 1 | GH77: 1 | GI77: 1 | GJ77: 1 | GK77: 1 | GL77: 1 | GM77: 1 | GN77: 1 | GO77: 1 | GP77: 2 | GQ77: 2 | GR77: 2
A78: 1 | B78: 1 | C78: 1 | D78: 1 | E78: 1 | F78: 1 | G78: 1 | H78: 1 | I78: 1 | J78: 1 | K78: 1 | L78: 1 | M78: 1 | N78: 1 | O78: 1 | P78: 1 | Q78: 1 | R78: 1 | S78: 1 | T78: 1 | U78: 1 | V78: 1 | W78: 1 | X78: 1 | Y78: 1 | Z78: 1 | AA78: 1 | AB78: 1 | AC78: 2 | AD78: 2 | AE78: 2 | AF78: 1 | AG78: 1 | AH78: 1 | AI78: 1 | AJ78: 2 | AK78: 2 | AL78: 2 | AM78: 2 | AN78: 2 | AO78: 2 | AP78: 1 | AQ78: 1 | AR78: 2 | AS78: 2 | AT78: 2 | AU78: 2 | AV78: 2 | AW78: 2 | AX78: 2 | AY78: 2 | AZ78: 2 | BA78: 1 | BB78: 1 | BC78: 1 | BD78: 2 | BE78: 2 | BF78: 2 | BG78: 2 | BH78: 2 | BI78: 2 | BJ78: 2 | BK78: 2 | BL78: 2 | BM78: 2 | BN78: 2 | BO78: 2 | BP78: 2 | BQ78: 2 | BR78: 1 | BS78: 1 | BT78: 1 | BU78: 1 | BV78: 1 | BW78: 1 | BX78: 1 | BY78: 1 | BZ78: 1 | CA78: 1 | CB78: 1 | CC78: 1 | CD78: 1 | CE78: 1 | CF78: 1 | CG78: 1 | CH78: 1 | CI78: 1 | CJ78: 1 | CK78: 1 | CL78: 1 | CM78: 1 | CN78: 1 | CO78: 1 | CP78: 1 | CQ78: 1 | CR78: 1 | CS78: 1 | CT78: 1 | CU78: 1 | CV78: 1 | CW78: 1 | CX78: 1 | CY78: 1 | CZ78: 1 | DA78: 1 | DB78: 1 | DC78: 1 | DD78: 1 | DE78: 1 | DF78: 1 | DG78: 1 | DH78: 1 | DI78: 1 | DJ78: 1 | DK78: 1 | DL78: 1 | DM78: 1 | DN78: 1 | DO78: 1 | DP78: 1 | DQ78: 1 | DR78: 1 | DS78: 1 | DT78: 1 | DU78: 1 | DV78: 1 | DW78: 1 | DX78: 1 | DY78: 1 | DZ78: 1 | EA78: 1 | EB78: 1 | EC78: 1 | ED78: 1 | EE78: 1 | EF78: 1 | EG78: 1 | EH78: 1 | EI78: 1 | EJ78: 1 | EK78: 1 | EL78: 1 | EM78: 1 | EN78: 1 | EO78: 1 | EP78: 1 | EQ78: 1 | ER78: 1 | ES78: 1 | ET78: 1 | EU78: 1 | EV78: 1 | EW78: 1 | EX78: 1 | EY78: 1 | EZ78: 1 | FA78: 1 | FB78: 1 | FC78: 1 | FD78: 1 | FE78: 1 | FF78: 1 | FG78: 1 | FH78: 1 | FI78: 1 | FJ78: 1 | FK78: 1 | FL78: 1 | FM78: 1 | FN78: 1 | FO78: 1 | FP78: 1 | FQ78: 1 | FR78: 1 | FS78: 1 | FT78: 1 | FU78: 1 | FV78: 1 | FW78: 1 | FX78: 1 | FY78: 1 | FZ78: 1 | GA78: 1 | GB78: 1 | GC78: 1 | GD78: 1 | GE78: 1 | GF78: 1 | GG78: 1 | GH78: 1 | GI78: 1 | GJ78: 1 | GK78: 1 | GL78: 1 | GM78: 1 | GN78: 1 | GO78: 1 | GP78: 2 | GQ78: 2 | GR78: 1
A79: 1 | B79: 1 | C79: 1 | D79: 1 | E79: 1 | F79: 1 | G79: 1 | H79: 1 | I79: 1 | J79: 1 | K79: 1 | L79: 1 | M79: 1 | N79: 1 | O79: 1 | P79: 1 | Q79: 1 | R79: 1 | S79: 1 | T79: 1 | U79: 1 | V79: 1 | W79: 1 | X79: 1 | Y79: 1 | Z79: 1 | AA79: 1 | AB79: 2 | AC79: 2 | AD79: 2 | AE79: 2 | AF79: 2 | AG79: 2 | AH79: 1 | AI79: 1 | AJ79: 2 | AK79: 2 | AL79: 2 | AM79: 2 | AN79: 2 | AO79: 2 | AP79: 2 | AQ79: 2 | AR79: 2 | AS79: 2 | AT79: 2 | AU79: 2 | AV79: 2 | AW79: 2 | AX79: 2 | AY79: 2 | AZ79: 1 | BA79: 1 | BB79: 2 | BC79: 2 | BD79: 2 | BE79: 2 | BF79: 2 | BG79: 2 | BH79: 2 | BI79: 2 | BJ79: 2 | BK79: 2 | BL79: 2 | BM79: 2 | BN79: 2 | BO79: 2 | BP79: 2 | BQ79: 1 | BR79: 1 | BS79: 1 | BT79: 1 | BU79: 1 | BV79: 1 | BW79: 1 | BX79: 1 | BY79: 1 | BZ79: 1 | CA79: 1 | CB79: 1 | CC79: 1 | CD79: 1 | CE79: 1 | CF79: 1 | CG79: 1 | CH79: 1 | CI79: 1 | CJ79: 1 | CK79: 1 | CL79: 1 | CM79: 1 | CN79: 1 | CO79: 1 | CP79: 1 | CQ79: 1 | CR79: 1 | CS79: 1 | CT79: 1 | CU79: 1 | CV79: 1 | CW79: 1 | CX79: 1 | CY79: 1 | CZ79: 1 | DA79: 1 | DB79: 1 | DC79: 1 | DD79: 1 | DE79: 1 | DF79: 1 | DG79: 1 | DH79: 1 | DI79: 1 | DJ79: 1 | DK79: 1 | DL79: 1 | DM79: 1 | DN79: 1 | DO79: 1 | DP79: 1 | DQ79: 1 | DR79: 1 | DS79: 1 | DT79: 1 | DU79: 1 | DV79: 1 | DW79: 1 | DX79: 1 | DY79: 1 | DZ79: 1 | EA79: 1 | EB79: 1 | EC79: 1 | ED79: 1 | EE79: 1 | EF79: 1 | EG79: 1 | EH79: 1 | EI79: 1 | EJ79: 1 | EK79: 1 | EL79: 1 | EM79: 1 | EN79: 1 | EO79: 1 | EP79: 1 | EQ79: 1 | ER79: 1 | ES79: 1 | ET79: 1 | EU79: 1 | EV79: 1 | EW79: 1 | EX79: 1 | EY79: 1 | EZ79: 1 | FA79: 1 | FB79: 1 | FC79: 1 | FD79: 1 | FE79: 1 | FF79: 1 | FG79: 1 | FH79: 1 | FI79: 1 | FJ79: 1 | FK79: 1 | FL79: 1 | FM79: 1 | FN79: 1 | FO79: 1 | FP79: 1 | FQ79: 1 | FR79: 1 | FS79: 1 | FT79: 1 | FU79: 1 | FV79: 1 | FW79: 1 | FX79: 1 | FY79: 1 | FZ79: 1 | GA79: 1 | GB79: 1 | GC79: 1 | GD79: 1 | GE79: 1 | GF79: 1 | GG79: 1 | GH79: 1 | GI79: 1 | GJ79: 1 | GK79: 1 | GL79: 1 | GM79: 1 | GN79: 1 | GO79: 1 | GP79: 1 | GQ79: 1 | GR79: 1
A80: 1 | B80: 1 | C80: 1 | D80: 1 | E80: 1 | F80: 1 | G80: 1 | H80: 1 | I80: 1 | J80: 1 | K80: 1 | L80: 1 | M80: 1 | N80: 1 | O80: 1 | P80: 1 | Q80: 1 | R80: 1 | S80: 1 | T80: 1 | U80: 1 | V80: 1 | W80: 1 | X80: 1 | Y80: 1 | Z80: 1 | AA80: 2 | AB80: 2 | AC80: 2 | AD80: 2 | AE80: 2 | AF80: 2 | AG80: 2 | AH80: 2 | AI80: 2 | AJ80: 2 | AK80: 2 | AL80: 2 | AM80: 2 | AN80: 2 | AO80: 2 | AP80: 2 | AQ80: 2 | AR80: 2 | AS80: 2 | AT80: 2 | AU80: 2 | AV80: 2 | AW80: 2 | AX80: 1 | AY80: 1 | AZ80: 1 | BA80: 1 | BB80: 2 | BC80: 2 | BD80: 2 | BE80: 2 | BF80: 2 | BG80: 2 | BH80: 2 | BI80: 2 | BJ80: 2 | BK80: 2 | BL80: 2 | BM80: 2 | BN80: 2 | BO80: 2 | BP80: 2 | BQ80: 1 | BR80: 1 | BS80: 2 | BT80: 2 | BU80: 2 | BV80: 1 | BW80: 1 | BX80: 1 | BY80: 1 | BZ80: 1 | CA80: 1 | CB80: 1 | CC80: 1 | CD80: 1 | CE80: 1 | CF80: 1 | CG80: 1 | CH80: 1 | CI80: 1 | CJ80: 1 | CK80: 1 | CL80: 1 | CM80: 1 | CN80: 1 | CO80: 1 | CP80: 1 | CQ80: 1 | CR80: 1 | CS80: 1 | CT80: 1 | CU80: 1 | CV80: 1 | CW80: 1 | CX80: 1 | CY80: 1 | CZ80: 1 | DA80: 1 | DB80: 1 | DC80: 1 | DD80: 1 | DE80: 1 | DF80: 1 | DG80: 1 | DH80: 1 | DI80: 1 | DJ80: 1 | DK80: 1 | DL80: 1 | DM80: 1 | DN80: 1 | DO80: 1 | DP80: 1 | DQ80: 1 | DR80: 1 | DS80: 1 | DT80: 1 | DU80: 1 | DV80: 1 | DW80: 1 | DX80: 1 | DY80: 1 | DZ80: 1 | EA80: 1 | EB80: 1 | EC80: 1 | ED80: 1 | EE80: 1 | EF80: 1 | EG80: 1 | EH80: 1 | EI80: 1 | EJ80: 1 | EK80: 1 | EL80: 1 | EM80: 1 | EN80: 1 | EO80: 1 | EP80: 1 | EQ80: 1 | ER80: 1 | ES80: 1 | ET80: 1 | EU80: 1 | EV80: 1 | EW80: 1 | EX80: 1 | EY80: 1 | EZ80: 1 | FA80: 1 | FB80: 1 | FC80: 1 | FD80: 1 | FE80: 1 | FF80: 1 | FG80: 1 | FH80: 1 | FI80: 1 | FJ80: 1 | FK80: 1 | FL80: 1 | FM80: 1 | FN80: 1 | FO80: 1 | FP80: 1 | FQ80: 1 | FR80: 1 | FS80: 1 | FT80: 1 | FU80: 1 | FV80: 1 | FW80: 1 | FX80: 1 | FY80: 1 | FZ80: 1 | GA80: 1 | GB80: 1 | GC80: 1 | GD80: 1 | GE80: 1 | GF80: 1 | GG80: 1 | GH80: 1 | GI80: 1 | GJ80: 1 | GK80: 1 | GL80: 1 | GM80: 1 | GN80: 1 | GO80: 1 | GP80: 1 | GQ80: 1 | GR80: 1
A81: 1 | B81: 1 | C81: 1 | D81: 1 | E81: 1 | F81: 1 | G81: 1 | H81: 1 | I81: 1 | J81: 1 | K81: 1 | L81: 1 | M81: 1 | N81: 1 | O81: 1 | P81: 1 | Q81: 1 | R81: 1 | S81: 1 | T81: 1 | U81: 1 | V81: 1 | W81: 1 | X81: 1 | Y81: 1 | Z81: 1 | AA81: 2 | AB81: 2 | AC81: 2 | AD81: 2 | AE81: 2 | AF81: 2 | AG81: 2 | AH81: 2 | AI81: 2 | AJ81: 2 | AK81: 2 | AL81: 2 | AM81: 2 | AN81: 2 | AO81: 2 | AP81: 2 | AQ81: 2 | AR81: 2 | AS81: 2 | AT81: 2 | AU81: 2 | AV81: 2 | AW81: 2 | AX81: 1 | AY81: 1 | AZ81: 2 | BA81: 2 | BB81: 2 | BC81: 2 | BD81: 2 | BE81: 2 | BF81: 2 | BG81: 2 | BH81: 2 | BI81: 2 | BJ81: 2 | BK81: 2 | BL81: 2 | BM81: 2 | BN81: 2 | BO81: 2 | BP81: 2 | BQ81: 2 | BR81: 2 | BS81: 2 | BT81: 2 | BU81: 2 | BV81: 2 | BW81: 1 | BX81: 1 | BY81: 1 | BZ81: 1 | CA81: 1 | CB81: 1 | CC81: 1 | CD81: 1 | CE81: 1 | CF81: 1 | CG81: 1 | CH81: 1 | CI81: 1 | CJ81: 1 | CK81: 1 | CL81: 1 | CM81: 1 | CN81: 1 | CO81: 1 | CP81: 1 | CQ81: 1 | CR81: 1 | CS81: 1 | CT81: 1 | CU81: 1 | CV81: 1 | CW81: 1 | CX81: 1 | CY81: 1 | CZ81: 1 | DA81: 1 | DB81: 1 | DC81: 1 | DD81: 1 | DE81: 1 | DF81: 1 | DG81: 1 | DH81: 1 | DI81: 1 | DJ81: 1 | DK81: 1 | DL81: 1 | DM81: 1 | DN81: 1 | DO81: 1 | DP81: 1 | DQ81: 1 | DR81: 1 | DS81: 1 | DT81: 1 | DU81: 1 | DV81: 1 | DW81: 1 | DX81: 1 | DY81: 1 | DZ81: 1 | EA81: 1 | EB81: 1 | EC81: 1 | ED81: 1 | EE81: 1 | EF81: 1 | EG81: 1 | EH81: 1 | EI81: 1 | EJ81: 1 | EK81: 1 | EL81: 1 | EM81: 1 | EN81: 1 | EO81: 1 | EP81: 1 | EQ81: 1 | ER81: 1 | ES81: 1 | ET81: 1 | EU81: 1 | EV81: 1 | EW81: 1 | EX81: 1 | EY81: 1 | EZ81: 1 | FA81: 1 | FB81: 1 | FC81: 1 | FD81: 1 | FE81: 1 | FF81: 1 | FG81: 1 | FH81: 1 | FI81: 1 | FJ81: 1 | FK81: 1 | FL81: 1 | FM81: 1 | FN81: 1 | FO81: 1 | FP81: 1 | FQ81: 1 | FR81: 1 | FS81: 1 | FT81: 1 | FU81: 1 | FV81: 1 | FW81: 1 | FX81: 1 | FY81: 1 | FZ81: 1 | GA81: 1 | GB81: 1 | GC81: 1 | GD81: 1 | GE81: 1 | GF81: 1 | GG81: 1 | GH81: 1 | GI81: 1 | GJ81: 1 | GK81: 1 | GL81: 1 | GM81: 1 | GN81: 1 | GO81: 1 | GP81: 1 | GQ81: 1 | GR81: 1
A82: 1 | B82: 1 | C82: 1 | D82: 1 | E82: 1 | F82: 1 | G82: 1 | H82: 1 | I82: 1 | J82: 1 | K82: 1 | L82: 1 | M82: 1 | N82: 1 | O82: 1 | P82: 1 | Q82: 1 | R82: 1 | S82: 1 | T82: 1 | U82: 1 | V82: 1 | W82: 1 | X82: 1 | Y82: 1 | Z82: 1 | AA82: 1 | AB82: 2 | AC82: 2 | AD82: 2 | AE82: 2 | AF82: 2 | AG82: 2 | AH82: 2 | AI82: 2 | AJ82: 2 | AK82: 2 | AL82: 2 | AM82: 2 | AN82: 2 | AO82: 2 | AP82: 2 | AQ82: 2 | AR82: 2 | AS82: 2 | AT82: 2 | AU82: 2 | AV82: 2 | AW82: 2 | AX82: 1 | AY82: 2 | AZ82: 2 | BA82: 2 | BB82: 2 | BC82: 2 | BD82: 2 | BE82: 2 | BF82: 2 | BG82: 2 | BH82: 2 | BI82: 2 | BJ82: 2 | BK82: 2 | BL82: 2 | BM82: 2 | BN82: 2 | BO82: 2 | BP82: 2 | BQ82: 2 | BR82: 2 | BS82: 2 | BT82: 2 | BU82: 2 | BV82: 1 | BW82: 1 | BX82: 1 | BY82: 1 | BZ82: 1 | CA82: 1 | CB82: 1 | CC82: 1 | CD82: 1 | CE82: 1 | CF82: 1 | CG82: 1 | CH82: 1 | CI82: 1 | CJ82: 1 | CK82: 1 | CL82: 1 | CM82: 1 | CN82: 1 | CO82: 1 | CP82: 1 | CQ82: 1 | CR82: 1 | CS82: 1 | CT82: 1 | CU82: 1 | CV82: 1 | CW82: 1 | CX82: 1 | CY82: 1 | CZ82: 1 | DA82: 1 | DB82: 1 | DC82: 1 | DD82: 1 | DE82: 1 | DF82: 1 | DG82: 1 | DH82: 1 | DI82: 1 | DJ82: 1 | DK82: 1 | DL82: 1 | DM82: 1 | DN82: 1 | DO82: 1 | DP82: 1 | DQ82: 1 | DR82: 1 | DS82: 1 | DT82: 1 | DU82: 1 | DV82: 1 | DW82: 1 | DX82: 1 | DY82: 1 | DZ82: 1 | EA82: 1 | EB82: 1 | EC82: 1 | ED82: 1 | EE82: 1 | EF82: 1 | EG82: 1 | EH82: 1 | EI82: 1 | EJ82: 1 | EK82: 1 | EL82: 1 | EM82: 1 | EN82: 1 | EO82: 1 | EP82: 1 | EQ82: 1 | ER82: 1 | ES82: 1 | ET82: 1 | EU82: 1 | EV82: 1 | EW82: 1 | EX82: 1 | EY82: 1 | EZ82: 1 | FA82: 1 | FB82: 1 | FC82: 1 | FD82: 1 | FE82: 1 | FF82: 1 | FG82: 1 | FH82: 1 | FI82: 1 | FJ82: 1 | FK82: 1 | FL82: 1 | FM82: 1 | FN82: 1 | FO82: 1 | FP82: 1 | FQ82: 1 | FR82: 1 | FS82: 1 | FT82: 1 | FU82: 1 | FV82: 1 | FW82: 1 | FX82: 1 | FY82: 1 | FZ82: 1 | GA82: 1 | GB82: 1 | GC82: 1 | GD82: 1 | GE82: 1 | GF82: 1 | GG82: 1 | GH82: 1 | GI82: 1 | GJ82: 1 | GK82: 1 | GL82: 1 | GM82: 1 | GN82: 1 | GO82: 1 | GP82: 1 | GQ82: 1 | GR82: 1
A83: 1 | B83: 1 | C83: 1 | D83: 1 | E83: 1 | F83: 1 | G83: 1 | H83: 1 | I83: 1 | J83: 1 | K83: 1 | L83: 1 | M83: 1 | N83: 1 | O83: 1 | P83: 1 | Q83: 1 | R83: 1 | S83: 1 | T83: 1 | U83: 1 | V83: 1 | W83: 1 | X83: 1 | Y83: 1 | Z83: 1 | AA83: 1 | AB83: 1 | AC83: 2 | AD83: 2 | AE83: 2 | AF83: 2 | AG83: 2 | AH83: 2 | AI83: 2 | AJ83: 2 | AK83: 2 | AL83: 2 | AM83: 2 | AN83: 2 | AO83: 2 | AP83: 2 | AQ83: 2 | AR83: 2 | AS83: 2 | AT83: 2 | AU83: 2 | AV83: 2 | AW83: 1 | AX83: 1 | AY83: 2 | AZ83: 2 | BA83: 2 | BB83: 2 | BC83: 2 | BD83: 2 | BE83: 2 | BF83: 2 | BG83: 2 | BH83: 2 | BI83: 2 | BJ83: 2 | BK83: 2 | BL83: 2 | BM83: 2 | BN83: 2 | BO83: 2 | BP83: 2 | BQ83: 2 | BR83: 2 | BS83: 2 | BT83: 2 | BU83: 2 | BV83: 1 | BW83: 1 | BX83: 1 | BY83: 1 | BZ83: 1 | CA83: 1 | CB83: 1 | CC83: 1 | CD83: 1 | CE83: 1 | CF83: 1 | CG83: 1 | CH83: 1 | CI83: 1 | CJ83: 1 | CK83: 1 | CL83: 1 | CM83: 1 | CN83: 1 | CO83: 1 | CP83: 1 | CQ83: 1 | CR83: 1 | CS83: 1 | CT83: 1 | CU83: 1 | CV83: 1 | CW83: 1 | CX83: 1 | CY83: 1 | CZ83: 1 | DA83: 1 | DB83: 1 | DC83: 1 | DD83: 1 | DE83: 1 | DF83: 1 | DG83: 1 | DH83: 1 | DI83: 1 | DJ83: 1 | DK83: 1 | DL83: 1 | DM83: 1 | DN83: 1 | DO83: 1 | DP83: 1 | DQ83: 1 | DR83: 1 | DS83: 1 | DT83: 1 | DU83: 1 | DV83: 1 | DW83: 1 | DX83: 1 | DY83: 1 | DZ83: 1 | EA83: 1 | EB83: 1 | EC83: 1 | ED83: 1 | EE83: 1 | EF83: 1 | EG83: 1 | EH83: 1 | EI83: 1 | EJ83: 1 | EK83: 1 | EL83: 1 | EM83: 1 | EN83: 1 | EO83: 1 | EP83: 1 | EQ83: 1 | ER83: 1 | ES83: 1 | ET83: 1 | EU83: 1 | EV83: 1 | EW83: 1 | EX83: 1 | EY83: 1 | EZ83: 1 | FA83: 1 | FB83: 1 | FC83: 1 | FD83: 1 | FE83: 1 | FF83: 1 | FG83: 1 | FH83: 1 | FI83: 1 | FJ83: 1 | FK83: 1 | FL83: 1 | FM83: 1 | FN83: 1 | FO83: 1 | FP83: 1 | FQ83: 1 | FR83: 1 | FS83: 1 | FT83: 1 | FU83: 1 | FV83: 1 | FW83: 1 | FX83: 1 | FY83: 1 | FZ83: 1 | GA83: 1 | GB83: 1 | GC83: 1 | GD83: 1 | GE83: 1 | GF83: 1 | GG83: 1 | GH83: 1 | GI83: 1 | GJ83: 1 | GK83: 1 | GL83: 1 | GM83: 1 | GN83: 1 | GO83: 1 | GP83: 1 | GQ83: 1 | GR83: 1
A84: 1 | B84: 1 | C84: 1 | D84: 1 | E84: 1 | F84: 1 | G84: 1 | H84: 1 | I84: 1 | J84: 1 | K84: 1 | L84: 1 | M84: 1 | N84: 1 | O84: 1 | P84: 1 | Q84: 1 | R84: 1 | S84: 1 | T84: 1 | U84: 1 | V84: 1 | W84: 1 | X84: 1 | Y84: 1 | Z84: 1 | AA84: 1 | AB84: 1 | AC84: 2 | AD84: 2 | AE84: 2 | AF84: 2 | AG84: 2 | AH84: 2 | AI84: 2 | AJ84: 2 | AK84: 2 | AL84: 2 | AM84: 2 | AN84: 2 | AO84: 2 | AP84: 2 | AQ84: 2 | AR84: 2 | AS84: 2 | AT84: 2 | AU84: 2 | AV84: 2 | AW84: 1 | AX84: 1 | AY84: 2 | AZ84: 2 | BA84: 2 | BB84: 2 | BC84: 2 | BD84: 2 | BE84: 2 | BF84: 2 | BG84: 2 | BH84: 2 | BI84: 2 | BJ84: 2 | BK84: 2 | BL84: 2 | BM84: 2 | BN84: 2 | BO84: 2 | BP84: 2 | BQ84: 2 | BR84: 2 | BS84: 2 | BT84: 2 | BU84: 2 | BV84: 2 | BW84: 1 | BX84: 1 | BY84: 1 | BZ84: 1 | CA84: 1 | CB84: 1 | CC84: 1 | CD84: 1 | CE84: 1 | CF84: 1 | CG84: 1 | CH84: 1 | CI84: 1 | CJ84: 1 | CK84: 1 | CL84: 1 | CM84: 1 | CN84: 1 | CO84: 1 | CP84: 1 | CQ84: 1 | CR84: 1 | CS84: 1 | CT84: 1 | CU84: 1 | CV84: 1 | CW84: 1 | CX84: 1 | CY84: 1 | CZ84: 1 | DA84: 1 | DB84: 1 | DC84: 1 | DD84: 1 | DE84: 1 | DF84: 1 | DG84: 1 | DH84: 1 | DI84: 1 | DJ84: 1 | DK84: 1 | DL84: 1 | DM84: 1 | DN84: 1 | DO84: 1 | DP84: 1 | DQ84: 1 | DR84: 1 | DS84: 1 | DT84: 1 | DU84: 1 | DV84: 1 | DW84: 1 | DX84: 1 | DY84: 1 | DZ84: 1 | EA84: 1 | EB84: 1 | EC84: 1 | ED84: 1 | EE84: 1 | EF84: 1 | EG84: 1 | EH84: 1 | EI84: 1 | EJ84: 1 | EK84: 1 | EL84: 1 | EM84: 1 | EN84: 1 | EO84: 1 | EP84: 1 | EQ84: 1 | ER84: 1 | ES84: 1 | ET84: 1 | EU84: 1 | EV84: 1 | EW84: 1 | EX84: 1 | EY84: 1 | EZ84: 1 | FA84: 1 | FB84: 1 | FC84: 1 | FD84: 1 | FE84: 1 | FF84: 1 | FG84: 1 | FH84: 1 | FI84: 1 | FJ84: 1 | FK84: 1 | FL84: 1 | FM84: 1 | FN84: 1 | FO84: 1 | FP84: 1 | FQ84: 1 | FR84: 1 | FS84: 1 | FT84: 1 | FU84: 1 | FV84: 1 | FW84: 1 | FX84: 1 | FY84: 1 | FZ84: 1 | GA84: 1 | GB84: 1 | GC84: 1 | GD84: 1 | GE84: 1 | GF84: 1 | GG84: 1 | GH84: 1 | GI84: 1 | GJ84: 1 | GK84: 1 | GL84: 1 | GM84: 1 | GN84: 1 | GO84: 1 | GP84: 1 | GQ84: 1 | GR84: 1
A85: 1 | B85: 1 | C85: 1 | D85: 1 | E85: 1 | F85: 1 | G85: 1 | H85: 1 | I85: 1 | J85: 1 | K85: 1 | L85: 1 | M85: 1 | N85: 1 | O85: 1 | P85: 1 | Q85: 1 | R85: 1 | S85: 1 | T85: 1 | U85: 1 | V85: 2 | W85: 1 | X85: 1 | Y85: 1 | Z85: 1 | AA85: 1 | AB85: 1 | AC85: 1 | AD85: 2 | AE85: 2 | AF85: 2 | AG85: 2 | AH85: 2 | AI85: 2 | AJ85: 2 | AK85: 2 | AL85: 2 | AM85: 2 | AN85: 2 | AO85: 2 | AP85: 2 | AQ85: 2 | AR85: 2 | AS85: 2 | AT85: 2 | AU85: 2 | AV85: 1 | AW85: 1 | AX85: 2 | AY85: 2 | AZ85: 2 | BA85: 2 | BB85: 2 | BC85: 2 | BD85: 2 | BE85: 2 | BF85: 2 | BG85: 2 | BH85: 2 | BI85: 2 | BJ85: 2 | BK85: 2 | BL85: 2 | BM85: 2 | BN85: 2 | BO85: 2 | BP85: 2 | BQ85: 2 | BR85: 2 | BS85: 2 | BT85: 2 | BU85: 2 | BV85: 2 | BW85: 2 | BX85: 1 | BY85: 1 | BZ85: 1 | CA85: 1 | CB85: 1 | CC85: 1 | CD85: 1 | CE85: 1 | CF85: 1 | CG85: 1 | CH85: 1 | CI85: 1 | CJ85: 1 | CK85: 1 | CL85: 1 | CM85: 1 | CN85: 1 | CO85: 1 | CP85: 1 | CQ85: 1 | CR85: 1 | CS85: 1 | CT85: 1 | CU85: 1 | CV85: 1 | CW85: 1 | CX85: 1 | CY85: 1 | CZ85: 1 | DA85: 1 | DB85: 1 | DC85: 1 | DD85: 1 | DE85: 1 | DF85: 1 | DG85: 1 | DH85: 1 | DI85: 1 | DJ85: 1 | DK85: 1 | DL85: 1 | DM85: 1 | DN85: 1 | DO85: 1 | DP85: 1 | DQ85: 1 | DR85: 1 | DS85: 1 | DT85: 1 | DU85: 1 | DV85: 1 | DW85: 1 | DX85: 1 | DY85: 1 | DZ85: 1 | EA85: 1 | EB85: 1 | EC85: 1 | ED85: 1 | EE85: 1 | EF85: 1 | EG85: 1 | EH85: 1 | EI85: 1 | EJ85: 1 | EK85: 1 | EL85: 1 | EM85: 1 | EN85: 1 | EO85: 1 | EP85: 1 | EQ85: 1 | ER85: 1 | ES85: 1 | ET85: 1 | EU85: 1 | EV85: 1 | EW85: 1 | EX85: 1 | EY85: 1 | EZ85: 1 | FA85: 1 | FB85: 1 | FC85: 1 | FD85: 1 | FE85: 1 | FF85: 1 | FG85: 1 | FH85: 1 | FI85: 1 | FJ85: 1 | FK85: 1 | FL85: 1 | FM85: 1 | FN85: 1 | FO85: 1 | FP85: 1 | FQ85: 1 | FR85: 1 | FS85: 1 | FT85: 1 | FU85: 1 | FV85: 1 | FW85: 1 | FX85: 1 | FY85: 1 | FZ85: 1 | GA85: 1 | GB85: 1 | GC85: 1 | GD85: 1 | GE85: 1 | GF85: 1 | GG85: 1 | GH85: 1 | GI85: 1 | GJ85: 1 | GK85: 1 | GL85: 1 | GM85: 1 | GN85: 1 | GO85: 1 | GP85: 1 | GQ85: 1 | GR85: 1
A86: 1 | B86: 1 | C86: 1 | D86: 1 | E86: 1 | F86: 1 | G86: 1 | H86: 1 | I86: 1 | J86: 1 | K86: 1 | L86: 1 | M86: 1 | N86: 1 | O86: 1 | P86: 1 | Q86: 1 | R86: 1 | S86: 1 | T86: 1 | U86: 2 | V86: 2 | W86: 2 | X86: 2 | Y86: 2 | Z86: 2 | AA86: 2 | AB86: 1 | AC86: 1 | AD86: 1 | AE86: 1 | AF86: 1 | AG86: 2 | AH86: 2 | AI86: 2 | AJ86: 2 | AK86: 2 | AL86: 2 | AM86: 2 | AN86: 2 | AO86: 2 | AP86: 2 | AQ86: 2 | AR86: 2 | AS86: 2 | AT86: 2 | AU86: 1 | AV86: 1 | AW86: 2 | AX86: 2 | AY86: 2 | AZ86: 2 | BA86: 2 | BB86: 2 | BC86: 2 | BD86: 2 | BE86: 2 | BF86: 2 | BG86: 2 | BH86: 2 | BI86: 2 | BJ86: 2 | BK86: 2 | BL86: 2 | BM86: 2 | BN86: 2 | BO86: 2 | BP86: 2 | BQ86: 2 | BR86: 2 | BS86: 2 | BT86: 2 | BU86: 2 | BV86: 2 | BW86: 2 | BX86: 2 | BY86: 1 | BZ86: 1 | CA86: 1 | CB86: 1 | CC86: 1 | CD86: 1 | CE86: 1 | CF86: 1 | CG86: 1 | CH86: 1 | CI86: 1 | CJ86: 1 | CK86: 1 | CL86: 1 | CM86: 1 | CN86: 1 | CO86: 1 | CP86: 1 | CQ86: 1 | CR86: 1 | CS86: 1 | CT86: 1 | CU86: 1 | CV86: 1 | CW86: 1 | CX86: 1 | CY86: 1 | CZ86: 1 | DA86: 1 | DB86: 1 | DC86: 1 | DD86: 1 | DE86: 1 | DF86: 1 | DG86: 1 | DH86: 1 | DI86: 1 | DJ86: 1 | DK86: 1 | DL86: 1 | DM86: 1 | DN86: 1 | DO86: 1 | DP86: 1 | DQ86: 1 | DR86: 1 | DS86: 1 | DT86: 1 | DU86: 1 | DV86: 1 | DW86: 1 | DX86: 1 | DY86: 1 | DZ86: 1 | EA86: 1 | EB86: 1 | EC86: 1 | ED86: 1 | EE86: 1 | EF86: 1 | EG86: 1 | EH86: 1 | EI86: 1 | EJ86: 1 | EK86: 1 | EL86: 1 | EM86: 1 | EN86: 1 | EO86: 1 | EP86: 1 | EQ86: 1 | ER86: 1 | ES86: 1 | ET86: 1 | EU86: 1 | EV86: 1 | EW86: 1 | EX86: 1 | EY86: 1 | EZ86: 1 | FA86: 1 | FB86: 1 | FC86: 1 | FD86: 1 | FE86: 1 | FF86: 1 | FG86: 1 | FH86: 1 | FI86: 1 | FJ86: 1 | FK86: 1 | FL86: 1 | FM86: 1 | FN86: 1 | FO86: 1 | FP86: 1 | FQ86: 1 | FR86: 1 | FS86: 1 | FT86: 1 | FU86: 1 | FV86: 1 | FW86: 1 | FX86: 1 | FY86: 1 | FZ86: 1 | GA86: 1 | GB86: 1 | GC86: 1 | GD86: 1 | GE86: 1 | GF86: 1 | GG86: 1 | GH86: 1 | GI86: 1 | GJ86: 1 | GK86: 1 | GL86: 1 | GM86: 1 | GN86: 1 | GO86: 1 | GP86: 1 | GQ86: 1 | GR86: 1
A87: 1 | B87: 1 | C87: 1 | D87: 1 | E87: 1 | F87: 1 | G87: 1 | H87: 1 | I87: 1 | J87: 1 | K87: 1 | L87: 1 | M87: 1 | N87: 1 | O87: 1 | P87: 1 | Q87: 1 | R87: 1 | S87: 1 | T87: 2 | U87: 2 | V87: 2 | W87: 2 | X87: 2 | Y87: 2 | Z87: 2 | AA87: 2 | AB87: 2 | AC87: 1 | AD87: 2 | AE87: 1 | AF87: 1 | AG87: 2 | AH87: 2 | AI87: 2 | AJ87: 2 | AK87: 2 | AL87: 2 | AM87: 2 | AN87: 2 | AO87: 2 | AP87: 2 | AQ87: 2 | AR87: 2 | AS87: 2 | AT87: 1 | AU87: 1 | AV87: 1 | AW87: 2 | AX87: 2 | AY87: 2 | AZ87: 2 | BA87: 2 | BB87: 2 | BC87: 2 | BD87: 2 | BE87: 2 | BF87: 2 | BG87: 2 | BH87: 2 | BI87: 2 | BJ87: 2 | BK87: 2 | BL87: 2 | BM87: 2 | BN87: 1 | BO87: 2 | BP87: 2 | BQ87: 2 | BR87: 2 | BS87: 2 | BT87: 2 | BU87: 2 | BV87: 2 | BW87: 2 | BX87: 2 | BY87: 1 | BZ87: 1 | CA87: 1 | CB87: 1 | CC87: 1 | CD87: 1 | CE87: 1 | CF87: 1 | CG87: 1 | CH87: 1 | CI87: 1 | CJ87: 1 | CK87: 1 | CL87: 1 | CM87: 1 | CN87: 1 | CO87: 1 | CP87: 1 | CQ87: 1 | CR87: 1 | CS87: 1 | CT87: 1 | CU87: 1 | CV87: 1 | CW87: 1 | CX87: 1 | CY87: 1 | CZ87: 1 | DA87: 1 | DB87: 1 | DC87: 1 | DD87: 1 | DE87: 1 | DF87: 1 | DG87: 1 | DH87: 1 | DI87: 1 | DJ87: 1 | DK87: 1 | DL87: 1 | DM87: 1 | DN87: 1 | DO87: 1 | DP87: 1 | DQ87: 1 | DR87: 1 | DS87: 1 | DT87: 1 | DU87: 1 | DV87: 1 | DW87: 1 | DX87: 1 | DY87: 1 | DZ87: 1 | EA87: 1 | EB87: 1 | EC87: 1 | ED87: 1 | EE87: 1 | EF87: 1 | EG87: 1 | EH87: 1 | EI87: 1 | EJ87: 1 | EK87: 1 | EL87: 1 | EM87: 1 | EN87: 1 | EO87: 1 | EP87: 1 | EQ87: 1 | ER87: 1 | ES87: 1 | ET87: 1 | EU87: 1 | EV87: 1 | EW87: 1 | EX87: 1 | EY87: 1 | EZ87: 1 | FA87: 1 | FB87: 1 | FC87: 1 | FD87: 1 | FE87: 1 | FF87: 1 | FG87: 1 | FH87: 1 | FI87: 1 | FJ87: 1 | FK87: 1 | FL87: 1 | FM87: 1 | FN87: 1 | FO87: 1 | FP87: 1 | FQ87: 1 | FR87: 1 | FS87: 1 | FT87: 1 | FU87: 1 | FV87: 1 | FW87: 1 | FX87: 1 | FY87: 1 | FZ87: 1 | GA87: 1 | GB87: 1 | GC87: 1 | GD87: 1 | GE87: 1 | GF87: 1 | GG87: 1 | GH87: 1 | GI87: 1 | GJ87: 1 | GK87: 1 | GL87: 1 | GM87: 1 | GN87: 1 | GO87: 1 | GP87: 1 | GQ87: 1 | GR87: 1
A88: 1 | B88: 1 | C88: 1 | D88: 1 | E88: 1 | F88: 1 | G88: 1 | H88: 1 | I88: 1 | J88: 1 | K88: 1 | L88: 1 | M88: 1 | N88: 1 | O88: 1 | P88: 1 | Q88: 1 | R88: 1 | S88: 2 | T88: 2 | U88: 2 | V88: 2 | W88: 2 | X88: 2 | Y88: 2 | Z88: 2 | AA88: 2 | AB88: 2 | AC88: 2 | AD88: 2 | AE88: 2 | AF88: 2 | AG88: 1 | AH88: 2 | AI88: 2 | AJ88: 2 | AK88: 2 | AL88: 2 | AM88: 2 | AN88: 2 | AO88: 2 | AP88: 2 | AQ88: 2 | AR88: 2 | AS88: 1 | AT88: 1 | AU88: 1 | AV88: 2 | AW88: 2 | AX88: 2 | AY88: 2 | AZ88: 2 | BA88: 2 | BB88: 2 | BC88: 2 | BD88: 2 | BE88: 2 | BF88: 2 | BG88: 2 | BH88: 2 | BI88: 2 | BJ88: 2 | BK88: 2 | BL88: 2 | BM88: 2 | BN88: 1 | BO88: 1 | BP88: 2 | BQ88: 2 | BR88: 2 | BS88: 2 | BT88: 2 | BU88: 2 | BV88: 2 | BW88: 2 | BX88: 2 | BY88: 2 | BZ88: 1 | CA88: 1 | CB88: 1 | CC88: 1 | CD88: 1 | CE88: 1 | CF88: 1 | CG88: 1 | CH88: 1 | CI88: 1 | CJ88: 1 | CK88: 1 | CL88: 1 | CM88: 1 | CN88: 1 | CO88: 1 | CP88: 1 | CQ88: 1 | CR88: 1 | CS88: 1 | CT88: 1 | CU88: 1 | CV88: 1 | CW88: 1 | CX88: 1 | CY88: 1 | CZ88: 1 | DA88: 1 | DB88: 1 | DC88: 1 | DD88: 1 | DE88: 1 | DF88: 1 | DG88: 1 | DH88: 1 | DI88: 1 | DJ88: 1 | DK88: 1 | DL88: 1 | DM88: 1 | DN88: 1 | DO88: 1 | DP88: 1 | DQ88: 1 | DR88: 1 | DS88: 1 | DT88: 1 | DU88: 1 | DV88: 1 | DW88: 1 | DX88: 1 | DY88: 1 | DZ88: 1 | EA88: 1 | EB88: 1 | EC88: 1 | ED88: 1 | EE88: 1 | EF88: 1 | EG88: 1 | EH88: 1 | EI88: 1 | EJ88: 1 | EK88: 1 | EL88: 1 | EM88: 1 | EN88: 1 | EO88: 1 | EP88: 1 | EQ88: 1 | ER88: 1 | ES88: 1 | ET88: 1 | EU88: 1 | EV88: 1 | EW88: 1 | EX88: 1 | EY88: 1 | EZ88: 1 | FA88: 1 | FB88: 1 | FC88: 1 | FD88: 1 | FE88: 1 | FF88: 1 | FG88: 1 | FH88: 1 | FI88: 1 | FJ88: 1 | FK88: 1 | FL88: 1 | FM88: 1 | FN88: 1 | FO88: 1 | FP88: 1 | FQ88: 1 | FR88: 1 | FS88: 1 | FT88: 1 | FU88: 1 | FV88: 1 | FW88: 1 | FX88: 1 | FY88: 1 | FZ88: 1 | GA88: 1 | GB88: 1 | GC88: 1 | GD88: 1 | GE88: 1 | GF88: 1 | GG88: 1 | GH88: 1 | GI88: 1 | GJ88: 1 | GK88: 1 | GL88: 1 | GM88: 1 | GN88: 1 | GO88: 1 | GP88: 1 | GQ88: 1 | GR88: 1
A89: 1 | B89: 1 | C89: 1 | D89: 1 | E89: 1 | F89: 1 | G89: 1 | H89: 1 | I89: 1 | J89: 1 | K89: 1 | L89: 1 | M89: 1 | N89: 1 | O89: 1 | P89: 1 | Q89: 1 | R89: 1 | S89: 2 | T89: 2 | U89: 2 | V89: 2 | W89: 2 | X89: 2 | Y89: 2 | Z89: 2 | AA89: 2 | AB89: 2 | AC89: 2 | AD89: 2 | AE89: 2 | AF89: 2 | AG89: 1 | AH89: 1 | AI89: 2 | AJ89: 2 | AK89: 2 | AL89: 2 | AM89: 2 | AN89: 2 | AO89: 2 | AP89: 2 | AQ89: 2 | AR89: 2 | AS89: 1 | AT89: 2 | AU89: 2 | AV89: 2 | AW89: 2 | AX89: 2 | AY89: 2 | AZ89: 2 | BA89: 2 | BB89: 2 | BC89: 2 | BD89: 2 | BE89: 2 | BF89: 2 | BG89: 2 | BH89: 2 | BI89: 2 | BJ89: 2 | BK89: 2 | BL89: 2 | BM89: 2 | BN89: 1 | BO89: 1 | BP89: 2 | BQ89: 2 | BR89: 2 | BS89: 2 | BT89: 2 | BU89: 2 | BV89: 2 | BW89: 2 | BX89: 2 | BY89: 2 | BZ89: 1 | CA89: 1 | CB89: 1 | CC89: 1 | CD89: 1 | CE89: 1 | CF89: 1 | CG89: 1 | CH89: 1 | CI89: 1 | CJ89: 1 | CK89: 1 | CL89: 1 | CM89: 1 | CN89: 1 | CO89: 1 | CP89: 1 | CQ89: 1 | CR89: 1 | CS89: 1 | CT89: 1 | CU89: 1 | CV89: 1 | CW89: 1 | CX89: 1 | CY89: 1 | CZ89: 1 | DA89: 1 | DB89: 1 | DC89: 1 | DD89: 1 | DE89: 1 | DF89: 1 | DG89: 1 | DH89: 1 | DI89: 1 | DJ89: 1 | DK89: 1 | DL89: 1 | DM89: 1 | DN89: 1 | DO89: 1 | DP89: 1 | DQ89: 1 | DR89: 1 | DS89: 1 | DT89: 1 | DU89: 1 | DV89: 1 | DW89: 1 | DX89: 1 | DY89: 1 | DZ89: 1 | EA89: 1 | EB89: 1 | EC89: 1 | ED89: 1 | EE89: 1 | EF89: 1 | EG89: 1 | EH89: 1 | EI89: 1 | EJ89: 1 | EK89: 1 | EL89: 1 | EM89: 1 | EN89: 1 | EO89: 1 | EP89: 1 | EQ89: 1 | ER89: 1 | ES89: 1 | ET89: 1 | EU89: 1 | EV89: 1 | EW89: 1 | EX89: 1 | EY89: 1 | EZ89: 1 | FA89: 1 | FB89: 1 | FC89: 1 | FD89: 1 | FE89: 1 | FF89: 1 | FG89: 1 | FH89: 1 | FI89: 1 | FJ89: 1 | FK89: 1 | FL89: 1 | FM89: 1 | FN89: 1 | FO89: 1 | FP89: 1 | FQ89: 1 | FR89: 1 | FS89: 1 | FT89: 1 | FU89: 1 | FV89: 1 | FW89: 1 | FX89: 1 | FY89: 1 | FZ89: 1 | GA89: 1 | GB89: 1 | GC89: 1 | GD89: 1 | GE89: 1 | GF89: 1 | GG89: 1 | GH89: 1 | GI89: 1 | GJ89: 1 | GK89: 1 | GL89: 1 | GM89: 1 | GN89: 1 | GO89: 1 | GP89: 1 | GQ89: 1 | GR89: 1
A90: 1 | B90: 1 | C90: 1 | D90: 1 | E90: 1 | F90: 1 | G90: 1 | H90: 1 | I90: 1 | J90: 1 | K90: 1 | L90: 1 | M90: 1 | N90: 1 | O90: 1 | P90: 1 | Q90: 2 | R90: 2 | S90: 2 | T90: 2 | U90: 2 | V90: 2 | W90: 2 | X90: 2 | Y90: 2 | Z90: 2 | AA90: 2 | AB90: 2 | AC90: 2 | AD90: 2 | AE90: 2 | AF90: 2 | AG90: 2 | AH90: 1 | AI90: 1 | AJ90: 2 | AK90: 2 | AL90: 2 | AM90: 2 | AN90: 2 | AO90: 2 | AP90: 2 | AQ90: 2 | AR90: 2 | AS90: 1 | AT90: 2 | AU90: 2 | AV90: 2 | AW90: 2 | AX90: 2 | AY90: 2 | AZ90: 2 | BA90: 2 | BB90: 2 | BC90: 2 | BD90: 2 | BE90: 2 | BF90: 2 | BG90: 2 | BH90: 2 | BI90: 2 | BJ90: 2 | BK90: 2 | BL90: 2 | BM90: 2 | BN90: 1 | BO90: 1 | BP90: 1 | BQ90: 1 | BR90: 1 | BS90: 2 | BT90: 2 | BU90: 2 | BV90: 2 | BW90: 2 | BX90: 2 | BY90: 2 | BZ90: 1 | CA90: 1 | CB90: 1 | CC90: 1 | CD90: 1 | CE90: 1 | CF90: 1 | CG90: 1 | CH90: 1 | CI90: 1 | CJ90: 1 | CK90: 1 | CL90: 1 | CM90: 1 | CN90: 1 | CO90: 1 | CP90: 1 | CQ90: 1 | CR90: 1 | CS90: 1 | CT90: 1 | CU90: 1 | CV90: 1 | CW90: 1 | CX90: 1 | CY90: 1 | CZ90: 1 | DA90: 1 | DB90: 1 | DC90: 1 | DD90: 1 | DE90: 1 | DF90: 1 | DG90: 1 | DH90: 1 | DI90: 1 | DJ90: 1 | DK90: 1 | DL90: 1 | DM90: 1 | DN90: 1 | DO90: 1 | DP90: 1 | DQ90: 1 | DR90: 1 | DS90: 1 | DT90: 1 | DU90: 1 | DV90: 1 | DW90: 1 | DX90: 1 | DY90: 1 | DZ90: 1 | EA90: 1 | EB90: 1 | EC90: 1 | ED90: 1 | EE90: 1 | EF90: 1 | EG90: 1 | EH90: 1 | EI90: 1 | EJ90: 1 | EK90: 1 | EL90: 1 | EM90: 1 | EN90: 1 | EO90: 1 | EP90: 1 | EQ90: 1 | ER90: 1 | ES90: 1 | ET90: 1 | EU90: 1 | EV90: 1 | EW90: 1 | EX90: 1 | EY90: 1 | EZ90: 1 | FA90: 1 | FB90: 1 | FC90: 1 | FD90: 1 | FE90: 1 | FF90: 1 | FG90: 1 | FH90: 1 | FI90: 1 | FJ90: 1 | FK90: 1 | FL90: 1 | FM90: 1 | FN90: 1 | FO90: 1 | FP90: 1 | FQ90: 1 | FR90: 1 | FS90: 1 | FT90: 1 | FU90: 1 | FV90: 1 | FW90: 1 | FX90: 1 | FY90: 1 | FZ90: 1 | GA90: 1 | GB90: 1 | GC90: 1 | GD90: 1 | GE90: 1 | GF90: 1 | GG90: 1 | GH90: 1 | GI90: 1 | GJ90: 1 | GK90: 1 | GL90: 1 | GM90: 1 | GN90: 1 | GO90: 1 | GP90: 1 | GQ90: 1 | GR90: 1
A91: 1 | B91: 1 | C91: 1 | D91: 1 | E91: 1 | F91: 1 | G91: 1 | H91: 1 | I91: 1 | J91: 1 | K91: 1 | L91: 1 | M91: 1 | N91: 1 | O91: 1 | P91: 1 | Q91: 2 | R91: 2 | S91: 2 | T91: 2 | U91: 2 | V91: 2 | W91: 2 | X91: 2 | Y91: 2 | Z91: 2 | AA91: 2 | AB91: 2 | AC91: 2 | AD91: 2 | AE91: 2 | AF91: 2 | AG91: 2 | AH91: 1 | AI91: 1 | AJ91: 1 | AK91: 1 | AL91: 2 | AM91: 2 | AN91: 2 | AO91: 2 | AP91: 2 | AQ91: 2 | AR91: 1 | AS91: 1 | AT91: 2 | AU91: 2 | AV91: 2 | AW91: 2 | AX91: 2 | AY91: 2 | AZ91: 2 | BA91: 2 | BB91: 2 | BC91: 2 | BD91: 2 | BE91: 2 | BF91: 2 | BG91: 2 | BH91: 2 | BI91: 2 | BJ91: 2 | BK91: 2 | BL91: 2 | BM91: 1 | BN91: 1 | BO91: 1 | BP91: 1 | BQ91: 1 | BR91: 1 | BS91: 2 | BT91: 2 | BU91: 2 | BV91: 1 | BW91: 1 | BX91: 1 | BY91: 1 | BZ91: 1 | CA91: 1 | CB91: 1 | CC91: 1 | CD91: 1 | CE91: 1 | CF91: 1 | CG91: 1 | CH91: 1 | CI91: 1 | CJ91: 1 | CK91: 1 | CL91: 1 | CM91: 1 | CN91: 1 | CO91: 1 | CP91: 1 | CQ91: 1 | CR91: 1 | CS91: 1 | CT91: 1 | CU91: 1 | CV91: 1 | CW91: 1 | CX91: 1 | CY91: 1 | CZ91: 1 | DA91: 1 | DB91: 1 | DC91: 1 | DD91: 1 | DE91: 1 | DF91: 1 | DG91: 1 | DH91: 1 | DI91: 1 | DJ91: 1 | DK91: 1 | DL91: 1 | DM91: 1 | DN91: 1 | DO91: 1 | DP91: 1 | DQ91: 1 | DR91: 1 | DS91: 1 | DT91: 1 | DU91: 1 | DV91: 1 | DW91: 1 | DX91: 1 | DY91: 1 | DZ91: 1 | EA91: 1 | EB91: 1 | EC91: 1 | ED91: 1 | EE91: 1 | EF91: 1 | EG91: 1 | EH91: 1 | EI91: 1 | EJ91: 1 | EK91: 1 | EL91: 1 | EM91: 1 | EN91: 1 | EO91: 1 | EP91: 1 | EQ91: 1 | ER91: 1 | ES91: 1 | ET91: 1 | EU91: 1 | EV91: 1 | EW91: 1 | EX91: 1 | EY91: 1 | EZ91: 1 | FA91: 1 | FB91: 1 | FC91: 1 | FD91: 1 | FE91: 1 | FF91: 1 | FG91: 1 | FH91: 1 | FI91: 1 | FJ91: 1 | FK91: 1 | FL91: 1 | FM91: 1 | FN91: 1 | FO91: 1 | FP91: 1 | FQ91: 1 | FR91: 1 | FS91: 1 | FT91: 1 | FU91: 1 | FV91: 1 | FW91: 1 | FX91: 1 | FY91: 1 | FZ91: 1 | GA91: 1 | GB91: 1 | GC91: 1 | GD91: 1 | GE91: 1 | GF91: 1 | GG91: 1 | GH91: 1 | GI91: 1 | GJ91: 1 | GK91: 1 | GL91: 1 | GM91: 1 | GN91: 1 | GO91: 1 | GP91: 1 | GQ91: 1 | GR91: 1
A92: 1 | B92: 1 | C92: 1 | D92: 1 | E92: 1 | F92: 1 | G92: 1 | H92: 1 | I92: 1 | J92: 1 | K92: 1 | L92: 1 | M92: 1 | N92: 1 | O92: 1 | P92: 1 | Q92: 1 | R92: 2 | S92: 2 | T92: 2 | U92: 2 | V92: 2 | W92: 2 | X92: 2 | Y92: 2 | Z92: 2 | AA92: 2 | AB92: 2 | AC92: 2 | AD92: 2 | AE92: 2 | AF92: 2 | AG92: 2 | AH92: 2 | AI92: 2 | AJ92: 1 | AK92: 1 | AL92: 1 | AM92: 2 | AN92: 2 | AO92: 2 | AP92: 2 | AQ92: 2 | AR92: 1 | AS92: 1 | AT92: 2 | AU92: 2 | AV92: 2 | AW92: 2 | AX92: 2 | AY92: 2 | AZ92: 2 | BA92: 2 | BB92: 2 | BC92: 2 | BD92: 2 | BE92: 2 | BF92: 2 | BG92: 2 | BH92: 2 | BI92: 2 | BJ92: 2 | BK92: 2 | BL92: 1 | BM92: 1 | BN92: 1 | BO92: 1 | BP92: 1 | BQ92: 1 | BR92: 1 | BS92: 1 | BT92: 1 | BU92: 1 | BV92: 1 | BW92: 1 | BX92: 1 | BY92: 1 | BZ92: 1 | CA92: 1 | CB92: 1 | CC92: 1 | CD92: 1 | CE92: 1 | CF92: 1 | CG92: 1 | CH92: 1 | CI92: 1 | CJ92: 1 | CK92: 1 | CL92: 1 | CM92: 1 | CN92: 1 | CO92: 1 | CP92: 1 | CQ92: 1 | CR92: 1 | CS92: 1 | CT92: 1 | CU92: 1 | CV92: 1 | CW92: 1 | CX92: 1 | CY92: 1 | CZ92: 1 | DA92: 1 | DB92: 1 | DC92: 1 | DD92: 1 | DE92: 1 | DF92: 1 | DG92: 1 | DH92: 1 | DI92: 1 | DJ92: 1 | DK92: 1 | DL92: 1 | DM92: 1 | DN92: 1 | DO92: 1 | DP92: 1 | DQ92: 1 | DR92: 1 | DS92: 1 | DT92: 1 | DU92: 1 | DV92: 1 | DW92: 1 | DX92: 1 | DY92: 1 | DZ92: 1 | EA92: 1 | EB92: 1 | EC92: 1 | ED92: 1 | EE92: 1 | EF92: 1 | EG92: 1 | EH92: 1 | EI92: 1 | EJ92: 1 | EK92: 1 | EL92: 1 | EM92: 1 | EN92: 1 | EO92: 1 | EP92: 1 | EQ92: 1 | ER92: 1 | ES92: 1 | ET92: 1 | EU92: 1 | EV92: 1 | EW92: 1 | EX92: 1 | EY92: 1 | EZ92: 1 | FA92: 1 | FB92: 1 | FC92: 1 | FD92: 1 | FE92: 1 | FF92: 1 | FG92: 1 | FH92: 1 | FI92: 1 | FJ92: 1 | FK92: 1 | FL92: 1 | FM92: 1 | FN92: 1 | FO92: 1 | FP92: 1 | FQ92: 1 | FR92: 1 | FS92: 1 | FT92: 1 | FU92: 1 | FV92: 1 | FW92: 1 | FX92: 1 | FY92: 1 | FZ92: 1 | GA92: 1 | GB92: 1 | GC92: 1 | GD92: 1 | GE92: 1 | GF92: 1 | GG92: 1 | GH92: 1 | GI92: 1 | GJ92: 1 | GK92: 1 | GL92: 1 | GM92: 1 | GN92: 1 | GO92: 1 | GP92: 1 | GQ92: 1 | GR92: 1
A93: 1 | B93: 1 | C93: 1 | D93: 1 | E93: 1 | F93: 1 | G93: 1 | H93: 1 | I93: 1 | J93: 1 | K93: 1 | L93: 1 | M93: 1 | N93: 1 | O93: 1 | P93: 1 | Q93: 1 | R93: 2 | S93: 2 | T93: 2 | U93: 2 | V93: 2 | W93: 2 | X93: 2 | Y93: 2 | Z93: 2 | AA93: 2 | AB93: 2 | AC93: 2 | AD93: 2 | AE93: 2 | AF93: 2 | AG93: 2 | AH93: 2 | AI93: 2 | AJ93: 2 | AK93: 2 | AL93: 1 | AM93: 1 | AN93: 2 | AO93: 2 | AP93: 2 | AQ93: 2 | AR93: 1 | AS93: 1 | AT93: 2 | AU93: 2 | AV93: 2 | AW93: 2 | AX93: 2 | AY93: 2 | AZ93: 2 | BA93: 2 | BB93: 2 | BC93: 2 | BD93: 2 | BE93: 2 | BF93: 2 | BG93: 2 | BH93: 2 | BI93: 2 | BJ93: 2 | BK93: 1 | BL93: 1 | BM93: 1 | BN93: 1 | BO93: 1 | BP93: 1 | BQ93: 1 | BR93: 1 | BS93: 1 | BT93: 1 | BU93: 1 | BV93: 1 | BW93: 1 | BX93: 1 | BY93: 1 | BZ93: 1 | CA93: 1 | CB93: 1 | CC93: 1 | CD93: 1 | CE93: 1 | CF93: 1 | CG93: 1 | CH93: 1 | CI93: 1 | CJ93: 1 | CK93: 1 | CL93: 1 | CM93: 1 | CN93: 1 | CO93: 1 | CP93: 1 | CQ93: 1 | CR93: 1 | CS93: 1 | CT93: 1 | CU93: 1 | CV93: 1 | CW93: 1 | CX93: 1 | CY93: 1 | CZ93: 1 | DA93: 1 | DB93: 1 | DC93: 1 | DD93: 1 | DE93: 1 | DF93: 1 | DG93: 1 | DH93: 1 | DI93: 1 | DJ93: 1 | DK93: 1 | DL93: 1 | DM93: 1 | DN93: 1 | DO93: 1 | DP93: 1 | DQ93: 1 | DR93: 1 | DS93: 1 | DT93: 1 | DU93: 1 | DV93: 1 | DW93: 1 | DX93: 1 | DY93: 1 | DZ93: 1 | EA93: 1 | EB93: 1 | EC93: 1 | ED93: 1 | EE93: 1 | EF93: 1 | EG93: 1 | EH93: 1 | EI93: 1 | EJ93: 1 | EK93: 1 | EL93: 1 | EM93: 1 | EN93: 1 | EO93: 1 | EP93: 1 | EQ93: 1 | ER93: 1 | ES93: 1 | ET93: 1 | EU93: 1 | EV93: 1 | EW93: 1 | EX93: 1 | EY93: 1 | EZ93: 1 | FA93: 1 | FB93: 1 | FC93: 1 | FD93: 1 | FE93: 1 | FF93: 1 | FG93: 1 | FH93: 1 | FI93: 1 | FJ93: 1 | FK93: 1 | FL93: 1 | FM93: 1 | FN93: 1 | FO93: 1 | FP93: 1 | FQ93: 1 | FR93: 1 | FS93: 1 | FT93: 1 | FU93: 1 | FV93: 1 | FW93: 1 | FX93: 1 | FY93: 1 | FZ93: 1 | GA93: 1 | GB93: 1 | GC93: 1 | GD93: 1 | GE93: 1 | GF93: 1 | GG93: 1 | GH93: 1 | GI93: 1 | GJ93: 1 | GK93: 1 | GL93: 1 | GM93: 1 | GN93: 1 | GO93: 1 | GP93: 1 | GQ93: 1 | GR93: 1
A94: 1 | B94: 1 | C94: 1 | D94: 1 | E94: 1 | F94: 1 | G94: 1 | H94: 1 | I94: 1 | J94: 1 | K94: 1 | L94: 1 | M94: 1 | N94: 1 | O94: 1 | P94: 1 | Q94: 1 | R94: 1 | S94: 2 | T94: 2 | U94: 2 | V94: 2 | W94: 2 | X94: 2 | Y94: 2 | Z94: 2 | AA94: 2 | AB94: 2 | AC94: 2 | AD94: 2 | AE94: 2 | AF94: 2 | AG94: 2 | AH94: 2 | AI94: 2 | AJ94: 2 | AK94: 2 | AL94: 2 | AM94: 1 | AN94: 2 | AO94: 2 | AP94: 2 | AQ94: 2 | AR94: 1 | AS94: 1 | AT94: 2 | AU94: 2 | AV94: 2 | AW94: 2 | AX94: 2 | AY94: 2 | AZ94: 2 | BA94: 2 | BB94: 2 | BC94: 2 | BD94: 2 | BE94: 2 | BF94: 2 | BG94: 2 | BH94: 2 | BI94: 1 | BJ94: 1 | BK94: 1 | BL94: 1 | BM94: 1 | BN94: 1 | BO94: 1 | BP94: 1 | BQ94: 1 | BR94: 1 | BS94: 1 | BT94: 1 | BU94: 1 | BV94: 1 | BW94: 1 | BX94: 1 | BY94: 1 | BZ94: 1 | CA94: 1 | CB94: 1 | CC94: 1 | CD94: 1 | CE94: 1 | CF94: 1 | CG94: 1 | CH94: 1 | CI94: 1 | CJ94: 1 | CK94: 1 | CL94: 1 | CM94: 1 | CN94: 1 | CO94: 1 | CP94: 1 | CQ94: 1 | CR94: 1 | CS94: 1 | CT94: 1 | CU94: 1 | CV94: 1 | CW94: 1 | CX94: 1 | CY94: 1 | CZ94: 1 | DA94: 1 | DB94: 1 | DC94: 1 | DD94: 1 | DE94: 1 | DF94: 1 | DG94: 1 | DH94: 1 | DI94: 1 | DJ94: 1 | DK94: 1 | DL94: 1 | DM94: 1 | DN94: 1 | DO94: 1 | DP94: 1 | DQ94: 1 | DR94: 1 | DS94: 1 | DT94: 1 | DU94: 1 | DV94: 1 | DW94: 1 | DX94: 1 | DY94: 1 | DZ94: 1 | EA94: 1 | EB94: 1 | EC94: 1 | ED94: 1 | EE94: 1 | EF94: 1 | EG94: 1 | EH94: 1 | EI94: 1 | EJ94: 1 | EK94: 1 | EL94: 1 | EM94: 1 | EN94: 1 | EO94: 1 | EP94: 1 | EQ94: 1 | ER94: 1 | ES94: 1 | ET94: 1 | EU94: 1 | EV94: 1 | EW94: 1 | EX94: 1 | EY94: 1 | EZ94: 1 | FA94: 1 | FB94: 1 | FC94: 1 | FD94: 1 | FE94: 1 | FF94: 1 | FG94: 1 | FH94: 1 | FI94: 1 | FJ94: 1 | FK94: 1 | FL94: 1 | FM94: 1 | FN94: 1 | FO94: 1 | FP94: 1 | FQ94: 1 | FR94: 1 | FS94: 1 | FT94: 1 | FU94: 1 | FV94: 1 | FW94: 1 | FX94: 1 | FY94: 1 | FZ94: 1 | GA94: 1 | GB94: 1 | GC94: 1 | GD94: 1 | GE94: 1 | GF94: 1 | GG94: 1 | GH94: 1 | GI94: 1 | GJ94: 1 | GK94: 1 | GL94: 1 | GM94: 1 | GN94: 1 | GO94: 1 | GP94: 1 | GQ94: 1 | GR94: 1
A95: 1 | B95: 1 | C95: 1 | D95: 1 | E95: 1 | F95: 1 | G95: 1 | H95: 1 | I95: 1 | J95: 1 | K95: 1 | L95: 1 | M95: 1 | N95: 1 | O95: 2 | P95: 2 | Q95: 2 | R95: 2 | S95: 2 | T95: 2 | U95: 2 | V95: 2 | W95: 2 | X95: 2 | Y95: 2 | Z95: 2 | AA95: 2 | AB95: 2 | AC95: 2 | AD95: 2 | AE95: 2 | AF95: 2 | AG95: 2 | AH95: 2 | AI95: 2 | AJ95: 2 | AK95: 2 | AL95: 2 | AM95: 1 | AN95: 1 | AO95: 2 | AP95: 2 | AQ95: 1 | AR95: 1 | AS95: 2 | AT95: 2 | AU95: 2 | AV95: 2 | AW95: 2 | AX95: 2 | AY95: 2 | AZ95: 2 | BA95: 2 | BB95: 2 | BC95: 2 | BD95: 2 | BE95: 2 | BF95: 2 | BG95: 2 | BH95: 1 | BI95: 1 | BJ95: 1 | BK95: 1 | BL95: 1 | BM95: 1 | BN95: 1 | BO95: 1 | BP95: 1 | BQ95: 1 | BR95: 1 | BS95: 1 | BT95: 1 | BU95: 1 | BV95: 1 | BW95: 1 | BX95: 1 | BY95: 1 | BZ95: 1 | CA95: 1 | CB95: 1 | CC95: 1 | CD95: 1 | CE95: 1 | CF95: 1 | CG95: 1 | CH95: 1 | CI95: 1 | CJ95: 1 | CK95: 1 | CL95: 1 | CM95: 1 | CN95: 1 | CO95: 1 | CP95: 1 | CQ95: 1 | CR95: 1 | CS95: 1 | CT95: 1 | CU95: 1 | CV95: 1 | CW95: 1 | CX95: 1 | CY95: 1 | CZ95: 1 | DA95: 1 | DB95: 1 | DC95: 1 | DD95: 1 | DE95: 1 | DF95: 1 | DG95: 1 | DH95: 1 | DI95: 1 | DJ95: 1 | DK95: 1 | DL95: 1 | DM95: 1 | DN95: 1 | DO95: 1 | DP95: 1 | DQ95: 1 | DR95: 1 | DS95: 1 | DT95: 1 | DU95: 1 | DV95: 1 | DW95: 1 | DX95: 1 | DY95: 1 | DZ95: 1 | EA95: 1 | EB95: 1 | EC95: 1 | ED95: 1 | EE95: 1 | EF95: 1 | EG95: 1 | EH95: 1 | EI95: 1 | EJ95: 1 | EK95: 1 | EL95: 1 | EM95: 1 | EN95: 1 | EO95: 1 | EP95: 1 | EQ95: 1 | ER95: 1 | ES95: 1 | ET95: 1 | EU95: 1 | EV95: 1 | EW95: 1 | EX95: 1 | EY95: 1 | EZ95: 1 | FA95: 1 | FB95: 1 | FC95: 1 | FD95: 1 | FE95: 1 | FF95: 1 | FG95: 1 | FH95: 1 | FI95: 1 | FJ95: 1 | FK95: 1 | FL95: 1 | FM95: 1 | FN95: 1 | FO95: 1 | FP95: 1 | FQ95: 1 | FR95: 1 | FS95: 1 | FT95: 1 | FU95: 1 | FV95: 1 | FW95: 1 | FX95: 1 | FY95: 1 | FZ95: 1 | GA95: 1 | GB95: 1 | GC95: 1 | GD95: 1 | GE95: 1 | GF95: 1 | GG95: 1 | GH95: 1 | GI95: 1 | GJ95: 1 | GK95: 1 | GL95: 1 | GM95: 1 | GN95: 1 | GO95: 1 | GP95: 1 | GQ95: 1 | GR95: 1
A96: 1 | B96: 1 | C96: 1 | D96: 1 | E96: 1 | F96: 1 | G96: 1 | H96: 1 | I96: 1 | J96: 1 | K96: 1 | L96: 1 | M96: 1 | N96: 2 | O96: 2 | P96: 2 | Q96: 2 | R96: 2 | S96: 2 | T96: 2 | U96: 2 | V96: 2 | W96: 2 | X96: 2 | Y96: 2 | Z96: 2 | AA96: 2 | AB96: 2 | AC96: 2 | AD96: 2 | AE96: 2 | AF96: 2 | AG96: 2 | AH96: 2 | AI96: 2 | AJ96: 2 | AK96: 2 | AL96: 2 | AM96: 2 | AN96: 1 | AO96: 1 | AP96: 1 | AQ96: 1 | AR96: 1 | AS96: 2 | AT96: 2 | AU96: 2 | AV96: 2 | AW96: 2 | AX96: 2 | AY96: 2 | AZ96: 2 | BA96: 2 | BB96: 2 | BC96: 2 | BD96: 2 | BE96: 2 | BF96: 2 | BG96: 2 | BH96: 1 | BI96: 1 | BJ96: 1 | BK96: 1 | BL96: 1 | BM96: 1 | BN96: 1 | BO96: 1 | BP96: 1 | BQ96: 1 | BR96: 1 | BS96: 1 | BT96: 1 | BU96: 1 | BV96: 1 | BW96: 1 | BX96: 1 | BY96: 1 | BZ96: 1 | CA96: 1 | CB96: 1 | CC96: 1 | CD96: 1 | CE96: 1 | CF96: 1 | CG96: 1 | CH96: 1 | CI96: 1 | CJ96: 1 | CK96: 1 | CL96: 1 | CM96: 1 | CN96: 1 | CO96: 1 | CP96: 1 | CQ96: 1 | CR96: 1 | CS96: 1 | CT96: 1 | CU96: 1 | CV96: 1 | CW96: 1 | CX96: 1 | CY96: 1 | CZ96: 1 | DA96: 1 | DB96: 1 | DC96: 1 | DD96: 1 | DE96: 1 | DF96: 1 | DG96: 1 | DH96: 1 | DI96: 1 | DJ96: 1 | DK96: 1 | DL96: 1 | DM96: 1 | DN96: 1 | DO96: 1 | DP96: 1 | DQ96: 1 | DR96: 1 | DS96: 1 | DT96: 1 | DU96: 1 | DV96: 1 | DW96: 1 | DX96: 1 | DY96: 1 | DZ96: 1 | EA96: 1 | EB96: 1 | EC96: 1 | ED96: 1 | EE96: 1 | EF96: 1 | EG96: 1 | EH96: 1 | EI96: 1 | EJ96: 1 | EK96: 1 | EL96: 1 | EM96: 1 | EN96: 1 | EO96: 1 | EP96: 1 | EQ96: 1 | ER96: 1 | ES96: 1 | ET96: 1 | EU96: 1 | EV96: 1 | EW96: 1 | EX96: 1 | EY96: 1 | EZ96: 1 | FA96: 1 | FB96: 1 | FC96: 1 | FD96: 1 | FE96: 1 | FF96: 1 | FG96: 1 | FH96: 1 | FI96: 1 | FJ96: 1 | FK96: 1 | FL96: 1 | FM96: 1 | FN96: 1 | FO96: 1 | FP96: 1 | FQ96: 1 | FR96: 1 | FS96: 1 | FT96: 1 | FU96: 1 | FV96: 1 | FW96: 1 | FX96: 1 | FY96: 1 | FZ96: 1 | GA96: 1 | GB96: 1 | GC96: 1 | GD96: 1 | GE96: 1 | GF96: 1 | GG96: 1 | GH96: 1 | GI96: 1 | GJ96: 1 | GK96: 1 | GL96: 1 | GM96: 1 | GN96: 1 | GO96: 1 | GP96: 1 | GQ96: 1 | GR96: 1
A97: 1 | B97: 1 | C97: 1 | D97: 1 | E97: 1 | F97: 1 | G97: 1 | H97: 1 | I97: 1 | J97: 1 | K97: 1 | L97: 1 | M97: 1 | N97: 2 | O97: 2 | P97: 2 | Q97: 2 | R97: 2 | S97: 2 | T97: 2 | U97: 2 | V97: 2 | W97: 2 | X97: 2 | Y97: 2 | Z97: 2 | AA97: 2 | AB97: 2 | AC97: 2 | AD97: 2 | AE97: 2 | AF97: 2 | AG97: 2 | AH97: 2 | AI97: 2 | AJ97: 2 | AK97: 2 | AL97: 2 | AM97: 2 | AN97: 1 | AO97: 1 | AP97: 1 | AQ97: 1 | AR97: 1 | AS97: 2 | AT97: 2 | AU97: 2 | AV97: 2 | AW97: 2 | AX97: 2 | AY97: 2 | AZ97: 2 | BA97: 2 | BB97: 2 | BC97: 2 | BD97: 2 | BE97: 2 | BF97: 2 | BG97: 2 | BH97: 2 | BI97: 2 | BJ97: 1 | BK97: 1 | BL97: 1 | BM97: 1 | BN97: 1 | BO97: 1 | BP97: 1 | BQ97: 1 | BR97: 1 | BS97: 1 | BT97: 1 | BU97: 1 | BV97: 1 | BW97: 1 | BX97: 1 | BY97: 1 | BZ97: 1 | CA97: 1 | CB97: 1 | CC97: 1 | CD97: 1 | CE97: 1 | CF97: 1 | CG97: 1 | CH97: 1 | CI97: 1 | CJ97: 1 | CK97: 1 | CL97: 1 | CM97: 1 | CN97: 1 | CO97: 1 | CP97: 1 | CQ97: 1 | CR97: 1 | CS97: 1 | CT97: 1 | CU97: 1 | CV97: 1 | CW97: 1 | CX97: 1 | CY97: 1 | CZ97: 1 | DA97: 1 | DB97: 1 | DC97: 1 | DD97: 1 | DE97: 1 | DF97: 1 | DG97: 1 | DH97: 1 | DI97: 1 | DJ97: 1 | DK97: 1 | DL97: 1 | DM97: 1 | DN97: 1 | DO97: 1 | DP97: 1 | DQ97: 1 | DR97: 1 | DS97: 1 | DT97: 1 | DU97: 1 | DV97: 1 | DW97: 1 | DX97: 1 | DY97: 1 | DZ97: 1 | EA97: 1 | EB97: 1 | EC97: 1 | ED97: 1 | EE97: 1 | EF97: 1 | EG97: 1 | EH97: 1 | EI97: 1 | EJ97: 1 | EK97: 1 | EL97: 1 | EM97: 1 | EN97: 1 | EO97: 1 | EP97: 1 | EQ97: 1 | ER97: 1 | ES97: 1 | ET97: 1 | EU97: 1 | EV97: 1 | EW97: 1 | EX97: 1 | EY97: 1 | EZ97: 1 | FA97: 1 | FB97: 1 | FC97: 1 | FD97: 1 | FE97: 1 | FF97: 1 | FG97: 1 | FH97: 1 | FI97: 1 | FJ97: 1 | FK97: 1 | FL97: 1 | FM97: 1 | FN97: 1 | FO97: 1 | FP97: 1 | FQ97: 1 | FR97: 1 | FS97: 1 | FT97: 1 | FU97: 1 | FV97: 1 | FW97: 1 | FX97: 1 | FY97: 1 | FZ97: 1 | GA97: 1 | GB97: 1 | GC97: 1 | GD97: 1 | GE97: 1 | GF97: 1 | GG97: 1 | GH97: 1 | GI97: 1 | GJ97: 1 | GK97: 1 | GL97: 1 | GM97: 1 | GN97: 1 | GO97: 1 | GP97: 1 | GQ97: 1 | GR97: 1
A98: 1 | B98: 1 | C98: 1 | D98: 1 | E98: 1 | F98: 1 | G98: 1 | H98: 1 | I98: 1 | J98: 1 | K98: 1 | L98: 1 | M98: 1 | N98: 1 | O98: 2 | P98: 2 | Q98: 2 | R98: 2 | S98: 2 | T98: 2 | U98: 2 | V98: 2 | W98: 2 | X98: 2 | Y98: 2 | Z98: 2 | AA98: 2 | AB98: 2 | AC98: 2 | AD98: 2 | AE98: 2 | AF98: 2 | AG98: 2 | AH98: 2 | AI98: 2 | AJ98: 2 | AK98: 1 | AL98: 1 | AM98: 1 | AN98: 1 | AO98: 1 | AP98: 1 | AQ98: 1 | AR98: 2 | AS98: 2 | AT98: 2 | AU98: 2 | AV98: 2 | AW98: 2 | AX98: 2 | AY98: 2 | AZ98: 2 | BA98: 2 | BB98: 2 | BC98: 2 | BD98: 2 | BE98: 2 | BF98: 2 | BG98: 2 | BH98: 2 | BI98: 2 | BJ98: 1 | BK98: 1 | BL98: 1 | BM98: 1 | BN98: 1 | BO98: 1 | BP98: 1 | BQ98: 1 | BR98: 1 | BS98: 1 | BT98: 1 | BU98: 1 | BV98: 1 | BW98: 1 | BX98: 1 | BY98: 1 | BZ98: 1 | CA98: 1 | CB98: 1 | CC98: 1 | CD98: 1 | CE98: 1 | CF98: 1 | CG98: 1 | CH98: 1 | CI98: 1 | CJ98: 1 | CK98: 1 | CL98: 1 | CM98: 1 | CN98: 1 | CO98: 1 | CP98: 1 | CQ98: 1 | CR98: 1 | CS98: 1 | CT98: 1 | CU98: 1 | CV98: 1 | CW98: 1 | CX98: 1 | CY98: 1 | CZ98: 1 | DA98: 1 | DB98: 1 | DC98: 1 | DD98: 1 | DE98: 1 | DF98: 1 | DG98: 1 | DH98: 1 | DI98: 1 | DJ98: 1 | DK98: 1 | DL98: 1 | DM98: 1 | DN98: 1 | DO98: 1 | DP98: 1 | DQ98: 1 | DR98: 1 | DS98: 1 | DT98: 1 | DU98: 1 | DV98: 1 | DW98: 1 | DX98: 1 | DY98: 1 | DZ98: 1 | EA98: 1 | EB98: 1 | EC98: 1 | ED98: 1 | EE98: 1 | EF98: 1 | EG98: 1 | EH98: 1 | EI98: 1 | EJ98: 1 | EK98: 1 | EL98: 1 | EM98: 1 | EN98: 1 | EO98: 1 | EP98: 1 | EQ98: 1 | ER98: 2 | ES98: 2 | ET98: 2 | EU98: 1 | EV98: 1 | EW98: 1 | EX98: 1 | EY98: 1 | EZ98: 1 | FA98: 1 | FB98: 1 | FC98: 1 | FD98: 1 | FE98: 1 | FF98: 1 | FG98: 1 | FH98: 1 | FI98: 1 | FJ98: 1 | FK98: 1 | FL98: 1 | FM98: 1 | FN98: 1 | FO98: 1 | FP98: 1 | FQ98: 1 | FR98: 1 | FS98: 1 | FT98: 1 | FU98: 1 | FV98: 1 | FW98: 1 | FX98: 1 | FY98: 1 | FZ98: 1 | GA98: 1 | GB98: 1 | GC98: 1 | GD98: 1 | GE98: 1 | GF98: 1 | GG98: 1 | GH98: 1 | GI98: 1 | GJ98: 1 | GK98: 1 | GL98: 1 | GM98: 1 | GN98: 1 | GO98: 1 | GP98: 1 | GQ98: 1 | GR98: 1
A99: 1 | B99: 1 | C99: 1 | D99: 1 | E99: 1 | F99: 1 | G99: 1 | H99: 1 | I99: 1 | J99: 1 | K99: 1 | L99: 1 | M99: 1 | N99: 1 | O99: 2 | P99: 2 | Q99: 2 | R99: 2 | S99: 2 | T99: 2 | U99: 2 | V99: 2 | W99: 2 | X99: 2 | Y99: 2 | Z99: 2 | AA99: 2 | AB99: 2 | AC99: 2 | AD99: 2 | AE99: 2 | AF99: 2 | AG99: 2 | AH99: 2 | AI99: 1 | AJ99: 1 | AK99: 1 | AL99: 3 | AM99: 3 | AN99: 1 | AO99: 1 | AP99: 1 | AQ99: 1 | AR99: 2 | AS99: 2 | AT99: 2 | AU99: 2 | AV99: 2 | AW99: 2 | AX99: 2 | AY99: 2 | AZ99: 2 | BA99: 2 | BB99: 2 | BC99: 2 | BD99: 2 | BE99: 2 | BF99: 2 | BG99: 2 | BH99: 2 | BI99: 2 | BJ99: 1 | BK99: 1 | BL99: 1 | BM99: 1 | BN99: 1 | BO99: 1 | BP99: 1 | BQ99: 1 | BR99: 1 | BS99: 1 | BT99: 1 | BU99: 1 | BV99: 1 | BW99: 1 | BX99: 1 | BY99: 1 | BZ99: 1 | CA99: 1 | CB99: 1 | CC99: 1 | CD99: 1 | CE99: 1 | CF99: 1 | CG99: 1 | CH99: 1 | CI99: 1 | CJ99: 1 | CK99: 1 | CL99: 1 | CM99: 1 | CN99: 1 | CO99: 1 | CP99: 1 | CQ99: 1 | CR99: 1 | CS99: 1 | CT99: 1 | CU99: 1 | CV99: 1 | CW99: 1 | CX99: 1 | CY99: 1 | CZ99: 1 | DA99: 1 | DB99: 1 | DC99: 1 | DD99: 1 | DE99: 1 | DF99: 1 | DG99: 1 | DH99: 1 | DI99: 1 | DJ99: 1 | DK99: 1 | DL99: 1 | DM99: 1 | DN99: 1 | DO99: 1 | DP99: 1 | DQ99: 1 | DR99: 1 | DS99: 1 | DT99: 1 | DU99: 1 | DV99: 1 | DW99: 1 | DX99: 1 | DY99: 1 | DZ99: 1 | EA99: 1 | EB99: 1 | EC99: 1 | ED99: 1 | EE99: 1 | EF99: 1 | EG99: 1 | EH99: 1 | EI99: 1 | EJ99: 1 | EK99: 1 | EL99: 1 | EM99: 1 | EN99: 1 | EO99: 1 | EP99: 1 | EQ99: 1 | ER99: 1 | ES99: 2 | ET99: 2 | EU99: 2 | EV99: 1 | EW99: 1 | EX99: 1 | EY99: 1 | EZ99: 1 | FA99: 1 | FB99: 1 | FC99: 1 | FD99: 1 | FE99: 1 | FF99: 1 | FG99: 1 | FH99: 1 | FI99: 1 | FJ99: 1 | FK99: 1 | FL99: 1 | FM99: 1 | FN99: 1 | FO99: 1 | FP99: 1 | FQ99: 1 | FR99: 1 | FS99: 1 | FT99: 1 | FU99: 1 | FV99: 1 | FW99: 1 | FX99: 1 | FY99: 1 | FZ99: 1 | GA99: 1 | GB99: 1 | GC99: 1 | GD99: 1 | GE99: 1 | GF99: 1 | GG99: 1 | GH99: 1 | GI99: 1 | GJ99: 1 | GK99: 1 | GL99: 1 | GM99: 1 | GN99: 1 | GO99: 1 | GP99: 1 | GQ99: 1 | GR99: 1
A100: 1 | B100: 1 | C100: 1 | D100: 1 | E100: 1 | F100: 1 | G100: 1 | H100: 1 | I100: 1 | J100: 1 | K100: 1 | L100: 1 | M100: 1 | N100: 1 | O100: 1 | P100: 2 | Q100: 2 | R100: 2 | S100: 2 | T100: 2 | U100: 2 | V100: 2 | W100: 2 | X100: 2 | Y100: 2 | Z100: 2 | AA100: 2 | AB100: 2 | AC100: 2 | AD100: 2 | AE100: 2 | AF100: 2 | AG100: 2 | AH100: 2 | AI100: 1 | AJ100: 3 | AK100: 3 | AL100: 3 | AM100: 1 | AN100: 1 | AO100: 1 | AP100: 1 | AQ100: 1 | AR100: 1 | AS100: 2 | AT100: 2 | AU100: 2 | AV100: 2 | AW100: 2 | AX100: 2 | AY100: 2 | AZ100: 2 | BA100: 2 | BB100: 2 | BC100: 2 | BD100: 2 | BE100: 2 | BF100: 2 | BG100: 2 | BH100: 2 | BI100: 1 | BJ100: 1 | BK100: 1 | BL100: 1 | BM100: 1 | BN100: 1 | BO100: 1 | BP100: 1 | BQ100: 1 | BR100: 1 | BS100: 1 | BT100: 1 | BU100: 1 | BV100: 1 | BW100: 1 | BX100: 1 | BY100: 1 | BZ100: 1 | CA100: 1 | CB100: 1 | CC100: 1 | CD100: 1 | CE100: 1 | CF100: 1 | CG100: 1 | CH100: 1 | CI100: 1 | CJ100: 1 | CK100: 1 | CL100: 1 | CM100: 1 | CN100: 1 | CO100: 1 | CP100: 1 | CQ100: 1 | CR100: 1 | CS100: 1 | CT100: 1 | CU100: 1 | CV100: 1 | CW100: 1 | CX100: 1 | CY100: 1 | CZ100: 1 | DA100: 1 | DB100: 1 | DC100: 1 | DD100: 1 | DE100: 1 | DF100: 1 | DG100: 1 | DH100: 1 | DI100: 1 | DJ100: 1 | DK100: 1 | DL100: 1 | DM100: 1 | DN100: 1 | DO100: 1 | DP100: 1 | DQ100: 1 | DR100: 1 | DS100: 1 | DT100: 1 | DU100: 1 | DV100: 1 | DW100: 1 | DX100: 1 | DY100: 1 | DZ100: 1 | EA100: 1 | EB100: 1 | EC100: 1 | ED100: 1 | EE100: 1 | EF100: 1 | EG100: 1 | EH100: 1 | EI100: 1 | EJ100: 1 | EK100: 1 | EL100: 1 | EM100: 1 | EN100: 1 | EO100: 1 | EP100: 1 | EQ100: 1 | ER100: 2 | ES100: 2 | ET100: 2 | EU100: 2 | EV100: 2 | EW100: 2 | EX100: 2 | EY100: 2 | EZ100: 1 | FA100: 1 | FB100: 1 | FC100: 1 | FD100: 1 | FE100: 1 | FF100: 1 | FG100: 1 | FH100: 1 | FI100: 1 | FJ100: 1 | FK100: 1 | FL100: 1 | FM100: 1 | FN100: 1 | FO100: 1 | FP100: 1 | FQ100: 1 | FR100: 1 | FS100: 1 | FT100: 1 | FU100: 1 | FV100: 1 | FW100: 1 | FX100: 1 | FY100: 1 | FZ100: 1 | GA100: 1 | GB100: 1 | GC100: 1 | GD100: 1 | GE100: 1 | GF100: 1 | GG100: 1 | GH100: 1 | GI100: 1 | GJ100: 1 | GK100: 1 | GL100: 1 | GM100: 1 | GN100: 1 | GO100: 1 | GP100: 1 | GQ100: 1 | GR100: 1
A101: 1 | B101: 1 | C101: 1 | D101: 1 | E101: 1 | F101: 1 | G101: 1 | H101: 1 | I101: 1 | J101: 1 | K101: 1 | L101: 1 | M101: 1 | N101: 1 | O101: 1 | P101: 1 | Q101: 2 | R101: 2 | S101: 2 | T101: 2 | U101: 2 | V101: 2 | W101: 2 | X101: 2 | Y101: 2 | Z101: 2 | AA101: 2 | AB101: 2 | AC101: 2 | AD101: 2 | AE101: 2 | AF101: 2 | AG101: 2 | AH101: 1 | AI101: 3 | AJ101: 3 | AK101: 3 | AL101: 3 | AM101: 1 | AN101: 2 | AO101: 2 | AP101: 2 | AQ101: 2 | AR101: 1 | AS101: 2 | AT101: 2 | AU101: 2 | AV101: 2 | AW101: 2 | AX101: 2 | AY101: 2 | AZ101: 2 | BA101: 2 | BB101: 2 | BC101: 2 | BD101: 2 | BE101: 2 | BF101: 2 | BG101: 2 | BH101: 2 | BI101: 1 | BJ101: 1 | BK101: 1 | BL101: 1 | BM101: 1 | BN101: 1 | BO101: 1 | BP101: 1 | BQ101: 1 | BR101: 1 | BS101: 1 | BT101: 1 | BU101: 1 | BV101: 1 | BW101: 1 | BX101: 1 | BY101: 1 | BZ101: 1 | CA101: 1 | CB101: 1 | CC101: 1 | CD101: 1 | CE101: 1 | CF101: 1 | CG101: 1 | CH101: 1 | CI101: 1 | CJ101: 1 | CK101: 1 | CL101: 1 | CM101: 1 | CN101: 1 | CO101: 1 | CP101: 1 | CQ101: 1 | CR101: 1 | CS101: 1 | CT101: 1 | CU101: 1 | CV101: 1 | CW101: 1 | CX101: 1 | CY101: 1 | CZ101: 1 | DA101: 1 | DB101: 1 | DC101: 1 | DD101: 1 | DE101: 1 | DF101: 1 | DG101: 1 | DH101: 1 | DI101: 1 | DJ101: 1 | DK101: 1 | DL101: 1 | DM101: 1 | DN101: 1 | DO101: 1 | DP101: 1 | DQ101: 1 | DR101: 1 | DS101: 1 | DT101: 1 | DU101: 1 | DV101: 1 | DW101: 1 | DX101: 1 | DY101: 1 | DZ101: 1 | EA101: 1 | EB101: 1 | EC101: 1 | ED101: 1 | EE101: 1 | EF101: 1 | EG101: 1 | EH101: 1 | EI101: 1 | EJ101: 1 | EK101: 1 | EL101: 1 | EM101: 1 | EN101: 1 | EO101: 1 | EP101: 1 | EQ101: 1 | ER101: 1 | ES101: 2 | ET101: 2 | EU101: 2 | EV101: 2 | EW101: 2 | EX101: 2 | EY101: 1 | EZ101: 1 | FA101: 1 | FB101: 1 | FC101: 1 | FD101: 1 | FE101: 1 | FF101: 1 | FG101: 1 | FH101: 1 | FI101: 1 | FJ101: 1 | FK101: 1 | FL101: 1 | FM101: 1 | FN101: 1 | FO101: 1 | FP101: 1 | FQ101: 1 | FR101: 1 | FS101: 1 | FT101: 1 | FU101: 1 | FV101: 1 | FW101: 1 | FX101: 1 | FY101: 1 | FZ101: 1 | GA101: 1 | GB101: 1 | GC101: 1 | GD101: 1 | GE101: 1 | GF101: 1 | GG101: 1 | GH101: 1 | GI101: 1 | GJ101: 1 | GK101: 1 | GL101: 1 | GM101: 1 | GN101: 1 | GO101: 1 | GP101: 1 | GQ101: 1 | GR101: 1
A102: 1 | B102: 1 | C102: 1 | D102: 1 | E102: 1 | F102: 1 | G102: 1 | H102: 1 | I102: 1 | J102: 1 | K102: 1 | L102: 1 | M102: 1 | N102: 1 | O102: 1 | P102: 1 | Q102: 2 | R102: 2 | S102: 2 | T102: 2 | U102: 2 | V102: 2 | W102: 2 | X102: 2 | Y102: 2 | Z102: 2 | AA102: 2 | AB102: 2 | AC102: 2 | AD102: 2 | AE102: 2 | AF102: 2 | AG102: 1 | AH102: 3 | AI102: 3 | AJ102: 3 | AK102: 3 | AL102: 2 | AM102: 2 | AN102: 2 | AO102: 2 | AP102: 2 | AQ102: 2 | AR102: 2 | AS102: 2 | AT102: 2 | AU102: 2 | AV102: 2 | AW102: 2 | AX102: 2 | AY102: 2 | AZ102: 2 | BA102: 2 | BB102: 2 | BC102: 2 | BD102: 2 | BE102: 2 | BF102: 2 | BG102: 2 | BH102: 1 | BI102: 1 | BJ102: 1 | BK102: 1 | BL102: 1 | BM102: 1 | BN102: 1 | BO102: 1 | BP102: 1 | BQ102: 1 | BR102: 1 | BS102: 1 | BT102: 1 | BU102: 1 | BV102: 1 | BW102: 1 | BX102: 1 | BY102: 1 | BZ102: 1 | CA102: 1 | CB102: 1 | CC102: 1 | CD102: 1 | CE102: 1 | CF102: 1 | CG102: 1 | CH102: 1 | CI102: 1 | CJ102: 1 | CK102: 1 | CL102: 1 | CM102: 1 | CN102: 1 | CO102: 1 | CP102: 1 | CQ102: 1 | CR102: 1 | CS102: 1 | CT102: 1 | CU102: 1 | CV102: 1 | CW102: 1 | CX102: 1 | CY102: 1 | CZ102: 1 | DA102: 1 | DB102: 1 | DC102: 1 | DD102: 1 | DE102: 1 | DF102: 1 | DG102: 1 | DH102: 1 | DI102: 1 | DJ102: 1 | DK102: 1 | DL102: 1 | DM102: 1 | DN102: 1 | DO102: 1 | DP102: 1 | DQ102: 1 | DR102: 1 | DS102: 1 | DT102: 1 | DU102: 1 | DV102: 1 | DW102: 1 | DX102: 1 | DY102: 1 | DZ102: 1 | EA102: 1 | EB102: 1 | EC102: 1 | ED102: 1 | EE102: 1 | EF102: 1 | EG102: 1 | EH102: 1 | EI102: 1 | EJ102: 1 | EK102: 1 | EL102: 1 | EM102: 1 | EN102: 1 | EO102: 1 | EP102: 1 | EQ102: 1 | ER102: 1 | ES102: 1 | ET102: 2 | EU102: 2 | EV102: 2 | EW102: 2 | EX102: 1 | EY102: 1 | EZ102: 1 | FA102: 1 | FB102: 1 | FC102: 1 | FD102: 1 | FE102: 1 | FF102: 1 | FG102: 1 | FH102: 1 | FI102: 1 | FJ102: 1 | FK102: 1 | FL102: 1 | FM102: 1 | FN102: 1 | FO102: 1 | FP102: 1 | FQ102: 1 | FR102: 1 | FS102: 1 | FT102: 1 | FU102: 1 | FV102: 1 | FW102: 1 | FX102: 1 | FY102: 1 | FZ102: 1 | GA102: 1 | GB102: 1 | GC102: 1 | GD102: 1 | GE102: 1 | GF102: 1 | GG102: 1 | GH102: 1 | GI102: 1 | GJ102: 1 | GK102: 1 | GL102: 1 | GM102: 1 | GN102: 1 | GO102: 1 | GP102: 1 | GQ102: 1 | GR102: 1
A103: 1 | B103: 1 | C103: 1 | D103: 1 | E103: 1 | F103: 1 | G103: 1 | H103: 1 | I103: 1 | J103: 1 | K103: 1 | L103: 1 | M103: 1 | N103: 1 | O103: 1 | P103: 1 | Q103: 1 | R103: 2 | S103: 2 | T103: 2 | U103: 2 | V103: 2 | W103: 2 | X103: 2 | Y103: 2 | Z103: 2 | AA103: 2 | AB103: 2 | AC103: 2 | AD103: 2 | AE103: 2 | AF103: 1 | AG103: 1 | AH103: 3 | AI103: 3 | AJ103: 3 | AK103: 2 | AL103: 2 | AM103: 2 | AN103: 2 | AO103: 2 | AP103: 2 | AQ103: 2 | AR103: 2 | AS103: 2 | AT103: 2 | AU103: 2 | AV103: 2 | AW103: 2 | AX103: 2 | AY103: 2 | AZ103: 2 | BA103: 2 | BB103: 2 | BC103: 2 | BD103: 2 | BE103: 2 | BF103: 2 | BG103: 2 | BH103: 2 | BI103: 1 | BJ103: 1 | BK103: 1 | BL103: 1 | BM103: 1 | BN103: 1 | BO103: 1 | BP103: 1 | BQ103: 1 | BR103: 1 | BS103: 1 | BT103: 1 | BU103: 1 | BV103: 1 | BW103: 1 | BX103: 1 | BY103: 1 | BZ103: 1 | CA103: 1 | CB103: 1 | CC103: 1 | CD103: 1 | CE103: 1 | CF103: 1 | CG103: 1 | CH103: 1 | CI103: 1 | CJ103: 1 | CK103: 1 | CL103: 1 | CM103: 1 | CN103: 1 | CO103: 1 | CP103: 1 | CQ103: 1 | CR103: 1 | CS103: 1 | CT103: 1 | CU103: 1 | CV103: 1 | CW103: 1 | CX103: 1 | CY103: 1 | CZ103: 1 | DA103: 1 | DB103: 1 | DC103: 1 | DD103: 1 | DE103: 1 | DF103: 1 | DG103: 1 | DH103: 1 | DI103: 1 | DJ103: 1 | DK103: 1 | DL103: 1 | DM103: 1 | DN103: 1 | DO103: 1 | DP103: 1 | DQ103: 1 | DR103: 1 | DS103: 1 | DT103: 1 | DU103: 1 | DV103: 1 | DW103: 1 | DX103: 1 | DY103: 1 | DZ103: 1 | EA103: 1 | EB103: 1 | EC103: 1 | ED103: 1 | EE103: 1 | EF103: 1 | EG103: 1 | EH103: 1 | EI103: 1 | EJ103: 1 | EK103: 1 | EL103: 1 | EM103: 1 | EN103: 1 | EO103: 1 | EP103: 1 | EQ103: 1 | ER103: 1 | ES103: 1 | ET103: 2 | EU103: 2 | EV103: 2 | EW103: 1 | EX103: 1 | EY103: 1 | EZ103: 1 | FA103: 1 | FB103: 1 | FC103: 1 | FD103: 1 | FE103: 1 | FF103: 1 | FG103: 1 | FH103: 1 | FI103: 1 | FJ103: 1 | FK103: 1 | FL103: 1 | FM103: 1 | FN103: 1 | FO103: 1 | FP103: 1 | FQ103: 1 | FR103: 1 | FS103: 1 | FT103: 1 | FU103: 1 | FV103: 1 | FW103: 1 | FX103: 1 | FY103: 1 | FZ103: 1 | GA103: 1 | GB103: 1 | GC103: 1 | GD103: 1 | GE103: 1 | GF103: 1 | GG103: 1 | GH103: 1 | GI103: 1 | GJ103: 1 | GK103: 1 | GL103: 1 | GM103: 1 | GN103: 1 | GO103: 1 | GP103: 1 | GQ103: 1 | GR103: 1
A104: 1 | B104: 1 | C104: 1 | D104: 1 | E104: 1 | F104: 1 | G104: 1 | H104: 1 | I104: 1 | J104: 1 | K104: 1 | L104: 1 | M104: 1 | N104: 1 | O104: 1 | P104: 1 | Q104: 2 | R104: 2 | S104: 2 | T104: 2 | U104: 2 | V104: 2 | W104: 2 | X104: 2 | Y104: 2 | Z104: 2 | AA104: 2 | AB104: 2 | AC104: 2 | AD104: 2 | AE104: 1 | AF104: 1 | AG104: 1 | AH104: 3 | AI104: 3 | AJ104: 2 | AK104: 2 | AL104: 2 | AM104: 2 | AN104: 2 | AO104: 2 | AP104: 2 | AQ104: 2 | AR104: 2 | AS104: 2 | AT104: 2 | AU104: 2 | AV104: 2 | AW104: 2 | AX104: 2 | AY104: 2 | AZ104: 2 | BA104: 2 | BB104: 2 | BC104: 2 | BD104: 2 | BE104: 2 | BF104: 2 | BG104: 2 | BH104: 2 | BI104: 1 | BJ104: 1 | BK104: 1 | BL104: 1 | BM104: 1 | BN104: 1 | BO104: 1 | BP104: 1 | BQ104: 1 | BR104: 1 | BS104: 1 | BT104: 1 | BU104: 1 | BV104: 1 | BW104: 1 | BX104: 1 | BY104: 1 | BZ104: 1 | CA104: 1 | CB104: 1 | CC104: 1 | CD104: 1 | CE104: 1 | CF104: 1 | CG104: 1 | CH104: 1 | CI104: 1 | CJ104: 1 | CK104: 1 | CL104: 1 | CM104: 1 | CN104: 1 | CO104: 1 | CP104: 1 | CQ104: 1 | CR104: 1 | CS104: 1 | CT104: 1 | CU104: 1 | CV104: 1 | CW104: 1 | CX104: 1 | CY104: 1 | CZ104: 1 | DA104: 1 | DB104: 1 | DC104: 1 | DD104: 1 | DE104: 1 | DF104: 1 | DG104: 1 | DH104: 1 | DI104: 1 | DJ104: 1 | DK104: 1 | DL104: 1 | DM104: 1 | DN104: 1 | DO104: 1 | DP104: 1 | DQ104: 1 | DR104: 1 | DS104: 1 | DT104: 1 | DU104: 1 | DV104: 1 | DW104: 1 | DX104: 1 | DY104: 1 | DZ104: 1 | EA104: 1 | EB104: 1 | EC104: 1 | ED104: 1 | EE104: 1 | EF104: 1 | EG104: 1 | EH104: 1 | EI104: 1 | EJ104: 1 | EK104: 1 | EL104: 1 | EM104: 1 | EN104: 1 | EO104: 1 | EP104: 1 | EQ104: 1 | ER104: 1 | ES104: 1 | ET104: 2 | EU104: 2 | EV104: 1 | EW104: 1 | EX104: 1 | EY104: 1 | EZ104: 1 | FA104: 1 | FB104: 1 | FC104: 1 | FD104: 1 | FE104: 1 | FF104: 1 | FG104: 1 | FH104: 1 | FI104: 1 | FJ104: 1 | FK104: 1 | FL104: 1 | FM104: 1 | FN104: 1 | FO104: 1 | FP104: 1 | FQ104: 1 | FR104: 1 | FS104: 1 | FT104: 1 | FU104: 1 | FV104: 1 | FW104: 1 | FX104: 1 | FY104: 1 | FZ104: 1 | GA104: 1 | GB104: 1 | GC104: 1 | GD104: 1 | GE104: 1 | GF104: 1 | GG104: 1 | GH104: 1 | GI104: 1 | GJ104: 1 | GK104: 1 | GL104: 1 | GM104: 1 | GN104: 1 | GO104: 1 | GP104: 1 | GQ104: 1 | GR104: 1
A105: 1 | B105: 1 | C105: 1 | D105: 1 | E105: 1 | F105: 1 | G105: 1 | H105: 1 | I105: 1 | J105: 1 | K105: 1 | L105: 1 | M105: 1 | N105: 1 | O105: 1 | P105: 2 | Q105: 2 | R105: 2 | S105: 2 | T105: 2 | U105: 2 | V105: 2 | W105: 2 | X105: 2 | Y105: 2 | Z105: 2 | AA105: 2 | AB105: 2 | AC105: 2 | AD105: 1 | AE105: 1 | AF105: 1 | AG105: 3 | AH105: 3 | AI105: 2 | AJ105: 2 | AK105: 2 | AL105: 2 | AM105: 2 | AN105: 2 | AO105: 2 | AP105: 2 | AQ105: 2 | AR105: 2 | AS105: 2 | AT105: 2 | AU105: 2 | AV105: 2 | AW105: 2 | AX105: 2 | AY105: 2 | AZ105: 2 | BA105: 2 | BB105: 2 | BC105: 2 | BD105: 2 | BE105: 2 | BF105: 2 | BG105: 2 | BH105: 2 | BI105: 1 | BJ105: 1 | BK105: 1 | BL105: 1 | BM105: 1 | BN105: 1 | BO105: 1 | BP105: 1 | BQ105: 1 | BR105: 1 | BS105: 1 | BT105: 1 | BU105: 1 | BV105: 1 | BW105: 1 | BX105: 1 | BY105: 1 | BZ105: 1 | CA105: 1 | CB105: 1 | CC105: 1 | CD105: 1 | CE105: 1 | CF105: 1 | CG105: 1 | CH105: 1 | CI105: 1 | CJ105: 1 | CK105: 1 | CL105: 1 | CM105: 1 | CN105: 1 | CO105: 1 | CP105: 1 | CQ105: 1 | CR105: 1 | CS105: 1 | CT105: 1 | CU105: 1 | CV105: 1 | CW105: 1 | CX105: 1 | CY105: 1 | CZ105: 1 | DA105: 1 | DB105: 1 | DC105: 1 | DD105: 1 | DE105: 1 | DF105: 1 | DG105: 1 | DH105: 1 | DI105: 1 | DJ105: 1 | DK105: 1 | DL105: 1 | DM105: 1 | DN105: 1 | DO105: 1 | DP105: 1 | DQ105: 1 | DR105: 1 | DS105: 1 | DT105: 1 | DU105: 1 | DV105: 1 | DW105: 1 | DX105: 1 | DY105: 1 | DZ105: 1 | EA105: 1 | EB105: 1 | EC105: 1 | ED105: 1 | EE105: 1 | EF105: 1 | EG105: 1 | EH105: 1 | EI105: 1 | EJ105: 1 | EK105: 1 | EL105: 1 | EM105: 1 | EN105: 1 | EO105: 1 | EP105: 1 | EQ105: 1 | ER105: 1 | ES105: 1 | ET105: 1 | EU105: 1 | EV105: 1 | EW105: 1 | EX105: 1 | EY105: 1 | EZ105: 1 | FA105: 1 | FB105: 1 | FC105: 1 | FD105: 1 | FE105: 1 | FF105: 1 | FG105: 1 | FH105: 1 | FI105: 1 | FJ105: 1 | FK105: 1 | FL105: 1 | FM105: 1 | FN105: 1 | FO105: 1 | FP105: 1 | FQ105: 1 | FR105: 1 | FS105: 1 | FT105: 1 | FU105: 1 | FV105: 1 | FW105: 1 | FX105: 1 | FY105: 1 | FZ105: 1 | GA105: 1 | GB105: 1 | GC105: 1 | GD105: 1 | GE105: 1 | GF105: 1 | GG105: 1 | GH105: 1 | GI105: 1 | GJ105: 1 | GK105: 1 | GL105: 1 | GM105: 1 | GN105: 1 | GO105: 1 | GP105: 1 | GQ105: 1 | GR105: 1
A106: 1 | B106: 1 | C106: 1 | D106: 1 | E106: 1 | F106: 1 | G106: 1 | H106: 1 | I106: 1 | J106: 1 | K106: 1 | L106: 1 | M106: 1 | N106: 1 | O106: 1 | P106: 2 | Q106: 2 | R106: 2 | S106: 2 | T106: 2 | U106: 2 | V106: 2 | W106: 2 | X106: 2 | Y106: 2 | Z106: 2 | AA106: 2 | AB106: 2 | AC106: 2 | AD106: 1 | AE106: 1 | AF106: 1 | AG106: 3 | AH106: 2 | AI106: 2 | AJ106: 2 | AK106: 2 | AL106: 2 | AM106: 2 | AN106: 2 | AO106: 2 | AP106: 2 | AQ106: 2 | AR106: 2 | AS106: 2 | AT106: 2 | AU106: 2 | AV106: 1 | AW106: 2 | AX106: 2 | AY106: 2 | AZ106: 2 | BA106: 2 | BB106: 2 | BC106: 2 | BD106: 2 | BE106: 2 | BF106: 2 | BG106: 2 | BH106: 1 | BI106: 1 | BJ106: 1 | BK106: 1 | BL106: 1 | BM106: 1 | BN106: 1 | BO106: 1 | BP106: 1 | BQ106: 1 | BR106: 1 | BS106: 1 | BT106: 1 | BU106: 1 | BV106: 1 | BW106: 1 | BX106: 1 | BY106: 1 | BZ106: 1 | CA106: 1 | CB106: 1 | CC106: 1 | CD106: 1 | CE106: 1 | CF106: 1 | CG106: 1 | CH106: 1 | CI106: 1 | CJ106: 1 | CK106: 1 | CL106: 1 | CM106: 1 | CN106: 1 | CO106: 1 | CP106: 1 | CQ106: 1 | CR106: 1 | CS106: 1 | CT106: 1 | CU106: 1 | CV106: 1 | CW106: 1 | CX106: 1 | CY106: 1 | CZ106: 1 | DA106: 1 | DB106: 1 | DC106: 1 | DD106: 1 | DE106: 1 | DF106: 1 | DG106: 1 | DH106: 1 | DI106: 1 | DJ106: 1 | DK106: 1 | DL106: 1 | DM106: 1 | DN106: 1 | DO106: 1 | DP106: 1 | DQ106: 1 | DR106: 1 | DS106: 1 | DT106: 1 | DU106: 1 | DV106: 1 | DW106: 1 | DX106: 1 | DY106: 1 | DZ106: 1 | EA106: 1 | EB106: 1 | EC106: 1 | ED106: 1 | EE106: 1 | EF106: 1 | EG106: 1 | EH106: 1 | EI106: 1 | EJ106: 1 | EK106: 1 | EL106: 1 | EM106: 1 | EN106: 1 | EO106: 1 | EP106: 1 | EQ106: 1 | ER106: 1 | ES106: 1 | ET106: 1 | EU106: 1 | EV106: 1 | EW106: 1 | EX106: 1 | EY106: 1 | EZ106: 1 | FA106: 1 | FB106: 1 | FC106: 1 | FD106: 1 | FE106: 1 | FF106: 1 | FG106: 1 | FH106: 1 | FI106: 1 | FJ106: 1 | FK106: 1 | FL106: 1 | FM106: 1 | FN106: 1 | FO106: 1 | FP106: 1 | FQ106: 1 | FR106: 1 | FS106: 1 | FT106: 1 | FU106: 1 | FV106: 1 | FW106: 1 | FX106: 1 | FY106: 1 | FZ106: 1 | GA106: 1 | GB106: 1 | GC106: 1 | GD106: 1 | GE106: 1 | GF106: 1 | GG106: 1 | GH106: 1 | GI106: 1 | GJ106: 1 | GK106: 1 | GL106: 1 | GM106: 1 | GN106: 1 | GO106: 1 | GP106: 1 | GQ106: 1 | GR106: 1
A107: 1 | B107: 1 | C107: 1 | D107: 1 | E107: 1 | F107: 1 | G107: 1 | H107: 1 | I107: 1 | J107: 1 | K107: 1 | L107: 1 | M107: 1 | N107: 1 | O107: 2 | P107: 2 | Q107: 2 | R107: 2 | S107: 2 | T107: 2 | U107: 2 | V107: 2 | W107: 2 | X107: 2 | Y107: 2 | Z107: 2 | AA107: 2 | AB107: 2 | AC107: 1 | AD107: 1 | AE107: 1 | AF107: 3 | AG107: 3 | AH107: 2 | AI107: 2 | AJ107: 2 | AK107: 2 | AL107: 2 | AM107: 2 | AN107: 2 | AO107: 2 | AP107: 2 | AQ107: 2 | AR107: 2 | AS107: 2 | AT107: 2 | AU107: 1 | AV107: 1 | AW107: 1 | AX107: 2 | AY107: 2 | AZ107: 2 | BA107: 2 | BB107: 2 | BC107: 2 | BD107: 2 | BE107: 1 | BF107: 1 | BG107: 1 | BH107: 1 | BI107: 1 | BJ107: 1 | BK107: 1 | BL107: 1 | BM107: 1 | BN107: 1 | BO107: 1 | BP107: 1 | BQ107: 1 | BR107: 1 | BS107: 1 | BT107: 1 | BU107: 1 | BV107: 1 | BW107: 1 | BX107: 1 | BY107: 1 | BZ107: 1 | CA107: 1 | CB107: 1 | CC107: 1 | CD107: 1 | CE107: 1 | CF107: 1 | CG107: 1 | CH107: 1 | CI107: 1 | CJ107: 1 | CK107: 1 | CL107: 1 | CM107: 1 | CN107: 1 | CO107: 1 | CP107: 1 | CQ107: 1 | CR107: 1 | CS107: 1 | CT107: 1 | CU107: 1 | CV107: 1 | CW107: 1 | CX107: 1 | CY107: 1 | CZ107: 1 | DA107: 1 | DB107: 1 | DC107: 1 | DD107: 1 | DE107: 1 | DF107: 1 | DG107: 1 | DH107: 1 | DI107: 1 | DJ107: 1 | DK107: 1 | DL107: 1 | DM107: 1 | DN107: 1 | DO107: 1 | DP107: 1 | DQ107: 1 | DR107: 1 | DS107: 1 | DT107: 1 | DU107: 1 | DV107: 1 | DW107: 1 | DX107: 1 | DY107: 1 | DZ107: 1 | EA107: 1 | EB107: 1 | EC107: 1 | ED107: 1 | EE107: 1 | EF107: 1 | EG107: 1 | EH107: 1 | EI107: 1 | EJ107: 1 | EK107: 1 | EL107: 1 | EM107: 1 | EN107: 1 | EO107: 1 | EP107: 1 | EQ107: 1 | ER107: 1 | ES107: 1 | ET107: 1 | EU107: 1 | EV107: 1 | EW107: 1 | EX107: 1 | EY107: 1 | EZ107: 1 | FA107: 1 | FB107: 1 | FC107: 1 | FD107: 1 | FE107: 1 | FF107: 1 | FG107: 1 | FH107: 1 | FI107: 1 | FJ107: 1 | FK107: 1 | FL107: 1 | FM107: 1 | FN107: 1 | FO107: 1 | FP107: 1 | FQ107: 1 | FR107: 1 | FS107: 1 | FT107: 1 | FU107: 1 | FV107: 1 | FW107: 1 | FX107: 1 | FY107: 1 | FZ107: 1 | GA107: 1 | GB107: 1 | GC107: 1 | GD107: 1 | GE107: 1 | GF107: 1 | GG107: 1 | GH107: 1 | GI107: 1 | GJ107: 1 | GK107: 1 | GL107: 1 | GM107: 1 | GN107: 1 | GO107: 1 | GP107: 1 | GQ107: 1 | GR107: 1
A108: 1 | B108: 1 | C108: 1 | D108: 1 | E108: 1 | F108: 1 | G108: 1 | H108: 1 | I108: 1 | J108: 1 | K108: 1 | L108: 1 | M108: 1 | N108: 1 | O108: 2 | P108: 2 | Q108: 2 | R108: 2 | S108: 2 | T108: 2 | U108: 2 | V108: 2 | W108: 2 | X108: 2 | Y108: 2 | Z108: 2 | AA108: 2 | AB108: 2 | AC108: 1 | AD108: 1 | AE108: 3 | AF108: 3 | AG108: 2 | AH108: 2 | AI108: 2 | AJ108: 2 | AK108: 2 | AL108: 2 | AM108: 2 | AN108: 2 | AO108: 2 | AP108: 2 | AQ108: 2 | AR108: 2 | AS108: 2 | AT108: 1 | AU108: 1 | AV108: 1 | AW108: 1 | AX108: 2 | AY108: 2 | AZ108: 2 | BA108: 2 | BB108: 2 | BC108: 1 | BD108: 1 | BE108: 1 | BF108: 1 | BG108: 1 | BH108: 1 | BI108: 1 | BJ108: 1 | BK108: 1 | BL108: 1 | BM108: 1 | BN108: 1 | BO108: 1 | BP108: 1 | BQ108: 1 | BR108: 1 | BS108: 1 | BT108: 1 | BU108: 1 | BV108: 1 | BW108: 1 | BX108: 1 | BY108: 1 | BZ108: 1 | CA108: 1 | CB108: 1 | CC108: 1 | CD108: 1 | CE108: 1 | CF108: 1 | CG108: 1 | CH108: 1 | CI108: 1 | CJ108: 1 | CK108: 1 | CL108: 1 | CM108: 1 | CN108: 1 | CO108: 1 | CP108: 1 | CQ108: 1 | CR108: 1 | CS108: 1 | CT108: 1 | CU108: 1 | CV108: 1 | CW108: 1 | CX108: 1 | CY108: 1 | CZ108: 1 | DA108: 1 | DB108: 1 | DC108: 1 | DD108: 1 | DE108: 1 | DF108: 1 | DG108: 1 | DH108: 1 | DI108: 1 | DJ108: 1 | DK108: 1 | DL108: 1 | DM108: 1 | DN108: 1 | DO108: 1 | DP108: 1 | DQ108: 1 | DR108: 1 | DS108: 1 | DT108: 1 | DU108: 1 | DV108: 1 | DW108: 1 | DX108: 1 | DY108: 1 | DZ108: 1 | EA108: 1 | EB108: 1 | EC108: 1 | ED108: 1 | EE108: 1 | EF108: 1 | EG108: 1 | EH108: 1 | EI108: 1 | EJ108: 1 | EK108: 1 | EL108: 2 | EM108: 1 | EN108: 1 | EO108: 1 | EP108: 1 | EQ108: 1 | ER108: 1 | ES108: 1 | ET108: 1 | EU108: 1 | EV108: 1 | EW108: 1 | EX108: 1 | EY108: 1 | EZ108: 2 | FA108: 2 | FB108: 1 | FC108: 1 | FD108: 1 | FE108: 1 | FF108: 1 | FG108: 1 | FH108: 1 | FI108: 1 | FJ108: 1 | FK108: 1 | FL108: 1 | FM108: 1 | FN108: 1 | FO108: 1 | FP108: 1 | FQ108: 1 | FR108: 1 | FS108: 1 | FT108: 1 | FU108: 1 | FV108: 1 | FW108: 1 | FX108: 1 | FY108: 1 | FZ108: 1 | GA108: 1 | GB108: 1 | GC108: 1 | GD108: 1 | GE108: 1 | GF108: 1 | GG108: 1 | GH108: 1 | GI108: 1 | GJ108: 1 | GK108: 1 | GL108: 1 | GM108: 1 | GN108: 1 | GO108: 1 | GP108: 1 | GQ108: 1 | GR108: 1
A109: 1 | B109: 1 | C109: 1 | D109: 1 | E109: 1 | F109: 1 | G109: 1 | H109: 1 | I109: 1 | J109: 1 | K109: 1 | L109: 1 | M109: 1 | N109: 1 | O109: 1 | P109: 2 | Q109: 2 | R109: 2 | S109: 2 | T109: 2 | U109: 2 | V109: 2 | W109: 2 | X109: 2 | Y109: 2 | Z109: 2 | AA109: 2 | AB109: 2 | AC109: 3 | AD109: 3 | AE109: 3 | AF109: 3 | AG109: 2 | AH109: 2 | AI109: 2 | AJ109: 2 | AK109: 2 | AL109: 2 | AM109: 2 | AN109: 2 | AO109: 2 | AP109: 2 | AQ109: 2 | AR109: 2 | AS109: 1 | AT109: 1 | AU109: 1 | AV109: 1 | AW109: 1 | AX109: 1 | AY109: 2 | AZ109: 2 | BA109: 1 | BB109: 1 | BC109: 1 | BD109: 1 | BE109: 1 | BF109: 1 | BG109: 1 | BH109: 1 | BI109: 1 | BJ109: 1 | BK109: 1 | BL109: 1 | BM109: 1 | BN109: 1 | BO109: 1 | BP109: 1 | BQ109: 1 | BR109: 1 | BS109: 1 | BT109: 1 | BU109: 1 | BV109: 1 | BW109: 1 | BX109: 1 | BY109: 1 | BZ109: 1 | CA109: 1 | CB109: 1 | CC109: 1 | CD109: 1 | CE109: 1 | CF109: 1 | CG109: 1 | CH109: 1 | CI109: 1 | CJ109: 1 | CK109: 1 | CL109: 1 | CM109: 1 | CN109: 1 | CO109: 1 | CP109: 1 | CQ109: 1 | CR109: 1 | CS109: 1 | CT109: 1 | CU109: 1 | CV109: 1 | CW109: 1 | CX109: 1 | CY109: 1 | CZ109: 1 | DA109: 1 | DB109: 1 | DC109: 1 | DD109: 1 | DE109: 1 | DF109: 1 | DG109: 1 | DH109: 1 | DI109: 1 | DJ109: 1 | DK109: 1 | DL109: 1 | DM109: 1 | DN109: 1 | DO109: 1 | DP109: 1 | DQ109: 1 | DR109: 1 | DS109: 1 | DT109: 1 | DU109: 1 | DV109: 1 | DW109: 1 | DX109: 1 | DY109: 1 | DZ109: 1 | EA109: 1 | EB109: 1 | EC109: 1 | ED109: 1 | EE109: 1 | EF109: 1 | EG109: 1 | EH109: 1 | EI109: 2 | EJ109: 2 | EK109: 2 | EL109: 2 | EM109: 2 | EN109: 2 | EO109: 2 | EP109: 2 | EQ109: 2 | ER109: 2 | ES109: 2 | ET109: 1 | EU109: 1 | EV109: 1 | EW109: 1 | EX109: 1 | EY109: 2 | EZ109: 2 | FA109: 2 | FB109: 2 | FC109: 1 | FD109: 1 | FE109: 1 | FF109: 1 | FG109: 1 | FH109: 1 | FI109: 1 | FJ109: 1 | FK109: 1 | FL109: 1 | FM109: 1 | FN109: 1 | FO109: 1 | FP109: 1 | FQ109: 1 | FR109: 1 | FS109: 1 | FT109: 1 | FU109: 1 | FV109: 1 | FW109: 1 | FX109: 1 | FY109: 1 | FZ109: 1 | GA109: 1 | GB109: 1 | GC109: 1 | GD109: 1 | GE109: 1 | GF109: 1 | GG109: 1 | GH109: 1 | GI109: 1 | GJ109: 1 | GK109: 1 | GL109: 1 | GM109: 1 | GN109: 1 | GO109: 1 | GP109: 1 | GQ109: 1 | GR109: 1
A110: 1 | B110: 1 | C110: 1 | D110: 1 | E110: 1 | F110: 1 | G110: 1 | H110: 1 | I110: 1 | J110: 1 | K110: 1 | L110: 1 | M110: 1 | N110: 1 | O110: 1 | P110: 2 | Q110: 2 | R110: 2 | S110: 2 | T110: 2 | U110: 2 | V110: 2 | W110: 2 | X110: 2 | Y110: 2 | Z110: 2 | AA110: 2 | AB110: 2 | AC110: 3 | AD110: 3 | AE110: 3 | AF110: 2 | AG110: 2 | AH110: 2 | AI110: 2 | AJ110: 2 | AK110: 2 | AL110: 2 | AM110: 2 | AN110: 2 | AO110: 2 | AP110: 2 | AQ110: 2 | AR110: 2 | AS110: 1 | AT110: 1 | AU110: 1 | AV110: 1 | AW110: 1 | AX110: 1 | AY110: 1 | AZ110: 1 | BA110: 1 | BB110: 1 | BC110: 1 | BD110: 1 | BE110: 1 | BF110: 1 | BG110: 1 | BH110: 1 | BI110: 1 | BJ110: 1 | BK110: 1 | BL110: 1 | BM110: 1 | BN110: 1 | BO110: 1 | BP110: 1 | BQ110: 1 | BR110: 1 | BS110: 1 | BT110: 1 | BU110: 1 | BV110: 1 | BW110: 1 | BX110: 1 | BY110: 1 | BZ110: 1 | CA110: 1 | CB110: 1 | CC110: 1 | CD110: 1 | CE110: 1 | CF110: 1 | CG110: 1 | CH110: 1 | CI110: 1 | CJ110: 1 | CK110: 1 | CL110: 1 | CM110: 1 | CN110: 1 | CO110: 1 | CP110: 1 | CQ110: 1 | CR110: 1 | CS110: 1 | CT110: 1 | CU110: 1 | CV110: 1 | CW110: 1 | CX110: 1 | CY110: 1 | CZ110: 1 | DA110: 1 | DB110: 1 | DC110: 1 | DD110: 1 | DE110: 1 | DF110: 1 | DG110: 1 | DH110: 1 | DI110: 1 | DJ110: 1 | DK110: 1 | DL110: 1 | DM110: 1 | DN110: 1 | DO110: 1 | DP110: 1 | DQ110: 1 | DR110: 1 | DS110: 1 | DT110: 1 | DU110: 1 | DV110: 1 | DW110: 1 | DX110: 1 | DY110: 1 | DZ110: 1 | EA110: 1 | EB110: 1 | EC110: 1 | ED110: 1 | EE110: 1 | EF110: 1 | EG110: 1 | EH110: 2 | EI110: 2 | EJ110: 2 | EK110: 2 | EL110: 2 | EM110: 2 | EN110: 2 | EO110: 2 | EP110: 2 | EQ110: 2 | ER110: 2 | ES110: 2 | ET110: 2 | EU110: 1 | EV110: 1 | EW110: 1 | EX110: 1 | EY110: 2 | EZ110: 2 | FA110: 2 | FB110: 2 | FC110: 1 | FD110: 1 | FE110: 1 | FF110: 1 | FG110: 1 | FH110: 1 | FI110: 1 | FJ110: 1 | FK110: 1 | FL110: 1 | FM110: 1 | FN110: 1 | FO110: 1 | FP110: 1 | FQ110: 1 | FR110: 1 | FS110: 1 | FT110: 1 | FU110: 1 | FV110: 1 | FW110: 1 | FX110: 1 | FY110: 1 | FZ110: 1 | GA110: 1 | GB110: 1 | GC110: 1 | GD110: 1 | GE110: 1 | GF110: 1 | GG110: 1 | GH110: 1 | GI110: 1 | GJ110: 1 | GK110: 1 | GL110: 1 | GM110: 1 | GN110: 1 | GO110: 1 | GP110: 1 | GQ110: 1 | GR110: 1
A111: 1 | B111: 1 | C111: 1 | D111: 1 | E111: 1 | F111: 1 | G111: 1 | H111: 1 | I111: 1 | J111: 1 | K111: 1 | L111: 1 | M111: 1 | N111: 1 | O111: 1 | P111: 1 | Q111: 2 | R111: 2 | S111: 2 | T111: 2 | U111: 2 | V111: 2 | W111: 2 | X111: 2 | Y111: 2 | Z111: 2 | AA111: 2 | AB111: 3 | AC111: 3 | AD111: 3 | AE111: 2 | AF111: 2 | AG111: 2 | AH111: 2 | AI111: 2 | AJ111: 2 | AK111: 2 | AL111: 2 | AM111: 2 | AN111: 2 | AO111: 2 | AP111: 2 | AQ111: 2 | AR111: 1 | AS111: 1 | AT111: 1 | AU111: 1 | AV111: 1 | AW111: 1 | AX111: 1 | AY111: 1 | AZ111: 1 | BA111: 1 | BB111: 1 | BC111: 1 | BD111: 1 | BE111: 1 | BF111: 1 | BG111: 1 | BH111: 1 | BI111: 1 | BJ111: 1 | BK111: 1 | BL111: 1 | BM111: 1 | BN111: 1 | BO111: 1 | BP111: 1 | BQ111: 1 | BR111: 1 | BS111: 1 | BT111: 1 | BU111: 1 | BV111: 1 | BW111: 1 | BX111: 1 | BY111: 1 | BZ111: 1 | CA111: 1 | CB111: 1 | CC111: 1 | CD111: 1 | CE111: 1 | CF111: 1 | CG111: 1 | CH111: 1 | CI111: 1 | CJ111: 1 | CK111: 1 | CL111: 1 | CM111: 1 | CN111: 1 | CO111: 1 | CP111: 1 | CQ111: 1 | CR111: 1 | CS111: 1 | CT111: 1 | CU111: 1 | CV111: 1 | CW111: 1 | CX111: 1 | CY111: 1 | CZ111: 1 | DA111: 1 | DB111: 1 | DC111: 1 | DD111: 1 | DE111: 1 | DF111: 1 | DG111: 1 | DH111: 1 | DI111: 1 | DJ111: 1 | DK111: 1 | DL111: 1 | DM111: 1 | DN111: 1 | DO111: 1 | DP111: 1 | DQ111: 1 | DR111: 1 | DS111: 1 | DT111: 1 | DU111: 1 | DV111: 1 | DW111: 1 | DX111: 1 | DY111: 1 | DZ111: 1 | EA111: 1 | EB111: 1 | EC111: 1 | ED111: 1 | EE111: 1 | EF111: 1 | EG111: 1 | EH111: 2 | EI111: 2 | EJ111: 2 | EK111: 2 | EL111: 2 | EM111: 2 | EN111: 2 | EO111: 2 | EP111: 2 | EQ111: 2 | ER111: 2 | ES111: 2 | ET111: 2 | EU111: 2 | EV111: 1 | EW111: 1 | EX111: 1 | EY111: 2 | EZ111: 2 | FA111: 2 | FB111: 2 | FC111: 1 | FD111: 1 | FE111: 1 | FF111: 1 | FG111: 1 | FH111: 1 | FI111: 1 | FJ111: 1 | FK111: 1 | FL111: 1 | FM111: 1 | FN111: 1 | FO111: 1 | FP111: 1 | FQ111: 1 | FR111: 1 | FS111: 1 | FT111: 1 | FU111: 1 | FV111: 1 | FW111: 1 | FX111: 1 | FY111: 1 | FZ111: 1 | GA111: 1 | GB111: 1 | GC111: 1 | GD111: 1 | GE111: 1 | GF111: 1 | GG111: 1 | GH111: 1 | GI111: 1 | GJ111: 1 | GK111: 1 | GL111: 1 | GM111: 1 | GN111: 1 | GO111: 1 | GP111: 1 | GQ111: 1 | GR111: 1
A112: 1 | B112: 1 | C112: 1 | D112: 1 | E112: 1 | F112: 1 | G112: 1 | H112: 1 | I112: 1 | J112: 1 | K112: 1 | L112: 1 | M112: 1 | N112: 1 | O112: 1 | P112: 1 | Q112: 1 | R112: 2 | S112: 2 | T112: 2 | U112: 2 | V112: 2 | W112: 2 | X112: 2 | Y112: 2 | Z112: 2 | AA112: 3 | AB112: 3 | AC112: 3 | AD112: 2 | AE112: 2 | AF112: 2 | AG112: 2 | AH112: 2 | AI112: 2 | AJ112: 2 | AK112: 2 | AL112: 2 | AM112: 2 | AN112: 2 | AO112: 2 | AP112: 1 | AQ112: 1 | AR112: 1 | AS112: 1 | AT112: 1 | AU112: 1 | AV112: 1 | AW112: 1 | AX112: 1 | AY112: 1 | AZ112: 1 | BA112: 1 | BB112: 1 | BC112: 1 | BD112: 1 | BE112: 1 | BF112: 1 | BG112: 1 | BH112: 1 | BI112: 1 | BJ112: 1 | BK112: 1 | BL112: 1 | BM112: 1 | BN112: 1 | BO112: 1 | BP112: 1 | BQ112: 1 | BR112: 1 | BS112: 1 | BT112: 1 | BU112: 1 | BV112: 1 | BW112: 1 | BX112: 1 | BY112: 1 | BZ112: 1 | CA112: 1 | CB112: 1 | CC112: 1 | CD112: 1 | CE112: 1 | CF112: 1 | CG112: 1 | CH112: 1 | CI112: 1 | CJ112: 1 | CK112: 1 | CL112: 1 | CM112: 1 | CN112: 1 | CO112: 1 | CP112: 1 | CQ112: 1 | CR112: 1 | CS112: 1 | CT112: 1 | CU112: 1 | CV112: 1 | CW112: 1 | CX112: 1 | CY112: 1 | CZ112: 1 | DA112: 1 | DB112: 1 | DC112: 1 | DD112: 1 | DE112: 1 | DF112: 1 | DG112: 1 | DH112: 1 | DI112: 1 | DJ112: 1 | DK112: 1 | DL112: 1 | DM112: 1 | DN112: 1 | DO112: 1 | DP112: 1 | DQ112: 1 | DR112: 1 | DS112: 1 | DT112: 1 | DU112: 1 | DV112: 1 | DW112: 1 | DX112: 1 | DY112: 1 | DZ112: 1 | EA112: 1 | EB112: 1 | EC112: 1 | ED112: 1 | EE112: 1 | EF112: 1 | EG112: 1 | EH112: 2 | EI112: 2 | EJ112: 2 | EK112: 2 | EL112: 2 | EM112: 2 | EN112: 2 | EO112: 2 | EP112: 2 | EQ112: 2 | ER112: 2 | ES112: 2 | ET112: 2 | EU112: 2 | EV112: 1 | EW112: 1 | EX112: 1 | EY112: 1 | EZ112: 2 | FA112: 2 | FB112: 2 | FC112: 1 | FD112: 1 | FE112: 1 | FF112: 1 | FG112: 1 | FH112: 1 | FI112: 1 | FJ112: 1 | FK112: 1 | FL112: 1 | FM112: 1 | FN112: 1 | FO112: 1 | FP112: 1 | FQ112: 1 | FR112: 1 | FS112: 1 | FT112: 1 | FU112: 1 | FV112: 1 | FW112: 1 | FX112: 1 | FY112: 1 | FZ112: 1 | GA112: 1 | GB112: 1 | GC112: 1 | GD112: 1 | GE112: 1 | GF112: 1 | GG112: 1 | GH112: 1 | GI112: 1 | GJ112: 1 | GK112: 1 | GL112: 1 | GM112: 1 | GN112: 1 | GO112: 1 | GP112: 1 | GQ112: 1 | GR112: 1
A113: 1 | B113: 1 | C113: 1 | D113: 1 | E113: 1 | F113: 1 | G113: 1 | H113: 1 | I113: 1 | J113: 1 | K113: 1 | L113: 1 | M113: 1 | N113: 1 | O113: 1 | P113: 1 | Q113: 1 | R113: 1 | S113: 2 | T113: 2 | U113: 2 | V113: 2 | W113: 2 | X113: 2 | Y113: 2 | Z113: 3 | AA113: 3 | AB113: 3 | AC113: 3 | AD113: 3 | AE113: 2 | AF113: 2 | AG113: 2 | AH113: 2 | AI113: 2 | AJ113: 2 | AK113: 2 | AL113: 2 | AM113: 2 | AN113: 2 | AO113: 1 | AP113: 1 | AQ113: 1 | AR113: 1 | AS113: 1 | AT113: 1 | AU113: 1 | AV113: 1 | AW113: 1 | AX113: 1 | AY113: 1 | AZ113: 1 | BA113: 1 | BB113: 1 | BC113: 1 | BD113: 1 | BE113: 1 | BF113: 1 | BG113: 1 | BH113: 1 | BI113: 1 | BJ113: 1 | BK113: 1 | BL113: 1 | BM113: 1 | BN113: 1 | BO113: 1 | BP113: 1 | BQ113: 1 | BR113: 1 | BS113: 1 | BT113: 1 | BU113: 1 | BV113: 1 | BW113: 1 | BX113: 1 | BY113: 1 | BZ113: 1 | CA113: 1 | CB113: 1 | CC113: 1 | CD113: 1 | CE113: 1 | CF113: 1 | CG113: 1 | CH113: 1 | CI113: 1 | CJ113: 1 | CK113: 1 | CL113: 1 | CM113: 1 | CN113: 1 | CO113: 1 | CP113: 1 | CQ113: 1 | CR113: 1 | CS113: 1 | CT113: 1 | CU113: 1 | CV113: 1 | CW113: 1 | CX113: 1 | CY113: 1 | CZ113: 1 | DA113: 1 | DB113: 1 | DC113: 1 | DD113: 1 | DE113: 1 | DF113: 1 | DG113: 1 | DH113: 1 | DI113: 1 | DJ113: 1 | DK113: 1 | DL113: 1 | DM113: 1 | DN113: 1 | DO113: 1 | DP113: 1 | DQ113: 1 | DR113: 1 | DS113: 1 | DT113: 1 | DU113: 1 | DV113: 1 | DW113: 1 | DX113: 1 | DY113: 1 | DZ113: 1 | EA113: 1 | EB113: 1 | EC113: 1 | ED113: 1 | EE113: 1 | EF113: 1 | EG113: 1 | EH113: 1 | EI113: 2 | EJ113: 2 | EK113: 2 | EL113: 2 | EM113: 2 | EN113: 2 | EO113: 2 | EP113: 2 | EQ113: 2 | ER113: 2 | ES113: 2 | ET113: 2 | EU113: 2 | EV113: 2 | EW113: 1 | EX113: 1 | EY113: 1 | EZ113: 1 | FA113: 2 | FB113: 2 | FC113: 1 | FD113: 1 | FE113: 1 | FF113: 1 | FG113: 1 | FH113: 1 | FI113: 1 | FJ113: 1 | FK113: 1 | FL113: 1 | FM113: 1 | FN113: 1 | FO113: 1 | FP113: 1 | FQ113: 1 | FR113: 1 | FS113: 1 | FT113: 1 | FU113: 1 | FV113: 1 | FW113: 1 | FX113: 1 | FY113: 1 | FZ113: 1 | GA113: 1 | GB113: 1 | GC113: 1 | GD113: 1 | GE113: 1 | GF113: 1 | GG113: 1 | GH113: 1 | GI113: 1 | GJ113: 1 | GK113: 1 | GL113: 1 | GM113: 1 | GN113: 1 | GO113: 1 | GP113: 1 | GQ113: 1 | GR113: 1
A114: 1 | B114: 1 | C114: 1 | D114: 1 | E114: 1 | F114: 1 | G114: 1 | H114: 1 | I114: 1 | J114: 1 | K114: 1 | L114: 1 | M114: 1 | N114: 2 | O114: 2 | P114: 2 | Q114: 1 | R114: 1 | S114: 1 | T114: 2 | U114: 2 | V114: 2 | W114: 2 | X114: 2 | Y114: 2 | Z114: 3 | AA114: 3 | AB114: 3 | AC114: 2 | AD114: 3 | AE114: 2 | AF114: 2 | AG114: 2 | AH114: 2 | AI114: 2 | AJ114: 2 | AK114: 2 | AL114: 2 | AM114: 2 | AN114: 2 | AO114: 1 | AP114: 1 | AQ114: 1 | AR114: 1 | AS114: 1 | AT114: 1 | AU114: 1 | AV114: 1 | AW114: 1 | AX114: 1 | AY114: 1 | AZ114: 1 | BA114: 1 | BB114: 1 | BC114: 1 | BD114: 1 | BE114: 1 | BF114: 1 | BG114: 1 | BH114: 1 | BI114: 1 | BJ114: 1 | BK114: 1 | BL114: 1 | BM114: 1 | BN114: 1 | BO114: 1 | BP114: 1 | BQ114: 1 | BR114: 1 | BS114: 1 | BT114: 1 | BU114: 1 | BV114: 1 | BW114: 1 | BX114: 1 | BY114: 1 | BZ114: 1 | CA114: 1 | CB114: 1 | CC114: 1 | CD114: 1 | CE114: 1 | CF114: 1 | CG114: 1 | CH114: 1 | CI114: 1 | CJ114: 1 | CK114: 1 | CL114: 1 | CM114: 1 | CN114: 1 | CO114: 1 | CP114: 1 | CQ114: 1 | CR114: 1 | CS114: 1 | CT114: 1 | CU114: 1 | CV114: 1 | CW114: 1 | CX114: 1 | CY114: 1 | CZ114: 1 | DA114: 1 | DB114: 1 | DC114: 1 | DD114: 1 | DE114: 1 | DF114: 1 | DG114: 1 | DH114: 1 | DI114: 1 | DJ114: 1 | DK114: 1 | DL114: 1 | DM114: 1 | DN114: 1 | DO114: 1 | DP114: 1 | DQ114: 1 | DR114: 1 | DS114: 1 | DT114: 1 | DU114: 1 | DV114: 1 | DW114: 1 | DX114: 1 | DY114: 1 | DZ114: 1 | EA114: 1 | EB114: 1 | EC114: 1 | ED114: 1 | EE114: 1 | EF114: 1 | EG114: 1 | EH114: 1 | EI114: 2 | EJ114: 2 | EK114: 2 | EL114: 2 | EM114: 2 | EN114: 2 | EO114: 2 | EP114: 2 | EQ114: 2 | ER114: 2 | ES114: 2 | ET114: 2 | EU114: 2 | EV114: 2 | EW114: 1 | EX114: 1 | EY114: 1 | EZ114: 2 | FA114: 2 | FB114: 2 | FC114: 2 | FD114: 1 | FE114: 1 | FF114: 1 | FG114: 1 | FH114: 1 | FI114: 1 | FJ114: 1 | FK114: 1 | FL114: 1 | FM114: 1 | FN114: 1 | FO114: 1 | FP114: 1 | FQ114: 1 | FR114: 1 | FS114: 1 | FT114: 1 | FU114: 1 | FV114: 1 | FW114: 1 | FX114: 1 | FY114: 1 | FZ114: 1 | GA114: 1 | GB114: 1 | GC114: 1 | GD114: 1 | GE114: 1 | GF114: 1 | GG114: 1 | GH114: 1 | GI114: 1 | GJ114: 1 | GK114: 1 | GL114: 1 | GM114: 1 | GN114: 1 | GO114: 1 | GP114: 1 | GQ114: 1 | GR114: 1
A115: 1 | B115: 1 | C115: 1 | D115: 1 | E115: 1 | F115: 1 | G115: 1 | H115: 1 | I115: 1 | J115: 1 | K115: 2 | L115: 2 | M115: 2 | N115: 2 | O115: 2 | P115: 2 | Q115: 1 | R115: 1 | S115: 1 | T115: 2 | U115: 2 | V115: 2 | W115: 2 | X115: 2 | Y115: 2 | Z115: 3 | AA115: 3 | AB115: 2 | AC115: 2 | AD115: 2 | AE115: 2 | AF115: 2 | AG115: 2 | AH115: 2 | AI115: 2 | AJ115: 2 | AK115: 2 | AL115: 2 | AM115: 2 | AN115: 2 | AO115: 1 | AP115: 1 | AQ115: 1 | AR115: 1 | AS115: 1 | AT115: 1 | AU115: 1 | AV115: 1 | AW115: 1 | AX115: 1 | AY115: 1 | AZ115: 1 | BA115: 1 | BB115: 1 | BC115: 1 | BD115: 1 | BE115: 1 | BF115: 1 | BG115: 1 | BH115: 1 | BI115: 1 | BJ115: 1 | BK115: 1 | BL115: 1 | BM115: 1 | BN115: 1 | BO115: 1 | BP115: 1 | BQ115: 1 | BR115: 1 | BS115: 1 | BT115: 1 | BU115: 1 | BV115: 1 | BW115: 1 | BX115: 1 | BY115: 1 | BZ115: 1 | CA115: 1 | CB115: 1 | CC115: 1 | CD115: 1 | CE115: 1 | CF115: 1 | CG115: 1 | CH115: 1 | CI115: 1 | CJ115: 1 | CK115: 1 | CL115: 1 | CM115: 1 | CN115: 1 | CO115: 1 | CP115: 1 | CQ115: 1 | CR115: 1 | CS115: 1 | CT115: 1 | CU115: 1 | CV115: 1 | CW115: 1 | CX115: 1 | CY115: 1 | CZ115: 1 | DA115: 1 | DB115: 1 | DC115: 1 | DD115: 1 | DE115: 1 | DF115: 1 | DG115: 1 | DH115: 1 | DI115: 1 | DJ115: 1 | DK115: 1 | DL115: 1 | DM115: 1 | DN115: 1 | DO115: 1 | DP115: 1 | DQ115: 1 | DR115: 1 | DS115: 1 | DT115: 1 | DU115: 1 | DV115: 1 | DW115: 1 | DX115: 1 | DY115: 1 | DZ115: 1 | EA115: 1 | EB115: 1 | EC115: 1 | ED115: 1 | EE115: 1 | EF115: 1 | EG115: 1 | EH115: 1 | EI115: 2 | EJ115: 2 | EK115: 2 | EL115: 2 | EM115: 2 | EN115: 2 | EO115: 2 | EP115: 2 | EQ115: 2 | ER115: 2 | ES115: 2 | ET115: 2 | EU115: 2 | EV115: 2 | EW115: 2 | EX115: 1 | EY115: 1 | EZ115: 2 | FA115: 2 | FB115: 2 | FC115: 2 | FD115: 1 | FE115: 1 | FF115: 1 | FG115: 1 | FH115: 1 | FI115: 1 | FJ115: 1 | FK115: 1 | FL115: 1 | FM115: 1 | FN115: 1 | FO115: 1 | FP115: 1 | FQ115: 1 | FR115: 1 | FS115: 1 | FT115: 1 | FU115: 1 | FV115: 1 | FW115: 1 | FX115: 1 | FY115: 1 | FZ115: 1 | GA115: 1 | GB115: 1 | GC115: 1 | GD115: 1 | GE115: 1 | GF115: 1 | GG115: 1 | GH115: 1 | GI115: 1 | GJ115: 1 | GK115: 1 | GL115: 1 | GM115: 1 | GN115: 1 | GO115: 1 | GP115: 1 | GQ115: 1 | GR115: 1
A116: 1 | B116: 1 | C116: 1 | D116: 1 | E116: 1 | F116: 1 | G116: 1 | H116: 1 | I116: 1 | J116: 1 | K116: 2 | L116: 2 | M116: 2 | N116: 2 | O116: 2 | P116: 2 | Q116: 2 | R116: 2 | S116: 2 | T116: 2 | U116: 2 | V116: 2 | W116: 2 | X116: 2 | Y116: 3 | Z116: 3 | AA116: 3 | AB116: 2 | AC116: 2 | AD116: 2 | AE116: 2 | AF116: 2 | AG116: 2 | AH116: 2 | AI116: 2 | AJ116: 1 | AK116: 2 | AL116: 2 | AM116: 2 | AN116: 2 | AO116: 1 | AP116: 1 | AQ116: 1 | AR116: 1 | AS116: 1 | AT116: 1 | AU116: 1 | AV116: 1 | AW116: 1 | AX116: 1 | AY116: 1 | AZ116: 1 | BA116: 1 | BB116: 1 | BC116: 1 | BD116: 1 | BE116: 1 | BF116: 1 | BG116: 1 | BH116: 1 | BI116: 1 | BJ116: 1 | BK116: 1 | BL116: 1 | BM116: 1 | BN116: 1 | BO116: 1 | BP116: 1 | BQ116: 1 | BR116: 1 | BS116: 1 | BT116: 1 | BU116: 1 | BV116: 1 | BW116: 1 | BX116: 1 | BY116: 1 | BZ116: 1 | CA116: 1 | CB116: 1 | CC116: 1 | CD116: 1 | CE116: 1 | CF116: 1 | CG116: 1 | CH116: 1 | CI116: 1 | CJ116: 1 | CK116: 1 | CL116: 1 | CM116: 1 | CN116: 1 | CO116: 1 | CP116: 1 | CQ116: 1 | CR116: 1 | CS116: 1 | CT116: 1 | CU116: 1 | CV116: 1 | CW116: 1 | CX116: 1 | CY116: 1 | CZ116: 1 | DA116: 1 | DB116: 1 | DC116: 1 | DD116: 1 | DE116: 1 | DF116: 1 | DG116: 1 | DH116: 1 | DI116: 1 | DJ116: 1 | DK116: 1 | DL116: 1 | DM116: 1 | DN116: 1 | DO116: 1 | DP116: 1 | DQ116: 1 | DR116: 1 | DS116: 1 | DT116: 1 | DU116: 1 | DV116: 1 | DW116: 1 | DX116: 1 | DY116: 1 | DZ116: 1 | EA116: 1 | EB116: 1 | EC116: 1 | ED116: 1 | EE116: 1 | EF116: 1 | EG116: 1 | EH116: 1 | EI116: 2 | EJ116: 2 | EK116: 2 | EL116: 2 | EM116: 2 | EN116: 2 | EO116: 2 | EP116: 2 | EQ116: 2 | ER116: 2 | ES116: 2 | ET116: 2 | EU116: 2 | EV116: 2 | EW116: 2 | EX116: 1 | EY116: 1 | EZ116: 1 | FA116: 2 | FB116: 2 | FC116: 2 | FD116: 1 | FE116: 1 | FF116: 1 | FG116: 1 | FH116: 1 | FI116: 1 | FJ116: 1 | FK116: 1 | FL116: 1 | FM116: 1 | FN116: 1 | FO116: 1 | FP116: 1 | FQ116: 1 | FR116: 1 | FS116: 1 | FT116: 1 | FU116: 1 | FV116: 1 | FW116: 1 | FX116: 1 | FY116: 1 | FZ116: 1 | GA116: 1 | GB116: 1 | GC116: 1 | GD116: 1 | GE116: 1 | GF116: 1 | GG116: 1 | GH116: 1 | GI116: 1 | GJ116: 1 | GK116: 1 | GL116: 1 | GM116: 1 | GN116: 1 | GO116: 1 | GP116: 1 | GQ116: 1 | GR116: 1
A117: 1 | B117: 1 | C117: 1 | D117: 1 | E117: 1 | F117: 1 | G117: 1 | H117: 1 | I117: 1 | J117: 1 | K117: 2 | L117: 2 | M117: 2 | N117: 2 | O117: 2 | P117: 2 | Q117: 2 | R117: 2 | S117: 2 | T117: 2 | U117: 2 | V117: 2 | W117: 2 | X117: 3 | Y117: 3 | Z117: 3 | AA117: 2 | AB117: 2 | AC117: 2 | AD117: 2 | AE117: 2 | AF117: 2 | AG117: 2 | AH117: 2 | AI117: 2 | AJ117: 1 | AK117: 1 | AL117: 2 | AM117: 2 | AN117: 1 | AO117: 1 | AP117: 1 | AQ117: 1 | AR117: 1 | AS117: 1 | AT117: 1 | AU117: 1 | AV117: 1 | AW117: 1 | AX117: 1 | AY117: 1 | AZ117: 1 | BA117: 1 | BB117: 1 | BC117: 1 | BD117: 1 | BE117: 1 | BF117: 1 | BG117: 1 | BH117: 1 | BI117: 1 | BJ117: 1 | BK117: 1 | BL117: 1 | BM117: 1 | BN117: 1 | BO117: 1 | BP117: 1 | BQ117: 1 | BR117: 1 | BS117: 1 | BT117: 1 | BU117: 1 | BV117: 1 | BW117: 1 | BX117: 1 | BY117: 1 | BZ117: 1 | CA117: 1 | CB117: 1 | CC117: 1 | CD117: 1 | CE117: 1 | CF117: 1 | CG117: 1 | CH117: 1 | CI117: 1 | CJ117: 1 | CK117: 1 | CL117: 1 | CM117: 1 | CN117: 1 | CO117: 1 | CP117: 1 | CQ117: 1 | CR117: 1 | CS117: 1 | CT117: 1 | CU117: 1 | CV117: 1 | CW117: 1 | CX117: 1 | CY117: 1 | CZ117: 1 | DA117: 1 | DB117: 1 | DC117: 1 | DD117: 1 | DE117: 1 | DF117: 1 | DG117: 1 | DH117: 1 | DI117: 1 | DJ117: 1 | DK117: 1 | DL117: 1 | DM117: 1 | DN117: 1 | DO117: 1 | DP117: 1 | DQ117: 1 | DR117: 1 | DS117: 1 | DT117: 1 | DU117: 1 | DV117: 1 | DW117: 1 | DX117: 1 | DY117: 1 | DZ117: 1 | EA117: 1 | EB117: 1 | EC117: 1 | ED117: 1 | EE117: 1 | EF117: 1 | EG117: 1 | EH117: 1 | EI117: 2 | EJ117: 2 | EK117: 2 | EL117: 2 | EM117: 2 | EN117: 2 | EO117: 2 | EP117: 2 | EQ117: 2 | ER117: 2 | ES117: 2 | ET117: 2 | EU117: 2 | EV117: 2 | EW117: 2 | EX117: 1 | EY117: 1 | EZ117: 1 | FA117: 2 | FB117: 2 | FC117: 2 | FD117: 1 | FE117: 1 | FF117: 1 | FG117: 1 | FH117: 1 | FI117: 1 | FJ117: 1 | FK117: 1 | FL117: 1 | FM117: 1 | FN117: 1 | FO117: 1 | FP117: 1 | FQ117: 1 | FR117: 1 | FS117: 1 | FT117: 1 | FU117: 1 | FV117: 1 | FW117: 1 | FX117: 1 | FY117: 1 | FZ117: 1 | GA117: 1 | GB117: 1 | GC117: 1 | GD117: 1 | GE117: 1 | GF117: 1 | GG117: 1 | GH117: 1 | GI117: 1 | GJ117: 1 | GK117: 1 | GL117: 1 | GM117: 1 | GN117: 1 | GO117: 1 | GP117: 1 | GQ117: 1 | GR117: 1
A118: 1 | B118: 1 | C118: 1 | D118: 1 | E118: 1 | F118: 1 | G118: 1 | H118: 1 | I118: 1 | J118: 1 | K118: 1 | L118: 2 | M118: 2 | N118: 2 | O118: 2 | P118: 2 | Q118: 2 | R118: 2 | S118: 2 | T118: 2 | U118: 2 | V118: 2 | W118: 2 | X118: 3 | Y118: 3 | Z118: 3 | AA118: 2 | AB118: 2 | AC118: 2 | AD118: 2 | AE118: 2 | AF118: 2 | AG118: 2 | AH118: 2 | AI118: 2 | AJ118: 2 | AK118: 1 | AL118: 1 | AM118: 1 | AN118: 1 | AO118: 1 | AP118: 1 | AQ118: 1 | AR118: 1 | AS118: 1 | AT118: 1 | AU118: 1 | AV118: 1 | AW118: 1 | AX118: 1 | AY118: 1 | AZ118: 1 | BA118: 1 | BB118: 1 | BC118: 1 | BD118: 1 | BE118: 1 | BF118: 1 | BG118: 1 | BH118: 1 | BI118: 1 | BJ118: 1 | BK118: 1 | BL118: 1 | BM118: 1 | BN118: 1 | BO118: 1 | BP118: 1 | BQ118: 1 | BR118: 1 | BS118: 1 | BT118: 1 | BU118: 1 | BV118: 1 | BW118: 1 | BX118: 1 | BY118: 1 | BZ118: 1 | CA118: 1 | CB118: 1 | CC118: 1 | CD118: 1 | CE118: 1 | CF118: 1 | CG118: 1 | CH118: 1 | CI118: 1 | CJ118: 1 | CK118: 1 | CL118: 1 | CM118: 1 | CN118: 1 | CO118: 1 | CP118: 1 | CQ118: 1 | CR118: 1 | CS118: 1 | CT118: 1 | CU118: 1 | CV118: 1 | CW118: 1 | CX118: 1 | CY118: 1 | CZ118: 1 | DA118: 1 | DB118: 1 | DC118: 1 | DD118: 1 | DE118: 1 | DF118: 1 | DG118: 1 | DH118: 1 | DI118: 1 | DJ118: 1 | DK118: 1 | DL118: 1 | DM118: 1 | DN118: 1 | DO118: 1 | DP118: 1 | DQ118: 1 | DR118: 1 | DS118: 1 | DT118: 1 | DU118: 1 | DV118: 1 | DW118: 1 | DX118: 1 | DY118: 1 | DZ118: 1 | EA118: 1 | EB118: 1 | EC118: 1 | ED118: 1 | EE118: 1 | EF118: 1 | EG118: 1 | EH118: 1 | EI118: 2 | EJ118: 2 | EK118: 2 | EL118: 2 | EM118: 2 | EN118: 2 | EO118: 2 | EP118: 2 | EQ118: 2 | ER118: 2 | ES118: 2 | ET118: 2 | EU118: 1 | EV118: 1 | EW118: 1 | EX118: 1 | EY118: 1 | EZ118: 1 | FA118: 1 | FB118: 2 | FC118: 2 | FD118: 1 | FE118: 1 | FF118: 1 | FG118: 1 | FH118: 1 | FI118: 1 | FJ118: 1 | FK118: 1 | FL118: 1 | FM118: 1 | FN118: 1 | FO118: 1 | FP118: 1 | FQ118: 1 | FR118: 1 | FS118: 1 | FT118: 1 | FU118: 1 | FV118: 1 | FW118: 1 | FX118: 1 | FY118: 1 | FZ118: 1 | GA118: 1 | GB118: 1 | GC118: 1 | GD118: 1 | GE118: 1 | GF118: 1 | GG118: 1 | GH118: 1 | GI118: 1 | GJ118: 1 | GK118: 1 | GL118: 1 | GM118: 1 | GN118: 1 | GO118: 1 | GP118: 1 | GQ118: 1 | GR118: 1
A119: 1 | B119: 1 | C119: 1 | D119: 1 | E119: 1 | F119: 1 | G119: 1 | H119: 1 | I119: 1 | J119: 1 | K119: 2 | L119: 2 | M119: 2 | N119: 2 | O119: 2 | P119: 2 | Q119: 2 | R119: 2 | S119: 2 | T119: 2 | U119: 2 | V119: 2 | W119: 3 | X119: 3 | Y119: 3 | Z119: 3 | AA119: 2 | AB119: 2 | AC119: 2 | AD119: 2 | AE119: 2 | AF119: 2 | AG119: 2 | AH119: 2 | AI119: 2 | AJ119: 2 | AK119: 2 | AL119: 2 | AM119: 1 | AN119: 1 | AO119: 1 | AP119: 1 | AQ119: 1 | AR119: 1 | AS119: 1 | AT119: 1 | AU119: 1 | AV119: 1 | AW119: 1 | AX119: 1 | AY119: 1 | AZ119: 1 | BA119: 1 | BB119: 1 | BC119: 1 | BD119: 1 | BE119: 1 | BF119: 1 | BG119: 1 | BH119: 1 | BI119: 1 | BJ119: 1 | BK119: 1 | BL119: 1 | BM119: 1 | BN119: 1 | BO119: 1 | BP119: 1 | BQ119: 1 | BR119: 1 | BS119: 1 | BT119: 1 | BU119: 1 | BV119: 1 | BW119: 1 | BX119: 1 | BY119: 1 | BZ119: 1 | CA119: 1 | CB119: 1 | CC119: 1 | CD119: 1 | CE119: 1 | CF119: 1 | CG119: 1 | CH119: 1 | CI119: 1 | CJ119: 1 | CK119: 1 | CL119: 1 | CM119: 1 | CN119: 1 | CO119: 1 | CP119: 1 | CQ119: 1 | CR119: 1 | CS119: 1 | CT119: 1 | CU119: 1 | CV119: 1 | CW119: 1 | CX119: 1 | CY119: 1 | CZ119: 1 | DA119: 1 | DB119: 1 | DC119: 1 | DD119: 1 | DE119: 1 | DF119: 1 | DG119: 1 | DH119: 1 | DI119: 1 | DJ119: 1 | DK119: 1 | DL119: 1 | DM119: 1 | DN119: 1 | DO119: 1 | DP119: 1 | DQ119: 1 | DR119: 1 | DS119: 1 | DT119: 1 | DU119: 1 | DV119: 1 | DW119: 1 | DX119: 1 | DY119: 1 | DZ119: 1 | EA119: 1 | EB119: 1 | EC119: 1 | ED119: 1 | EE119: 1 | EF119: 1 | EG119: 1 | EH119: 1 | EI119: 2 | EJ119: 2 | EK119: 2 | EL119: 2 | EM119: 2 | EN119: 2 | EO119: 2 | EP119: 2 | EQ119: 2 | ER119: 2 | ES119: 2 | ET119: 1 | EU119: 1 | EV119: 1 | EW119: 1 | EX119: 1 | EY119: 1 | EZ119: 1 | FA119: 1 | FB119: 2 | FC119: 1 | FD119: 1 | FE119: 1 | FF119: 1 | FG119: 1 | FH119: 1 | FI119: 1 | FJ119: 1 | FK119: 1 | FL119: 1 | FM119: 1 | FN119: 1 | FO119: 1 | FP119: 1 | FQ119: 1 | FR119: 1 | FS119: 1 | FT119: 1 | FU119: 1 | FV119: 1 | FW119: 1 | FX119: 1 | FY119: 1 | FZ119: 1 | GA119: 1 | GB119: 1 | GC119: 1 | GD119: 1 | GE119: 1 | GF119: 1 | GG119: 1 | GH119: 1 | GI119: 1 | GJ119: 1 | GK119: 1 | GL119: 1 | GM119: 1 | GN119: 1 | GO119: 1 | GP119: 1 | GQ119: 1 | GR119: 1
A120: 1 | B120: 1 | C120: 1 | D120: 1 | E120: 1 | F120: 1 | G120: 1 | H120: 1 | I120: 1 | J120: 2 | K120: 2 | L120: 2 | M120: 2 | N120: 2 | O120: 2 | P120: 2 | Q120: 2 | R120: 2 | S120: 2 | T120: 2 | U120: 2 | V120: 3 | W120: 3 | X120: 3 | Y120: 3 | Z120: 2 | AA120: 2 | AB120: 2 | AC120: 2 | AD120: 2 | AE120: 2 | AF120: 2 | AG120: 2 | AH120: 2 | AI120: 2 | AJ120: 2 | AK120: 2 | AL120: 2 | AM120: 2 | AN120: 2 | AO120: 1 | AP120: 1 | AQ120: 1 | AR120: 1 | AS120: 1 | AT120: 2 | AU120: 2 | AV120: 2 | AW120: 2 | AX120: 1 | AY120: 1 | AZ120: 1 | BA120: 1 | BB120: 1 | BC120: 1 | BD120: 1 | BE120: 1 | BF120: 1 | BG120: 1 | BH120: 1 | BI120: 1 | BJ120: 1 | BK120: 1 | BL120: 1 | BM120: 1 | BN120: 1 | BO120: 1 | BP120: 1 | BQ120: 1 | BR120: 1 | BS120: 1 | BT120: 1 | BU120: 1 | BV120: 1 | BW120: 1 | BX120: 1 | BY120: 1 | BZ120: 1 | CA120: 1 | CB120: 1 | CC120: 1 | CD120: 1 | CE120: 1 | CF120: 1 | CG120: 1 | CH120: 1 | CI120: 1 | CJ120: 1 | CK120: 1 | CL120: 1 | CM120: 1 | CN120: 1 | CO120: 1 | CP120: 1 | CQ120: 1 | CR120: 1 | CS120: 1 | CT120: 1 | CU120: 1 | CV120: 1 | CW120: 1 | CX120: 1 | CY120: 1 | CZ120: 1 | DA120: 1 | DB120: 1 | DC120: 1 | DD120: 1 | DE120: 1 | DF120: 1 | DG120: 1 | DH120: 1 | DI120: 1 | DJ120: 1 | DK120: 1 | DL120: 1 | DM120: 1 | DN120: 1 | DO120: 1 | DP120: 1 | DQ120: 1 | DR120: 1 | DS120: 1 | DT120: 1 | DU120: 1 | DV120: 1 | DW120: 1 | DX120: 1 | DY120: 1 | DZ120: 1 | EA120: 1 | EB120: 1 | EC120: 1 | ED120: 1 | EE120: 1 | EF120: 1 | EG120: 1 | EH120: 1 | EI120: 2 | EJ120: 2 | EK120: 2 | EL120: 2 | EM120: 2 | EN120: 2 | EO120: 2 | EP120: 2 | EQ120: 2 | ER120: 2 | ES120: 2 | ET120: 1 | EU120: 1 | EV120: 1 | EW120: 1 | EX120: 1 | EY120: 1 | EZ120: 1 | FA120: 1 | FB120: 1 | FC120: 1 | FD120: 1 | FE120: 1 | FF120: 1 | FG120: 1 | FH120: 1 | FI120: 1 | FJ120: 1 | FK120: 1 | FL120: 1 | FM120: 1 | FN120: 1 | FO120: 1 | FP120: 1 | FQ120: 1 | FR120: 1 | FS120: 1 | FT120: 1 | FU120: 1 | FV120: 1 | FW120: 1 | FX120: 1 | FY120: 1 | FZ120: 1 | GA120: 1 | GB120: 1 | GC120: 1 | GD120: 1 | GE120: 1 | GF120: 1 | GG120: 1 | GH120: 1 | GI120: 1 | GJ120: 1 | GK120: 1 | GL120: 1 | GM120: 1 | GN120: 1 | GO120: 1 | GP120: 1 | GQ120: 1 | GR120: 1
A121: 1 | B121: 1 | C121: 1 | D121: 1 | E121: 1 | F121: 1 | G121: 1 | H121: 1 | I121: 2 | J121: 2 | K121: 2 | L121: 2 | M121: 2 | N121: 2 | O121: 2 | P121: 2 | Q121: 2 | R121: 2 | S121: 2 | T121: 2 | U121: 3 | V121: 3 | W121: 3 | X121: 3 | Y121: 3 | Z121: 2 | AA121: 2 | AB121: 2 | AC121: 2 | AD121: 2 | AE121: 2 | AF121: 2 | AG121: 2 | AH121: 2 | AI121: 2 | AJ121: 2 | AK121: 2 | AL121: 2 | AM121: 2 | AN121: 2 | AO121: 1 | AP121: 1 | AQ121: 1 | AR121: 1 | AS121: 1 | AT121: 2 | AU121: 2 | AV121: 2 | AW121: 2 | AX121: 1 | AY121: 1 | AZ121: 1 | BA121: 1 | BB121: 1 | BC121: 1 | BD121: 1 | BE121: 1 | BF121: 1 | BG121: 1 | BH121: 1 | BI121: 1 | BJ121: 1 | BK121: 1 | BL121: 1 | BM121: 1 | BN121: 1 | BO121: 1 | BP121: 1 | BQ121: 1 | BR121: 1 | BS121: 1 | BT121: 1 | BU121: 1 | BV121: 1 | BW121: 1 | BX121: 1 | BY121: 1 | BZ121: 1 | CA121: 1 | CB121: 1 | CC121: 1 | CD121: 1 | CE121: 1 | CF121: 1 | CG121: 1 | CH121: 1 | CI121: 1 | CJ121: 1 | CK121: 1 | CL121: 1 | CM121: 1 | CN121: 1 | CO121: 1 | CP121: 1 | CQ121: 1 | CR121: 1 | CS121: 1 | CT121: 1 | CU121: 1 | CV121: 1 | CW121: 1 | CX121: 1 | CY121: 1 | CZ121: 1 | DA121: 1 | DB121: 1 | DC121: 1 | DD121: 1 | DE121: 1 | DF121: 1 | DG121: 1 | DH121: 1 | DI121: 1 | DJ121: 1 | DK121: 1 | DL121: 1 | DM121: 1 | DN121: 1 | DO121: 1 | DP121: 1 | DQ121: 1 | DR121: 1 | DS121: 1 | DT121: 1 | DU121: 1 | DV121: 1 | DW121: 1 | DX121: 1 | DY121: 1 | DZ121: 1 | EA121: 1 | EB121: 1 | EC121: 1 | ED121: 1 | EE121: 1 | EF121: 1 | EG121: 1 | EH121: 1 | EI121: 1 | EJ121: 2 | EK121: 2 | EL121: 2 | EM121: 2 | EN121: 2 | EO121: 2 | EP121: 2 | EQ121: 2 | ER121: 2 | ES121: 2 | ET121: 1 | EU121: 1 | EV121: 1 | EW121: 1 | EX121: 2 | EY121: 2 | EZ121: 1 | FA121: 1 | FB121: 1 | FC121: 1 | FD121: 2 | FE121: 2 | FF121: 1 | FG121: 1 | FH121: 1 | FI121: 1 | FJ121: 1 | FK121: 1 | FL121: 1 | FM121: 1 | FN121: 1 | FO121: 1 | FP121: 1 | FQ121: 1 | FR121: 1 | FS121: 1 | FT121: 1 | FU121: 1 | FV121: 1 | FW121: 1 | FX121: 1 | FY121: 1 | FZ121: 1 | GA121: 1 | GB121: 1 | GC121: 1 | GD121: 1 | GE121: 1 | GF121: 1 | GG121: 1 | GH121: 1 | GI121: 1 | GJ121: 1 | GK121: 1 | GL121: 1 | GM121: 1 | GN121: 1 | GO121: 1 | GP121: 1 | GQ121: 1 | GR121: 1
A122: 1 | B122: 1 | C122: 1 | D122: 1 | E122: 1 | F122: 1 | G122: 2 | H122: 2 | I122: 2 | J122: 2 | K122: 2 | L122: 2 | M122: 2 | N122: 2 | O122: 2 | P122: 2 | Q122: 2 | R122: 2 | S122: 2 | T122: 2 | U122: 3 | V122: 3 | W122: 3 | X122: 2 | Y122: 2 | Z122: 2 | AA122: 2 | AB122: 2 | AC122: 2 | AD122: 2 | AE122: 2 | AF122: 2 | AG122: 2 | AH122: 2 | AI122: 2 | AJ122: 2 | AK122: 2 | AL122: 2 | AM122: 2 | AN122: 2 | AO122: 2 | AP122: 1 | AQ122: 1 | AR122: 2 | AS122: 2 | AT122: 2 | AU122: 2 | AV122: 2 | AW122: 2 | AX122: 2 | AY122: 1 | AZ122: 1 | BA122: 1 | BB122: 1 | BC122: 1 | BD122: 1 | BE122: 1 | BF122: 1 | BG122: 1 | BH122: 1 | BI122: 1 | BJ122: 1 | BK122: 1 | BL122: 1 | BM122: 1 | BN122: 1 | BO122: 1 | BP122: 1 | BQ122: 1 | BR122: 1 | BS122: 1 | BT122: 1 | BU122: 1 | BV122: 1 | BW122: 1 | BX122: 1 | BY122: 1 | BZ122: 1 | CA122: 1 | CB122: 1 | CC122: 1 | CD122: 1 | CE122: 1 | CF122: 1 | CG122: 1 | CH122: 1 | CI122: 1 | CJ122: 1 | CK122: 1 | CL122: 1 | CM122: 1 | CN122: 1 | CO122: 1 | CP122: 1 | CQ122: 1 | CR122: 1 | CS122: 1 | CT122: 1 | CU122: 1 | CV122: 1 | CW122: 1 | CX122: 1 | CY122: 1 | CZ122: 1 | DA122: 1 | DB122: 1 | DC122: 1 | DD122: 1 | DE122: 1 | DF122: 1 | DG122: 1 | DH122: 1 | DI122: 1 | DJ122: 1 | DK122: 1 | DL122: 1 | DM122: 1 | DN122: 1 | DO122: 1 | DP122: 1 | DQ122: 1 | DR122: 1 | DS122: 1 | DT122: 1 | DU122: 1 | DV122: 1 | DW122: 1 | DX122: 1 | DY122: 1 | DZ122: 1 | EA122: 1 | EB122: 1 | EC122: 1 | ED122: 1 | EE122: 1 | EF122: 1 | EG122: 1 | EH122: 1 | EI122: 1 | EJ122: 1 | EK122: 2 | EL122: 2 | EM122: 2 | EN122: 2 | EO122: 2 | EP122: 2 | EQ122: 2 | ER122: 2 | ES122: 2 | ET122: 2 | EU122: 2 | EV122: 2 | EW122: 2 | EX122: 2 | EY122: 2 | EZ122: 1 | FA122: 1 | FB122: 1 | FC122: 1 | FD122: 1 | FE122: 2 | FF122: 2 | FG122: 1 | FH122: 1 | FI122: 1 | FJ122: 1 | FK122: 1 | FL122: 1 | FM122: 1 | FN122: 1 | FO122: 1 | FP122: 1 | FQ122: 1 | FR122: 1 | FS122: 1 | FT122: 1 | FU122: 1 | FV122: 1 | FW122: 1 | FX122: 1 | FY122: 1 | FZ122: 1 | GA122: 1 | GB122: 1 | GC122: 1 | GD122: 1 | GE122: 1 | GF122: 1 | GG122: 1 | GH122: 1 | GI122: 1 | GJ122: 1 | GK122: 1 | GL122: 1 | GM122: 1 | GN122: 1 | GO122: 1 | GP122: 1 | GQ122: 1 | GR122: 1
A123: 1 | B123: 1 | C123: 1 | D123: 1 | E123: 1 | F123: 1 | G123: 2 | H123: 2 | I123: 2 | J123: 2 | K123: 2 | L123: 2 | M123: 2 | N123: 2 | O123: 2 | P123: 2 | Q123: 2 | R123: 2 | S123: 2 | T123: 3 | U123: 3 | V123: 3 | W123: 3 | X123: 2 | Y123: 2 | Z123: 2 | AA123: 2 | AB123: 2 | AC123: 2 | AD123: 2 | AE123: 2 | AF123: 2 | AG123: 2 | AH123: 2 | AI123: 2 | AJ123: 2 | AK123: 2 | AL123: 2 | AM123: 2 | AN123: 2 | AO123: 2 | AP123: 2 | AQ123: 2 | AR123: 2 | AS123: 2 | AT123: 2 | AU123: 2 | AV123: 2 | AW123: 2 | AX123: 2 | AY123: 1 | AZ123: 1 | BA123: 1 | BB123: 1 | BC123: 1 | BD123: 1 | BE123: 1 | BF123: 1 | BG123: 1 | BH123: 1 | BI123: 1 | BJ123: 1 | BK123: 1 | BL123: 1 | BM123: 1 | BN123: 1 | BO123: 1 | BP123: 1 | BQ123: 1 | BR123: 1 | BS123: 1 | BT123: 1 | BU123: 1 | BV123: 1 | BW123: 1 | BX123: 1 | BY123: 1 | BZ123: 1 | CA123: 1 | CB123: 1 | CC123: 1 | CD123: 1 | CE123: 1 | CF123: 1 | CG123: 1 | CH123: 1 | CI123: 1 | CJ123: 1 | CK123: 1 | CL123: 1 | CM123: 1 | CN123: 1 | CO123: 1 | CP123: 1 | CQ123: 1 | CR123: 1 | CS123: 1 | CT123: 1 | CU123: 1 | CV123: 1 | CW123: 1 | CX123: 1 | CY123: 1 | CZ123: 1 | DA123: 1 | DB123: 1 | DC123: 1 | DD123: 1 | DE123: 1 | DF123: 1 | DG123: 1 | DH123: 1 | DI123: 1 | DJ123: 1 | DK123: 1 | DL123: 1 | DM123: 1 | DN123: 1 | DO123: 1 | DP123: 1 | DQ123: 1 | DR123: 1 | DS123: 1 | DT123: 1 | DU123: 1 | DV123: 1 | DW123: 1 | DX123: 1 | DY123: 1 | DZ123: 1 | EA123: 1 | EB123: 1 | EC123: 1 | ED123: 1 | EE123: 1 | EF123: 1 | EG123: 1 | EH123: 1 | EI123: 1 | EJ123: 1 | EK123: 2 | EL123: 2 | EM123: 2 | EN123: 2 | EO123: 2 | EP123: 2 | EQ123: 2 | ER123: 2 | ES123: 2 | ET123: 2 | EU123: 2 | EV123: 2 | EW123: 2 | EX123: 2 | EY123: 2 | EZ123: 2 | FA123: 1 | FB123: 1 | FC123: 1 | FD123: 2 | FE123: 2 | FF123: 2 | FG123: 2 | FH123: 1 | FI123: 1 | FJ123: 1 | FK123: 1 | FL123: 1 | FM123: 1 | FN123: 1 | FO123: 1 | FP123: 1 | FQ123: 1 | FR123: 1 | FS123: 1 | FT123: 1 | FU123: 1 | FV123: 1 | FW123: 1 | FX123: 1 | FY123: 1 | FZ123: 1 | GA123: 1 | GB123: 1 | GC123: 1 | GD123: 1 | GE123: 1 | GF123: 1 | GG123: 1 | GH123: 1 | GI123: 1 | GJ123: 1 | GK123: 1 | GL123: 1 | GM123: 1 | GN123: 1 | GO123: 1 | GP123: 1 | GQ123: 1 | GR123: 1
A124: 2 | B124: 1 | C124: 1 | D124: 1 | E124: 1 | F124: 1 | G124: 2 | H124: 2 | I124: 2 | J124: 2 | K124: 2 | L124: 2 | M124: 2 | N124: 2 | O124: 2 | P124: 2 | Q124: 2 | R124: 3 | S124: 3 | T124: 3 | U124: 3 | V124: 3 | W124: 2 | X124: 2 | Y124: 2 | Z124: 2 | AA124: 2 | AB124: 2 | AC124: 2 | AD124: 2 | AE124: 2 | AF124: 2 | AG124: 2 | AH124: 2 | AI124: 2 | AJ124: 2 | AK124: 2 | AL124: 2 | AM124: 2 | AN124: 2 | AO124: 2 | AP124: 2 | AQ124: 2 | AR124: 2 | AS124: 2 | AT124: 2 | AU124: 2 | AV124: 2 | AW124: 2 | AX124: 2 | AY124: 1 | AZ124: 1 | BA124: 1 | BB124: 1 | BC124: 1 | BD124: 1 | BE124: 1 | BF124: 1 | BG124: 1 | BH124: 1 | BI124: 1 | BJ124: 1 | BK124: 1 | BL124: 1 | BM124: 1 | BN124: 1 | BO124: 1 | BP124: 1 | BQ124: 1 | BR124: 1 | BS124: 1 | BT124: 1 | BU124: 1 | BV124: 1 | BW124: 1 | BX124: 1 | BY124: 1 | BZ124: 1 | CA124: 1 | CB124: 1 | CC124: 1 | CD124: 1 | CE124: 1 | CF124: 1 | CG124: 1 | CH124: 1 | CI124: 1 | CJ124: 1 | CK124: 1 | CL124: 1 | CM124: 1 | CN124: 1 | CO124: 1 | CP124: 1 | CQ124: 1 | CR124: 1 | CS124: 1 | CT124: 1 | CU124: 1 | CV124: 1 | CW124: 1 | CX124: 1 | CY124: 1 | CZ124: 1 | DA124: 1 | DB124: 1 | DC124: 1 | DD124: 1 | DE124: 1 | DF124: 1 | DG124: 1 | DH124: 1 | DI124: 1 | DJ124: 1 | DK124: 1 | DL124: 1 | DM124: 1 | DN124: 1 | DO124: 1 | DP124: 1 | DQ124: 1 | DR124: 1 | DS124: 1 | DT124: 1 | DU124: 1 | DV124: 1 | DW124: 1 | DX124: 1 | DY124: 1 | DZ124: 1 | EA124: 1 | EB124: 1 | EC124: 1 | ED124: 1 | EE124: 1 | EF124: 1 | EG124: 1 | EH124: 1 | EI124: 1 | EJ124: 1 | EK124: 1 | EL124: 2 | EM124: 2 | EN124: 2 | EO124: 2 | EP124: 2 | EQ124: 2 | ER124: 2 | ES124: 2 | ET124: 2 | EU124: 2 | EV124: 2 | EW124: 2 | EX124: 2 | EY124: 2 | EZ124: 2 | FA124: 2 | FB124: 1 | FC124: 2 | FD124: 2 | FE124: 2 | FF124: 2 | FG124: 2 | FH124: 2 | FI124: 1 | FJ124: 2 | FK124: 1 | FL124: 1 | FM124: 1 | FN124: 1 | FO124: 1 | FP124: 1 | FQ124: 1 | FR124: 1 | FS124: 1 | FT124: 1 | FU124: 1 | FV124: 1 | FW124: 1 | FX124: 1 | FY124: 1 | FZ124: 1 | GA124: 1 | GB124: 1 | GC124: 1 | GD124: 1 | GE124: 1 | GF124: 1 | GG124: 1 | GH124: 1 | GI124: 1 | GJ124: 1 | GK124: 1 | GL124: 1 | GM124: 1 | GN124: 1 | GO124: 1 | GP124: 1 | GQ124: 1 | GR124: 1
A125: 2 | B125: 1 | C125: 1 | D125: 1 | E125: 1 | F125: 1 | G125: 1 | H125: 2 | I125: 2 | J125: 2 | K125: 2 | L125: 2 | M125: 2 | N125: 2 | O125: 2 | P125: 2 | Q125: 2 | R125: 3 | S125: 3 | T125: 3 | U125: 3 | V125: 2 | W125: 2 | X125: 2 | Y125: 2 | Z125: 2 | AA125: 2 | AB125: 2 | AC125: 2 | AD125: 2 | AE125: 2 | AF125: 2 | AG125: 2 | AH125: 2 | AI125: 2 | AJ125: 2 | AK125: 2 | AL125: 2 | AM125: 2 | AN125: 2 | AO125: 2 | AP125: 2 | AQ125: 2 | AR125: 2 | AS125: 2 | AT125: 2 | AU125: 2 | AV125: 2 | AW125: 1 | AX125: 1 | AY125: 1 | AZ125: 1 | BA125: 1 | BB125: 1 | BC125: 1 | BD125: 1 | BE125: 1 | BF125: 1 | BG125: 1 | BH125: 1 | BI125: 1 | BJ125: 1 | BK125: 1 | BL125: 1 | BM125: 1 | BN125: 1 | BO125: 1 | BP125: 1 | BQ125: 1 | BR125: 1 | BS125: 1 | BT125: 1 | BU125: 1 | BV125: 1 | BW125: 1 | BX125: 1 | BY125: 1 | BZ125: 1 | CA125: 1 | CB125: 1 | CC125: 1 | CD125: 1 | CE125: 1 | CF125: 1 | CG125: 1 | CH125: 1 | CI125: 1 | CJ125: 1 | CK125: 1 | CL125: 1 | CM125: 1 | CN125: 1 | CO125: 1 | CP125: 1 | CQ125: 1 | CR125: 1 | CS125: 1 | CT125: 1 | CU125: 1 | CV125: 1 | CW125: 1 | CX125: 1 | CY125: 1 | CZ125: 1 | DA125: 1 | DB125: 1 | DC125: 1 | DD125: 1 | DE125: 1 | DF125: 1 | DG125: 1 | DH125: 1 | DI125: 1 | DJ125: 1 | DK125: 1 | DL125: 1 | DM125: 1 | DN125: 1 | DO125: 1 | DP125: 1 | DQ125: 1 | DR125: 1 | DS125: 1 | DT125: 1 | DU125: 1 | DV125: 1 | DW125: 1 | DX125: 1 | DY125: 1 | DZ125: 1 | EA125: 1 | EB125: 1 | EC125: 1 | ED125: 1 | EE125: 1 | EF125: 1 | EG125: 1 | EH125: 1 | EI125: 1 | EJ125: 1 | EK125: 1 | EL125: 1 | EM125: 1 | EN125: 1 | EO125: 1 | EP125: 1 | EQ125: 2 | ER125: 2 | ES125: 2 | ET125: 2 | EU125: 2 | EV125: 2 | EW125: 2 | EX125: 2 | EY125: 2 | EZ125: 2 | FA125: 2 | FB125: 1 | FC125: 2 | FD125: 2 | FE125: 2 | FF125: 2 | FG125: 2 | FH125: 2 | FI125: 2 | FJ125: 2 | FK125: 2 | FL125: 1 | FM125: 1 | FN125: 1 | FO125: 1 | FP125: 1 | FQ125: 1 | FR125: 1 | FS125: 1 | FT125: 1 | FU125: 1 | FV125: 1 | FW125: 1 | FX125: 1 | FY125: 1 | FZ125: 1 | GA125: 1 | GB125: 1 | GC125: 1 | GD125: 1 | GE125: 1 | GF125: 1 | GG125: 1 | GH125: 1 | GI125: 1 | GJ125: 1 | GK125: 1 | GL125: 1 | GM125: 1 | GN125: 1 | GO125: 1 | GP125: 1 | GQ125: 1 | GR125: 1
A126: 2 | B126: 2 | C126: 1 | D126: 1 | E126: 1 | F126: 1 | G126: 1 | H126: 2 | I126: 2 | J126: 2 | K126: 2 | L126: 2 | M126: 2 | N126: 2 | O126: 2 | P126: 2 | Q126: 3 | R126: 3 | S126: 3 | T126: 3 | U126: 2 | V126: 2 | W126: 2 | X126: 2 | Y126: 2 | Z126: 2 | AA126: 2 | AB126: 2 | AC126: 2 | AD126: 2 | AE126: 2 | AF126: 2 | AG126: 2 | AH126: 2 | AI126: 2 | AJ126: 2 | AK126: 2 | AL126: 2 | AM126: 2 | AN126: 2 | AO126: 2 | AP126: 2 | AQ126: 2 | AR126: 2 | AS126: 2 | AT126: 2 | AU126: 1 | AV126: 1 | AW126: 1 | AX126: 1 | AY126: 1 | AZ126: 1 | BA126: 1 | BB126: 1 | BC126: 1 | BD126: 1 | BE126: 1 | BF126: 1 | BG126: 1 | BH126: 1 | BI126: 1 | BJ126: 1 | BK126: 1 | BL126: 1 | BM126: 1 | BN126: 1 | BO126: 1 | BP126: 1 | BQ126: 1 | BR126: 1 | BS126: 1 | BT126: 1 | BU126: 1 | BV126: 1 | BW126: 1 | BX126: 1 | BY126: 1 | BZ126: 1 | CA126: 1 | CB126: 1 | CC126: 1 | CD126: 1 | CE126: 1 | CF126: 1 | CG126: 1 | CH126: 1 | CI126: 1 | CJ126: 1 | CK126: 1 | CL126: 1 | CM126: 1 | CN126: 1 | CO126: 1 | CP126: 1 | CQ126: 1 | CR126: 1 | CS126: 1 | CT126: 1 | CU126: 1 | CV126: 1 | CW126: 1 | CX126: 1 | CY126: 1 | CZ126: 1 | DA126: 1 | DB126: 1 | DC126: 1 | DD126: 1 | DE126: 1 | DF126: 1 | DG126: 1 | DH126: 1 | DI126: 1 | DJ126: 1 | DK126: 1 | DL126: 1 | DM126: 1 | DN126: 1 | DO126: 1 | DP126: 1 | DQ126: 1 | DR126: 1 | DS126: 1 | DT126: 1 | DU126: 1 | DV126: 1 | DW126: 1 | DX126: 1 | DY126: 1 | DZ126: 1 | EA126: 1 | EB126: 1 | EC126: 1 | ED126: 1 | EE126: 1 | EF126: 1 | EG126: 1 | EH126: 1 | EI126: 1 | EJ126: 1 | EK126: 1 | EL126: 1 | EM126: 1 | EN126: 1 | EO126: 1 | EP126: 1 | EQ126: 2 | ER126: 2 | ES126: 2 | ET126: 2 | EU126: 2 | EV126: 2 | EW126: 2 | EX126: 2 | EY126: 2 | EZ126: 2 | FA126: 2 | FB126: 2 | FC126: 2 | FD126: 2 | FE126: 2 | FF126: 3 | FG126: 2 | FH126: 2 | FI126: 2 | FJ126: 2 | FK126: 2 | FL126: 2 | FM126: 2 | FN126: 1 | FO126: 1 | FP126: 1 | FQ126: 1 | FR126: 1 | FS126: 1 | FT126: 1 | FU126: 1 | FV126: 1 | FW126: 1 | FX126: 1 | FY126: 1 | FZ126: 1 | GA126: 1 | GB126: 1 | GC126: 1 | GD126: 1 | GE126: 1 | GF126: 1 | GG126: 1 | GH126: 1 | GI126: 1 | GJ126: 1 | GK126: 1 | GL126: 1 | GM126: 1 | GN126: 1 | GO126: 1 | GP126: 1 | GQ126: 1 | GR126: 1
A127: 2 | B127: 2 | C127: 1 | D127: 1 | E127: 1 | F127: 2 | G127: 1 | H127: 1 | I127: 2 | J127: 2 | K127: 2 | L127: 2 | M127: 2 | N127: 2 | O127: 2 | P127: 2 | Q127: 3 | R127: 3 | S127: 3 | T127: 2 | U127: 2 | V127: 2 | W127: 2 | X127: 2 | Y127: 2 | Z127: 2 | AA127: 2 | AB127: 2 | AC127: 2 | AD127: 2 | AE127: 2 | AF127: 2 | AG127: 2 | AH127: 2 | AI127: 2 | AJ127: 2 | AK127: 2 | AL127: 2 | AM127: 2 | AN127: 2 | AO127: 2 | AP127: 2 | AQ127: 2 | AR127: 2 | AS127: 2 | AT127: 1 | AU127: 1 | AV127: 1 | AW127: 1 | AX127: 1 | AY127: 1 | AZ127: 1 | BA127: 1 | BB127: 1 | BC127: 1 | BD127: 1 | BE127: 1 | BF127: 1 | BG127: 1 | BH127: 1 | BI127: 1 | BJ127: 1 | BK127: 1 | BL127: 1 | BM127: 1 | BN127: 1 | BO127: 1 | BP127: 1 | BQ127: 1 | BR127: 1 | BS127: 1 | BT127: 1 | BU127: 1 | BV127: 1 | BW127: 1 | BX127: 1 | BY127: 1 | BZ127: 1 | CA127: 1 | CB127: 1 | CC127: 1 | CD127: 1 | CE127: 1 | CF127: 1 | CG127: 1 | CH127: 1 | CI127: 1 | CJ127: 1 | CK127: 1 | CL127: 1 | CM127: 1 | CN127: 1 | CO127: 1 | CP127: 1 | CQ127: 1 | CR127: 1 | CS127: 1 | CT127: 1 | CU127: 1 | CV127: 1 | CW127: 1 | CX127: 1 | CY127: 1 | CZ127: 1 | DA127: 1 | DB127: 1 | DC127: 1 | DD127: 1 | DE127: 1 | DF127: 1 | DG127: 1 | DH127: 1 | DI127: 1 | DJ127: 1 | DK127: 1 | DL127: 1 | DM127: 1 | DN127: 1 | DO127: 1 | DP127: 1 | DQ127: 1 | DR127: 1 | DS127: 1 | DT127: 1 | DU127: 1 | DV127: 1 | DW127: 1 | DX127: 1 | DY127: 1 | DZ127: 1 | EA127: 1 | EB127: 1 | EC127: 1 | ED127: 1 | EE127: 1 | EF127: 1 | EG127: 1 | EH127: 1 | EI127: 1 | EJ127: 1 | EK127: 1 | EL127: 1 | EM127: 1 | EN127: 1 | EO127: 1 | EP127: 1 | EQ127: 2 | ER127: 2 | ES127: 2 | ET127: 2 | EU127: 2 | EV127: 2 | EW127: 2 | EX127: 2 | EY127: 2 | EZ127: 2 | FA127: 2 | FB127: 2 | FC127: 2 | FD127: 2 | FE127: 2 | FF127: 3 | FG127: 2 | FH127: 2 | FI127: 2 | FJ127: 2 | FK127: 2 | FL127: 2 | FM127: 2 | FN127: 1 | FO127: 1 | FP127: 1 | FQ127: 1 | FR127: 1 | FS127: 1 | FT127: 1 | FU127: 1 | FV127: 1 | FW127: 1 | FX127: 1 | FY127: 1 | FZ127: 1 | GA127: 1 | GB127: 1 | GC127: 1 | GD127: 1 | GE127: 1 | GF127: 1 | GG127: 1 | GH127: 1 | GI127: 1 | GJ127: 1 | GK127: 1 | GL127: 1 | GM127: 1 | GN127: 1 | GO127: 1 | GP127: 1 | GQ127: 1 | GR127: 1
A128: 2 | B128: 1 | C128: 1 | D128: 1 | E128: 1 | F128: 1 | G128: 2 | H128: 2 | I128: 2 | J128: 2 | K128: 2 | L128: 2 | M128: 2 | N128: 2 | O128: 2 | P128: 3 | Q128: 3 | R128: 3 | S128: 2 | T128: 2 | U128: 2 | V128: 2 | W128: 2 | X128: 2 | Y128: 2 | Z128: 2 | AA128: 2 | AB128: 2 | AC128: 2 | AD128: 2 | AE128: 2 | AF128: 2 | AG128: 2 | AH128: 2 | AI128: 2 | AJ128: 2 | AK128: 2 | AL128: 2 | AM128: 2 | AN128: 2 | AO128: 2 | AP128: 2 | AQ128: 2 | AR128: 1 | AS128: 1 | AT128: 1 | AU128: 1 | AV128: 1 | AW128: 1 | AX128: 1 | AY128: 1 | AZ128: 1 | BA128: 1 | BB128: 1 | BC128: 1 | BD128: 1 | BE128: 1 | BF128: 1 | BG128: 1 | BH128: 1 | BI128: 1 | BJ128: 1 | BK128: 1 | BL128: 1 | BM128: 1 | BN128: 1 | BO128: 1 | BP128: 1 | BQ128: 1 | BR128: 1 | BS128: 1 | BT128: 1 | BU128: 1 | BV128: 1 | BW128: 1 | BX128: 1 | BY128: 1 | BZ128: 1 | CA128: 1 | CB128: 1 | CC128: 1 | CD128: 1 | CE128: 1 | CF128: 1 | CG128: 1 | CH128: 1 | CI128: 1 | CJ128: 1 | CK128: 1 | CL128: 1 | CM128: 1 | CN128: 1 | CO128: 1 | CP128: 1 | CQ128: 1 | CR128: 1 | CS128: 1 | CT128: 1 | CU128: 1 | CV128: 1 | CW128: 1 | CX128: 1 | CY128: 1 | CZ128: 1 | DA128: 1 | DB128: 1 | DC128: 1 | DD128: 1 | DE128: 1 | DF128: 1 | DG128: 1 | DH128: 1 | DI128: 1 | DJ128: 1 | DK128: 1 | DL128: 1 | DM128: 1 | DN128: 1 | DO128: 1 | DP128: 1 | DQ128: 1 | DR128: 1 | DS128: 1 | DT128: 1 | DU128: 1 | DV128: 1 | DW128: 1 | DX128: 1 | DY128: 1 | DZ128: 1 | EA128: 1 | EB128: 1 | EC128: 1 | ED128: 1 | EE128: 1 | EF128: 1 | EG128: 1 | EH128: 1 | EI128: 1 | EJ128: 1 | EK128: 1 | EL128: 1 | EM128: 1 | EN128: 1 | EO128: 1 | EP128: 1 | EQ128: 1 | ER128: 1 | ES128: 2 | ET128: 2 | EU128: 2 | EV128: 2 | EW128: 2 | EX128: 2 | EY128: 2 | EZ128: 2 | FA128: 2 | FB128: 2 | FC128: 2 | FD128: 2 | FE128: 2 | FF128: 3 | FG128: 3 | FH128: 3 | FI128: 2 | FJ128: 2 | FK128: 2 | FL128: 2 | FM128: 2 | FN128: 1 | FO128: 1 | FP128: 1 | FQ128: 2 | FR128: 2 | FS128: 2 | FT128: 1 | FU128: 1 | FV128: 1 | FW128: 1 | FX128: 1 | FY128: 1 | FZ128: 1 | GA128: 1 | GB128: 1 | GC128: 1 | GD128: 1 | GE128: 1 | GF128: 1 | GG128: 1 | GH128: 1 | GI128: 1 | GJ128: 1 | GK128: 1 | GL128: 1 | GM128: 1 | GN128: 1 | GO128: 1 | GP128: 1 | GQ128: 1 | GR128: 1
A129: 2 | B129: 2 | C129: 2 | D129: 3 | E129: 3 | F129: 2 | G129: 2 | H129: 2 | I129: 2 | J129: 2 | K129: 2 | L129: 2 | M129: 2 | N129: 2 | O129: 3 | P129: 3 | Q129: 3 | R129: 3 | S129: 2 | T129: 2 | U129: 2 | V129: 2 | W129: 2 | X129: 2 | Y129: 2 | Z129: 2 | AA129: 2 | AB129: 2 | AC129: 2 | AD129: 2 | AE129: 2 | AF129: 2 | AG129: 2 | AH129: 2 | AI129: 1 | AJ129: 1 | AK129: 2 | AL129: 2 | AM129: 2 | AN129: 2 | AO129: 2 | AP129: 1 | AQ129: 1 | AR129: 1 | AS129: 1 | AT129: 1 | AU129: 1 | AV129: 1 | AW129: 1 | AX129: 1 | AY129: 1 | AZ129: 1 | BA129: 1 | BB129: 1 | BC129: 1 | BD129: 1 | BE129: 1 | BF129: 1 | BG129: 1 | BH129: 1 | BI129: 1 | BJ129: 1 | BK129: 1 | BL129: 1 | BM129: 1 | BN129: 1 | BO129: 1 | BP129: 1 | BQ129: 1 | BR129: 1 | BS129: 1 | BT129: 1 | BU129: 1 | BV129: 1 | BW129: 1 | BX129: 1 | BY129: 1 | BZ129: 1 | CA129: 1 | CB129: 1 | CC129: 1 | CD129: 1 | CE129: 1 | CF129: 1 | CG129: 1 | CH129: 1 | CI129: 1 | CJ129: 1 | CK129: 1 | CL129: 1 | CM129: 1 | CN129: 1 | CO129: 1 | CP129: 1 | CQ129: 1 | CR129: 1 | CS129: 1 | CT129: 1 | CU129: 1 | CV129: 1 | CW129: 1 | CX129: 1 | CY129: 1 | CZ129: 1 | DA129: 1 | DB129: 1 | DC129: 1 | DD129: 1 | DE129: 1 | DF129: 1 | DG129: 1 | DH129: 1 | DI129: 1 | DJ129: 1 | DK129: 1 | DL129: 1 | DM129: 1 | DN129: 1 | DO129: 1 | DP129: 1 | DQ129: 1 | DR129: 1 | DS129: 1 | DT129: 1 | DU129: 1 | DV129: 1 | DW129: 1 | DX129: 1 | DY129: 1 | DZ129: 1 | EA129: 1 | EB129: 1 | EC129: 1 | ED129: 1 | EE129: 1 | EF129: 1 | EG129: 1 | EH129: 1 | EI129: 1 | EJ129: 1 | EK129: 1 | EL129: 1 | EM129: 1 | EN129: 1 | EO129: 1 | EP129: 1 | EQ129: 1 | ER129: 1 | ES129: 2 | ET129: 2 | EU129: 2 | EV129: 2 | EW129: 2 | EX129: 2 | EY129: 2 | EZ129: 2 | FA129: 2 | FB129: 2 | FC129: 2 | FD129: 2 | FE129: 2 | FF129: 3 | FG129: 3 | FH129: 3 | FI129: 3 | FJ129: 2 | FK129: 2 | FL129: 2 | FM129: 2 | FN129: 2 | FO129: 2 | FP129: 2 | FQ129: 2 | FR129: 2 | FS129: 2 | FT129: 1 | FU129: 1 | FV129: 1 | FW129: 1 | FX129: 1 | FY129: 1 | FZ129: 1 | GA129: 1 | GB129: 1 | GC129: 1 | GD129: 1 | GE129: 1 | GF129: 1 | GG129: 1 | GH129: 1 | GI129: 1 | GJ129: 1 | GK129: 1 | GL129: 1 | GM129: 1 | GN129: 1 | GO129: 1 | GP129: 1 | GQ129: 1 | GR129: 1
A130: 2 | B130: 2 | C130: 2 | D130: 3 | E130: 3 | F130: 2 | G130: 2 | H130: 2 | I130: 2 | J130: 2 | K130: 2 | L130: 2 | M130: 2 | N130: 3 | O130: 3 | P130: 3 | Q130: 3 | R130: 3 | S130: 2 | T130: 2 | U130: 2 | V130: 2 | W130: 2 | X130: 2 | Y130: 2 | Z130: 2 | AA130: 2 | AB130: 2 | AC130: 2 | AD130: 1 | AE130: 1 | AF130: 1 | AG130: 1 | AH130: 1 | AI130: 1 | AJ130: 1 | AK130: 1 | AL130: 1 | AM130: 1 | AN130: 1 | AO130: 1 | AP130: 1 | AQ130: 1 | AR130: 1 | AS130: 1 | AT130: 1 | AU130: 1 | AV130: 1 | AW130: 1 | AX130: 1 | AY130: 1 | AZ130: 1 | BA130: 1 | BB130: 1 | BC130: 1 | BD130: 1 | BE130: 1 | BF130: 1 | BG130: 1 | BH130: 1 | BI130: 1 | BJ130: 1 | BK130: 1 | BL130: 1 | BM130: 1 | BN130: 1 | BO130: 1 | BP130: 1 | BQ130: 1 | BR130: 1 | BS130: 1 | BT130: 1 | BU130: 1 | BV130: 1 | BW130: 1 | BX130: 1 | BY130: 1 | BZ130: 1 | CA130: 1 | CB130: 1 | CC130: 1 | CD130: 1 | CE130: 1 | CF130: 1 | CG130: 1 | CH130: 1 | CI130: 1 | CJ130: 1 | CK130: 1 | CL130: 1 | CM130: 1 | CN130: 1 | CO130: 1 | CP130: 1 | CQ130: 1 | CR130: 1 | CS130: 1 | CT130: 1 | CU130: 1 | CV130: 1 | CW130: 1 | CX130: 1 | CY130: 1 | CZ130: 1 | DA130: 1 | DB130: 1 | DC130: 1 | DD130: 1 | DE130: 1 | DF130: 1 | DG130: 1 | DH130: 1 | DI130: 1 | DJ130: 1 | DK130: 1 | DL130: 1 | DM130: 1 | DN130: 1 | DO130: 1 | DP130: 1 | DQ130: 1 | DR130: 1 | DS130: 1 | DT130: 1 | DU130: 1 | DV130: 1 | DW130: 1 | DX130: 1 | DY130: 1 | DZ130: 1 | EA130: 1 | EB130: 1 | EC130: 1 | ED130: 1 | EE130: 1 | EF130: 1 | EG130: 1 | EH130: 1 | EI130: 1 | EJ130: 1 | EK130: 1 | EL130: 1 | EM130: 1 | EN130: 1 | EO130: 2 | EP130: 2 | EQ130: 2 | ER130: 1 | ES130: 1 | ET130: 2 | EU130: 2 | EV130: 2 | EW130: 2 | EX130: 2 | EY130: 2 | EZ130: 2 | FA130: 2 | FB130: 2 | FC130: 2 | FD130: 2 | FE130: 2 | FF130: 2 | FG130: 1 | FH130: 3 | FI130: 3 | FJ130: 2 | FK130: 2 | FL130: 2 | FM130: 2 | FN130: 2 | FO130: 2 | FP130: 2 | FQ130: 2 | FR130: 2 | FS130: 2 | FT130: 1 | FU130: 2 | FV130: 1 | FW130: 1 | FX130: 1 | FY130: 1 | FZ130: 1 | GA130: 1 | GB130: 1 | GC130: 1 | GD130: 1 | GE130: 1 | GF130: 1 | GG130: 1 | GH130: 1 | GI130: 1 | GJ130: 1 | GK130: 1 | GL130: 1 | GM130: 1 | GN130: 1 | GO130: 1 | GP130: 1 | GQ130: 1 | GR130: 1
A131: 2 | B131: 2 | C131: 2 | D131: 3 | E131: 3 | F131: 3 | G131: 2 | H131: 2 | I131: 2 | J131: 2 | K131: 2 | L131: 2 | M131: 3 | N131: 3 | O131: 3 | P131: 3 | Q131: 3 | R131: 3 | S131: 3 | T131: 3 | U131: 2 | V131: 2 | W131: 2 | X131: 2 | Y131: 2 | Z131: 2 | AA131: 2 | AB131: 1 | AC131: 1 | AD131: 1 | AE131: 1 | AF131: 1 | AG131: 1 | AH131: 1 | AI131: 1 | AJ131: 1 | AK131: 1 | AL131: 1 | AM131: 1 | AN131: 1 | AO131: 1 | AP131: 1 | AQ131: 1 | AR131: 1 | AS131: 1 | AT131: 1 | AU131: 1 | AV131: 1 | AW131: 1 | AX131: 1 | AY131: 1 | AZ131: 1 | BA131: 1 | BB131: 1 | BC131: 1 | BD131: 1 | BE131: 1 | BF131: 1 | BG131: 1 | BH131: 1 | BI131: 1 | BJ131: 1 | BK131: 1 | BL131: 1 | BM131: 1 | BN131: 1 | BO131: 1 | BP131: 1 | BQ131: 1 | BR131: 1 | BS131: 1 | BT131: 1 | BU131: 1 | BV131: 1 | BW131: 1 | BX131: 1 | BY131: 1 | BZ131: 1 | CA131: 1 | CB131: 1 | CC131: 1 | CD131: 1 | CE131: 1 | CF131: 1 | CG131: 1 | CH131: 1 | CI131: 1 | CJ131: 1 | CK131: 1 | CL131: 1 | CM131: 1 | CN131: 1 | CO131: 1 | CP131: 1 | CQ131: 1 | CR131: 1 | CS131: 1 | CT131: 1 | CU131: 1 | CV131: 1 | CW131: 1 | CX131: 1 | CY131: 1 | CZ131: 1 | DA131: 1 | DB131: 1 | DC131: 1 | DD131: 1 | DE131: 1 | DF131: 1 | DG131: 1 | DH131: 1 | DI131: 1 | DJ131: 1 | DK131: 1 | DL131: 1 | DM131: 1 | DN131: 1 | DO131: 1 | DP131: 1 | DQ131: 1 | DR131: 1 | DS131: 1 | DT131: 1 | DU131: 1 | DV131: 1 | DW131: 1 | DX131: 1 | DY131: 1 | DZ131: 1 | EA131: 1 | EB131: 1 | EC131: 1 | ED131: 1 | EE131: 1 | EF131: 1 | EG131: 1 | EH131: 1 | EI131: 1 | EJ131: 1 | EK131: 1 | EL131: 1 | EM131: 1 | EN131: 1 | EO131: 2 | EP131: 2 | EQ131: 2 | ER131: 2 | ES131: 1 | ET131: 1 | EU131: 1 | EV131: 2 | EW131: 2 | EX131: 2 | EY131: 2 | EZ131: 2 | FA131: 2 | FB131: 2 | FC131: 2 | FD131: 2 | FE131: 2 | FF131: 2 | FG131: 2 | FH131: 3 | FI131: 3 | FJ131: 3 | FK131: 2 | FL131: 2 | FM131: 2 | FN131: 2 | FO131: 2 | FP131: 2 | FQ131: 2 | FR131: 2 | FS131: 2 | FT131: 2 | FU131: 2 | FV131: 2 | FW131: 1 | FX131: 1 | FY131: 1 | FZ131: 1 | GA131: 1 | GB131: 1 | GC131: 1 | GD131: 1 | GE131: 1 | GF131: 1 | GG131: 1 | GH131: 1 | GI131: 1 | GJ131: 1 | GK131: 1 | GL131: 1 | GM131: 1 | GN131: 1 | GO131: 1 | GP131: 1 | GQ131: 1 | GR131: 1
A132: 2 | B132: 2 | C132: 2 | D132: 2 | E132: 3 | F132: 3 | G132: 2 | H132: 2 | I132: 2 | J132: 2 | K132: 2 | L132: 2 | M132: 3 | N132: 3 | O132: 3 | P132: 2 | Q132: 2 | R132: 2 | S132: 3 | T132: 3 | U132: 3 | V132: 2 | W132: 2 | X132: 2 | Y132: 2 | Z132: 2 | AA132: 1 | AB132: 1 | AC132: 1 | AD132: 1 | AE132: 1 | AF132: 1 | AG132: 1 | AH132: 1 | AI132: 1 | AJ132: 1 | AK132: 1 | AL132: 1 | AM132: 1 | AN132: 1 | AO132: 1 | AP132: 1 | AQ132: 1 | AR132: 1 | AS132: 1 | AT132: 1 | AU132: 1 | AV132: 1 | AW132: 1 | AX132: 1 | AY132: 1 | AZ132: 1 | BA132: 1 | BB132: 1 | BC132: 1 | BD132: 1 | BE132: 1 | BF132: 1 | BG132: 1 | BH132: 1 | BI132: 1 | BJ132: 1 | BK132: 1 | BL132: 1 | BM132: 1 | BN132: 1 | BO132: 1 | BP132: 1 | BQ132: 1 | BR132: 1 | BS132: 1 | BT132: 1 | BU132: 1 | BV132: 1 | BW132: 1 | BX132: 1 | BY132: 1 | BZ132: 1 | CA132: 1 | CB132: 1 | CC132: 1 | CD132: 1 | CE132: 1 | CF132: 1 | CG132: 1 | CH132: 1 | CI132: 1 | CJ132: 1 | CK132: 1 | CL132: 1 | CM132: 1 | CN132: 1 | CO132: 1 | CP132: 1 | CQ132: 1 | CR132: 1 | CS132: 1 | CT132: 1 | CU132: 1 | CV132: 1 | CW132: 1 | CX132: 1 | CY132: 1 | CZ132: 1 | DA132: 1 | DB132: 1 | DC132: 1 | DD132: 1 | DE132: 1 | DF132: 1 | DG132: 1 | DH132: 1 | DI132: 1 | DJ132: 1 | DK132: 1 | DL132: 1 | DM132: 1 | DN132: 1 | DO132: 1 | DP132: 1 | DQ132: 1 | DR132: 1 | DS132: 1 | DT132: 1 | DU132: 1 | DV132: 1 | DW132: 1 | DX132: 1 | DY132: 1 | DZ132: 1 | EA132: 1 | EB132: 1 | EC132: 1 | ED132: 1 | EE132: 1 | EF132: 1 | EG132: 1 | EH132: 1 | EI132: 1 | EJ132: 1 | EK132: 1 | EL132: 1 | EM132: 1 | EN132: 2 | EO132: 2 | EP132: 2 | EQ132: 2 | ER132: 2 | ES132: 2 | ET132: 1 | EU132: 2 | EV132: 2 | EW132: 2 | EX132: 2 | EY132: 2 | EZ132: 2 | FA132: 2 | FB132: 2 | FC132: 2 | FD132: 2 | FE132: 2 | FF132: 2 | FG132: 2 | FH132: 1 | FI132: 1 | FJ132: 3 | FK132: 3 | FL132: 2 | FM132: 2 | FN132: 2 | FO132: 2 | FP132: 2 | FQ132: 2 | FR132: 2 | FS132: 2 | FT132: 2 | FU132: 2 | FV132: 2 | FW132: 2 | FX132: 1 | FY132: 1 | FZ132: 1 | GA132: 1 | GB132: 2 | GC132: 2 | GD132: 2 | GE132: 2 | GF132: 2 | GG132: 2 | GH132: 2 | GI132: 1 | GJ132: 1 | GK132: 1 | GL132: 1 | GM132: 1 | GN132: 1 | GO132: 1 | GP132: 1 | GQ132: 1 | GR132: 1
A133: 2 | B133: 2 | C133: 2 | D133: 2 | E133: 3 | F133: 3 | G133: 3 | H133: 2 | I133: 2 | J133: 2 | K133: 2 | L133: 2 | M133: 3 | N133: 3 | O133: 2 | P133: 2 | Q133: 2 | R133: 2 | S133: 2 | T133: 2 | U133: 3 | V133: 3 | W133: 1 | X133: 1 | Y133: 1 | Z133: 1 | AA133: 1 | AB133: 1 | AC133: 2 | AD133: 2 | AE133: 1 | AF133: 1 | AG133: 1 | AH133: 1 | AI133: 1 | AJ133: 1 | AK133: 1 | AL133: 1 | AM133: 1 | AN133: 1 | AO133: 1 | AP133: 1 | AQ133: 1 | AR133: 1 | AS133: 1 | AT133: 1 | AU133: 1 | AV133: 1 | AW133: 1 | AX133: 1 | AY133: 1 | AZ133: 1 | BA133: 1 | BB133: 1 | BC133: 1 | BD133: 1 | BE133: 1 | BF133: 1 | BG133: 1 | BH133: 1 | BI133: 1 | BJ133: 1 | BK133: 1 | BL133: 1 | BM133: 1 | BN133: 1 | BO133: 1 | BP133: 1 | BQ133: 1 | BR133: 1 | BS133: 1 | BT133: 1 | BU133: 1 | BV133: 1 | BW133: 1 | BX133: 1 | BY133: 1 | BZ133: 1 | CA133: 1 | CB133: 1 | CC133: 1 | CD133: 1 | CE133: 1 | CF133: 1 | CG133: 1 | CH133: 1 | CI133: 1 | CJ133: 1 | CK133: 1 | CL133: 1 | CM133: 1 | CN133: 1 | CO133: 1 | CP133: 1 | CQ133: 1 | CR133: 1 | CS133: 1 | CT133: 1 | CU133: 1 | CV133: 1 | CW133: 1 | CX133: 1 | CY133: 1 | CZ133: 1 | DA133: 1 | DB133: 1 | DC133: 1 | DD133: 1 | DE133: 1 | DF133: 1 | DG133: 1 | DH133: 1 | DI133: 1 | DJ133: 1 | DK133: 1 | DL133: 1 | DM133: 1 | DN133: 1 | DO133: 1 | DP133: 1 | DQ133: 1 | DR133: 1 | DS133: 1 | DT133: 1 | DU133: 1 | DV133: 1 | DW133: 1 | DX133: 1 | DY133: 1 | DZ133: 1 | EA133: 1 | EB133: 1 | EC133: 1 | ED133: 1 | EE133: 1 | EF133: 1 | EG133: 1 | EH133: 1 | EI133: 1 | EJ133: 1 | EK133: 1 | EL133: 1 | EM133: 2 | EN133: 2 | EO133: 2 | EP133: 2 | EQ133: 2 | ER133: 2 | ES133: 1 | ET133: 1 | EU133: 2 | EV133: 1 | EW133: 2 | EX133: 2 | EY133: 2 | EZ133: 1 | FA133: 1 | FB133: 1 | FC133: 1 | FD133: 2 | FE133: 2 | FF133: 2 | FG133: 2 | FH133: 1 | FI133: 1 | FJ133: 3 | FK133: 3 | FL133: 2 | FM133: 2 | FN133: 2 | FO133: 2 | FP133: 2 | FQ133: 2 | FR133: 2 | FS133: 2 | FT133: 2 | FU133: 2 | FV133: 2 | FW133: 2 | FX133: 1 | FY133: 1 | FZ133: 1 | GA133: 2 | GB133: 2 | GC133: 2 | GD133: 2 | GE133: 2 | GF133: 2 | GG133: 2 | GH133: 2 | GI133: 2 | GJ133: 2 | GK133: 1 | GL133: 1 | GM133: 1 | GN133: 1 | GO133: 1 | GP133: 1 | GQ133: 1 | GR133: 1
A134: 2 | B134: 2 | C134: 2 | D134: 2 | E134: 2 | F134: 3 | G134: 3 | H134: 3 | I134: 3 | J134: 3 | K134: 3 | L134: 3 | M134: 3 | N134: 3 | O134: 2 | P134: 2 | Q134: 2 | R134: 2 | S134: 2 | T134: 2 | U134: 2 | V134: 1 | W134: 1 | X134: 1 | Y134: 1 | Z134: 1 | AA134: 1 | AB134: 2 | AC134: 2 | AD134: 2 | AE134: 1 | AF134: 1 | AG134: 1 | AH134: 1 | AI134: 1 | AJ134: 1 | AK134: 1 | AL134: 1 | AM134: 1 | AN134: 1 | AO134: 1 | AP134: 1 | AQ134: 1 | AR134: 1 | AS134: 1 | AT134: 1 | AU134: 1 | AV134: 1 | AW134: 1 | AX134: 1 | AY134: 1 | AZ134: 1 | BA134: 1 | BB134: 1 | BC134: 1 | BD134: 1 | BE134: 1 | BF134: 1 | BG134: 1 | BH134: 1 | BI134: 1 | BJ134: 1 | BK134: 1 | BL134: 1 | BM134: 1 | BN134: 1 | BO134: 1 | BP134: 1 | BQ134: 1 | BR134: 1 | BS134: 1 | BT134: 1 | BU134: 1 | BV134: 1 | BW134: 1 | BX134: 1 | BY134: 1 | BZ134: 1 | CA134: 1 | CB134: 1 | CC134: 1 | CD134: 1 | CE134: 1 | CF134: 1 | CG134: 1 | CH134: 1 | CI134: 1 | CJ134: 1 | CK134: 1 | CL134: 1 | CM134: 1 | CN134: 1 | CO134: 1 | CP134: 1 | CQ134: 1 | CR134: 1 | CS134: 1 | CT134: 1 | CU134: 1 | CV134: 1 | CW134: 1 | CX134: 1 | CY134: 1 | CZ134: 1 | DA134: 1 | DB134: 1 | DC134: 1 | DD134: 1 | DE134: 1 | DF134: 1 | DG134: 1 | DH134: 1 | DI134: 1 | DJ134: 1 | DK134: 1 | DL134: 1 | DM134: 1 | DN134: 1 | DO134: 1 | DP134: 1 | DQ134: 1 | DR134: 1 | DS134: 1 | DT134: 1 | DU134: 1 | DV134: 1 | DW134: 1 | DX134: 1 | DY134: 1 | DZ134: 1 | EA134: 1 | EB134: 1 | EC134: 1 | ED134: 1 | EE134: 1 | EF134: 1 | EG134: 1 | EH134: 1 | EI134: 1 | EJ134: 1 | EK134: 1 | EL134: 2 | EM134: 2 | EN134: 2 | EO134: 2 | EP134: 2 | EQ134: 2 | ER134: 2 | ES134: 1 | ET134: 1 | EU134: 1 | EV134: 1 | EW134: 1 | EX134: 1 | EY134: 1 | EZ134: 1 | FA134: 2 | FB134: 2 | FC134: 1 | FD134: 1 | FE134: 1 | FF134: 1 | FG134: 1 | FH134: 1 | FI134: 1 | FJ134: 1 | FK134: 3 | FL134: 2 | FM134: 2 | FN134: 2 | FO134: 2 | FP134: 2 | FQ134: 2 | FR134: 2 | FS134: 2 | FT134: 2 | FU134: 2 | FV134: 2 | FW134: 2 | FX134: 1 | FY134: 1 | FZ134: 2 | GA134: 2 | GB134: 2 | GC134: 2 | GD134: 2 | GE134: 2 | GF134: 2 | GG134: 2 | GH134: 2 | GI134: 2 | GJ134: 2 | GK134: 2 | GL134: 1 | GM134: 1 | GN134: 1 | GO134: 1 | GP134: 1 | GQ134: 1 | GR134: 1
A135: 2 | B135: 2 | C135: 2 | D135: 2 | E135: 2 | F135: 2 | G135: 2 | H135: 3 | I135: 3 | J135: 3 | K135: 3 | L135: 3 | M135: 3 | N135: 2 | O135: 2 | P135: 2 | Q135: 2 | R135: 2 | S135: 2 | T135: 2 | U135: 2 | V135: 2 | W135: 1 | X135: 1 | Y135: 1 | Z135: 1 | AA135: 2 | AB135: 2 | AC135: 2 | AD135: 2 | AE135: 2 | AF135: 1 | AG135: 1 | AH135: 1 | AI135: 1 | AJ135: 1 | AK135: 1 | AL135: 1 | AM135: 1 | AN135: 1 | AO135: 1 | AP135: 1 | AQ135: 1 | AR135: 1 | AS135: 1 | AT135: 1 | AU135: 1 | AV135: 1 | AW135: 1 | AX135: 1 | AY135: 1 | AZ135: 1 | BA135: 1 | BB135: 1 | BC135: 1 | BD135: 1 | BE135: 1 | BF135: 1 | BG135: 1 | BH135: 1 | BI135: 1 | BJ135: 1 | BK135: 1 | BL135: 1 | BM135: 1 | BN135: 1 | BO135: 1 | BP135: 1 | BQ135: 1 | BR135: 1 | BS135: 1 | BT135: 1 | BU135: 1 | BV135: 1 | BW135: 1 | BX135: 1 | BY135: 1 | BZ135: 1 | CA135: 1 | CB135: 1 | CC135: 1 | CD135: 1 | CE135: 1 | CF135: 1 | CG135: 1 | CH135: 1 | CI135: 1 | CJ135: 1 | CK135: 1 | CL135: 1 | CM135: 1 | CN135: 1 | CO135: 1 | CP135: 1 | CQ135: 1 | CR135: 1 | CS135: 1 | CT135: 1 | CU135: 1 | CV135: 1 | CW135: 1 | CX135: 1 | CY135: 1 | CZ135: 1 | DA135: 1 | DB135: 1 | DC135: 1 | DD135: 1 | DE135: 1 | DF135: 1 | DG135: 1 | DH135: 1 | DI135: 1 | DJ135: 1 | DK135: 1 | DL135: 1 | DM135: 1 | DN135: 1 | DO135: 1 | DP135: 1 | DQ135: 1 | DR135: 1 | DS135: 1 | DT135: 1 | DU135: 1 | DV135: 1 | DW135: 1 | DX135: 1 | DY135: 1 | DZ135: 1 | EA135: 1 | EB135: 1 | EC135: 1 | ED135: 1 | EE135: 1 | EF135: 1 | EG135: 1 | EH135: 1 | EI135: 1 | EJ135: 1 | EK135: 2 | EL135: 2 | EM135: 2 | EN135: 2 | EO135: 2 | EP135: 2 | EQ135: 2 | ER135: 2 | ES135: 1 | ET135: 1 | EU135: 1 | EV135: 2 | EW135: 2 | EX135: 2 | EY135: 2 | EZ135: 2 | FA135: 2 | FB135: 2 | FC135: 2 | FD135: 2 | FE135: 2 | FF135: 2 | FG135: 2 | FH135: 2 | FI135: 2 | FJ135: 1 | FK135: 3 | FL135: 3 | FM135: 2 | FN135: 2 | FO135: 2 | FP135: 2 | FQ135: 2 | FR135: 2 | FS135: 2 | FT135: 2 | FU135: 2 | FV135: 2 | FW135: 2 | FX135: 2 | FY135: 2 | FZ135: 2 | GA135: 2 | GB135: 2 | GC135: 2 | GD135: 2 | GE135: 2 | GF135: 2 | GG135: 2 | GH135: 2 | GI135: 2 | GJ135: 2 | GK135: 2 | GL135: 2 | GM135: 1 | GN135: 1 | GO135: 1 | GP135: 1 | GQ135: 1 | GR135: 1
A136: 2 | B136: 2 | C136: 2 | D136: 2 | E136: 2 | F136: 2 | G136: 2 | H136: 3 | I136: 3 | J136: 3 | K136: 3 | L136: 3 | M136: 3 | N136: 2 | O136: 2 | P136: 2 | Q136: 2 | R136: 2 | S136: 2 | T136: 2 | U136: 2 | V136: 2 | W136: 2 | X136: 2 | Y136: 2 | Z136: 2 | AA136: 2 | AB136: 2 | AC136: 2 | AD136: 2 | AE136: 2 | AF136: 1 | AG136: 1 | AH136: 1 | AI136: 1 | AJ136: 1 | AK136: 1 | AL136: 1 | AM136: 1 | AN136: 1 | AO136: 1 | AP136: 1 | AQ136: 1 | AR136: 1 | AS136: 1 | AT136: 1 | AU136: 1 | AV136: 1 | AW136: 1 | AX136: 1 | AY136: 1 | AZ136: 1 | BA136: 1 | BB136: 1 | BC136: 1 | BD136: 1 | BE136: 1 | BF136: 1 | BG136: 1 | BH136: 1 | BI136: 1 | BJ136: 1 | BK136: 1 | BL136: 1 | BM136: 1 | BN136: 1 | BO136: 1 | BP136: 1 | BQ136: 1 | BR136: 1 | BS136: 1 | BT136: 1 | BU136: 1 | BV136: 1 | BW136: 1 | BX136: 1 | BY136: 1 | BZ136: 1 | CA136: 1 | CB136: 1 | CC136: 1 | CD136: 1 | CE136: 1 | CF136: 1 | CG136: 1 | CH136: 1 | CI136: 1 | CJ136: 1 | CK136: 1 | CL136: 1 | CM136: 1 | CN136: 1 | CO136: 1 | CP136: 1 | CQ136: 1 | CR136: 1 | CS136: 1 | CT136: 1 | CU136: 1 | CV136: 1 | CW136: 1 | CX136: 1 | CY136: 1 | CZ136: 1 | DA136: 1 | DB136: 1 | DC136: 1 | DD136: 1 | DE136: 1 | DF136: 1 | DG136: 1 | DH136: 1 | DI136: 1 | DJ136: 1 | DK136: 1 | DL136: 1 | DM136: 1 | DN136: 1 | DO136: 1 | DP136: 1 | DQ136: 1 | DR136: 1 | DS136: 1 | DT136: 1 | DU136: 1 | DV136: 1 | DW136: 1 | DX136: 1 | DY136: 1 | DZ136: 1 | EA136: 1 | EB136: 1 | EC136: 1 | ED136: 1 | EE136: 1 | EF136: 1 | EG136: 1 | EH136: 1 | EI136: 1 | EJ136: 1 | EK136: 2 | EL136: 2 | EM136: 2 | EN136: 2 | EO136: 2 | EP136: 2 | EQ136: 2 | ER136: 1 | ES136: 1 | ET136: 1 | EU136: 2 | EV136: 2 | EW136: 2 | EX136: 2 | EY136: 2 | EZ136: 2 | FA136: 2 | FB136: 2 | FC136: 2 | FD136: 2 | FE136: 2 | FF136: 2 | FG136: 2 | FH136: 2 | FI136: 2 | FJ136: 2 | FK136: 1 | FL136: 3 | FM136: 2 | FN136: 2 | FO136: 2 | FP136: 2 | FQ136: 2 | FR136: 2 | FS136: 2 | FT136: 2 | FU136: 2 | FV136: 2 | FW136: 2 | FX136: 2 | FY136: 2 | FZ136: 2 | GA136: 2 | GB136: 2 | GC136: 2 | GD136: 2 | GE136: 2 | GF136: 2 | GG136: 2 | GH136: 2 | GI136: 2 | GJ136: 2 | GK136: 2 | GL136: 2 | GM136: 2 | GN136: 1 | GO136: 1 | GP136: 1 | GQ136: 1 | GR136: 1
A137: 2 | B137: 2 | C137: 2 | D137: 2 | E137: 2 | F137: 2 | G137: 2 | H137: 3 | I137: 3 | J137: 3 | K137: 3 | L137: 3 | M137: 2 | N137: 2 | O137: 2 | P137: 2 | Q137: 2 | R137: 2 | S137: 2 | T137: 2 | U137: 2 | V137: 2 | W137: 2 | X137: 2 | Y137: 2 | Z137: 2 | AA137: 2 | AB137: 2 | AC137: 2 | AD137: 2 | AE137: 2 | AF137: 2 | AG137: 1 | AH137: 1 | AI137: 1 | AJ137: 1 | AK137: 1 | AL137: 1 | AM137: 1 | AN137: 1 | AO137: 1 | AP137: 1 | AQ137: 1 | AR137: 1 | AS137: 1 | AT137: 1 | AU137: 1 | AV137: 1 | AW137: 1 | AX137: 1 | AY137: 1 | AZ137: 1 | BA137: 1 | BB137: 1 | BC137: 1 | BD137: 1 | BE137: 1 | BF137: 1 | BG137: 1 | BH137: 1 | BI137: 1 | BJ137: 1 | BK137: 1 | BL137: 1 | BM137: 1 | BN137: 1 | BO137: 1 | BP137: 1 | BQ137: 1 | BR137: 1 | BS137: 1 | BT137: 1 | BU137: 1 | BV137: 1 | BW137: 1 | BX137: 1 | BY137: 1 | BZ137: 1 | CA137: 1 | CB137: 1 | CC137: 1 | CD137: 1 | CE137: 1 | CF137: 1 | CG137: 1 | CH137: 1 | CI137: 1 | CJ137: 1 | CK137: 1 | CL137: 1 | CM137: 1 | CN137: 1 | CO137: 1 | CP137: 1 | CQ137: 1 | CR137: 1 | CS137: 1 | CT137: 1 | CU137: 1 | CV137: 1 | CW137: 1 | CX137: 1 | CY137: 1 | CZ137: 1 | DA137: 1 | DB137: 1 | DC137: 1 | DD137: 1 | DE137: 1 | DF137: 1 | DG137: 1 | DH137: 1 | DI137: 1 | DJ137: 1 | DK137: 1 | DL137: 1 | DM137: 1 | DN137: 1 | DO137: 1 | DP137: 1 | DQ137: 1 | DR137: 1 | DS137: 1 | DT137: 1 | DU137: 1 | DV137: 1 | DW137: 1 | DX137: 1 | DY137: 1 | DZ137: 1 | EA137: 1 | EB137: 1 | EC137: 1 | ED137: 1 | EE137: 1 | EF137: 1 | EG137: 1 | EH137: 1 | EI137: 1 | EJ137: 2 | EK137: 2 | EL137: 1 | EM137: 1 | EN137: 1 | EO137: 2 | EP137: 2 | EQ137: 2 | ER137: 1 | ES137: 1 | ET137: 2 | EU137: 2 | EV137: 2 | EW137: 2 | EX137: 2 | EY137: 2 | EZ137: 2 | FA137: 2 | FB137: 2 | FC137: 2 | FD137: 2 | FE137: 2 | FF137: 2 | FG137: 2 | FH137: 2 | FI137: 2 | FJ137: 2 | FK137: 1 | FL137: 3 | FM137: 3 | FN137: 2 | FO137: 2 | FP137: 2 | FQ137: 2 | FR137: 2 | FS137: 2 | FT137: 2 | FU137: 2 | FV137: 2 | FW137: 2 | FX137: 2 | FY137: 2 | FZ137: 2 | GA137: 2 | GB137: 2 | GC137: 1 | GD137: 2 | GE137: 2 | GF137: 2 | GG137: 2 | GH137: 2 | GI137: 2 | GJ137: 2 | GK137: 2 | GL137: 2 | GM137: 2 | GN137: 1 | GO137: 1 | GP137: 1 | GQ137: 1 | GR137: 1
A138: 2 | B138: 2 | C138: 2 | D138: 2 | E138: 2 | F138: 2 | G138: 2 | H138: 2 | I138: 3 | J138: 3 | K138: 3 | L138: 3 | M138: 2 | N138: 2 | O138: 2 | P138: 2 | Q138: 2 | R138: 2 | S138: 2 | T138: 2 | U138: 2 | V138: 2 | W138: 2 | X138: 2 | Y138: 2 | Z138: 2 | AA138: 2 | AB138: 2 | AC138: 2 | AD138: 2 | AE138: 2 | AF138: 2 | AG138: 1 | AH138: 1 | AI138: 1 | AJ138: 1 | AK138: 1 | AL138: 1 | AM138: 1 | AN138: 1 | AO138: 1 | AP138: 1 | AQ138: 1 | AR138: 1 | AS138: 1 | AT138: 1 | AU138: 1 | AV138: 1 | AW138: 1 | AX138: 1 | AY138: 1 | AZ138: 1 | BA138: 1 | BB138: 1 | BC138: 1 | BD138: 1 | BE138: 1 | BF138: 1 | BG138: 1 | BH138: 1 | BI138: 1 | BJ138: 1 | BK138: 1 | BL138: 1 | BM138: 1 | BN138: 1 | BO138: 1 | BP138: 1 | BQ138: 1 | BR138: 1 | BS138: 1 | BT138: 1 | BU138: 1 | BV138: 1 | BW138: 1 | BX138: 1 | BY138: 1 | BZ138: 1 | CA138: 1 | CB138: 1 | CC138: 1 | CD138: 1 | CE138: 1 | CF138: 1 | CG138: 1 | CH138: 1 | CI138: 1 | CJ138: 1 | CK138: 1 | CL138: 2 | CM138: 2 | CN138: 2 | CO138: 2 | CP138: 2 | CQ138: 2 | CR138: 1 | CS138: 1 | CT138: 1 | CU138: 1 | CV138: 1 | CW138: 1 | CX138: 1 | CY138: 1 | CZ138: 1 | DA138: 1 | DB138: 1 | DC138: 1 | DD138: 1 | DE138: 1 | DF138: 1 | DG138: 1 | DH138: 1 | DI138: 1 | DJ138: 1 | DK138: 1 | DL138: 1 | DM138: 1 | DN138: 1 | DO138: 1 | DP138: 1 | DQ138: 1 | DR138: 1 | DS138: 1 | DT138: 1 | DU138: 1 | DV138: 1 | DW138: 1 | DX138: 1 | DY138: 1 | DZ138: 1 | EA138: 1 | EB138: 1 | EC138: 1 | ED138: 1 | EE138: 1 | EF138: 1 | EG138: 1 | EH138: 1 | EI138: 1 | EJ138: 2 | EK138: 1 | EL138: 1 | EM138: 2 | EN138: 1 | EO138: 1 | EP138: 1 | EQ138: 1 | ER138: 1 | ES138: 1 | ET138: 2 | EU138: 2 | EV138: 2 | EW138: 2 | EX138: 2 | EY138: 2 | EZ138: 2 | FA138: 2 | FB138: 2 | FC138: 2 | FD138: 2 | FE138: 2 | FF138: 2 | FG138: 2 | FH138: 2 | FI138: 2 | FJ138: 2 | FK138: 2 | FL138: 1 | FM138: 3 | FN138: 2 | FO138: 2 | FP138: 2 | FQ138: 2 | FR138: 2 | FS138: 2 | FT138: 2 | FU138: 2 | FV138: 2 | FW138: 2 | FX138: 2 | FY138: 2 | FZ138: 2 | GA138: 2 | GB138: 1 | GC138: 1 | GD138: 1 | GE138: 1 | GF138: 2 | GG138: 2 | GH138: 2 | GI138: 2 | GJ138: 2 | GK138: 2 | GL138: 2 | GM138: 1 | GN138: 1 | GO138: 1 | GP138: 1 | GQ138: 1 | GR138: 1
A139: 2 | B139: 2 | C139: 2 | D139: 2 | E139: 2 | F139: 2 | G139: 2 | H139: 3 | I139: 3 | J139: 3 | K139: 3 | L139: 3 | M139: 2 | N139: 2 | O139: 2 | P139: 2 | Q139: 2 | R139: 2 | S139: 2 | T139: 2 | U139: 2 | V139: 2 | W139: 2 | X139: 2 | Y139: 2 | Z139: 2 | AA139: 2 | AB139: 2 | AC139: 2 | AD139: 2 | AE139: 2 | AF139: 2 | AG139: 1 | AH139: 1 | AI139: 1 | AJ139: 1 | AK139: 1 | AL139: 1 | AM139: 1 | AN139: 1 | AO139: 1 | AP139: 1 | AQ139: 1 | AR139: 1 | AS139: 1 | AT139: 1 | AU139: 1 | AV139: 1 | AW139: 1 | AX139: 1 | AY139: 1 | AZ139: 1 | BA139: 1 | BB139: 1 | BC139: 1 | BD139: 1 | BE139: 1 | BF139: 1 | BG139: 1 | BH139: 1 | BI139: 1 | BJ139: 1 | BK139: 1 | BL139: 1 | BM139: 1 | BN139: 1 | BO139: 1 | BP139: 1 | BQ139: 1 | BR139: 1 | BS139: 1 | BT139: 1 | BU139: 1 | BV139: 1 | BW139: 1 | BX139: 1 | BY139: 1 | BZ139: 1 | CA139: 1 | CB139: 1 | CC139: 1 | CD139: 1 | CE139: 1 | CF139: 1 | CG139: 1 | CH139: 1 | CI139: 1 | CJ139: 1 | CK139: 2 | CL139: 2 | CM139: 2 | CN139: 2 | CO139: 2 | CP139: 2 | CQ139: 2 | CR139: 2 | CS139: 1 | CT139: 1 | CU139: 1 | CV139: 1 | CW139: 1 | CX139: 1 | CY139: 1 | CZ139: 1 | DA139: 1 | DB139: 1 | DC139: 1 | DD139: 1 | DE139: 1 | DF139: 1 | DG139: 1 | DH139: 1 | DI139: 1 | DJ139: 1 | DK139: 1 | DL139: 1 | DM139: 1 | DN139: 1 | DO139: 1 | DP139: 1 | DQ139: 1 | DR139: 1 | DS139: 1 | DT139: 1 | DU139: 1 | DV139: 1 | DW139: 1 | DX139: 1 | DY139: 1 | DZ139: 1 | EA139: 1 | EB139: 1 | EC139: 1 | ED139: 1 | EE139: 1 | EF139: 1 | EG139: 1 | EH139: 1 | EI139: 1 | EJ139: 1 | EK139: 2 | EL139: 2 | EM139: 2 | EN139: 2 | EO139: 2 | EP139: 2 | EQ139: 1 | ER139: 1 | ES139: 2 | ET139: 2 | EU139: 2 | EV139: 2 | EW139: 2 | EX139: 2 | EY139: 2 | EZ139: 2 | FA139: 2 | FB139: 2 | FC139: 2 | FD139: 2 | FE139: 2 | FF139: 2 | FG139: 2 | FH139: 2 | FI139: 2 | FJ139: 2 | FK139: 2 | FL139: 1 | FM139: 3 | FN139: 3 | FO139: 2 | FP139: 2 | FQ139: 2 | FR139: 2 | FS139: 2 | FT139: 2 | FU139: 2 | FV139: 2 | FW139: 2 | FX139: 2 | FY139: 2 | FZ139: 2 | GA139: 1 | GB139: 1 | GC139: 1 | GD139: 1 | GE139: 1 | GF139: 1 | GG139: 1 | GH139: 1 | GI139: 2 | GJ139: 1 | GK139: 1 | GL139: 1 | GM139: 1 | GN139: 1 | GO139: 1 | GP139: 1 | GQ139: 1 | GR139: 1
A140: 2 | B140: 2 | C140: 2 | D140: 2 | E140: 2 | F140: 2 | G140: 2 | H140: 3 | I140: 3 | J140: 3 | K140: 3 | L140: 3 | M140: 2 | N140: 2 | O140: 2 | P140: 2 | Q140: 2 | R140: 2 | S140: 2 | T140: 2 | U140: 2 | V140: 2 | W140: 2 | X140: 2 | Y140: 2 | Z140: 2 | AA140: 2 | AB140: 2 | AC140: 2 | AD140: 2 | AE140: 2 | AF140: 2 | AG140: 1 | AH140: 1 | AI140: 1 | AJ140: 1 | AK140: 1 | AL140: 1 | AM140: 1 | AN140: 1 | AO140: 1 | AP140: 1 | AQ140: 1 | AR140: 1 | AS140: 1 | AT140: 1 | AU140: 1 | AV140: 1 | AW140: 1 | AX140: 1 | AY140: 1 | AZ140: 1 | BA140: 1 | BB140: 1 | BC140: 1 | BD140: 1 | BE140: 1 | BF140: 1 | BG140: 1 | BH140: 1 | BI140: 1 | BJ140: 1 | BK140: 1 | BL140: 1 | BM140: 1 | BN140: 1 | BO140: 1 | BP140: 1 | BQ140: 1 | BR140: 1 | BS140: 1 | BT140: 1 | BU140: 1 | BV140: 1 | BW140: 1 | BX140: 1 | BY140: 1 | BZ140: 1 | CA140: 1 | CB140: 1 | CC140: 1 | CD140: 1 | CE140: 1 | CF140: 1 | CG140: 1 | CH140: 1 | CI140: 1 | CJ140: 1 | CK140: 2 | CL140: 2 | CM140: 2 | CN140: 2 | CO140: 2 | CP140: 2 | CQ140: 2 | CR140: 2 | CS140: 1 | CT140: 1 | CU140: 1 | CV140: 1 | CW140: 1 | CX140: 1 | CY140: 1 | CZ140: 1 | DA140: 1 | DB140: 1 | DC140: 1 | DD140: 1 | DE140: 1 | DF140: 1 | DG140: 1 | DH140: 1 | DI140: 1 | DJ140: 1 | DK140: 1 | DL140: 1 | DM140: 1 | DN140: 1 | DO140: 1 | DP140: 1 | DQ140: 1 | DR140: 1 | DS140: 1 | DT140: 1 | DU140: 1 | DV140: 1 | DW140: 1 | DX140: 1 | DY140: 1 | DZ140: 1 | EA140: 1 | EB140: 1 | EC140: 1 | ED140: 1 | EE140: 1 | EF140: 1 | EG140: 1 | EH140: 2 | EI140: 1 | EJ140: 2 | EK140: 2 | EL140: 2 | EM140: 2 | EN140: 2 | EO140: 2 | EP140: 2 | EQ140: 1 | ER140: 1 | ES140: 2 | ET140: 2 | EU140: 2 | EV140: 2 | EW140: 2 | EX140: 2 | EY140: 2 | EZ140: 2 | FA140: 2 | FB140: 2 | FC140: 2 | FD140: 2 | FE140: 2 | FF140: 2 | FG140: 2 | FH140: 2 | FI140: 2 | FJ140: 2 | FK140: 2 | FL140: 2 | FM140: 3 | FN140: 3 | FO140: 3 | FP140: 2 | FQ140: 2 | FR140: 2 | FS140: 2 | FT140: 2 | FU140: 2 | FV140: 2 | FW140: 2 | FX140: 2 | FY140: 1 | FZ140: 1 | GA140: 1 | GB140: 1 | GC140: 1 | GD140: 1 | GE140: 1 | GF140: 1 | GG140: 1 | GH140: 1 | GI140: 1 | GJ140: 1 | GK140: 1 | GL140: 1 | GM140: 1 | GN140: 1 | GO140: 1 | GP140: 1 | GQ140: 1 | GR140: 1
A141: 2 | B141: 2 | C141: 2 | D141: 2 | E141: 2 | F141: 2 | G141: 3 | H141: 3 | I141: 3 | J141: 3 | K141: 3 | L141: 2 | M141: 2 | N141: 2 | O141: 2 | P141: 2 | Q141: 2 | R141: 2 | S141: 2 | T141: 2 | U141: 2 | V141: 2 | W141: 2 | X141: 2 | Y141: 2 | Z141: 2 | AA141: 2 | AB141: 2 | AC141: 2 | AD141: 2 | AE141: 2 | AF141: 2 | AG141: 1 | AH141: 1 | AI141: 1 | AJ141: 1 | AK141: 1 | AL141: 1 | AM141: 1 | AN141: 1 | AO141: 1 | AP141: 1 | AQ141: 1 | AR141: 1 | AS141: 1 | AT141: 1 | AU141: 1 | AV141: 1 | AW141: 1 | AX141: 1 | AY141: 1 | AZ141: 1 | BA141: 1 | BB141: 1 | BC141: 1 | BD141: 1 | BE141: 1 | BF141: 1 | BG141: 1 | BH141: 1 | BI141: 1 | BJ141: 1 | BK141: 1 | BL141: 1 | BM141: 1 | BN141: 1 | BO141: 1 | BP141: 1 | BQ141: 1 | BR141: 1 | BS141: 1 | BT141: 1 | BU141: 1 | BV141: 1 | BW141: 1 | BX141: 1 | BY141: 1 | BZ141: 1 | CA141: 1 | CB141: 1 | CC141: 1 | CD141: 1 | CE141: 1 | CF141: 1 | CG141: 1 | CH141: 1 | CI141: 1 | CJ141: 1 | CK141: 2 | CL141: 2 | CM141: 2 | CN141: 2 | CO141: 2 | CP141: 2 | CQ141: 2 | CR141: 2 | CS141: 1 | CT141: 1 | CU141: 1 | CV141: 1 | CW141: 1 | CX141: 1 | CY141: 1 | CZ141: 1 | DA141: 1 | DB141: 1 | DC141: 1 | DD141: 1 | DE141: 1 | DF141: 1 | DG141: 1 | DH141: 1 | DI141: 1 | DJ141: 1 | DK141: 1 | DL141: 1 | DM141: 1 | DN141: 1 | DO141: 1 | DP141: 1 | DQ141: 1 | DR141: 1 | DS141: 1 | DT141: 1 | DU141: 1 | DV141: 1 | DW141: 1 | DX141: 1 | DY141: 1 | DZ141: 1 | EA141: 1 | EB141: 1 | EC141: 1 | ED141: 1 | EE141: 1 | EF141: 2 | EG141: 2 | EH141: 2 | EI141: 2 | EJ141: 2 | EK141: 2 | EL141: 2 | EM141: 2 | EN141: 2 | EO141: 2 | EP141: 2 | EQ141: 2 | ER141: 2 | ES141: 2 | ET141: 2 | EU141: 2 | EV141: 2 | EW141: 2 | EX141: 2 | EY141: 2 | EZ141: 2 | FA141: 2 | FB141: 2 | FC141: 2 | FD141: 2 | FE141: 2 | FF141: 2 | FG141: 2 | FH141: 2 | FI141: 2 | FJ141: 2 | FK141: 2 | FL141: 2 | FM141: 1 | FN141: 3 | FO141: 3 | FP141: 2 | FQ141: 2 | FR141: 2 | FS141: 2 | FT141: 2 | FU141: 2 | FV141: 2 | FW141: 1 | FX141: 1 | FY141: 1 | FZ141: 1 | GA141: 2 | GB141: 2 | GC141: 2 | GD141: 2 | GE141: 2 | GF141: 2 | GG141: 1 | GH141: 1 | GI141: 1 | GJ141: 1 | GK141: 1 | GL141: 2 | GM141: 2 | GN141: 1 | GO141: 1 | GP141: 1 | GQ141: 1 | GR141: 1
A142: 2 | B142: 2 | C142: 2 | D142: 2 | E142: 2 | F142: 2 | G142: 3 | H142: 3 | I142: 3 | J142: 3 | K142: 3 | L142: 2 | M142: 2 | N142: 2 | O142: 2 | P142: 2 | Q142: 2 | R142: 2 | S142: 2 | T142: 2 | U142: 2 | V142: 2 | W142: 2 | X142: 2 | Y142: 2 | Z142: 2 | AA142: 2 | AB142: 2 | AC142: 2 | AD142: 2 | AE142: 2 | AF142: 2 | AG142: 2 | AH142: 2 | AI142: 2 | AJ142: 2 | AK142: 2 | AL142: 2 | AM142: 1 | AN142: 1 | AO142: 1 | AP142: 1 | AQ142: 1 | AR142: 1 | AS142: 1 | AT142: 1 | AU142: 1 | AV142: 1 | AW142: 1 | AX142: 1 | AY142: 1 | AZ142: 1 | BA142: 1 | BB142: 1 | BC142: 1 | BD142: 1 | BE142: 1 | BF142: 1 | BG142: 1 | BH142: 1 | BI142: 1 | BJ142: 1 | BK142: 1 | BL142: 1 | BM142: 1 | BN142: 1 | BO142: 1 | BP142: 1 | BQ142: 1 | BR142: 1 | BS142: 1 | BT142: 1 | BU142: 1 | BV142: 1 | BW142: 1 | BX142: 1 | BY142: 1 | BZ142: 1 | CA142: 1 | CB142: 1 | CC142: 1 | CD142: 1 | CE142: 1 | CF142: 1 | CG142: 1 | CH142: 1 | CI142: 1 | CJ142: 1 | CK142: 2 | CL142: 2 | CM142: 2 | CN142: 2 | CO142: 2 | CP142: 2 | CQ142: 2 | CR142: 2 | CS142: 1 | CT142: 1 | CU142: 1 | CV142: 1 | CW142: 1 | CX142: 1 | CY142: 1 | CZ142: 1 | DA142: 1 | DB142: 1 | DC142: 1 | DD142: 1 | DE142: 1 | DF142: 1 | DG142: 1 | DH142: 1 | DI142: 1 | DJ142: 1 | DK142: 1 | DL142: 1 | DM142: 1 | DN142: 1 | DO142: 1 | DP142: 1 | DQ142: 1 | DR142: 1 | DS142: 1 | DT142: 1 | DU142: 1 | DV142: 1 | DW142: 1 | DX142: 1 | DY142: 1 | DZ142: 1 | EA142: 1 | EB142: 1 | EC142: 1 | ED142: 1 | EE142: 2 | EF142: 2 | EG142: 2 | EH142: 2 | EI142: 2 | EJ142: 2 | EK142: 2 | EL142: 2 | EM142: 2 | EN142: 2 | EO142: 2 | EP142: 2 | EQ142: 2 | ER142: 2 | ES142: 2 | ET142: 2 | EU142: 2 | EV142: 2 | EW142: 2 | EX142: 2 | EY142: 2 | EZ142: 2 | FA142: 2 | FB142: 2 | FC142: 2 | FD142: 2 | FE142: 2 | FF142: 2 | FG142: 2 | FH142: 2 | FI142: 2 | FJ142: 2 | FK142: 2 | FL142: 2 | FM142: 2 | FN142: 3 | FO142: 3 | FP142: 3 | FQ142: 1 | FR142: 1 | FS142: 1 | FT142: 1 | FU142: 1 | FV142: 1 | FW142: 1 | FX142: 1 | FY142: 1 | FZ142: 1 | GA142: 2 | GB142: 2 | GC142: 2 | GD142: 2 | GE142: 2 | GF142: 2 | GG142: 2 | GH142: 2 | GI142: 2 | GJ142: 2 | GK142: 2 | GL142: 2 | GM142: 2 | GN142: 1 | GO142: 1 | GP142: 1 | GQ142: 1 | GR142: 1
A143: 2 | B143: 2 | C143: 2 | D143: 2 | E143: 2 | F143: 2 | G143: 3 | H143: 3 | I143: 3 | J143: 3 | K143: 2 | L143: 2 | M143: 2 | N143: 2 | O143: 2 | P143: 2 | Q143: 2 | R143: 2 | S143: 2 | T143: 2 | U143: 2 | V143: 2 | W143: 2 | X143: 2 | Y143: 2 | Z143: 2 | AA143: 2 | AB143: 2 | AC143: 2 | AD143: 2 | AE143: 2 | AF143: 2 | AG143: 2 | AH143: 2 | AI143: 2 | AJ143: 2 | AK143: 2 | AL143: 2 | AM143: 1 | AN143: 2 | AO143: 2 | AP143: 2 | AQ143: 2 | AR143: 1 | AS143: 1 | AT143: 1 | AU143: 1 | AV143: 1 | AW143: 1 | AX143: 1 | AY143: 1 | AZ143: 1 | BA143: 1 | BB143: 1 | BC143: 1 | BD143: 1 | BE143: 1 | BF143: 1 | BG143: 1 | BH143: 1 | BI143: 1 | BJ143: 1 | BK143: 1 | BL143: 1 | BM143: 1 | BN143: 1 | BO143: 1 | BP143: 1 | BQ143: 1 | BR143: 1 | BS143: 1 | BT143: 1 | BU143: 1 | BV143: 1 | BW143: 1 | BX143: 1 | BY143: 1 | BZ143: 1 | CA143: 1 | CB143: 1 | CC143: 1 | CD143: 1 | CE143: 1 | CF143: 1 | CG143: 1 | CH143: 1 | CI143: 1 | CJ143: 2 | CK143: 2 | CL143: 2 | CM143: 2 | CN143: 2 | CO143: 2 | CP143: 2 | CQ143: 2 | CR143: 1 | CS143: 1 | CT143: 1 | CU143: 1 | CV143: 1 | CW143: 1 | CX143: 1 | CY143: 1 | CZ143: 1 | DA143: 1 | DB143: 1 | DC143: 1 | DD143: 1 | DE143: 1 | DF143: 1 | DG143: 1 | DH143: 1 | DI143: 1 | DJ143: 1 | DK143: 1 | DL143: 1 | DM143: 1 | DN143: 1 | DO143: 1 | DP143: 1 | DQ143: 1 | DR143: 1 | DS143: 1 | DT143: 1 | DU143: 1 | DV143: 1 | DW143: 1 | DX143: 1 | DY143: 1 | DZ143: 1 | EA143: 1 | EB143: 1 | EC143: 1 | ED143: 1 | EE143: 2 | EF143: 2 | EG143: 2 | EH143: 2 | EI143: 2 | EJ143: 2 | EK143: 2 | EL143: 2 | EM143: 2 | EN143: 2 | EO143: 2 | EP143: 2 | EQ143: 2 | ER143: 2 | ES143: 2 | ET143: 2 | EU143: 2 | EV143: 2 | EW143: 2 | EX143: 2 | EY143: 2 | EZ143: 2 | FA143: 2 | FB143: 2 | FC143: 2 | FD143: 2 | FE143: 2 | FF143: 2 | FG143: 2 | FH143: 2 | FI143: 2 | FJ143: 2 | FK143: 2 | FL143: 2 | FM143: 1 | FN143: 3 | FO143: 3 | FP143: 3 | FQ143: 1 | FR143: 1 | FS143: 1 | FT143: 1 | FU143: 1 | FV143: 1 | FW143: 1 | FX143: 1 | FY143: 1 | FZ143: 2 | GA143: 2 | GB143: 2 | GC143: 2 | GD143: 2 | GE143: 2 | GF143: 2 | GG143: 2 | GH143: 2 | GI143: 2 | GJ143: 2 | GK143: 2 | GL143: 2 | GM143: 2 | GN143: 2 | GO143: 1 | GP143: 1 | GQ143: 1 | GR143: 1
A144: 2 | B144: 2 | C144: 2 | D144: 2 | E144: 2 | F144: 3 | G144: 3 | H144: 3 | I144: 3 | J144: 3 | K144: 2 | L144: 2 | M144: 2 | N144: 2 | O144: 2 | P144: 2 | Q144: 2 | R144: 2 | S144: 2 | T144: 2 | U144: 2 | V144: 2 | W144: 2 | X144: 2 | Y144: 2 | Z144: 2 | AA144: 2 | AB144: 2 | AC144: 2 | AD144: 2 | AE144: 2 | AF144: 2 | AG144: 2 | AH144: 2 | AI144: 2 | AJ144: 2 | AK144: 2 | AL144: 2 | AM144: 2 | AN144: 2 | AO144: 2 | AP144: 2 | AQ144: 2 | AR144: 2 | AS144: 2 | AT144: 2 | AU144: 1 | AV144: 1 | AW144: 1 | AX144: 1 | AY144: 1 | AZ144: 1 | BA144: 1 | BB144: 1 | BC144: 1 | BD144: 1 | BE144: 1 | BF144: 1 | BG144: 1 | BH144: 1 | BI144: 1 | BJ144: 1 | BK144: 1 | BL144: 1 | BM144: 1 | BN144: 1 | BO144: 1 | BP144: 1 | BQ144: 1 | BR144: 1 | BS144: 1 | BT144: 1 | BU144: 1 | BV144: 1 | BW144: 1 | BX144: 1 | BY144: 1 | BZ144: 1 | CA144: 1 | CB144: 1 | CC144: 1 | CD144: 1 | CE144: 1 | CF144: 1 | CG144: 1 | CH144: 1 | CI144: 1 | CJ144: 2 | CK144: 2 | CL144: 2 | CM144: 2 | CN144: 2 | CO144: 2 | CP144: 2 | CQ144: 2 | CR144: 1 | CS144: 1 | CT144: 1 | CU144: 1 | CV144: 1 | CW144: 1 | CX144: 1 | CY144: 1 | CZ144: 1 | DA144: 1 | DB144: 1 | DC144: 1 | DD144: 1 | DE144: 1 | DF144: 1 | DG144: 1 | DH144: 1 | DI144: 1 | DJ144: 1 | DK144: 1 | DL144: 1 | DM144: 1 | DN144: 1 | DO144: 1 | DP144: 1 | DQ144: 1 | DR144: 1 | DS144: 1 | DT144: 1 | DU144: 1 | DV144: 1 | DW144: 1 | DX144: 1 | DY144: 1 | DZ144: 1 | EA144: 1 | EB144: 1 | EC144: 1 | ED144: 1 | EE144: 2 | EF144: 2 | EG144: 2 | EH144: 2 | EI144: 2 | EJ144: 2 | EK144: 2 | EL144: 2 | EM144: 2 | EN144: 2 | EO144: 2 | EP144: 2 | EQ144: 2 | ER144: 2 | ES144: 2 | ET144: 2 | EU144: 2 | EV144: 2 | EW144: 2 | EX144: 2 | EY144: 2 | EZ144: 2 | FA144: 2 | FB144: 2 | FC144: 2 | FD144: 2 | FE144: 2 | FF144: 2 | FG144: 2 | FH144: 2 | FI144: 2 | FJ144: 2 | FK144: 2 | FL144: 2 | FM144: 3 | FN144: 3 | FO144: 3 | FP144: 3 | FQ144: 1 | FR144: 2 | FS144: 2 | FT144: 2 | FU144: 2 | FV144: 2 | FW144: 2 | FX144: 2 | FY144: 2 | FZ144: 2 | GA144: 2 | GB144: 2 | GC144: 2 | GD144: 2 | GE144: 2 | GF144: 2 | GG144: 2 | GH144: 2 | GI144: 2 | GJ144: 2 | GK144: 2 | GL144: 2 | GM144: 2 | GN144: 2 | GO144: 1 | GP144: 1 | GQ144: 1 | GR144: 1
A145: 2 | B145: 2 | C145: 2 | D145: 2 | E145: 2 | F145: 3 | G145: 3 | H145: 3 | I145: 3 | J145: 2 | K145: 2 | L145: 2 | M145: 2 | N145: 2 | O145: 2 | P145: 2 | Q145: 2 | R145: 2 | S145: 2 | T145: 2 | U145: 2 | V145: 2 | W145: 2 | X145: 2 | Y145: 2 | Z145: 2 | AA145: 2 | AB145: 2 | AC145: 2 | AD145: 2 | AE145: 2 | AF145: 2 | AG145: 2 | AH145: 2 | AI145: 2 | AJ145: 2 | AK145: 2 | AL145: 2 | AM145: 2 | AN145: 2 | AO145: 2 | AP145: 2 | AQ145: 2 | AR145: 2 | AS145: 2 | AT145: 2 | AU145: 2 | AV145: 1 | AW145: 1 | AX145: 1 | AY145: 1 | AZ145: 1 | BA145: 1 | BB145: 1 | BC145: 1 | BD145: 1 | BE145: 1 | BF145: 1 | BG145: 1 | BH145: 1 | BI145: 1 | BJ145: 1 | BK145: 1 | BL145: 1 | BM145: 1 | BN145: 1 | BO145: 1 | BP145: 1 | BQ145: 1 | BR145: 1 | BS145: 1 | BT145: 1 | BU145: 1 | BV145: 1 | BW145: 1 | BX145: 1 | BY145: 1 | BZ145: 2 | CA145: 1 | CB145: 1 | CC145: 1 | CD145: 1 | CE145: 1 | CF145: 1 | CG145: 1 | CH145: 1 | CI145: 2 | CJ145: 2 | CK145: 2 | CL145: 2 | CM145: 2 | CN145: 2 | CO145: 2 | CP145: 2 | CQ145: 2 | CR145: 1 | CS145: 1 | CT145: 1 | CU145: 1 | CV145: 1 | CW145: 1 | CX145: 1 | CY145: 1 | CZ145: 1 | DA145: 1 | DB145: 1 | DC145: 1 | DD145: 1 | DE145: 1 | DF145: 1 | DG145: 1 | DH145: 1 | DI145: 1 | DJ145: 1 | DK145: 1 | DL145: 1 | DM145: 1 | DN145: 1 | DO145: 1 | DP145: 1 | DQ145: 1 | DR145: 1 | DS145: 1 | DT145: 1 | DU145: 1 | DV145: 1 | DW145: 1 | DX145: 1 | DY145: 1 | DZ145: 1 | EA145: 1 | EB145: 1 | EC145: 1 | ED145: 1 | EE145: 2 | EF145: 2 | EG145: 2 | EH145: 2 | EI145: 2 | EJ145: 2 | EK145: 2 | EL145: 2 | EM145: 2 | EN145: 2 | EO145: 2 | EP145: 2 | EQ145: 2 | ER145: 2 | ES145: 2 | ET145: 2 | EU145: 2 | EV145: 2 | EW145: 2 | EX145: 2 | EY145: 2 | EZ145: 2 | FA145: 2 | FB145: 2 | FC145: 2 | FD145: 2 | FE145: 2 | FF145: 2 | FG145: 2 | FH145: 2 | FI145: 2 | FJ145: 2 | FK145: 2 | FL145: 2 | FM145: 3 | FN145: 3 | FO145: 3 | FP145: 3 | FQ145: 2 | FR145: 2 | FS145: 2 | FT145: 2 | FU145: 2 | FV145: 2 | FW145: 2 | FX145: 2 | FY145: 2 | FZ145: 2 | GA145: 2 | GB145: 2 | GC145: 2 | GD145: 2 | GE145: 2 | GF145: 1 | GG145: 2 | GH145: 1 | GI145: 1 | GJ145: 1 | GK145: 1 | GL145: 2 | GM145: 2 | GN145: 2 | GO145: 1 | GP145: 1 | GQ145: 1 | GR145: 1
A146: 2 | B146: 2 | C146: 2 | D146: 2 | E146: 3 | F146: 3 | G146: 3 | H146: 3 | I146: 2 | J146: 2 | K146: 2 | L146: 2 | M146: 2 | N146: 2 | O146: 2 | P146: 2 | Q146: 2 | R146: 2 | S146: 2 | T146: 2 | U146: 2 | V146: 2 | W146: 2 | X146: 2 | Y146: 2 | Z146: 2 | AA146: 2 | AB146: 2 | AC146: 2 | AD146: 2 | AE146: 2 | AF146: 2 | AG146: 2 | AH146: 2 | AI146: 2 | AJ146: 2 | AK146: 2 | AL146: 2 | AM146: 2 | AN146: 2 | AO146: 2 | AP146: 2 | AQ146: 2 | AR146: 2 | AS146: 2 | AT146: 2 | AU146: 2 | AV146: 1 | AW146: 1 | AX146: 1 | AY146: 1 | AZ146: 1 | BA146: 1 | BB146: 1 | BC146: 1 | BD146: 1 | BE146: 1 | BF146: 1 | BG146: 1 | BH146: 1 | BI146: 1 | BJ146: 1 | BK146: 1 | BL146: 1 | BM146: 1 | BN146: 1 | BO146: 1 | BP146: 1 | BQ146: 1 | BR146: 1 | BS146: 1 | BT146: 1 | BU146: 1 | BV146: 1 | BW146: 1 | BX146: 1 | BY146: 1 | BZ146: 2 | CA146: 2 | CB146: 1 | CC146: 1 | CD146: 1 | CE146: 1 | CF146: 1 | CG146: 1 | CH146: 1 | CI146: 2 | CJ146: 2 | CK146: 2 | CL146: 2 | CM146: 2 | CN146: 2 | CO146: 2 | CP146: 2 | CQ146: 1 | CR146: 2 | CS146: 2 | CT146: 2 | CU146: 1 | CV146: 1 | CW146: 1 | CX146: 1 | CY146: 1 | CZ146: 1 | DA146: 1 | DB146: 1 | DC146: 1 | DD146: 1 | DE146: 1 | DF146: 1 | DG146: 1 | DH146: 1 | DI146: 1 | DJ146: 1 | DK146: 1 | DL146: 1 | DM146: 1 | DN146: 1 | DO146: 1 | DP146: 1 | DQ146: 1 | DR146: 1 | DS146: 1 | DT146: 1 | DU146: 1 | DV146: 1 | DW146: 1 | DX146: 1 | DY146: 1 | DZ146: 1 | EA146: 1 | EB146: 1 | EC146: 1 | ED146: 1 | EE146: 2 | EF146: 2 | EG146: 2 | EH146: 2 | EI146: 2 | EJ146: 2 | EK146: 2 | EL146: 2 | EM146: 2 | EN146: 2 | EO146: 2 | EP146: 2 | EQ146: 2 | ER146: 2 | ES146: 2 | ET146: 2 | EU146: 2 | EV146: 2 | EW146: 2 | EX146: 2 | EY146: 2 | EZ146: 2 | FA146: 2 | FB146: 2 | FC146: 2 | FD146: 2 | FE146: 2 | FF146: 2 | FG146: 2 | FH146: 2 | FI146: 2 | FJ146: 2 | FK146: 2 | FL146: 3 | FM146: 3 | FN146: 3 | FO146: 3 | FP146: 2 | FQ146: 2 | FR146: 2 | FS146: 2 | FT146: 2 | FU146: 2 | FV146: 2 | FW146: 2 | FX146: 2 | FY146: 2 | FZ146: 2 | GA146: 2 | GB146: 2 | GC146: 2 | GD146: 2 | GE146: 2 | GF146: 1 | GG146: 1 | GH146: 1 | GI146: 1 | GJ146: 1 | GK146: 1 | GL146: 2 | GM146: 2 | GN146: 2 | GO146: 1 | GP146: 1 | GQ146: 1 | GR146: 1
A147: 2 | B147: 2 | C147: 2 | D147: 3 | E147: 3 | F147: 3 | G147: 3 | H147: 3 | I147: 2 | J147: 2 | K147: 2 | L147: 2 | M147: 2 | N147: 2 | O147: 2 | P147: 2 | Q147: 2 | R147: 2 | S147: 2 | T147: 2 | U147: 2 | V147: 2 | W147: 2 | X147: 2 | Y147: 2 | Z147: 2 | AA147: 2 | AB147: 2 | AC147: 2 | AD147: 2 | AE147: 2 | AF147: 2 | AG147: 2 | AH147: 2 | AI147: 2 | AJ147: 2 | AK147: 2 | AL147: 2 | AM147: 2 | AN147: 2 | AO147: 2 | AP147: 2 | AQ147: 2 | AR147: 2 | AS147: 2 | AT147: 2 | AU147: 2 | AV147: 1 | AW147: 1 | AX147: 1 | AY147: 1 | AZ147: 1 | BA147: 1 | BB147: 1 | BC147: 1 | BD147: 1 | BE147: 1 | BF147: 1 | BG147: 1 | BH147: 1 | BI147: 1 | BJ147: 1 | BK147: 1 | BL147: 1 | BM147: 1 | BN147: 1 | BO147: 1 | BP147: 1 | BQ147: 1 | BR147: 1 | BS147: 2 | BT147: 2 | BU147: 2 | BV147: 1 | BW147: 2 | BX147: 2 | BY147: 2 | BZ147: 2 | CA147: 2 | CB147: 1 | CC147: 1 | CD147: 1 | CE147: 1 | CF147: 1 | CG147: 1 | CH147: 1 | CI147: 2 | CJ147: 2 | CK147: 2 | CL147: 2 | CM147: 2 | CN147: 2 | CO147: 2 | CP147: 2 | CQ147: 2 | CR147: 2 | CS147: 2 | CT147: 2 | CU147: 2 | CV147: 1 | CW147: 1 | CX147: 1 | CY147: 1 | CZ147: 1 | DA147: 1 | DB147: 1 | DC147: 1 | DD147: 1 | DE147: 1 | DF147: 1 | DG147: 1 | DH147: 1 | DI147: 1 | DJ147: 1 | DK147: 1 | DL147: 1 | DM147: 1 | DN147: 1 | DO147: 1 | DP147: 1 | DQ147: 1 | DR147: 1 | DS147: 1 | DT147: 1 | DU147: 1 | DV147: 1 | DW147: 1 | DX147: 1 | DY147: 1 | DZ147: 1 | EA147: 1 | EB147: 1 | EC147: 1 | ED147: 1 | EE147: 2 | EF147: 2 | EG147: 2 | EH147: 2 | EI147: 2 | EJ147: 2 | EK147: 2 | EL147: 2 | EM147: 2 | EN147: 2 | EO147: 2 | EP147: 2 | EQ147: 2 | ER147: 2 | ES147: 2 | ET147: 2 | EU147: 2 | EV147: 2 | EW147: 2 | EX147: 2 | EY147: 2 | EZ147: 2 | FA147: 2 | FB147: 2 | FC147: 2 | FD147: 2 | FE147: 2 | FF147: 2 | FG147: 2 | FH147: 2 | FI147: 2 | FJ147: 2 | FK147: 2 | FL147: 3 | FM147: 3 | FN147: 3 | FO147: 1 | FP147: 2 | FQ147: 2 | FR147: 2 | FS147: 2 | FT147: 2 | FU147: 2 | FV147: 2 | FW147: 2 | FX147: 2 | FY147: 2 | FZ147: 2 | GA147: 2 | GB147: 2 | GC147: 2 | GD147: 2 | GE147: 2 | GF147: 1 | GG147: 1 | GH147: 1 | GI147: 1 | GJ147: 1 | GK147: 1 | GL147: 1 | GM147: 1 | GN147: 1 | GO147: 1 | GP147: 1 | GQ147: 1 | GR147: 1
A148: 2 | B148: 2 | C148: 2 | D148: 3 | E148: 3 | F148: 3 | G148: 3 | H148: 2 | I148: 2 | J148: 2 | K148: 2 | L148: 2 | M148: 2 | N148: 2 | O148: 2 | P148: 2 | Q148: 2 | R148: 2 | S148: 2 | T148: 2 | U148: 2 | V148: 2 | W148: 2 | X148: 2 | Y148: 2 | Z148: 2 | AA148: 2 | AB148: 2 | AC148: 2 | AD148: 2 | AE148: 2 | AF148: 2 | AG148: 2 | AH148: 2 | AI148: 2 | AJ148: 2 | AK148: 2 | AL148: 2 | AM148: 2 | AN148: 2 | AO148: 2 | AP148: 2 | AQ148: 2 | AR148: 2 | AS148: 2 | AT148: 2 | AU148: 2 | AV148: 2 | AW148: 2 | AX148: 2 | AY148: 1 | AZ148: 1 | BA148: 1 | BB148: 1 | BC148: 1 | BD148: 1 | BE148: 1 | BF148: 1 | BG148: 1 | BH148: 1 | BI148: 1 | BJ148: 1 | BK148: 1 | BL148: 1 | BM148: 1 | BN148: 1 | BO148: 2 | BP148: 2 | BQ148: 2 | BR148: 2 | BS148: 2 | BT148: 2 | BU148: 2 | BV148: 2 | BW148: 2 | BX148: 2 | BY148: 2 | BZ148: 2 | CA148: 2 | CB148: 1 | CC148: 1 | CD148: 1 | CE148: 1 | CF148: 1 | CG148: 1 | CH148: 2 | CI148: 2 | CJ148: 2 | CK148: 2 | CL148: 2 | CM148: 2 | CN148: 2 | CO148: 2 | CP148: 2 | CQ148: 2 | CR148: 2 | CS148: 2 | CT148: 2 | CU148: 2 | CV148: 1 | CW148: 1 | CX148: 1 | CY148: 1 | CZ148: 1 | DA148: 1 | DB148: 1 | DC148: 1 | DD148: 1 | DE148: 1 | DF148: 1 | DG148: 1 | DH148: 1 | DI148: 1 | DJ148: 1 | DK148: 1 | DL148: 1 | DM148: 1 | DN148: 1 | DO148: 1 | DP148: 1 | DQ148: 1 | DR148: 1 | DS148: 1 | DT148: 1 | DU148: 1 | DV148: 1 | DW148: 1 | DX148: 1 | DY148: 1 | DZ148: 1 | EA148: 1 | EB148: 1 | EC148: 1 | ED148: 1 | EE148: 1 | EF148: 1 | EG148: 2 | EH148: 2 | EI148: 2 | EJ148: 2 | EK148: 2 | EL148: 2 | EM148: 2 | EN148: 2 | EO148: 2 | EP148: 2 | EQ148: 2 | ER148: 2 | ES148: 2 | ET148: 2 | EU148: 2 | EV148: 2 | EW148: 2 | EX148: 2 | EY148: 2 | EZ148: 2 | FA148: 2 | FB148: 2 | FC148: 2 | FD148: 2 | FE148: 2 | FF148: 2 | FG148: 2 | FH148: 2 | FI148: 2 | FJ148: 2 | FK148: 2 | FL148: 3 | FM148: 3 | FN148: 3 | FO148: 2 | FP148: 2 | FQ148: 2 | FR148: 2 | FS148: 2 | FT148: 2 | FU148: 2 | FV148: 2 | FW148: 2 | FX148: 2 | FY148: 2 | FZ148: 2 | GA148: 2 | GB148: 2 | GC148: 2 | GD148: 2 | GE148: 1 | GF148: 1 | GG148: 1 | GH148: 1 | GI148: 1 | GJ148: 1 | GK148: 1 | GL148: 1 | GM148: 1 | GN148: 1 | GO148: 1 | GP148: 1 | GQ148: 1 | GR148: 1
